{"text_format":"1","workbook":"xlsx","n_sheets":6,"sheets":["Activo Analítico","Pasivo Analítico","Egresos Analítico","Ingresos Analítico","Resumen de Anexos Contables","RELACIONES ENTRE EEFF Y ANEXOS"],"not_rendered":{"charts":0,"images":0,"macros":1,"external_links":0,"defined_names":4,"comments":0,"pivot_tables":0},"unopened":[],"bounds":{"document_bytes":16777216,"sheet_cells":100000,"rows_first":2000,"rows_last":500,"rows_between":2000,"halvings":0,"cell_chars":16384,"cell_head_chars":4096},"cells_cut":0,"cells_raw":0,"read":"whole","date_system":"1900"}

{"sheet":"Activo Analítico","index":0,"n_rows":289,"n_cols":12,"rows_kept":289,"cut":false,"hidden":false,"merged":[]}
[null,"EMPRESA ADMINISTRADORA DE RIESGOS"]
[null,"ACTIVO ANALÍTICO"]
[null,"AL XX/XX/20___",null,null,"2025-05-12"]
[]
[null,"nivel 1","nivel 2","nivel 3","nivel 4","nivel 5","nivel 6","nivel 7","Nombre de la Cuenta","Admite Monto","Identificador del Anexo","Cuenta Contable"]
[null,"1.",null,null,null,null,null,null,"ACTIVO",{"$f":"+EsNegrita(I6)","v":"NO"},"A1",{"$f":"+Tabla1[[#This Row],[nivel 1]]&Tabla1[[#This Row],[nivel 2]]&Tabla1[[#This Row],[nivel 3]]&Tabla1[[#This Row],[nivel 4]]&Tabla1[[#This Row],[nivel 5]]&Tabla1[[#This Row],[nivel 6]]&Tabla1[[#This Row],[nivel 7]]","v":"1."}]
[null,"1.","101.",null,null,null,null,null,"DISPONIBLE",{"$f":"+EsNegrita(I7)","v":"NO"},null,{"$f":"+Tabla1[[#This Row],[nivel 1]]&Tabla1[[#This Row],[nivel 2]]&Tabla1[[#This Row],[nivel 3]]&Tabla1[[#This Row],[nivel 4]]&Tabla1[[#This Row],[nivel 5]]&Tabla1[[#This Row],[nivel 6]]&Tabla1[[#This Row],[nivel 7]]","v":"1.101."}]
[null,"1.","101.","01.",null,null,null,null,"Caja",{"$f":"+EsNegrita(I8)","v":"NO"},null,{"$f":"+Tabla1[[#This Row],[nivel 1]]&Tabla1[[#This Row],[nivel 2]]&Tabla1[[#This Row],[nivel 3]]&Tabla1[[#This Row],[nivel 4]]&Tabla1[[#This Row],[nivel 5]]&Tabla1[[#This Row],[nivel 6]]&Tabla1[[#This Row],[nivel 7]]","v":"1.101.01."}]
[null,"1.","101.","01.","01.",null,null,null,"Moneda Nacional",{"$f":"+EsNegrita(I9)","v":"SI"},"A1",{"$f":"+Tabla1[[#This Row],[nivel 1]]&Tabla1[[#This Row],[nivel 2]]&Tabla1[[#This Row],[nivel 3]]&Tabla1[[#This Row],[nivel 4]]&Tabla1[[#This Row],[nivel 5]]&Tabla1[[#This Row],[nivel 6]]&Tabla1[[#This Row],[nivel 7]]","v":"1.101.01.01."}]
[null,"1.","101.","01.","02.",null,null,null,"Moneda Extranjera",{"$f":"+EsNegrita(I10)","v":"SI"},"A1",{"$f":"+Tabla1[[#This Row],[nivel 1]]&Tabla1[[#This Row],[nivel 2]]&Tabla1[[#This Row],[nivel 3]]&Tabla1[[#This Row],[nivel 4]]&Tabla1[[#This Row],[nivel 5]]&Tabla1[[#This Row],[nivel 6]]&Tabla1[[#This Row],[nivel 7]]","v":"1.101.01.02."}]
[null,"1.","101.","02.",null,null,null,null,"Caja Chica",{"$f":"+EsNegrita(I11)","v":"NO"},null,{"$f":"+Tabla1[[#This Row],[nivel 1]]&Tabla1[[#This Row],[nivel 2]]&Tabla1[[#This Row],[nivel 3]]&Tabla1[[#This Row],[nivel 4]]&Tabla1[[#This Row],[nivel 5]]&Tabla1[[#This Row],[nivel 6]]&Tabla1[[#This Row],[nivel 7]]","v":"1.101.02."}]
[null,"1.","101.","02.","01.",null,null,null,"Moneda Nacional",{"$f":"+EsNegrita(I12)","v":"SI"},"A1",{"$f":"+Tabla1[[#This Row],[nivel 1]]&Tabla1[[#This Row],[nivel 2]]&Tabla1[[#This Row],[nivel 3]]&Tabla1[[#This Row],[nivel 4]]&Tabla1[[#This Row],[nivel 5]]&Tabla1[[#This Row],[nivel 6]]&Tabla1[[#This Row],[nivel 7]]","v":"1.101.02.01."}]
[null,"1.","101.","02.","02.",null,null,null,"Moneda Extranjera",{"$f":"+EsNegrita(I13)","v":"SI"},"A1",{"$f":"+Tabla1[[#This Row],[nivel 1]]&Tabla1[[#This Row],[nivel 2]]&Tabla1[[#This Row],[nivel 3]]&Tabla1[[#This Row],[nivel 4]]&Tabla1[[#This Row],[nivel 5]]&Tabla1[[#This Row],[nivel 6]]&Tabla1[[#This Row],[nivel 7]]","v":"1.101.02.02."}]
[null,"1.","101.","03.",null,null,null,null,"Depósitos a la Vista",{"$f":"+EsNegrita(I14)","v":"NO"},null,{"$f":"+Tabla1[[#This Row],[nivel 1]]&Tabla1[[#This Row],[nivel 2]]&Tabla1[[#This Row],[nivel 3]]&Tabla1[[#This Row],[nivel 4]]&Tabla1[[#This Row],[nivel 5]]&Tabla1[[#This Row],[nivel 6]]&Tabla1[[#This Row],[nivel 7]]","v":"1.101.03."}]
[null,"1.","101.","03.","01.",null,null,null,"Bancos",{"$f":"+EsNegrita(I15)","v":"NO"},null,{"$f":"+Tabla1[[#This Row],[nivel 1]]&Tabla1[[#This Row],[nivel 2]]&Tabla1[[#This Row],[nivel 3]]&Tabla1[[#This Row],[nivel 4]]&Tabla1[[#This Row],[nivel 5]]&Tabla1[[#This Row],[nivel 6]]&Tabla1[[#This Row],[nivel 7]]","v":"1.101.03.01."}]
[null,"1.","101.","03.","01.","01.",null,null,"Moneda Nacional",{"$f":"+EsNegrita(I16)","v":"SI"},"A1",{"$f":"+Tabla1[[#This Row],[nivel 1]]&Tabla1[[#This Row],[nivel 2]]&Tabla1[[#This Row],[nivel 3]]&Tabla1[[#This Row],[nivel 4]]&Tabla1[[#This Row],[nivel 5]]&Tabla1[[#This Row],[nivel 6]]&Tabla1[[#This Row],[nivel 7]]","v":"1.101.03.01.01."}]
[null,"1.","101.","03.","01.","02.",null,null,"Moneda Extranjera",{"$f":"+EsNegrita(I17)","v":"SI"},"A1",{"$f":"+Tabla1[[#This Row],[nivel 1]]&Tabla1[[#This Row],[nivel 2]]&Tabla1[[#This Row],[nivel 3]]&Tabla1[[#This Row],[nivel 4]]&Tabla1[[#This Row],[nivel 5]]&Tabla1[[#This Row],[nivel 6]]&Tabla1[[#This Row],[nivel 7]]","v":"1.101.03.01.02."}]
[null,"1.","101.","03.","02.",null,null,null,"Otras Instituciones Financieras",{"$f":"+EsNegrita(I18)","v":"NO"},null,{"$f":"+Tabla1[[#This Row],[nivel 1]]&Tabla1[[#This Row],[nivel 2]]&Tabla1[[#This Row],[nivel 3]]&Tabla1[[#This Row],[nivel 4]]&Tabla1[[#This Row],[nivel 5]]&Tabla1[[#This Row],[nivel 6]]&Tabla1[[#This Row],[nivel 7]]","v":"1.101.03.02."}]
[null,"1.","101.","03.","02.","01.",null,null,"Moneda Nacional",{"$f":"+EsNegrita(I19)","v":"SI"},"A1",{"$f":"+Tabla1[[#This Row],[nivel 1]]&Tabla1[[#This Row],[nivel 2]]&Tabla1[[#This Row],[nivel 3]]&Tabla1[[#This Row],[nivel 4]]&Tabla1[[#This Row],[nivel 5]]&Tabla1[[#This Row],[nivel 6]]&Tabla1[[#This Row],[nivel 7]]","v":"1.101.03.02.01."}]
[null,"1.","101.","03.","02.","02.",null,null,"Moneda Extranjera",{"$f":"+EsNegrita(I20)","v":"SI"},"A1",{"$f":"+Tabla1[[#This Row],[nivel 1]]&Tabla1[[#This Row],[nivel 2]]&Tabla1[[#This Row],[nivel 3]]&Tabla1[[#This Row],[nivel 4]]&Tabla1[[#This Row],[nivel 5]]&Tabla1[[#This Row],[nivel 6]]&Tabla1[[#This Row],[nivel 7]]","v":"1.101.03.02.02."}]
[null,"1.","101.","04.",null,null,null,null,"Depósitos a Plazo ",{"$f":"+EsNegrita(I21)","v":"NO"},null,{"$f":"+Tabla1[[#This Row],[nivel 1]]&Tabla1[[#This Row],[nivel 2]]&Tabla1[[#This Row],[nivel 3]]&Tabla1[[#This Row],[nivel 4]]&Tabla1[[#This Row],[nivel 5]]&Tabla1[[#This Row],[nivel 6]]&Tabla1[[#This Row],[nivel 7]]","v":"1.101.04."}]
[null,"1.","101.","04.","01.",null,null,null,"Bancos",{"$f":"+EsNegrita(I22)","v":"NO"},null,{"$f":"+Tabla1[[#This Row],[nivel 1]]&Tabla1[[#This Row],[nivel 2]]&Tabla1[[#This Row],[nivel 3]]&Tabla1[[#This Row],[nivel 4]]&Tabla1[[#This Row],[nivel 5]]&Tabla1[[#This Row],[nivel 6]]&Tabla1[[#This Row],[nivel 7]]","v":"1.101.04.01."}]
[null,"1.","101.","04.","01.","01.",null,null,"Moneda Nacional",{"$f":"+EsNegrita(I23)","v":"SI"},"A1",{"$f":"+Tabla1[[#This Row],[nivel 1]]&Tabla1[[#This Row],[nivel 2]]&Tabla1[[#This Row],[nivel 3]]&Tabla1[[#This Row],[nivel 4]]&Tabla1[[#This Row],[nivel 5]]&Tabla1[[#This Row],[nivel 6]]&Tabla1[[#This Row],[nivel 7]]","v":"1.101.04.01.01."}]
[null,"1.","101.","04.","01.","02.",null,null,"Moneda Extranjera",{"$f":"+EsNegrita(I24)","v":"SI"},"A1",{"$f":"+Tabla1[[#This Row],[nivel 1]]&Tabla1[[#This Row],[nivel 2]]&Tabla1[[#This Row],[nivel 3]]&Tabla1[[#This Row],[nivel 4]]&Tabla1[[#This Row],[nivel 5]]&Tabla1[[#This Row],[nivel 6]]&Tabla1[[#This Row],[nivel 7]]","v":"1.101.04.01.02."}]
[null,"1.","101.","04.","02.",null,null,null,"Otras Instituciones Financieras",{"$f":"+EsNegrita(I25)","v":"NO"},null,{"$f":"+Tabla1[[#This Row],[nivel 1]]&Tabla1[[#This Row],[nivel 2]]&Tabla1[[#This Row],[nivel 3]]&Tabla1[[#This Row],[nivel 4]]&Tabla1[[#This Row],[nivel 5]]&Tabla1[[#This Row],[nivel 6]]&Tabla1[[#This Row],[nivel 7]]","v":"1.101.04.02."}]
[null,"1.","101.","04.","02.","01.",null,null,"Moneda Nacional",{"$f":"+EsNegrita(I26)","v":"SI"},"A1",{"$f":"+Tabla1[[#This Row],[nivel 1]]&Tabla1[[#This Row],[nivel 2]]&Tabla1[[#This Row],[nivel 3]]&Tabla1[[#This Row],[nivel 4]]&Tabla1[[#This Row],[nivel 5]]&Tabla1[[#This Row],[nivel 6]]&Tabla1[[#This Row],[nivel 7]]","v":"1.101.04.02.01."}]
[null,"1.","101.","04.","02.","02.",null,null,"Moneda Extranjera",{"$f":"+EsNegrita(I27)","v":"SI"},"A1",{"$f":"+Tabla1[[#This Row],[nivel 1]]&Tabla1[[#This Row],[nivel 2]]&Tabla1[[#This Row],[nivel 3]]&Tabla1[[#This Row],[nivel 4]]&Tabla1[[#This Row],[nivel 5]]&Tabla1[[#This Row],[nivel 6]]&Tabla1[[#This Row],[nivel 7]]","v":"1.101.04.02.02."}]
[null,"1.","102.",null,null,null,null,null,"INVERSIONES",{"$f":"+EsNegrita(I28)","v":"NO"},null,{"$f":"+Tabla1[[#This Row],[nivel 1]]&Tabla1[[#This Row],[nivel 2]]&Tabla1[[#This Row],[nivel 3]]&Tabla1[[#This Row],[nivel 4]]&Tabla1[[#This Row],[nivel 5]]&Tabla1[[#This Row],[nivel 6]]&Tabla1[[#This Row],[nivel 7]]","v":"1.102."}]
[null,"1.","102.","01.",null,null,null,null,"Valores Públicos",{"$f":"+EsNegrita(I29)","v":"NO"},"A17-C15",{"$f":"+Tabla1[[#This Row],[nivel 1]]&Tabla1[[#This Row],[nivel 2]]&Tabla1[[#This Row],[nivel 3]]&Tabla1[[#This Row],[nivel 4]]&Tabla1[[#This Row],[nivel 5]]&Tabla1[[#This Row],[nivel 6]]&Tabla1[[#This Row],[nivel 7]]","v":"1.102.01."}]
[null,"1.","102.","01.","01.",null,null,null,"Emitidos o Garantizados por la República",{"$f":"+EsNegrita(I30)","v":"SI"},"A17-C15",{"$f":"+Tabla1[[#This Row],[nivel 1]]&Tabla1[[#This Row],[nivel 2]]&Tabla1[[#This Row],[nivel 3]]&Tabla1[[#This Row],[nivel 4]]&Tabla1[[#This Row],[nivel 5]]&Tabla1[[#This Row],[nivel 6]]&Tabla1[[#This Row],[nivel 7]]","v":"1.102.01.01."}]
[null,"1.","102.","01.","02.",null,null,null,"Emitidos por Otros Sujetos de Derecho Público Nacional",{"$f":"+EsNegrita(I31)","v":"SI"},"A17-C15",{"$f":"+Tabla1[[#This Row],[nivel 1]]&Tabla1[[#This Row],[nivel 2]]&Tabla1[[#This Row],[nivel 3]]&Tabla1[[#This Row],[nivel 4]]&Tabla1[[#This Row],[nivel 5]]&Tabla1[[#This Row],[nivel 6]]&Tabla1[[#This Row],[nivel 7]]","v":"1.102.01.02."}]
[null,"1.","102.","01.","03.",null,null,null,"Emitidos por Empresas con Participación de la República",{"$f":"+EsNegrita(I32)","v":"SI"},null,{"$f":"+Tabla1[[#This Row],[nivel 1]]&Tabla1[[#This Row],[nivel 2]]&Tabla1[[#This Row],[nivel 3]]&Tabla1[[#This Row],[nivel 4]]&Tabla1[[#This Row],[nivel 5]]&Tabla1[[#This Row],[nivel 6]]&Tabla1[[#This Row],[nivel 7]]","v":"1.102.01.03."}]
[null,"1.","102.","01.","04.",null,null,null,"Emitidos por Instituciones con Participación de la República",{"$f":"+EsNegrita(I33)","v":"SI"},"A17-C15",{"$f":"+Tabla1[[#This Row],[nivel 1]]&Tabla1[[#This Row],[nivel 2]]&Tabla1[[#This Row],[nivel 3]]&Tabla1[[#This Row],[nivel 4]]&Tabla1[[#This Row],[nivel 5]]&Tabla1[[#This Row],[nivel 6]]&Tabla1[[#This Row],[nivel 7]]","v":"1.102.01.04."}]
[null,"1.","102.","02.",null,null,null,null,"Participación en Fondos de Inversión",{"$f":"+EsNegrita(I34)","v":"NO"},"A17-C15",{"$f":"+Tabla1[[#This Row],[nivel 1]]&Tabla1[[#This Row],[nivel 2]]&Tabla1[[#This Row],[nivel 3]]&Tabla1[[#This Row],[nivel 4]]&Tabla1[[#This Row],[nivel 5]]&Tabla1[[#This Row],[nivel 6]]&Tabla1[[#This Row],[nivel 7]]","v":"1.102.02."}]
[null,"1.","102.","02.","01.",null,null,null,"Renta fija",{"$f":"+EsNegrita(I35)","v":"SI"},null,{"$f":"+Tabla1[[#This Row],[nivel 1]]&Tabla1[[#This Row],[nivel 2]]&Tabla1[[#This Row],[nivel 3]]&Tabla1[[#This Row],[nivel 4]]&Tabla1[[#This Row],[nivel 5]]&Tabla1[[#This Row],[nivel 6]]&Tabla1[[#This Row],[nivel 7]]","v":"1.102.02.01."}]
[null,"1.","102.","02.","02.",null,null,null,"Renta Variable",{"$f":"+EsNegrita(I36)","v":"SI"},"A17-C15",{"$f":"+Tabla1[[#This Row],[nivel 1]]&Tabla1[[#This Row],[nivel 2]]&Tabla1[[#This Row],[nivel 3]]&Tabla1[[#This Row],[nivel 4]]&Tabla1[[#This Row],[nivel 5]]&Tabla1[[#This Row],[nivel 6]]&Tabla1[[#This Row],[nivel 7]]","v":"1.102.02.02."}]
[null,"1.","102.","03.",null,null,null,null,"Participación en Fondos de Inversión inmobiliarios",{"$f":"+EsNegrita(I37)","v":"NO"},"A17-C15",{"$f":"+Tabla1[[#This Row],[nivel 1]]&Tabla1[[#This Row],[nivel 2]]&Tabla1[[#This Row],[nivel 3]]&Tabla1[[#This Row],[nivel 4]]&Tabla1[[#This Row],[nivel 5]]&Tabla1[[#This Row],[nivel 6]]&Tabla1[[#This Row],[nivel 7]]","v":"1.102.03."}]
[null,"1.","102.","03.","01.",null,null,null,"Moneda Nacional",{"$f":"+EsNegrita(I38)","v":"SI"},null,{"$f":"+Tabla1[[#This Row],[nivel 1]]&Tabla1[[#This Row],[nivel 2]]&Tabla1[[#This Row],[nivel 3]]&Tabla1[[#This Row],[nivel 4]]&Tabla1[[#This Row],[nivel 5]]&Tabla1[[#This Row],[nivel 6]]&Tabla1[[#This Row],[nivel 7]]","v":"1.102.03.01."}]
[null,"1.","102.","03.","02.",null,null,null,"Moneda Extranjera",{"$f":"+EsNegrita(I39)","v":"SI"},"A17-C15",{"$f":"+Tabla1[[#This Row],[nivel 1]]&Tabla1[[#This Row],[nivel 2]]&Tabla1[[#This Row],[nivel 3]]&Tabla1[[#This Row],[nivel 4]]&Tabla1[[#This Row],[nivel 5]]&Tabla1[[#This Row],[nivel 6]]&Tabla1[[#This Row],[nivel 7]]","v":"1.102.03.02."}]
[null,"1.","102.","04.",null,null,null,null,"GARANTÍA A LA NACIÓN",{"$f":"+EsNegrita(I40)","v":"NO"},"A17-C15",{"$f":"+Tabla1[[#This Row],[nivel 1]]&Tabla1[[#This Row],[nivel 2]]&Tabla1[[#This Row],[nivel 3]]&Tabla1[[#This Row],[nivel 4]]&Tabla1[[#This Row],[nivel 5]]&Tabla1[[#This Row],[nivel 6]]&Tabla1[[#This Row],[nivel 7]]","v":"1.102.04."}]
[null,"1.","102.","04.","01.",null,null,null,"Efectivo",{"$f":"+EsNegrita(I41)","v":"SI"},null,{"$f":"+Tabla1[[#This Row],[nivel 1]]&Tabla1[[#This Row],[nivel 2]]&Tabla1[[#This Row],[nivel 3]]&Tabla1[[#This Row],[nivel 4]]&Tabla1[[#This Row],[nivel 5]]&Tabla1[[#This Row],[nivel 6]]&Tabla1[[#This Row],[nivel 7]]","v":"1.102.04.01."}]
[null,"1.","102.","04.","02.",null,null,null,"Valores Públicos",{"$f":"+EsNegrita(I42)","v":"SI"},"A17-C15",{"$f":"+Tabla1[[#This Row],[nivel 1]]&Tabla1[[#This Row],[nivel 2]]&Tabla1[[#This Row],[nivel 3]]&Tabla1[[#This Row],[nivel 4]]&Tabla1[[#This Row],[nivel 5]]&Tabla1[[#This Row],[nivel 6]]&Tabla1[[#This Row],[nivel 7]]","v":"1.102.04.02."}]
[null,"1.","102.","05.",null,null,null,null,"Valores Privados",{"$f":"+EsNegrita(I43)","v":"NO"},null,{"$f":"+Tabla1[[#This Row],[nivel 1]]&Tabla1[[#This Row],[nivel 2]]&Tabla1[[#This Row],[nivel 3]]&Tabla1[[#This Row],[nivel 4]]&Tabla1[[#This Row],[nivel 5]]&Tabla1[[#This Row],[nivel 6]]&Tabla1[[#This Row],[nivel 7]]","v":"1.102.05."}]
[null,"1.","102.","05.","01.",null,null,null,"Acciones de Sociedades Anónimas",{"$f":"+EsNegrita(I44)","v":"NO"},"A17-C15",{"$f":"+Tabla1[[#This Row],[nivel 1]]&Tabla1[[#This Row],[nivel 2]]&Tabla1[[#This Row],[nivel 3]]&Tabla1[[#This Row],[nivel 4]]&Tabla1[[#This Row],[nivel 5]]&Tabla1[[#This Row],[nivel 6]]&Tabla1[[#This Row],[nivel 7]]","v":"1.102.05.01."}]
[null,"1.","102.","05.","01.","01.",null,null,"Empresas de Seguros o Reaseguros",{"$f":"+EsNegrita(I45)","v":"SI"},"A17-C15",{"$f":"+Tabla1[[#This Row],[nivel 1]]&Tabla1[[#This Row],[nivel 2]]&Tabla1[[#This Row],[nivel 3]]&Tabla1[[#This Row],[nivel 4]]&Tabla1[[#This Row],[nivel 5]]&Tabla1[[#This Row],[nivel 6]]&Tabla1[[#This Row],[nivel 7]]","v":"1.102.05.01.01."}]
[null,"1.","102.","05.","01.","02.",null,null,"Sociedades de Corretaje de Seguros o de Reaseguros o de Valores",{"$f":"+EsNegrita(I46)","v":"SI"},"A17-C15",{"$f":"+Tabla1[[#This Row],[nivel 1]]&Tabla1[[#This Row],[nivel 2]]&Tabla1[[#This Row],[nivel 3]]&Tabla1[[#This Row],[nivel 4]]&Tabla1[[#This Row],[nivel 5]]&Tabla1[[#This Row],[nivel 6]]&Tabla1[[#This Row],[nivel 7]]","v":"1.102.05.01.02."}]
[null,"1.","102.","05.","01.","03.",null,null,"Bancos y Otras Instituciones Financieras",{"$f":"+EsNegrita(I47)","v":"SI"},"A17-C15",{"$f":"+Tabla1[[#This Row],[nivel 1]]&Tabla1[[#This Row],[nivel 2]]&Tabla1[[#This Row],[nivel 3]]&Tabla1[[#This Row],[nivel 4]]&Tabla1[[#This Row],[nivel 5]]&Tabla1[[#This Row],[nivel 6]]&Tabla1[[#This Row],[nivel 7]]","v":"1.102.05.01.03."}]
[null,"1.","102.","05.","01.","04.",null,null,"Sociedades Industriales y Comerciales",{"$f":"+EsNegrita(I48)","v":"SI"},"A17-C15",{"$f":"+Tabla1[[#This Row],[nivel 1]]&Tabla1[[#This Row],[nivel 2]]&Tabla1[[#This Row],[nivel 3]]&Tabla1[[#This Row],[nivel 4]]&Tabla1[[#This Row],[nivel 5]]&Tabla1[[#This Row],[nivel 6]]&Tabla1[[#This Row],[nivel 7]]","v":"1.102.05.01.04."}]
[null,"1.","102.","05.","01.","05.",null,null,"Sociedades Civiles",{"$f":"+EsNegrita(I49)","v":"SI"},"A17-C15",{"$f":"+Tabla1[[#This Row],[nivel 1]]&Tabla1[[#This Row],[nivel 2]]&Tabla1[[#This Row],[nivel 3]]&Tabla1[[#This Row],[nivel 4]]&Tabla1[[#This Row],[nivel 5]]&Tabla1[[#This Row],[nivel 6]]&Tabla1[[#This Row],[nivel 7]]","v":"1.102.05.01.05."}]
[null,"1.","102.","05.","01.","06.",null,null,"Empresas Filiales, Afiliadas y Relacionadas",{"$f":"+EsNegrita(I50)","v":"SI"},"A17-C15",{"$f":"+Tabla1[[#This Row],[nivel 1]]&Tabla1[[#This Row],[nivel 2]]&Tabla1[[#This Row],[nivel 3]]&Tabla1[[#This Row],[nivel 4]]&Tabla1[[#This Row],[nivel 5]]&Tabla1[[#This Row],[nivel 6]]&Tabla1[[#This Row],[nivel 7]]","v":"1.102.05.01.06."}]
[null,"1.","102.","05.","01.","07.",null,null,"Otras Sociedades Anónimas",{"$f":"+EsNegrita(I51)","v":"SI"},"A17-C15",{"$f":"+Tabla1[[#This Row],[nivel 1]]&Tabla1[[#This Row],[nivel 2]]&Tabla1[[#This Row],[nivel 3]]&Tabla1[[#This Row],[nivel 4]]&Tabla1[[#This Row],[nivel 5]]&Tabla1[[#This Row],[nivel 6]]&Tabla1[[#This Row],[nivel 7]]","v":"1.102.05.01.07."}]
[null,"1.","102.","05.","02.",null,null,null,"Bonos de Sociedades Anónimas",{"$f":"+EsNegrita(I52)","v":"SI"},"A17-C15",{"$f":"+Tabla1[[#This Row],[nivel 1]]&Tabla1[[#This Row],[nivel 2]]&Tabla1[[#This Row],[nivel 3]]&Tabla1[[#This Row],[nivel 4]]&Tabla1[[#This Row],[nivel 5]]&Tabla1[[#This Row],[nivel 6]]&Tabla1[[#This Row],[nivel 7]]","v":"1.102.05.02."}]
[null,"1.","102.","05.","03.",null,null,null,"Otras Inversiones emitidas por el Sector Privado",{"$f":"+EsNegrita(I53)","v":"SI"},"A17-C15",{"$f":"+Tabla1[[#This Row],[nivel 1]]&Tabla1[[#This Row],[nivel 2]]&Tabla1[[#This Row],[nivel 3]]&Tabla1[[#This Row],[nivel 4]]&Tabla1[[#This Row],[nivel 5]]&Tabla1[[#This Row],[nivel 6]]&Tabla1[[#This Row],[nivel 7]]","v":"1.102.05.03."}]
[null,"1.","102.","06.",null,null,null,null,"ACTIVOS EN EL EXTRANJERO",{"$f":"+EsNegrita(I54)","v":"NO"},"A3",{"$f":"+Tabla1[[#This Row],[nivel 1]]&Tabla1[[#This Row],[nivel 2]]&Tabla1[[#This Row],[nivel 3]]&Tabla1[[#This Row],[nivel 4]]&Tabla1[[#This Row],[nivel 5]]&Tabla1[[#This Row],[nivel 6]]&Tabla1[[#This Row],[nivel 7]]","v":"1.102.06."}]
[null,"1.","102.","06.","01.",null,null,null,"Bancos  ",{"$f":"+EsNegrita(I55)","v":"SI"},"A3",{"$f":"+Tabla1[[#This Row],[nivel 1]]&Tabla1[[#This Row],[nivel 2]]&Tabla1[[#This Row],[nivel 3]]&Tabla1[[#This Row],[nivel 4]]&Tabla1[[#This Row],[nivel 5]]&Tabla1[[#This Row],[nivel 6]]&Tabla1[[#This Row],[nivel 7]]","v":"1.102.06.01."}]
[null,"1.","102.","06.","02.",null,null,null,"Títulos Valores",{"$f":"+EsNegrita(I56)","v":"SI"},"A3",{"$f":"+Tabla1[[#This Row],[nivel 1]]&Tabla1[[#This Row],[nivel 2]]&Tabla1[[#This Row],[nivel 3]]&Tabla1[[#This Row],[nivel 4]]&Tabla1[[#This Row],[nivel 5]]&Tabla1[[#This Row],[nivel 6]]&Tabla1[[#This Row],[nivel 7]]","v":"1.102.06.02."}]
[null,"1.","102.","06.","03.",null,null,null,"Inmuebles ",{"$f":"+EsNegrita(I57)","v":"SI"},"A3",{"$f":"+Tabla1[[#This Row],[nivel 1]]&Tabla1[[#This Row],[nivel 2]]&Tabla1[[#This Row],[nivel 3]]&Tabla1[[#This Row],[nivel 4]]&Tabla1[[#This Row],[nivel 5]]&Tabla1[[#This Row],[nivel 6]]&Tabla1[[#This Row],[nivel 7]]","v":"1.102.06.03."}]
[null,"1.","102.","06.","04.",null,null,null,"Otras Inversiones",{"$f":"+EsNegrita(I58)","v":"SI"},"A3",{"$f":"+Tabla1[[#This Row],[nivel 1]]&Tabla1[[#This Row],[nivel 2]]&Tabla1[[#This Row],[nivel 3]]&Tabla1[[#This Row],[nivel 4]]&Tabla1[[#This Row],[nivel 5]]&Tabla1[[#This Row],[nivel 6]]&Tabla1[[#This Row],[nivel 7]]","v":"1.102.06.04."}]
[null,"1","102.","07",null,null,null,null,"Depósitos y Títulos Valores en Instituciones Intervenidas",{"$f":"+EsNegrita(I59)","v":"SI"},null,{"$f":"+Tabla1[[#This Row],[nivel 1]]&Tabla1[[#This Row],[nivel 2]]&Tabla1[[#This Row],[nivel 3]]&Tabla1[[#This Row],[nivel 4]]&Tabla1[[#This Row],[nivel 5]]&Tabla1[[#This Row],[nivel 6]]&Tabla1[[#This Row],[nivel 7]]","v":"1102.07"}]
[null,"1.","103.",null,null,null,null,null,"ACTIVOS DEPRECIABLES Y ACTIVOS AMORTIZABLES",{"$f":"+EsNegrita(I60)","v":"NO"},null,{"$f":"+Tabla1[[#This Row],[nivel 1]]&Tabla1[[#This Row],[nivel 2]]&Tabla1[[#This Row],[nivel 3]]&Tabla1[[#This Row],[nivel 4]]&Tabla1[[#This Row],[nivel 5]]&Tabla1[[#This Row],[nivel 6]]&Tabla1[[#This Row],[nivel 7]]","v":"1.103."}]
[null,"1.","103.","01.",null,null,null,null,"Activos Depreciables  ",{"$f":"+EsNegrita(I61)","v":"NO"},null,{"$f":"+Tabla1[[#This Row],[nivel 1]]&Tabla1[[#This Row],[nivel 2]]&Tabla1[[#This Row],[nivel 3]]&Tabla1[[#This Row],[nivel 4]]&Tabla1[[#This Row],[nivel 5]]&Tabla1[[#This Row],[nivel 6]]&Tabla1[[#This Row],[nivel 7]]","v":"1.103.01."}]
[null,"1.","103.","01.","01.",null,null,null,"Terrenos",{"$f":"+EsNegrita(I62)","v":"SI"},"A2-C19",{"$f":"+Tabla1[[#This Row],[nivel 1]]&Tabla1[[#This Row],[nivel 2]]&Tabla1[[#This Row],[nivel 3]]&Tabla1[[#This Row],[nivel 4]]&Tabla1[[#This Row],[nivel 5]]&Tabla1[[#This Row],[nivel 6]]&Tabla1[[#This Row],[nivel 7]]","v":"1.103.01.01."}]
[null,"1.","103.","01.","02.",null,null,null,"Inmuebles",{"$f":"+EsNegrita(I63)","v":"SI"},"A2-C10",{"$f":"+Tabla1[[#This Row],[nivel 1]]&Tabla1[[#This Row],[nivel 2]]&Tabla1[[#This Row],[nivel 3]]&Tabla1[[#This Row],[nivel 4]]&Tabla1[[#This Row],[nivel 5]]&Tabla1[[#This Row],[nivel 6]]&Tabla1[[#This Row],[nivel 7]]","v":"1.103.01.02."}]
[null,"1.","103.","01.","03.",null,null,null,"Mobiliario                                       ",{"$f":"+EsNegrita(I64)","v":"SI"},null,{"$f":"+Tabla1[[#This Row],[nivel 1]]&Tabla1[[#This Row],[nivel 2]]&Tabla1[[#This Row],[nivel 3]]&Tabla1[[#This Row],[nivel 4]]&Tabla1[[#This Row],[nivel 5]]&Tabla1[[#This Row],[nivel 6]]&Tabla1[[#This Row],[nivel 7]]","v":"1.103.01.03."}]
[null,"1.","103.","01.","04.",null,null,null,"Equipos de Oficina",{"$f":"+EsNegrita(I65)","v":"SI"},null,{"$f":"+Tabla1[[#This Row],[nivel 1]]&Tabla1[[#This Row],[nivel 2]]&Tabla1[[#This Row],[nivel 3]]&Tabla1[[#This Row],[nivel 4]]&Tabla1[[#This Row],[nivel 5]]&Tabla1[[#This Row],[nivel 6]]&Tabla1[[#This Row],[nivel 7]]","v":"1.103.01.04."}]
[null,"1.","103.","01.","05.",null,null,null,"Equipos de Computación y Software",{"$f":"+EsNegrita(I66)","v":"SI"},null,{"$f":"+Tabla1[[#This Row],[nivel 1]]&Tabla1[[#This Row],[nivel 2]]&Tabla1[[#This Row],[nivel 3]]&Tabla1[[#This Row],[nivel 4]]&Tabla1[[#This Row],[nivel 5]]&Tabla1[[#This Row],[nivel 6]]&Tabla1[[#This Row],[nivel 7]]","v":"1.103.01.05."}]
[null,"1.","103.","01.","06.",null,null,null,"Vehículos",{"$f":"+EsNegrita(I67)","v":"SI"},null,{"$f":"+Tabla1[[#This Row],[nivel 1]]&Tabla1[[#This Row],[nivel 2]]&Tabla1[[#This Row],[nivel 3]]&Tabla1[[#This Row],[nivel 4]]&Tabla1[[#This Row],[nivel 5]]&Tabla1[[#This Row],[nivel 6]]&Tabla1[[#This Row],[nivel 7]]","v":"1.103.01.06."}]
[null,"1.","103.","01.","07.",null,null,null,"Aeronaves",{"$f":"+EsNegrita(I68)","v":"SI"},null,{"$f":"+Tabla1[[#This Row],[nivel 1]]&Tabla1[[#This Row],[nivel 2]]&Tabla1[[#This Row],[nivel 3]]&Tabla1[[#This Row],[nivel 4]]&Tabla1[[#This Row],[nivel 5]]&Tabla1[[#This Row],[nivel 6]]&Tabla1[[#This Row],[nivel 7]]","v":"1.103.01.07."}]
[null,"1.","103.","01.","08.",null,null,null,"Naves",{"$f":"+EsNegrita(I69)","v":"SI"},null,{"$f":"+Tabla1[[#This Row],[nivel 1]]&Tabla1[[#This Row],[nivel 2]]&Tabla1[[#This Row],[nivel 3]]&Tabla1[[#This Row],[nivel 4]]&Tabla1[[#This Row],[nivel 5]]&Tabla1[[#This Row],[nivel 6]]&Tabla1[[#This Row],[nivel 7]]","v":"1.103.01.08."}]
[null,"1.","103.","02.",null,null,null,null,"Activos Amortizables",{"$f":"+EsNegrita(I70)","v":"NO"},null,{"$f":"+Tabla1[[#This Row],[nivel 1]]&Tabla1[[#This Row],[nivel 2]]&Tabla1[[#This Row],[nivel 3]]&Tabla1[[#This Row],[nivel 4]]&Tabla1[[#This Row],[nivel 5]]&Tabla1[[#This Row],[nivel 6]]&Tabla1[[#This Row],[nivel 7]]","v":"1.103.02."}]
[null,"1.","103.","02.","01.",null,null,null,"Gastos de Constitución",{"$f":"+EsNegrita(I71)","v":"SI"},null,{"$f":"+Tabla1[[#This Row],[nivel 1]]&Tabla1[[#This Row],[nivel 2]]&Tabla1[[#This Row],[nivel 3]]&Tabla1[[#This Row],[nivel 4]]&Tabla1[[#This Row],[nivel 5]]&Tabla1[[#This Row],[nivel 6]]&Tabla1[[#This Row],[nivel 7]]","v":"1.103.02.01."}]
[null,"1.","103.","02.","02.",null,null,null,"Gastos de Instalación",{"$f":"+EsNegrita(I72)","v":"SI"},null,{"$f":"+Tabla1[[#This Row],[nivel 1]]&Tabla1[[#This Row],[nivel 2]]&Tabla1[[#This Row],[nivel 3]]&Tabla1[[#This Row],[nivel 4]]&Tabla1[[#This Row],[nivel 5]]&Tabla1[[#This Row],[nivel 6]]&Tabla1[[#This Row],[nivel 7]]","v":"1.103.02.02."}]
[null,"1.","104.",null,null,null,null,null,"CUENTAS DIVERSAS",{"$f":"+EsNegrita(I73)","v":"NO"},null,{"$f":"+Tabla1[[#This Row],[nivel 1]]&Tabla1[[#This Row],[nivel 2]]&Tabla1[[#This Row],[nivel 3]]&Tabla1[[#This Row],[nivel 4]]&Tabla1[[#This Row],[nivel 5]]&Tabla1[[#This Row],[nivel 6]]&Tabla1[[#This Row],[nivel 7]]","v":"1.104."}]
[null,"1.","104.","01.",null,null,null,null,"Cuentas por Cobrar - Empleados",{"$f":"+EsNegrita(I74)","v":"SI"},null,{"$f":"+Tabla1[[#This Row],[nivel 1]]&Tabla1[[#This Row],[nivel 2]]&Tabla1[[#This Row],[nivel 3]]&Tabla1[[#This Row],[nivel 4]]&Tabla1[[#This Row],[nivel 5]]&Tabla1[[#This Row],[nivel 6]]&Tabla1[[#This Row],[nivel 7]]","v":"1.104.01."}]
[null,"1.","104.","02.",null,null,null,null,"Comisiones por Cobrar - Administración de Riesgos",{"$f":"+EsNegrita(I75)","v":"NO"},"A4",{"$f":"+Tabla1[[#This Row],[nivel 1]]&Tabla1[[#This Row],[nivel 2]]&Tabla1[[#This Row],[nivel 3]]&Tabla1[[#This Row],[nivel 4]]&Tabla1[[#This Row],[nivel 5]]&Tabla1[[#This Row],[nivel 6]]&Tabla1[[#This Row],[nivel 7]]","v":"1.104.02."}]
[null,"1.","104.","02.","01.",null,null,null,"Fondos Administrados",{"$f":"+EsNegrita(I76)","v":"NO"},null,{"$f":"+Tabla1[[#This Row],[nivel 1]]&Tabla1[[#This Row],[nivel 2]]&Tabla1[[#This Row],[nivel 3]]&Tabla1[[#This Row],[nivel 4]]&Tabla1[[#This Row],[nivel 5]]&Tabla1[[#This Row],[nivel 6]]&Tabla1[[#This Row],[nivel 7]]","v":"1.104.02.01."}]
[null,"1.","104.","02.","01.","01.",null,null,"Empresas de Seguros",{"$f":"+EsNegrita(I77)","v":"SI"},"A4",{"$f":"+Tabla1[[#This Row],[nivel 1]]&Tabla1[[#This Row],[nivel 2]]&Tabla1[[#This Row],[nivel 3]]&Tabla1[[#This Row],[nivel 4]]&Tabla1[[#This Row],[nivel 5]]&Tabla1[[#This Row],[nivel 6]]&Tabla1[[#This Row],[nivel 7]]","v":"1.104.02.01.01."}]
[null,"1.","104.","02.","01.","02.",null,null,"Empresas de Medicina Prepagada",{"$f":"+EsNegrita(I78)","v":"SI"},"A4",{"$f":"+Tabla1[[#This Row],[nivel 1]]&Tabla1[[#This Row],[nivel 2]]&Tabla1[[#This Row],[nivel 3]]&Tabla1[[#This Row],[nivel 4]]&Tabla1[[#This Row],[nivel 5]]&Tabla1[[#This Row],[nivel 6]]&Tabla1[[#This Row],[nivel 7]]","v":"1.104.02.01.02."}]
[null,"1.","104.","02.","01.","03.",null,null,"Otros Contratantes",{"$f":"+EsNegrita(I79)","v":"NO"},null,{"$f":"+Tabla1[[#This Row],[nivel 1]]&Tabla1[[#This Row],[nivel 2]]&Tabla1[[#This Row],[nivel 3]]&Tabla1[[#This Row],[nivel 4]]&Tabla1[[#This Row],[nivel 5]]&Tabla1[[#This Row],[nivel 6]]&Tabla1[[#This Row],[nivel 7]]","v":"1.104.02.01.03."}]
[null,"1.","104.","02.","01.","03.","01.",null,"Organismos y Entes de la Administración Pública",{"$f":"+EsNegrita(I80)","v":"SI"},"A4",{"$f":"+Tabla1[[#This Row],[nivel 1]]&Tabla1[[#This Row],[nivel 2]]&Tabla1[[#This Row],[nivel 3]]&Tabla1[[#This Row],[nivel 4]]&Tabla1[[#This Row],[nivel 5]]&Tabla1[[#This Row],[nivel 6]]&Tabla1[[#This Row],[nivel 7]]","v":"1.104.02.01.03.01."}]
[null,"1.","104.","02.","01.","03.","02.",null,"Contratantes del sector Privado",{"$f":"+EsNegrita(I81)","v":"SI"},"A4",{"$f":"+Tabla1[[#This Row],[nivel 1]]&Tabla1[[#This Row],[nivel 2]]&Tabla1[[#This Row],[nivel 3]]&Tabla1[[#This Row],[nivel 4]]&Tabla1[[#This Row],[nivel 5]]&Tabla1[[#This Row],[nivel 6]]&Tabla1[[#This Row],[nivel 7]]","v":"1.104.02.01.03.02."}]
[null,"1.","104.","02.","02.",null,null,null,"Administración de Siniestros",{"$f":"+EsNegrita(I82)","v":"NO"},null,{"$f":"+Tabla1[[#This Row],[nivel 1]]&Tabla1[[#This Row],[nivel 2]]&Tabla1[[#This Row],[nivel 3]]&Tabla1[[#This Row],[nivel 4]]&Tabla1[[#This Row],[nivel 5]]&Tabla1[[#This Row],[nivel 6]]&Tabla1[[#This Row],[nivel 7]]","v":"1.104.02.02."}]
[null,"1.","104.","02.","02.","01.",null,null,"Empresas de Seguros",{"$f":"+EsNegrita(I83)","v":"SI"},"A4",{"$f":"+Tabla1[[#This Row],[nivel 1]]&Tabla1[[#This Row],[nivel 2]]&Tabla1[[#This Row],[nivel 3]]&Tabla1[[#This Row],[nivel 4]]&Tabla1[[#This Row],[nivel 5]]&Tabla1[[#This Row],[nivel 6]]&Tabla1[[#This Row],[nivel 7]]","v":"1.104.02.02.01."}]
[null,"1.","104.","02.","02.","02.",null,null,"Empresas de Medicina Prepagada",{"$f":"+EsNegrita(I84)","v":"SI"},"A4",{"$f":"+Tabla1[[#This Row],[nivel 1]]&Tabla1[[#This Row],[nivel 2]]&Tabla1[[#This Row],[nivel 3]]&Tabla1[[#This Row],[nivel 4]]&Tabla1[[#This Row],[nivel 5]]&Tabla1[[#This Row],[nivel 6]]&Tabla1[[#This Row],[nivel 7]]","v":"1.104.02.02.02."}]
[null,"1.","104.","02.","02.","03.",null,null,"Otros Contratantes",{"$f":"+EsNegrita(I85)","v":"NO"},null,{"$f":"+Tabla1[[#This Row],[nivel 1]]&Tabla1[[#This Row],[nivel 2]]&Tabla1[[#This Row],[nivel 3]]&Tabla1[[#This Row],[nivel 4]]&Tabla1[[#This Row],[nivel 5]]&Tabla1[[#This Row],[nivel 6]]&Tabla1[[#This Row],[nivel 7]]","v":"1.104.02.02.03."}]
[null,"1.","104.","02.","02.","03.","01.",null,"Organismos y Entes de la Administración Pública",{"$f":"+EsNegrita(I86)","v":"SI"},"A4",{"$f":"+Tabla1[[#This Row],[nivel 1]]&Tabla1[[#This Row],[nivel 2]]&Tabla1[[#This Row],[nivel 3]]&Tabla1[[#This Row],[nivel 4]]&Tabla1[[#This Row],[nivel 5]]&Tabla1[[#This Row],[nivel 6]]&Tabla1[[#This Row],[nivel 7]]","v":"1.104.02.02.03.01."}]
[null,"1.","104.","02.","02.","03.","02.",null,"Contratantes del sector Privado",{"$f":"+EsNegrita(I87)","v":"SI"},"A4",{"$f":"+Tabla1[[#This Row],[nivel 1]]&Tabla1[[#This Row],[nivel 2]]&Tabla1[[#This Row],[nivel 3]]&Tabla1[[#This Row],[nivel 4]]&Tabla1[[#This Row],[nivel 5]]&Tabla1[[#This Row],[nivel 6]]&Tabla1[[#This Row],[nivel 7]]","v":"1.104.02.02.03.02."}]
[null,"1.","104.","03.",null,null,null,null,"Cuentas por Cobrar - Intermediarios",{"$f":"+EsNegrita(I88)","v":"NO"},null,{"$f":"+Tabla1[[#This Row],[nivel 1]]&Tabla1[[#This Row],[nivel 2]]&Tabla1[[#This Row],[nivel 3]]&Tabla1[[#This Row],[nivel 4]]&Tabla1[[#This Row],[nivel 5]]&Tabla1[[#This Row],[nivel 6]]&Tabla1[[#This Row],[nivel 7]]","v":"1.104.03."}]
[null,"1.","104.","03.","01.",null,null,null,"Agentes",{"$f":"+EsNegrita(I89)","v":"SI"},null,{"$f":"+Tabla1[[#This Row],[nivel 1]]&Tabla1[[#This Row],[nivel 2]]&Tabla1[[#This Row],[nivel 3]]&Tabla1[[#This Row],[nivel 4]]&Tabla1[[#This Row],[nivel 5]]&Tabla1[[#This Row],[nivel 6]]&Tabla1[[#This Row],[nivel 7]]","v":"1.104.03.01."}]
[null,"1.","104.","03.","02.",null,null,null,"Corredores",{"$f":"+EsNegrita(I90)","v":"SI"},null,{"$f":"+Tabla1[[#This Row],[nivel 1]]&Tabla1[[#This Row],[nivel 2]]&Tabla1[[#This Row],[nivel 3]]&Tabla1[[#This Row],[nivel 4]]&Tabla1[[#This Row],[nivel 5]]&Tabla1[[#This Row],[nivel 6]]&Tabla1[[#This Row],[nivel 7]]","v":"1.104.03.02."}]
[null,"1.","104.","03.","03.",null,null,null,"Sociedades de Corretaje de Seguros",{"$f":"+EsNegrita(I91)","v":"SI"},null,{"$f":"+Tabla1[[#This Row],[nivel 1]]&Tabla1[[#This Row],[nivel 2]]&Tabla1[[#This Row],[nivel 3]]&Tabla1[[#This Row],[nivel 4]]&Tabla1[[#This Row],[nivel 5]]&Tabla1[[#This Row],[nivel 6]]&Tabla1[[#This Row],[nivel 7]]","v":"1.104.03.03."}]
[null,"1.","104.","04.",null,null,null,null,"Cuentas por Cobrar Diversas",{"$f":"+EsNegrita(I92)","v":"NO"},"A5",{"$f":"+Tabla1[[#This Row],[nivel 1]]&Tabla1[[#This Row],[nivel 2]]&Tabla1[[#This Row],[nivel 3]]&Tabla1[[#This Row],[nivel 4]]&Tabla1[[#This Row],[nivel 5]]&Tabla1[[#This Row],[nivel 6]]&Tabla1[[#This Row],[nivel 7]]","v":"1.104.04."}]
[null,"1.","104.","04.","01.",null,null,null,"Empresas Filiales, Afiliadas o Relacionadas",{"$f":"+EsNegrita(I93)","v":"NO"},null,{"$f":"+Tabla1[[#This Row],[nivel 1]]&Tabla1[[#This Row],[nivel 2]]&Tabla1[[#This Row],[nivel 3]]&Tabla1[[#This Row],[nivel 4]]&Tabla1[[#This Row],[nivel 5]]&Tabla1[[#This Row],[nivel 6]]&Tabla1[[#This Row],[nivel 7]]","v":"1.104.04.01."}]
[null,"1.","104.","04.","01.","01.",null,null,"Filiales",{"$f":"+EsNegrita(I94)","v":"SI"},"A5",{"$f":"+Tabla1[[#This Row],[nivel 1]]&Tabla1[[#This Row],[nivel 2]]&Tabla1[[#This Row],[nivel 3]]&Tabla1[[#This Row],[nivel 4]]&Tabla1[[#This Row],[nivel 5]]&Tabla1[[#This Row],[nivel 6]]&Tabla1[[#This Row],[nivel 7]]","v":"1.104.04.01.01."}]
[null,"1.","104.","04.","01.","02.",null,null,"Afiliadas",{"$f":"+EsNegrita(I95)","v":"SI"},"A5",{"$f":"+Tabla1[[#This Row],[nivel 1]]&Tabla1[[#This Row],[nivel 2]]&Tabla1[[#This Row],[nivel 3]]&Tabla1[[#This Row],[nivel 4]]&Tabla1[[#This Row],[nivel 5]]&Tabla1[[#This Row],[nivel 6]]&Tabla1[[#This Row],[nivel 7]]","v":"1.104.04.01.02."}]
[null,"1.","104.","04.","01.","03.",null,null,"Relacionadas",{"$f":"+EsNegrita(I96)","v":"SI"},"A5",{"$f":"+Tabla1[[#This Row],[nivel 1]]&Tabla1[[#This Row],[nivel 2]]&Tabla1[[#This Row],[nivel 3]]&Tabla1[[#This Row],[nivel 4]]&Tabla1[[#This Row],[nivel 5]]&Tabla1[[#This Row],[nivel 6]]&Tabla1[[#This Row],[nivel 7]]","v":"1.104.04.01.03."}]
[null,"1.","104.","04.","02.",null,null,null,"Proveedores de Bienes y Servicios",{"$f":"+EsNegrita(I97)","v":"SI"},"A5",{"$f":"+Tabla1[[#This Row],[nivel 1]]&Tabla1[[#This Row],[nivel 2]]&Tabla1[[#This Row],[nivel 3]]&Tabla1[[#This Row],[nivel 4]]&Tabla1[[#This Row],[nivel 5]]&Tabla1[[#This Row],[nivel 6]]&Tabla1[[#This Row],[nivel 7]]","v":"1.104.04.02."}]
[null,"1.","104.","04.","03.",null,null,null,"Otras Cuentas por Pagar",{"$f":"+EsNegrita(I98)","v":"SI"},"A5",{"$f":"+Tabla1[[#This Row],[nivel 1]]&Tabla1[[#This Row],[nivel 2]]&Tabla1[[#This Row],[nivel 3]]&Tabla1[[#This Row],[nivel 4]]&Tabla1[[#This Row],[nivel 5]]&Tabla1[[#This Row],[nivel 6]]&Tabla1[[#This Row],[nivel 7]]","v":"1.104.04.03."}]
[null,"1.","104.","05.",null,null,null,null,"Beneficios Devengados por Cobrar",{"$f":"+EsNegrita(I99)","v":"NO"},null,{"$f":"+Tabla1[[#This Row],[nivel 1]]&Tabla1[[#This Row],[nivel 2]]&Tabla1[[#This Row],[nivel 3]]&Tabla1[[#This Row],[nivel 4]]&Tabla1[[#This Row],[nivel 5]]&Tabla1[[#This Row],[nivel 6]]&Tabla1[[#This Row],[nivel 7]]","v":"1.104.05."}]
[null,"1.","104.","05.","01.",null,null,null,"Intereses por Cobrar",{"$f":"+EsNegrita(I100)","v":"NO"},null,{"$f":"+Tabla1[[#This Row],[nivel 1]]&Tabla1[[#This Row],[nivel 2]]&Tabla1[[#This Row],[nivel 3]]&Tabla1[[#This Row],[nivel 4]]&Tabla1[[#This Row],[nivel 5]]&Tabla1[[#This Row],[nivel 6]]&Tabla1[[#This Row],[nivel 7]]","v":"1.104.05.01."}]
[null,"1.","104.","05.","01.","01.",null,null,"Depósitos a la Vista",{"$f":"+EsNegrita(I101)","v":"NO"},null,{"$f":"+Tabla1[[#This Row],[nivel 1]]&Tabla1[[#This Row],[nivel 2]]&Tabla1[[#This Row],[nivel 3]]&Tabla1[[#This Row],[nivel 4]]&Tabla1[[#This Row],[nivel 5]]&Tabla1[[#This Row],[nivel 6]]&Tabla1[[#This Row],[nivel 7]]","v":"1.104.05.01.01."}]
[null,"1.","104.","05.","01.","01.","01.",null,"Bancos",{"$f":"+EsNegrita(I102)","v":"NO"},null,{"$f":"+Tabla1[[#This Row],[nivel 1]]&Tabla1[[#This Row],[nivel 2]]&Tabla1[[#This Row],[nivel 3]]&Tabla1[[#This Row],[nivel 4]]&Tabla1[[#This Row],[nivel 5]]&Tabla1[[#This Row],[nivel 6]]&Tabla1[[#This Row],[nivel 7]]","v":"1.104.05.01.01.01."}]
[null,"1.","104.","05.","01.","01.","01.","01.","Moneda Nacional",{"$f":"+EsNegrita(I103)","v":"SI"},null,{"$f":"+Tabla1[[#This Row],[nivel 1]]&Tabla1[[#This Row],[nivel 2]]&Tabla1[[#This Row],[nivel 3]]&Tabla1[[#This Row],[nivel 4]]&Tabla1[[#This Row],[nivel 5]]&Tabla1[[#This Row],[nivel 6]]&Tabla1[[#This Row],[nivel 7]]","v":"1.104.05.01.01.01.01."}]
[null,"1.","104.","05.","01.","01.","01.","02.","Moneda Extranjera",{"$f":"+EsNegrita(I104)","v":"SI"},null,{"$f":"+Tabla1[[#This Row],[nivel 1]]&Tabla1[[#This Row],[nivel 2]]&Tabla1[[#This Row],[nivel 3]]&Tabla1[[#This Row],[nivel 4]]&Tabla1[[#This Row],[nivel 5]]&Tabla1[[#This Row],[nivel 6]]&Tabla1[[#This Row],[nivel 7]]","v":"1.104.05.01.01.01.02."}]
[null,"1.","104.","05.","01.","01.","02.",null,"Otras Instituciones Financieras",{"$f":"+EsNegrita(I105)","v":"NO"},null,{"$f":"+Tabla1[[#This Row],[nivel 1]]&Tabla1[[#This Row],[nivel 2]]&Tabla1[[#This Row],[nivel 3]]&Tabla1[[#This Row],[nivel 4]]&Tabla1[[#This Row],[nivel 5]]&Tabla1[[#This Row],[nivel 6]]&Tabla1[[#This Row],[nivel 7]]","v":"1.104.05.01.01.02."}]
[null,"1.","104.","05.","01.","01.","02.","01.","Moneda Nacional",{"$f":"+EsNegrita(I106)","v":"SI"},null,{"$f":"+Tabla1[[#This Row],[nivel 1]]&Tabla1[[#This Row],[nivel 2]]&Tabla1[[#This Row],[nivel 3]]&Tabla1[[#This Row],[nivel 4]]&Tabla1[[#This Row],[nivel 5]]&Tabla1[[#This Row],[nivel 6]]&Tabla1[[#This Row],[nivel 7]]","v":"1.104.05.01.01.02.01."}]
[null,"1.","104.","05.","01.","01.","02.","02.","Moneda Extranjera",{"$f":"+EsNegrita(I107)","v":"SI"},null,{"$f":"+Tabla1[[#This Row],[nivel 1]]&Tabla1[[#This Row],[nivel 2]]&Tabla1[[#This Row],[nivel 3]]&Tabla1[[#This Row],[nivel 4]]&Tabla1[[#This Row],[nivel 5]]&Tabla1[[#This Row],[nivel 6]]&Tabla1[[#This Row],[nivel 7]]","v":"1.104.05.01.01.02.02."}]
[null,"1.","104.","05.","01.","02.",null,null,"Depósitos a Plazo Fijo",{"$f":"+EsNegrita(I108)","v":"NO"},null,{"$f":"+Tabla1[[#This Row],[nivel 1]]&Tabla1[[#This Row],[nivel 2]]&Tabla1[[#This Row],[nivel 3]]&Tabla1[[#This Row],[nivel 4]]&Tabla1[[#This Row],[nivel 5]]&Tabla1[[#This Row],[nivel 6]]&Tabla1[[#This Row],[nivel 7]]","v":"1.104.05.01.02."}]
[null,"1.","104.","05.","01.","02.","01.",null,"Bancos",{"$f":"+EsNegrita(I109)","v":"NO"},null,{"$f":"+Tabla1[[#This Row],[nivel 1]]&Tabla1[[#This Row],[nivel 2]]&Tabla1[[#This Row],[nivel 3]]&Tabla1[[#This Row],[nivel 4]]&Tabla1[[#This Row],[nivel 5]]&Tabla1[[#This Row],[nivel 6]]&Tabla1[[#This Row],[nivel 7]]","v":"1.104.05.01.02.01."}]
[null,"1.","104.","05.","01.","02.","01.","01.","Moneda Nacional",{"$f":"+EsNegrita(I110)","v":"SI"},null,{"$f":"+Tabla1[[#This Row],[nivel 1]]&Tabla1[[#This Row],[nivel 2]]&Tabla1[[#This Row],[nivel 3]]&Tabla1[[#This Row],[nivel 4]]&Tabla1[[#This Row],[nivel 5]]&Tabla1[[#This Row],[nivel 6]]&Tabla1[[#This Row],[nivel 7]]","v":"1.104.05.01.02.01.01."}]
[null,"1.","104.","05.","01.","02.","01.","02.","Moneda Extranjera",{"$f":"+EsNegrita(I111)","v":"SI"},null,{"$f":"+Tabla1[[#This Row],[nivel 1]]&Tabla1[[#This Row],[nivel 2]]&Tabla1[[#This Row],[nivel 3]]&Tabla1[[#This Row],[nivel 4]]&Tabla1[[#This Row],[nivel 5]]&Tabla1[[#This Row],[nivel 6]]&Tabla1[[#This Row],[nivel 7]]","v":"1.104.05.01.02.01.02."}]
[null,"1.","104.","05.","01.","02.","02.",null,"Otras Instituciones Financieras",{"$f":"+EsNegrita(I112)","v":"NO"},null,{"$f":"+Tabla1[[#This Row],[nivel 1]]&Tabla1[[#This Row],[nivel 2]]&Tabla1[[#This Row],[nivel 3]]&Tabla1[[#This Row],[nivel 4]]&Tabla1[[#This Row],[nivel 5]]&Tabla1[[#This Row],[nivel 6]]&Tabla1[[#This Row],[nivel 7]]","v":"1.104.05.01.02.02."}]
[null,"1.","104.","05.","01.","02.","02.","01.","Moneda Nacional",{"$f":"+EsNegrita(I113)","v":"SI"},null,{"$f":"+Tabla1[[#This Row],[nivel 1]]&Tabla1[[#This Row],[nivel 2]]&Tabla1[[#This Row],[nivel 3]]&Tabla1[[#This Row],[nivel 4]]&Tabla1[[#This Row],[nivel 5]]&Tabla1[[#This Row],[nivel 6]]&Tabla1[[#This Row],[nivel 7]]","v":"1.104.05.01.02.02.01."}]
[null,"1.","104.","05.","01.","02.","02.","02.","Moneda Extranjera",{"$f":"+EsNegrita(I114)","v":"SI"},null,{"$f":"+Tabla1[[#This Row],[nivel 1]]&Tabla1[[#This Row],[nivel 2]]&Tabla1[[#This Row],[nivel 3]]&Tabla1[[#This Row],[nivel 4]]&Tabla1[[#This Row],[nivel 5]]&Tabla1[[#This Row],[nivel 6]]&Tabla1[[#This Row],[nivel 7]]","v":"1.104.05.01.02.02.02."}]
[null,"1.","104.","05.","01.","03.",null,null,"Valores Públicos",{"$f":"+EsNegrita(I115)","v":"NO"},null,{"$f":"+Tabla1[[#This Row],[nivel 1]]&Tabla1[[#This Row],[nivel 2]]&Tabla1[[#This Row],[nivel 3]]&Tabla1[[#This Row],[nivel 4]]&Tabla1[[#This Row],[nivel 5]]&Tabla1[[#This Row],[nivel 6]]&Tabla1[[#This Row],[nivel 7]]","v":"1.104.05.01.03."}]
[null,"1.","104.","05.","01.","03.","01.",null,"Emitidos o Garantizados por la República",{"$f":"+EsNegrita(I116)","v":"SI"},null,{"$f":"+Tabla1[[#This Row],[nivel 1]]&Tabla1[[#This Row],[nivel 2]]&Tabla1[[#This Row],[nivel 3]]&Tabla1[[#This Row],[nivel 4]]&Tabla1[[#This Row],[nivel 5]]&Tabla1[[#This Row],[nivel 6]]&Tabla1[[#This Row],[nivel 7]]","v":"1.104.05.01.03.01."}]
[null,"1.","104.","05.","01.","03.","02.",null,"Emitidos por Otros Sujetos de Derecho Público Nacional",{"$f":"+EsNegrita(I117)","v":"SI"},null,{"$f":"+Tabla1[[#This Row],[nivel 1]]&Tabla1[[#This Row],[nivel 2]]&Tabla1[[#This Row],[nivel 3]]&Tabla1[[#This Row],[nivel 4]]&Tabla1[[#This Row],[nivel 5]]&Tabla1[[#This Row],[nivel 6]]&Tabla1[[#This Row],[nivel 7]]","v":"1.104.05.01.03.02."}]
[null,"1.","104.","05.","01.","03.","03.",null,"Emitidos por Empresas con Participación de la República",{"$f":"+EsNegrita(I118)","v":"SI"},null,{"$f":"+Tabla1[[#This Row],[nivel 1]]&Tabla1[[#This Row],[nivel 2]]&Tabla1[[#This Row],[nivel 3]]&Tabla1[[#This Row],[nivel 4]]&Tabla1[[#This Row],[nivel 5]]&Tabla1[[#This Row],[nivel 6]]&Tabla1[[#This Row],[nivel 7]]","v":"1.104.05.01.03.03."}]
[null,"1.","104.","05.","01.","03.","04.",null,"Emitidos por Instituciones con Participación de la República",{"$f":"+EsNegrita(I119)","v":"SI"},null,{"$f":"+Tabla1[[#This Row],[nivel 1]]&Tabla1[[#This Row],[nivel 2]]&Tabla1[[#This Row],[nivel 3]]&Tabla1[[#This Row],[nivel 4]]&Tabla1[[#This Row],[nivel 5]]&Tabla1[[#This Row],[nivel 6]]&Tabla1[[#This Row],[nivel 7]]","v":"1.104.05.01.03.04."}]
[null,"1.","104.","05.","01.","04.",null,null,"Participación en Fondos de Inversión",{"$f":"+EsNegrita(I120)","v":"NO"},null,{"$f":"+Tabla1[[#This Row],[nivel 1]]&Tabla1[[#This Row],[nivel 2]]&Tabla1[[#This Row],[nivel 3]]&Tabla1[[#This Row],[nivel 4]]&Tabla1[[#This Row],[nivel 5]]&Tabla1[[#This Row],[nivel 6]]&Tabla1[[#This Row],[nivel 7]]","v":"1.104.05.01.04."}]
[null,"1.","104.","05.","01.","04.","01.",null,"Renta Fija",{"$f":"+EsNegrita(I121)","v":"SI"},null,{"$f":"+Tabla1[[#This Row],[nivel 1]]&Tabla1[[#This Row],[nivel 2]]&Tabla1[[#This Row],[nivel 3]]&Tabla1[[#This Row],[nivel 4]]&Tabla1[[#This Row],[nivel 5]]&Tabla1[[#This Row],[nivel 6]]&Tabla1[[#This Row],[nivel 7]]","v":"1.104.05.01.04.01."}]
[null,"1.","104.","05.","01.","04.","02.",null,"Renta Variable",{"$f":"+EsNegrita(I122)","v":"SI"},null,{"$f":"+Tabla1[[#This Row],[nivel 1]]&Tabla1[[#This Row],[nivel 2]]&Tabla1[[#This Row],[nivel 3]]&Tabla1[[#This Row],[nivel 4]]&Tabla1[[#This Row],[nivel 5]]&Tabla1[[#This Row],[nivel 6]]&Tabla1[[#This Row],[nivel 7]]","v":"1.104.05.01.04.02."}]
[null,"1.","104.","05.","01.","05.",null,null,"Valores Privados",{"$f":"+EsNegrita(I123)","v":"NO"},null,{"$f":"+Tabla1[[#This Row],[nivel 1]]&Tabla1[[#This Row],[nivel 2]]&Tabla1[[#This Row],[nivel 3]]&Tabla1[[#This Row],[nivel 4]]&Tabla1[[#This Row],[nivel 5]]&Tabla1[[#This Row],[nivel 6]]&Tabla1[[#This Row],[nivel 7]]","v":"1.104.05.01.05."}]
[null,"1.","104.","05.","01.","05.","01.",null,"Bonos de Sociedades Anónimas",{"$f":"+EsNegrita(I124)","v":"SI"},null,{"$f":"+Tabla1[[#This Row],[nivel 1]]&Tabla1[[#This Row],[nivel 2]]&Tabla1[[#This Row],[nivel 3]]&Tabla1[[#This Row],[nivel 4]]&Tabla1[[#This Row],[nivel 5]]&Tabla1[[#This Row],[nivel 6]]&Tabla1[[#This Row],[nivel 7]]","v":"1.104.05.01.05.01."}]
[null,"1.","104.","05.","01.","05.","02.",null,"Otras Inversiones emitidas por el Sector Privado.",{"$f":"+EsNegrita(I125)","v":"SI"},null,{"$f":"+Tabla1[[#This Row],[nivel 1]]&Tabla1[[#This Row],[nivel 2]]&Tabla1[[#This Row],[nivel 3]]&Tabla1[[#This Row],[nivel 4]]&Tabla1[[#This Row],[nivel 5]]&Tabla1[[#This Row],[nivel 6]]&Tabla1[[#This Row],[nivel 7]]","v":"1.104.05.01.05.02."}]
[null,"1.","104.","05.","01.","06.",null,null,"Activos en el Extranjero",{"$f":"+EsNegrita(I126)","v":"NO"},null,{"$f":"+Tabla1[[#This Row],[nivel 1]]&Tabla1[[#This Row],[nivel 2]]&Tabla1[[#This Row],[nivel 3]]&Tabla1[[#This Row],[nivel 4]]&Tabla1[[#This Row],[nivel 5]]&Tabla1[[#This Row],[nivel 6]]&Tabla1[[#This Row],[nivel 7]]","v":"1.104.05.01.06."}]
[null,"1.","104.","05.","01.","06.","01.",null,"Bancos  ",{"$f":"+EsNegrita(I127)","v":"SI"},null,{"$f":"+Tabla1[[#This Row],[nivel 1]]&Tabla1[[#This Row],[nivel 2]]&Tabla1[[#This Row],[nivel 3]]&Tabla1[[#This Row],[nivel 4]]&Tabla1[[#This Row],[nivel 5]]&Tabla1[[#This Row],[nivel 6]]&Tabla1[[#This Row],[nivel 7]]","v":"1.104.05.01.06.01."}]
[null,"1.","104.","05.","01.","06.","02.",null,"Títulos Valores",{"$f":"+EsNegrita(I128)","v":"SI"},null,{"$f":"+Tabla1[[#This Row],[nivel 1]]&Tabla1[[#This Row],[nivel 2]]&Tabla1[[#This Row],[nivel 3]]&Tabla1[[#This Row],[nivel 4]]&Tabla1[[#This Row],[nivel 5]]&Tabla1[[#This Row],[nivel 6]]&Tabla1[[#This Row],[nivel 7]]","v":"1.104.05.01.06.02."}]
[null,"1.","104.","05.","01.","06.","03.",null,"Otras Inversiones",{"$f":"+EsNegrita(I129)","v":"SI"},null,{"$f":"+Tabla1[[#This Row],[nivel 1]]&Tabla1[[#This Row],[nivel 2]]&Tabla1[[#This Row],[nivel 3]]&Tabla1[[#This Row],[nivel 4]]&Tabla1[[#This Row],[nivel 5]]&Tabla1[[#This Row],[nivel 6]]&Tabla1[[#This Row],[nivel 7]]","v":"1.104.05.01.06.03."}]
[null,"1.","104.","05.","01.","07.",null,null,"Sobre Depósitos y Títulos Valores en Instituciones Intervenidas",{"$f":"+EsNegrita(I130)","v":"SI"},null,{"$f":"+Tabla1[[#This Row],[nivel 1]]&Tabla1[[#This Row],[nivel 2]]&Tabla1[[#This Row],[nivel 3]]&Tabla1[[#This Row],[nivel 4]]&Tabla1[[#This Row],[nivel 5]]&Tabla1[[#This Row],[nivel 6]]&Tabla1[[#This Row],[nivel 7]]","v":"1.104.05.01.07."}]
[null,"1.","104.","05.","01.","08.",null,null,"Cuentas por Cobrar - Empleados",{"$f":"+EsNegrita(I131)","v":"SI"},null,{"$f":"+Tabla1[[#This Row],[nivel 1]]&Tabla1[[#This Row],[nivel 2]]&Tabla1[[#This Row],[nivel 3]]&Tabla1[[#This Row],[nivel 4]]&Tabla1[[#This Row],[nivel 5]]&Tabla1[[#This Row],[nivel 6]]&Tabla1[[#This Row],[nivel 7]]","v":"1.104.05.01.08."}]
[null,"1.","104.","05.","01.","09.",null,null,"Cuentas por Cobrar - Intermediarios de Seguros",{"$f":"+EsNegrita(I132)","v":"NO"},null,{"$f":"+Tabla1[[#This Row],[nivel 1]]&Tabla1[[#This Row],[nivel 2]]&Tabla1[[#This Row],[nivel 3]]&Tabla1[[#This Row],[nivel 4]]&Tabla1[[#This Row],[nivel 5]]&Tabla1[[#This Row],[nivel 6]]&Tabla1[[#This Row],[nivel 7]]","v":"1.104.05.01.09."}]
[null,"1.","104.","05.","01.","09.","01.",null,"Agentes",{"$f":"+EsNegrita(I133)","v":"SI"},null,{"$f":"+Tabla1[[#This Row],[nivel 1]]&Tabla1[[#This Row],[nivel 2]]&Tabla1[[#This Row],[nivel 3]]&Tabla1[[#This Row],[nivel 4]]&Tabla1[[#This Row],[nivel 5]]&Tabla1[[#This Row],[nivel 6]]&Tabla1[[#This Row],[nivel 7]]","v":"1.104.05.01.09.01."}]
[null,"1.","104.","05.","01.","09.","02.",null,"Corredores de Seguros",{"$f":"+EsNegrita(I134)","v":"SI"},null,{"$f":"+Tabla1[[#This Row],[nivel 1]]&Tabla1[[#This Row],[nivel 2]]&Tabla1[[#This Row],[nivel 3]]&Tabla1[[#This Row],[nivel 4]]&Tabla1[[#This Row],[nivel 5]]&Tabla1[[#This Row],[nivel 6]]&Tabla1[[#This Row],[nivel 7]]","v":"1.104.05.01.09.02."}]
[null,"1.","104.","05.","01.","09.","03.",null,"Sociedades de Corretaje de Seguros",{"$f":"+EsNegrita(I135)","v":"SI"},null,{"$f":"+Tabla1[[#This Row],[nivel 1]]&Tabla1[[#This Row],[nivel 2]]&Tabla1[[#This Row],[nivel 3]]&Tabla1[[#This Row],[nivel 4]]&Tabla1[[#This Row],[nivel 5]]&Tabla1[[#This Row],[nivel 6]]&Tabla1[[#This Row],[nivel 7]]","v":"1.104.05.01.09.03."}]
[null,"1.","104.","05.","01.","10.",null,null,"Sobre cuentas por cobrar al Grupo Económico",{"$f":"+EsNegrita(I136)","v":"NO"},null,{"$f":"+Tabla1[[#This Row],[nivel 1]]&Tabla1[[#This Row],[nivel 2]]&Tabla1[[#This Row],[nivel 3]]&Tabla1[[#This Row],[nivel 4]]&Tabla1[[#This Row],[nivel 5]]&Tabla1[[#This Row],[nivel 6]]&Tabla1[[#This Row],[nivel 7]]","v":"1.104.05.01.10."}]
[null,"1.","104.","05.","01.","10.","01.",null,"Empresas Filiales",{"$f":"+EsNegrita(I137)","v":"SI"},null,{"$f":"+Tabla1[[#This Row],[nivel 1]]&Tabla1[[#This Row],[nivel 2]]&Tabla1[[#This Row],[nivel 3]]&Tabla1[[#This Row],[nivel 4]]&Tabla1[[#This Row],[nivel 5]]&Tabla1[[#This Row],[nivel 6]]&Tabla1[[#This Row],[nivel 7]]","v":"1.104.05.01.10.01."}]
[null,"1.","104.","05.","01.","10.","02.",null,"Empresas Afiliadas",{"$f":"+EsNegrita(I138)","v":"SI"},null,{"$f":"+Tabla1[[#This Row],[nivel 1]]&Tabla1[[#This Row],[nivel 2]]&Tabla1[[#This Row],[nivel 3]]&Tabla1[[#This Row],[nivel 4]]&Tabla1[[#This Row],[nivel 5]]&Tabla1[[#This Row],[nivel 6]]&Tabla1[[#This Row],[nivel 7]]","v":"1.104.05.01.10.02."}]
[null,"1.","104.","05.","01.","10.","03.",null,"Empresas Relacionadas",{"$f":"+EsNegrita(I139)","v":"SI"},null,{"$f":"+Tabla1[[#This Row],[nivel 1]]&Tabla1[[#This Row],[nivel 2]]&Tabla1[[#This Row],[nivel 3]]&Tabla1[[#This Row],[nivel 4]]&Tabla1[[#This Row],[nivel 5]]&Tabla1[[#This Row],[nivel 6]]&Tabla1[[#This Row],[nivel 7]]","v":"1.104.05.01.10.03."}]
[null,"1.","104.","05.","01.","11.",null,null,"Otras Cuentas por Cobrar ",{"$f":"+EsNegrita(I140)","v":"SI"},null,{"$f":"+Tabla1[[#This Row],[nivel 1]]&Tabla1[[#This Row],[nivel 2]]&Tabla1[[#This Row],[nivel 3]]&Tabla1[[#This Row],[nivel 4]]&Tabla1[[#This Row],[nivel 5]]&Tabla1[[#This Row],[nivel 6]]&Tabla1[[#This Row],[nivel 7]]","v":"1.104.05.01.11."}]
[null,"1.","104.","05.","02.",null,null,null,"Dividendos por Cobrar",{"$f":"+EsNegrita(I141)","v":"NO"},null,{"$f":"+Tabla1[[#This Row],[nivel 1]]&Tabla1[[#This Row],[nivel 2]]&Tabla1[[#This Row],[nivel 3]]&Tabla1[[#This Row],[nivel 4]]&Tabla1[[#This Row],[nivel 5]]&Tabla1[[#This Row],[nivel 6]]&Tabla1[[#This Row],[nivel 7]]","v":"1.104.05.02."}]
[null,"1.","104.","05.","02.","01.",null,null,"Participación Fondos de Inversión Inmobiliarios",{"$f":"+EsNegrita(I142)","v":"NO"},null,{"$f":"+Tabla1[[#This Row],[nivel 1]]&Tabla1[[#This Row],[nivel 2]]&Tabla1[[#This Row],[nivel 3]]&Tabla1[[#This Row],[nivel 4]]&Tabla1[[#This Row],[nivel 5]]&Tabla1[[#This Row],[nivel 6]]&Tabla1[[#This Row],[nivel 7]]","v":"1.104.05.02.01."}]
[null,"1.","104.","05.","02.","01.","01.",null,"Moneda Nacional",{"$f":"+EsNegrita(I143)","v":"SI"},null,{"$f":"+Tabla1[[#This Row],[nivel 1]]&Tabla1[[#This Row],[nivel 2]]&Tabla1[[#This Row],[nivel 3]]&Tabla1[[#This Row],[nivel 4]]&Tabla1[[#This Row],[nivel 5]]&Tabla1[[#This Row],[nivel 6]]&Tabla1[[#This Row],[nivel 7]]","v":"1.104.05.02.01.01."}]
[null,"1.","104.","05.","02.","01.","02.",null,"Moneda Extranjera",{"$f":"+EsNegrita(I144)","v":"SI"},null,{"$f":"+Tabla1[[#This Row],[nivel 1]]&Tabla1[[#This Row],[nivel 2]]&Tabla1[[#This Row],[nivel 3]]&Tabla1[[#This Row],[nivel 4]]&Tabla1[[#This Row],[nivel 5]]&Tabla1[[#This Row],[nivel 6]]&Tabla1[[#This Row],[nivel 7]]","v":"1.104.05.02.01.02."}]
[null,"1.","104.","05.","02.","02.",null,null,"Valores Privados",{"$f":"+EsNegrita(I145)","v":"NO"},null,{"$f":"+Tabla1[[#This Row],[nivel 1]]&Tabla1[[#This Row],[nivel 2]]&Tabla1[[#This Row],[nivel 3]]&Tabla1[[#This Row],[nivel 4]]&Tabla1[[#This Row],[nivel 5]]&Tabla1[[#This Row],[nivel 6]]&Tabla1[[#This Row],[nivel 7]]","v":"1.104.05.02.02."}]
[null,"1.","104.","05.","02.","02.","01.",null,"Acciones de Sociedades Anónimas",{"$f":"+EsNegrita(I146)","v":"NO"},null,{"$f":"+Tabla1[[#This Row],[nivel 1]]&Tabla1[[#This Row],[nivel 2]]&Tabla1[[#This Row],[nivel 3]]&Tabla1[[#This Row],[nivel 4]]&Tabla1[[#This Row],[nivel 5]]&Tabla1[[#This Row],[nivel 6]]&Tabla1[[#This Row],[nivel 7]]","v":"1.104.05.02.02.01."}]
[null,"1.","104.","05.","02.","02.","01.","01.","Empresas de Seguros o Reaseguros",{"$f":"+EsNegrita(I147)","v":"SI"},null,{"$f":"+Tabla1[[#This Row],[nivel 1]]&Tabla1[[#This Row],[nivel 2]]&Tabla1[[#This Row],[nivel 3]]&Tabla1[[#This Row],[nivel 4]]&Tabla1[[#This Row],[nivel 5]]&Tabla1[[#This Row],[nivel 6]]&Tabla1[[#This Row],[nivel 7]]","v":"1.104.05.02.02.01.01."}]
[null,"1.","104.","05.","02.","02.","01.","02.","Sociedades de Corretaje de Seguros o de Reaseguros o de Valores",{"$f":"+EsNegrita(I148)","v":"SI"},null,{"$f":"+Tabla1[[#This Row],[nivel 1]]&Tabla1[[#This Row],[nivel 2]]&Tabla1[[#This Row],[nivel 3]]&Tabla1[[#This Row],[nivel 4]]&Tabla1[[#This Row],[nivel 5]]&Tabla1[[#This Row],[nivel 6]]&Tabla1[[#This Row],[nivel 7]]","v":"1.104.05.02.02.01.02."}]
[null,"1.","104.","05.","02.","02.","01.","03.","Bancos y Otras Instituciones Financieras",{"$f":"+EsNegrita(I149)","v":"SI"},null,{"$f":"+Tabla1[[#This Row],[nivel 1]]&Tabla1[[#This Row],[nivel 2]]&Tabla1[[#This Row],[nivel 3]]&Tabla1[[#This Row],[nivel 4]]&Tabla1[[#This Row],[nivel 5]]&Tabla1[[#This Row],[nivel 6]]&Tabla1[[#This Row],[nivel 7]]","v":"1.104.05.02.02.01.03."}]
[null,"1.","104.","05.","02.","02.","01.","04.","Sociedades Industriales y Comerciales",{"$f":"+EsNegrita(I150)","v":"SI"},null,{"$f":"+Tabla1[[#This Row],[nivel 1]]&Tabla1[[#This Row],[nivel 2]]&Tabla1[[#This Row],[nivel 3]]&Tabla1[[#This Row],[nivel 4]]&Tabla1[[#This Row],[nivel 5]]&Tabla1[[#This Row],[nivel 6]]&Tabla1[[#This Row],[nivel 7]]","v":"1.104.05.02.02.01.04."}]
[null,"1.","104.","05.","02.","02.","01.","05.","Sociedades Civiles",{"$f":"+EsNegrita(I151)","v":"SI"},null,{"$f":"+Tabla1[[#This Row],[nivel 1]]&Tabla1[[#This Row],[nivel 2]]&Tabla1[[#This Row],[nivel 3]]&Tabla1[[#This Row],[nivel 4]]&Tabla1[[#This Row],[nivel 5]]&Tabla1[[#This Row],[nivel 6]]&Tabla1[[#This Row],[nivel 7]]","v":"1.104.05.02.02.01.05."}]
[null,"1.","104.","05.","02.","02.","01.","06.","Empresas Filiales, Afiliadas y Relacionadas",{"$f":"+EsNegrita(I152)","v":"SI"},null,{"$f":"+Tabla1[[#This Row],[nivel 1]]&Tabla1[[#This Row],[nivel 2]]&Tabla1[[#This Row],[nivel 3]]&Tabla1[[#This Row],[nivel 4]]&Tabla1[[#This Row],[nivel 5]]&Tabla1[[#This Row],[nivel 6]]&Tabla1[[#This Row],[nivel 7]]","v":"1.104.05.02.02.01.06."}]
[null,"1.","104.","05.","02.","02.","01.","07.","Otras Sociedades Anónimas",{"$f":"+EsNegrita(I153)","v":"SI"},null,{"$f":"+Tabla1[[#This Row],[nivel 1]]&Tabla1[[#This Row],[nivel 2]]&Tabla1[[#This Row],[nivel 3]]&Tabla1[[#This Row],[nivel 4]]&Tabla1[[#This Row],[nivel 5]]&Tabla1[[#This Row],[nivel 6]]&Tabla1[[#This Row],[nivel 7]]","v":"1.104.05.02.02.01.07."}]
[null,"1.","104.","05.","02.","02.","01.","08.","Otras Inversiones emitidas por el Sector Privado.",{"$f":"+EsNegrita(I154)","v":"SI"},null,{"$f":"+Tabla1[[#This Row],[nivel 1]]&Tabla1[[#This Row],[nivel 2]]&Tabla1[[#This Row],[nivel 3]]&Tabla1[[#This Row],[nivel 4]]&Tabla1[[#This Row],[nivel 5]]&Tabla1[[#This Row],[nivel 6]]&Tabla1[[#This Row],[nivel 7]]","v":"1.104.05.02.02.01.08."}]
[null,"1.","104.","05.","03.",null,null,null,"Otros Beneficios Devengados por Cobrar ",{"$f":"+EsNegrita(I155)","v":"NO"},null,{"$f":"+Tabla1[[#This Row],[nivel 1]]&Tabla1[[#This Row],[nivel 2]]&Tabla1[[#This Row],[nivel 3]]&Tabla1[[#This Row],[nivel 4]]&Tabla1[[#This Row],[nivel 5]]&Tabla1[[#This Row],[nivel 6]]&Tabla1[[#This Row],[nivel 7]]","v":"1.104.05.03."}]
[null,"1.","104.","05.","03.","01.",null,null,"Valores Vendidos",{"$f":"+EsNegrita(I156)","v":"SI"},null,{"$f":"+Tabla1[[#This Row],[nivel 1]]&Tabla1[[#This Row],[nivel 2]]&Tabla1[[#This Row],[nivel 3]]&Tabla1[[#This Row],[nivel 4]]&Tabla1[[#This Row],[nivel 5]]&Tabla1[[#This Row],[nivel 6]]&Tabla1[[#This Row],[nivel 7]]","v":"1.104.05.03.01."}]
[null,"1.","104.","05.","03.","02.",null,null,"Valores Redimidos",{"$f":"+EsNegrita(I157)","v":"SI"},null,{"$f":"+Tabla1[[#This Row],[nivel 1]]&Tabla1[[#This Row],[nivel 2]]&Tabla1[[#This Row],[nivel 3]]&Tabla1[[#This Row],[nivel 4]]&Tabla1[[#This Row],[nivel 5]]&Tabla1[[#This Row],[nivel 6]]&Tabla1[[#This Row],[nivel 7]]","v":"1.104.05.03.02."}]
[null,"1.","104.","05.","04.",null,null,null,"Arrendamientos por Cobrar",{"$f":"+EsNegrita(I158)","v":"SI"},null,{"$f":"+Tabla1[[#This Row],[nivel 1]]&Tabla1[[#This Row],[nivel 2]]&Tabla1[[#This Row],[nivel 3]]&Tabla1[[#This Row],[nivel 4]]&Tabla1[[#This Row],[nivel 5]]&Tabla1[[#This Row],[nivel 6]]&Tabla1[[#This Row],[nivel 7]]","v":"1.104.05.04."}]
[null,"1.","104.","05.","05.",null,null,null,"Anticipos a Proveedores de Bienes y Servicios",{"$f":"+EsNegrita(I159)","v":"SI"},null,{"$f":"+Tabla1[[#This Row],[nivel 1]]&Tabla1[[#This Row],[nivel 2]]&Tabla1[[#This Row],[nivel 3]]&Tabla1[[#This Row],[nivel 4]]&Tabla1[[#This Row],[nivel 5]]&Tabla1[[#This Row],[nivel 6]]&Tabla1[[#This Row],[nivel 7]]","v":"1.104.05.05."}]
[null,"1.","104.","05.","06.",null,null,null,"Otras Cuentas por Cobrar",{"$f":"+EsNegrita(I160)","v":"SI"},null,{"$f":"+Tabla1[[#This Row],[nivel 1]]&Tabla1[[#This Row],[nivel 2]]&Tabla1[[#This Row],[nivel 3]]&Tabla1[[#This Row],[nivel 4]]&Tabla1[[#This Row],[nivel 5]]&Tabla1[[#This Row],[nivel 6]]&Tabla1[[#This Row],[nivel 7]]","v":"1.104.05.06."}]
[null,"1.","105.",null,null,null,null,null,"CARGOS DIFERIDOS",{"$f":"+EsNegrita(I161)","v":"NO"},null,{"$f":"+Tabla1[[#This Row],[nivel 1]]&Tabla1[[#This Row],[nivel 2]]&Tabla1[[#This Row],[nivel 3]]&Tabla1[[#This Row],[nivel 4]]&Tabla1[[#This Row],[nivel 5]]&Tabla1[[#This Row],[nivel 6]]&Tabla1[[#This Row],[nivel 7]]","v":"1.105."}]
[null,"1.","105.","01.",null,null,null,null,"Primas Sobre Adquisición de Títulos  Valores ",{"$f":"+EsNegrita(I162)","v":"NO"},null,{"$f":"+Tabla1[[#This Row],[nivel 1]]&Tabla1[[#This Row],[nivel 2]]&Tabla1[[#This Row],[nivel 3]]&Tabla1[[#This Row],[nivel 4]]&Tabla1[[#This Row],[nivel 5]]&Tabla1[[#This Row],[nivel 6]]&Tabla1[[#This Row],[nivel 7]]","v":"1.105.01."}]
[null,"1.","105.","01.","01.",null,null,null,"Valores Públicos",{"$f":"+EsNegrita(I163)","v":"NO"},null,{"$f":"+Tabla1[[#This Row],[nivel 1]]&Tabla1[[#This Row],[nivel 2]]&Tabla1[[#This Row],[nivel 3]]&Tabla1[[#This Row],[nivel 4]]&Tabla1[[#This Row],[nivel 5]]&Tabla1[[#This Row],[nivel 6]]&Tabla1[[#This Row],[nivel 7]]","v":"1.105.01.01."}]
[null,"1.","105.","01.","01.","01.",null,null,"Emitidos o Garantizados por la República",{"$f":"+EsNegrita(I164)","v":"SI"},null,{"$f":"+Tabla1[[#This Row],[nivel 1]]&Tabla1[[#This Row],[nivel 2]]&Tabla1[[#This Row],[nivel 3]]&Tabla1[[#This Row],[nivel 4]]&Tabla1[[#This Row],[nivel 5]]&Tabla1[[#This Row],[nivel 6]]&Tabla1[[#This Row],[nivel 7]]","v":"1.105.01.01.01."}]
[null,"1.","105.","01.","01.","02.",null,null,"Emitidos por Otros Sujetos de Derecho Público Nacional",{"$f":"+EsNegrita(I165)","v":"SI"},null,{"$f":"+Tabla1[[#This Row],[nivel 1]]&Tabla1[[#This Row],[nivel 2]]&Tabla1[[#This Row],[nivel 3]]&Tabla1[[#This Row],[nivel 4]]&Tabla1[[#This Row],[nivel 5]]&Tabla1[[#This Row],[nivel 6]]&Tabla1[[#This Row],[nivel 7]]","v":"1.105.01.01.02."}]
[null,"1.","105.","01.","01.","03.",null,null,"Emitidos por Empresas con Participación de la República",{"$f":"+EsNegrita(I166)","v":"SI"},null,{"$f":"+Tabla1[[#This Row],[nivel 1]]&Tabla1[[#This Row],[nivel 2]]&Tabla1[[#This Row],[nivel 3]]&Tabla1[[#This Row],[nivel 4]]&Tabla1[[#This Row],[nivel 5]]&Tabla1[[#This Row],[nivel 6]]&Tabla1[[#This Row],[nivel 7]]","v":"1.105.01.01.03."}]
[null,"1.","105.","01.","01.","04.",null,null,"Emitidos por Instituciones con Participación de la República",{"$f":"+EsNegrita(I167)","v":"SI"},null,{"$f":"+Tabla1[[#This Row],[nivel 1]]&Tabla1[[#This Row],[nivel 2]]&Tabla1[[#This Row],[nivel 3]]&Tabla1[[#This Row],[nivel 4]]&Tabla1[[#This Row],[nivel 5]]&Tabla1[[#This Row],[nivel 6]]&Tabla1[[#This Row],[nivel 7]]","v":"1.105.01.01.04."}]
[null,"1.","105.","01.","02.",null,null,null,"Participación en Fondos de Inversión",{"$f":"+EsNegrita(I168)","v":"NO"},null,{"$f":"+Tabla1[[#This Row],[nivel 1]]&Tabla1[[#This Row],[nivel 2]]&Tabla1[[#This Row],[nivel 3]]&Tabla1[[#This Row],[nivel 4]]&Tabla1[[#This Row],[nivel 5]]&Tabla1[[#This Row],[nivel 6]]&Tabla1[[#This Row],[nivel 7]]","v":"1.105.01.02."}]
[null,"1.","105.","01.","02.","01.",null,null,"Renta Fija",{"$f":"+EsNegrita(I169)","v":"SI"},null,{"$f":"+Tabla1[[#This Row],[nivel 1]]&Tabla1[[#This Row],[nivel 2]]&Tabla1[[#This Row],[nivel 3]]&Tabla1[[#This Row],[nivel 4]]&Tabla1[[#This Row],[nivel 5]]&Tabla1[[#This Row],[nivel 6]]&Tabla1[[#This Row],[nivel 7]]","v":"1.105.01.02.01."}]
[null,"1.","105.","01.","02.","02.",null,null,"Renta Variable ",{"$f":"+EsNegrita(I170)","v":"SI"},null,{"$f":"+Tabla1[[#This Row],[nivel 1]]&Tabla1[[#This Row],[nivel 2]]&Tabla1[[#This Row],[nivel 3]]&Tabla1[[#This Row],[nivel 4]]&Tabla1[[#This Row],[nivel 5]]&Tabla1[[#This Row],[nivel 6]]&Tabla1[[#This Row],[nivel 7]]","v":"1.105.01.02.02."}]
[null,"1.","105.","01.","03.",null,null,null,"Garantía a la Nación",{"$f":"+EsNegrita(I171)","v":"NO"},null,{"$f":"+Tabla1[[#This Row],[nivel 1]]&Tabla1[[#This Row],[nivel 2]]&Tabla1[[#This Row],[nivel 3]]&Tabla1[[#This Row],[nivel 4]]&Tabla1[[#This Row],[nivel 5]]&Tabla1[[#This Row],[nivel 6]]&Tabla1[[#This Row],[nivel 7]]","v":"1.105.01.03."}]
[null,"1.","105.","01.","03.","01.",null,null,"Valores Públicos",{"$f":"+EsNegrita(I172)","v":"SI"},null,{"$f":"+Tabla1[[#This Row],[nivel 1]]&Tabla1[[#This Row],[nivel 2]]&Tabla1[[#This Row],[nivel 3]]&Tabla1[[#This Row],[nivel 4]]&Tabla1[[#This Row],[nivel 5]]&Tabla1[[#This Row],[nivel 6]]&Tabla1[[#This Row],[nivel 7]]","v":"1.105.01.03.01."}]
[null,"1.","105.","01.","04.",null,null,null,"Valores Privados",{"$f":"+EsNegrita(I173)","v":"NO"},null,{"$f":"+Tabla1[[#This Row],[nivel 1]]&Tabla1[[#This Row],[nivel 2]]&Tabla1[[#This Row],[nivel 3]]&Tabla1[[#This Row],[nivel 4]]&Tabla1[[#This Row],[nivel 5]]&Tabla1[[#This Row],[nivel 6]]&Tabla1[[#This Row],[nivel 7]]","v":"1.105.01.04."}]
[null,"1.","105.","01.","04.","01.",null,null,"Acciones de Sociedades Anónimas",{"$f":"+EsNegrita(I174)","v":"NO"},null,{"$f":"+Tabla1[[#This Row],[nivel 1]]&Tabla1[[#This Row],[nivel 2]]&Tabla1[[#This Row],[nivel 3]]&Tabla1[[#This Row],[nivel 4]]&Tabla1[[#This Row],[nivel 5]]&Tabla1[[#This Row],[nivel 6]]&Tabla1[[#This Row],[nivel 7]]","v":"1.105.01.04.01."}]
[null,"1.","105.","01.","04.","01.","01.",null,"Empresas de Seguros o Reaseguros",{"$f":"+EsNegrita(I175)","v":"SI"},null,{"$f":"+Tabla1[[#This Row],[nivel 1]]&Tabla1[[#This Row],[nivel 2]]&Tabla1[[#This Row],[nivel 3]]&Tabla1[[#This Row],[nivel 4]]&Tabla1[[#This Row],[nivel 5]]&Tabla1[[#This Row],[nivel 6]]&Tabla1[[#This Row],[nivel 7]]","v":"1.105.01.04.01.01."}]
[null,"1.","105.","01.","04.","01.","02.",null,"Sociedades de Corretaje de Seguros o de Reaseguros o de Valores",{"$f":"+EsNegrita(I176)","v":"SI"},null,{"$f":"+Tabla1[[#This Row],[nivel 1]]&Tabla1[[#This Row],[nivel 2]]&Tabla1[[#This Row],[nivel 3]]&Tabla1[[#This Row],[nivel 4]]&Tabla1[[#This Row],[nivel 5]]&Tabla1[[#This Row],[nivel 6]]&Tabla1[[#This Row],[nivel 7]]","v":"1.105.01.04.01.02."}]
[null,"1.","105.","01.","04.","01.","03.",null,"Bancos y Otras Instituciones Financieras",{"$f":"+EsNegrita(I177)","v":"SI"},null,{"$f":"+Tabla1[[#This Row],[nivel 1]]&Tabla1[[#This Row],[nivel 2]]&Tabla1[[#This Row],[nivel 3]]&Tabla1[[#This Row],[nivel 4]]&Tabla1[[#This Row],[nivel 5]]&Tabla1[[#This Row],[nivel 6]]&Tabla1[[#This Row],[nivel 7]]","v":"1.105.01.04.01.03."}]
[null,"1.","105.","01.","04.","01.","04.",null,"Sociedades Industriales y Comerciales",{"$f":"+EsNegrita(I178)","v":"SI"},null,{"$f":"+Tabla1[[#This Row],[nivel 1]]&Tabla1[[#This Row],[nivel 2]]&Tabla1[[#This Row],[nivel 3]]&Tabla1[[#This Row],[nivel 4]]&Tabla1[[#This Row],[nivel 5]]&Tabla1[[#This Row],[nivel 6]]&Tabla1[[#This Row],[nivel 7]]","v":"1.105.01.04.01.04."}]
[null,"1.","105.","01.","04.","01.","05.",null,"Sociedades Civiles",{"$f":"+EsNegrita(I179)","v":"SI"},null,{"$f":"+Tabla1[[#This Row],[nivel 1]]&Tabla1[[#This Row],[nivel 2]]&Tabla1[[#This Row],[nivel 3]]&Tabla1[[#This Row],[nivel 4]]&Tabla1[[#This Row],[nivel 5]]&Tabla1[[#This Row],[nivel 6]]&Tabla1[[#This Row],[nivel 7]]","v":"1.105.01.04.01.05."}]
[null,"1.","105.","01.","04.","01.","06.",null,"Empresas Filiales, Afiliadas y Relacionadas",{"$f":"+EsNegrita(I180)","v":"SI"},null,{"$f":"+Tabla1[[#This Row],[nivel 1]]&Tabla1[[#This Row],[nivel 2]]&Tabla1[[#This Row],[nivel 3]]&Tabla1[[#This Row],[nivel 4]]&Tabla1[[#This Row],[nivel 5]]&Tabla1[[#This Row],[nivel 6]]&Tabla1[[#This Row],[nivel 7]]","v":"1.105.01.04.01.06."}]
[null,"1.","105.","01.","04.","01.","07.",null,"Otras Sociedades Anónimas",{"$f":"+EsNegrita(I181)","v":"SI"},null,{"$f":"+Tabla1[[#This Row],[nivel 1]]&Tabla1[[#This Row],[nivel 2]]&Tabla1[[#This Row],[nivel 3]]&Tabla1[[#This Row],[nivel 4]]&Tabla1[[#This Row],[nivel 5]]&Tabla1[[#This Row],[nivel 6]]&Tabla1[[#This Row],[nivel 7]]","v":"1.105.01.04.01.07."}]
[null,"1.","105.","01.","04.","02.",null,null,"Bonos de Sociedades Anónimas",{"$f":"+EsNegrita(I182)","v":"SI"},null,{"$f":"+Tabla1[[#This Row],[nivel 1]]&Tabla1[[#This Row],[nivel 2]]&Tabla1[[#This Row],[nivel 3]]&Tabla1[[#This Row],[nivel 4]]&Tabla1[[#This Row],[nivel 5]]&Tabla1[[#This Row],[nivel 6]]&Tabla1[[#This Row],[nivel 7]]","v":"1.105.01.04.02."}]
[null,"1.","105.","01.","04.","03.",null,null,"Otras Inversiones emitidas por el Sector Privado.",{"$f":"+EsNegrita(I183)","v":"SI"},null,{"$f":"+Tabla1[[#This Row],[nivel 1]]&Tabla1[[#This Row],[nivel 2]]&Tabla1[[#This Row],[nivel 3]]&Tabla1[[#This Row],[nivel 4]]&Tabla1[[#This Row],[nivel 5]]&Tabla1[[#This Row],[nivel 6]]&Tabla1[[#This Row],[nivel 7]]","v":"1.105.01.04.03."}]
[null,"1.","105.","01.","05.",null,null,null,"Activos en el Extranjero",{"$f":"+EsNegrita(I184)","v":"NO"},null,{"$f":"+Tabla1[[#This Row],[nivel 1]]&Tabla1[[#This Row],[nivel 2]]&Tabla1[[#This Row],[nivel 3]]&Tabla1[[#This Row],[nivel 4]]&Tabla1[[#This Row],[nivel 5]]&Tabla1[[#This Row],[nivel 6]]&Tabla1[[#This Row],[nivel 7]]","v":"1.105.01.05."}]
[null,"1.","105.","01.","05.","01.",null,null,"Títulos Valores",{"$f":"+EsNegrita(I185)","v":"SI"},null,{"$f":"+Tabla1[[#This Row],[nivel 1]]&Tabla1[[#This Row],[nivel 2]]&Tabla1[[#This Row],[nivel 3]]&Tabla1[[#This Row],[nivel 4]]&Tabla1[[#This Row],[nivel 5]]&Tabla1[[#This Row],[nivel 6]]&Tabla1[[#This Row],[nivel 7]]","v":"1.105.01.05.01."}]
[null,"1.","105.","02.",null,null,null,null,"Inventarios - Papelería y Artículos de Oficina",{"$f":"+EsNegrita(I186)","v":"NO"},null,{"$f":"+Tabla1[[#This Row],[nivel 1]]&Tabla1[[#This Row],[nivel 2]]&Tabla1[[#This Row],[nivel 3]]&Tabla1[[#This Row],[nivel 4]]&Tabla1[[#This Row],[nivel 5]]&Tabla1[[#This Row],[nivel 6]]&Tabla1[[#This Row],[nivel 7]]","v":"1.105.02."}]
[null,"1.","105.","02.","01.",null,null,null,"Papelería",{"$f":"+EsNegrita(I187)","v":"SI"},null,{"$f":"+Tabla1[[#This Row],[nivel 1]]&Tabla1[[#This Row],[nivel 2]]&Tabla1[[#This Row],[nivel 3]]&Tabla1[[#This Row],[nivel 4]]&Tabla1[[#This Row],[nivel 5]]&Tabla1[[#This Row],[nivel 6]]&Tabla1[[#This Row],[nivel 7]]","v":"1.105.02.01."}]
[null,"1.","105.","02.","02.",null,null,null,"Artículos de Oficina",{"$f":"+EsNegrita(I188)","v":"SI"},null,{"$f":"+Tabla1[[#This Row],[nivel 1]]&Tabla1[[#This Row],[nivel 2]]&Tabla1[[#This Row],[nivel 3]]&Tabla1[[#This Row],[nivel 4]]&Tabla1[[#This Row],[nivel 5]]&Tabla1[[#This Row],[nivel 6]]&Tabla1[[#This Row],[nivel 7]]","v":"1.105.02.02."}]
[null,"1.","105.","02.","03.",null,null,null,"Artículos e Insumos para Procesamiento de Datos",{"$f":"+EsNegrita(I189)","v":"SI"},null,{"$f":"+Tabla1[[#This Row],[nivel 1]]&Tabla1[[#This Row],[nivel 2]]&Tabla1[[#This Row],[nivel 3]]&Tabla1[[#This Row],[nivel 4]]&Tabla1[[#This Row],[nivel 5]]&Tabla1[[#This Row],[nivel 6]]&Tabla1[[#This Row],[nivel 7]]","v":"1.105.02.03."}]
[null,"1.","105.","03.",null,null,null,null,"Gastos Reembolsables",{"$f":"+EsNegrita(I190)","v":"NO"},null,{"$f":"+Tabla1[[#This Row],[nivel 1]]&Tabla1[[#This Row],[nivel 2]]&Tabla1[[#This Row],[nivel 3]]&Tabla1[[#This Row],[nivel 4]]&Tabla1[[#This Row],[nivel 5]]&Tabla1[[#This Row],[nivel 6]]&Tabla1[[#This Row],[nivel 7]]","v":"1.105.03."}]
[null,"1.","105.","03.","01.",null,null,null,"Gastos de Alojamiento",{"$f":"+EsNegrita(I191)","v":"SI"},null,{"$f":"+Tabla1[[#This Row],[nivel 1]]&Tabla1[[#This Row],[nivel 2]]&Tabla1[[#This Row],[nivel 3]]&Tabla1[[#This Row],[nivel 4]]&Tabla1[[#This Row],[nivel 5]]&Tabla1[[#This Row],[nivel 6]]&Tabla1[[#This Row],[nivel 7]]","v":"1.105.03.01."}]
[null,"1.","105.","03.","02.",null,null,null,"Gastos de Transporte",{"$f":"+EsNegrita(I192)","v":"NO"},null,{"$f":"+Tabla1[[#This Row],[nivel 1]]&Tabla1[[#This Row],[nivel 2]]&Tabla1[[#This Row],[nivel 3]]&Tabla1[[#This Row],[nivel 4]]&Tabla1[[#This Row],[nivel 5]]&Tabla1[[#This Row],[nivel 6]]&Tabla1[[#This Row],[nivel 7]]","v":"1.105.03.02."}]
[null,"1.","105.","03.","02.","01.",null,null,"Aéreos",{"$f":"+EsNegrita(I193)","v":"SI"},null,{"$f":"+Tabla1[[#This Row],[nivel 1]]&Tabla1[[#This Row],[nivel 2]]&Tabla1[[#This Row],[nivel 3]]&Tabla1[[#This Row],[nivel 4]]&Tabla1[[#This Row],[nivel 5]]&Tabla1[[#This Row],[nivel 6]]&Tabla1[[#This Row],[nivel 7]]","v":"1.105.03.02.01."}]
[null,"1.","105.","03.","02.","02.",null,null,"Terrestres",{"$f":"+EsNegrita(I194)","v":"SI"},null,{"$f":"+Tabla1[[#This Row],[nivel 1]]&Tabla1[[#This Row],[nivel 2]]&Tabla1[[#This Row],[nivel 3]]&Tabla1[[#This Row],[nivel 4]]&Tabla1[[#This Row],[nivel 5]]&Tabla1[[#This Row],[nivel 6]]&Tabla1[[#This Row],[nivel 7]]","v":"1.105.03.02.02."}]
[null,"1.","105.","03.","02.","03.",null,null,"Otros Gastos de Transporte",{"$f":"+EsNegrita(I195)","v":"SI"},null,{"$f":"+Tabla1[[#This Row],[nivel 1]]&Tabla1[[#This Row],[nivel 2]]&Tabla1[[#This Row],[nivel 3]]&Tabla1[[#This Row],[nivel 4]]&Tabla1[[#This Row],[nivel 5]]&Tabla1[[#This Row],[nivel 6]]&Tabla1[[#This Row],[nivel 7]]","v":"1.105.03.02.03."}]
[null,"1.","105.","03.","03.",null,null,null,"Gastos de Combustible",{"$f":"+EsNegrita(I196)","v":"SI"},null,{"$f":"+Tabla1[[#This Row],[nivel 1]]&Tabla1[[#This Row],[nivel 2]]&Tabla1[[#This Row],[nivel 3]]&Tabla1[[#This Row],[nivel 4]]&Tabla1[[#This Row],[nivel 5]]&Tabla1[[#This Row],[nivel 6]]&Tabla1[[#This Row],[nivel 7]]","v":"1.105.03.03."}]
[null,"1.","105.","03.","04.",null,null,null,"Otros Gastos Reembolsables",{"$f":"+EsNegrita(I197)","v":"SI"},null,{"$f":"+Tabla1[[#This Row],[nivel 1]]&Tabla1[[#This Row],[nivel 2]]&Tabla1[[#This Row],[nivel 3]]&Tabla1[[#This Row],[nivel 4]]&Tabla1[[#This Row],[nivel 5]]&Tabla1[[#This Row],[nivel 6]]&Tabla1[[#This Row],[nivel 7]]","v":"1.105.03.04."}]
[null,"1.","105.","04.",null,null,null,null,"Gastos Pagados por Anticipado",{"$f":"+EsNegrita(I198)","v":"NO"},null,{"$f":"+Tabla1[[#This Row],[nivel 1]]&Tabla1[[#This Row],[nivel 2]]&Tabla1[[#This Row],[nivel 3]]&Tabla1[[#This Row],[nivel 4]]&Tabla1[[#This Row],[nivel 5]]&Tabla1[[#This Row],[nivel 6]]&Tabla1[[#This Row],[nivel 7]]","v":"1.105.04."}]
[null,"1.","105.","04.","01.",null,null,null,"Impuestos Pagados por Anticipado",{"$f":"+EsNegrita(I199)","v":"NO"},null,{"$f":"+Tabla1[[#This Row],[nivel 1]]&Tabla1[[#This Row],[nivel 2]]&Tabla1[[#This Row],[nivel 3]]&Tabla1[[#This Row],[nivel 4]]&Tabla1[[#This Row],[nivel 5]]&Tabla1[[#This Row],[nivel 6]]&Tabla1[[#This Row],[nivel 7]]","v":"1.105.04.01."}]
[null,"1.","105.","04.","01.","01.",null,null,"Impuesto sobre la Renta",{"$f":"+EsNegrita(I200)","v":"NO"},null,{"$f":"+Tabla1[[#This Row],[nivel 1]]&Tabla1[[#This Row],[nivel 2]]&Tabla1[[#This Row],[nivel 3]]&Tabla1[[#This Row],[nivel 4]]&Tabla1[[#This Row],[nivel 5]]&Tabla1[[#This Row],[nivel 6]]&Tabla1[[#This Row],[nivel 7]]","v":"1.105.04.01.01."}]
[null,"1.","105.","04.","01.","01.","01.",null,"ISLR - Retenido por Terceros",{"$f":"+EsNegrita(I201)","v":"SI"},null,{"$f":"+Tabla1[[#This Row],[nivel 1]]&Tabla1[[#This Row],[nivel 2]]&Tabla1[[#This Row],[nivel 3]]&Tabla1[[#This Row],[nivel 4]]&Tabla1[[#This Row],[nivel 5]]&Tabla1[[#This Row],[nivel 6]]&Tabla1[[#This Row],[nivel 7]]","v":"1.105.04.01.01.01."}]
[null,"1.","105.","04.","01.","01.","02.",null,"ISLR - Declaración Estimada",{"$f":"+EsNegrita(I202)","v":"SI"},null,{"$f":"+Tabla1[[#This Row],[nivel 1]]&Tabla1[[#This Row],[nivel 2]]&Tabla1[[#This Row],[nivel 3]]&Tabla1[[#This Row],[nivel 4]]&Tabla1[[#This Row],[nivel 5]]&Tabla1[[#This Row],[nivel 6]]&Tabla1[[#This Row],[nivel 7]]","v":"1.105.04.01.01.02."}]
[null,"1.","105.","04.","01.","01.","03.",null,"Anticipo  - ISLR  ",{"$f":"+EsNegrita(I203)","v":"SI"},null,{"$f":"+Tabla1[[#This Row],[nivel 1]]&Tabla1[[#This Row],[nivel 2]]&Tabla1[[#This Row],[nivel 3]]&Tabla1[[#This Row],[nivel 4]]&Tabla1[[#This Row],[nivel 5]]&Tabla1[[#This Row],[nivel 6]]&Tabla1[[#This Row],[nivel 7]]","v":"1.105.04.01.01.03."}]
[null,"1.","105.","04.","01.","01.","04.",null,"ISRL por Compensar (Pagado en Exceso)",{"$f":"+EsNegrita(I204)","v":"SI"},null,{"$f":"+Tabla1[[#This Row],[nivel 1]]&Tabla1[[#This Row],[nivel 2]]&Tabla1[[#This Row],[nivel 3]]&Tabla1[[#This Row],[nivel 4]]&Tabla1[[#This Row],[nivel 5]]&Tabla1[[#This Row],[nivel 6]]&Tabla1[[#This Row],[nivel 7]]","v":"1.105.04.01.01.04."}]
[null,"1.","105.","04.","01.","01.","05.",null,"ISLR Diferido",{"$f":"+EsNegrita(I205)","v":"SI"},null,{"$f":"+Tabla1[[#This Row],[nivel 1]]&Tabla1[[#This Row],[nivel 2]]&Tabla1[[#This Row],[nivel 3]]&Tabla1[[#This Row],[nivel 4]]&Tabla1[[#This Row],[nivel 5]]&Tabla1[[#This Row],[nivel 6]]&Tabla1[[#This Row],[nivel 7]]","v":"1.105.04.01.01.05."}]
[null,"1.","105.","04.","01.","02.",null,null,"Impuesto al Valor Agregado ",{"$f":"+EsNegrita(I206)","v":"NO"},null,{"$f":"+Tabla1[[#This Row],[nivel 1]]&Tabla1[[#This Row],[nivel 2]]&Tabla1[[#This Row],[nivel 3]]&Tabla1[[#This Row],[nivel 4]]&Tabla1[[#This Row],[nivel 5]]&Tabla1[[#This Row],[nivel 6]]&Tabla1[[#This Row],[nivel 7]]","v":"1.105.04.01.02."}]
[null,"1.","105.","04.","01.","02.","01.",null,"IVA - Retenido por Terceros sobre Compras o Servicios Recibidos (Crédito Fiscal)",{"$f":"+EsNegrita(I207)","v":"SI"},null,{"$f":"+Tabla1[[#This Row],[nivel 1]]&Tabla1[[#This Row],[nivel 2]]&Tabla1[[#This Row],[nivel 3]]&Tabla1[[#This Row],[nivel 4]]&Tabla1[[#This Row],[nivel 5]]&Tabla1[[#This Row],[nivel 6]]&Tabla1[[#This Row],[nivel 7]]","v":"1.105.04.01.02.01."}]
[null,"1.","105.","04.","01.","03.",null,null,"Otros Impuestos Nacionales",{"$f":"+EsNegrita(I208)","v":"SI"},null,{"$f":"+Tabla1[[#This Row],[nivel 1]]&Tabla1[[#This Row],[nivel 2]]&Tabla1[[#This Row],[nivel 3]]&Tabla1[[#This Row],[nivel 4]]&Tabla1[[#This Row],[nivel 5]]&Tabla1[[#This Row],[nivel 6]]&Tabla1[[#This Row],[nivel 7]]","v":"1.105.04.01.03."}]
[null,"1.","105.","04.","01.","04.",null,null,"Impuestos Municipales",{"$f":"+EsNegrita(I209)","v":"NO"},null,{"$f":"+Tabla1[[#This Row],[nivel 1]]&Tabla1[[#This Row],[nivel 2]]&Tabla1[[#This Row],[nivel 3]]&Tabla1[[#This Row],[nivel 4]]&Tabla1[[#This Row],[nivel 5]]&Tabla1[[#This Row],[nivel 6]]&Tabla1[[#This Row],[nivel 7]]","v":"1.105.04.01.04."}]
[null,"1.","105.","04.","01.","04.","01.",null,"Patente de Industria y Comercio",{"$f":"+EsNegrita(I210)","v":"SI"},null,{"$f":"+Tabla1[[#This Row],[nivel 1]]&Tabla1[[#This Row],[nivel 2]]&Tabla1[[#This Row],[nivel 3]]&Tabla1[[#This Row],[nivel 4]]&Tabla1[[#This Row],[nivel 5]]&Tabla1[[#This Row],[nivel 6]]&Tabla1[[#This Row],[nivel 7]]","v":"1.105.04.01.04.01."}]
[null,"1.","105.","04.","01.","04.","02.",null,"Impuesto Inmobiliario Urbano",{"$f":"+EsNegrita(I211)","v":"SI"},null,{"$f":"+Tabla1[[#This Row],[nivel 1]]&Tabla1[[#This Row],[nivel 2]]&Tabla1[[#This Row],[nivel 3]]&Tabla1[[#This Row],[nivel 4]]&Tabla1[[#This Row],[nivel 5]]&Tabla1[[#This Row],[nivel 6]]&Tabla1[[#This Row],[nivel 7]]","v":"1.105.04.01.04.02."}]
[null,"1.","105.","04.","01.","04.","03.",null,"Impuesto sobre Publicidad y Propaganda",{"$f":"+EsNegrita(I212)","v":"SI"},null,{"$f":"+Tabla1[[#This Row],[nivel 1]]&Tabla1[[#This Row],[nivel 2]]&Tabla1[[#This Row],[nivel 3]]&Tabla1[[#This Row],[nivel 4]]&Tabla1[[#This Row],[nivel 5]]&Tabla1[[#This Row],[nivel 6]]&Tabla1[[#This Row],[nivel 7]]","v":"1.105.04.01.04.03."}]
[null,"1.","105.","04.","01.","04.","04.",null,"Impuesto sobre Circulación de Vehículos",{"$f":"+EsNegrita(I213)","v":"SI"},null,{"$f":"+Tabla1[[#This Row],[nivel 1]]&Tabla1[[#This Row],[nivel 2]]&Tabla1[[#This Row],[nivel 3]]&Tabla1[[#This Row],[nivel 4]]&Tabla1[[#This Row],[nivel 5]]&Tabla1[[#This Row],[nivel 6]]&Tabla1[[#This Row],[nivel 7]]","v":"1.105.04.01.04.04."}]
[null,"1.","105.","04.","01.","05.",null,null,"Otros Impuestos",{"$f":"+EsNegrita(I214)","v":"NO"},null,{"$f":"+Tabla1[[#This Row],[nivel 1]]&Tabla1[[#This Row],[nivel 2]]&Tabla1[[#This Row],[nivel 3]]&Tabla1[[#This Row],[nivel 4]]&Tabla1[[#This Row],[nivel 5]]&Tabla1[[#This Row],[nivel 6]]&Tabla1[[#This Row],[nivel 7]]","v":"1.105.04.01.05."}]
[null,"1.","105.","04.","02.",null,null,null,"Seguros Pagados por Anticipado",{"$f":"+EsNegrita(I215)","v":"SI"},null,{"$f":"+Tabla1[[#This Row],[nivel 1]]&Tabla1[[#This Row],[nivel 2]]&Tabla1[[#This Row],[nivel 3]]&Tabla1[[#This Row],[nivel 4]]&Tabla1[[#This Row],[nivel 5]]&Tabla1[[#This Row],[nivel 6]]&Tabla1[[#This Row],[nivel 7]]","v":"1.105.04.02."}]
[null,"1.","105.","04.","03.",null,null,null,"Intereses Pagados por Anticipado",{"$f":"+EsNegrita(I216)","v":"SI"},null,{"$f":"+Tabla1[[#This Row],[nivel 1]]&Tabla1[[#This Row],[nivel 2]]&Tabla1[[#This Row],[nivel 3]]&Tabla1[[#This Row],[nivel 4]]&Tabla1[[#This Row],[nivel 5]]&Tabla1[[#This Row],[nivel 6]]&Tabla1[[#This Row],[nivel 7]]","v":"1.105.04.03."}]
[null,"1.","105.","04.","04.",null,null,null,"Arrendamientos Pagados por Anticipado",{"$f":"+EsNegrita(I217)","v":"SI"},null,{"$f":"+Tabla1[[#This Row],[nivel 1]]&Tabla1[[#This Row],[nivel 2]]&Tabla1[[#This Row],[nivel 3]]&Tabla1[[#This Row],[nivel 4]]&Tabla1[[#This Row],[nivel 5]]&Tabla1[[#This Row],[nivel 6]]&Tabla1[[#This Row],[nivel 7]]","v":"1.105.04.04."}]
[null,"1.","105.","04.","05.",null,null,null,"Publicidad Pagada por Anticipado",{"$f":"+EsNegrita(I218)","v":"SI"},null,{"$f":"+Tabla1[[#This Row],[nivel 1]]&Tabla1[[#This Row],[nivel 2]]&Tabla1[[#This Row],[nivel 3]]&Tabla1[[#This Row],[nivel 4]]&Tabla1[[#This Row],[nivel 5]]&Tabla1[[#This Row],[nivel 6]]&Tabla1[[#This Row],[nivel 7]]","v":"1.105.04.05."}]
[null,"1.","105.","04.","06.",null,null,null,"Hipotecas Pagadas por Anticipado",{"$f":"+EsNegrita(I219)","v":"SI"},null,{"$f":"+Tabla1[[#This Row],[nivel 1]]&Tabla1[[#This Row],[nivel 2]]&Tabla1[[#This Row],[nivel 3]]&Tabla1[[#This Row],[nivel 4]]&Tabla1[[#This Row],[nivel 5]]&Tabla1[[#This Row],[nivel 6]]&Tabla1[[#This Row],[nivel 7]]","v":"1.105.04.06."}]
[null,"1.","105.","04.","07.",null,null,null,"Comisiones pagadas por anticipado",{"$f":"+EsNegrita(I220)","v":"SI"},null,{"$f":"+Tabla1[[#This Row],[nivel 1]]&Tabla1[[#This Row],[nivel 2]]&Tabla1[[#This Row],[nivel 3]]&Tabla1[[#This Row],[nivel 4]]&Tabla1[[#This Row],[nivel 5]]&Tabla1[[#This Row],[nivel 6]]&Tabla1[[#This Row],[nivel 7]]","v":"1.105.04.07."}]
[null,"1.","105.","04.","08.",null,null,null,"Otros Gastos Pagados por Anticipado",{"$f":"+EsNegrita(I221)","v":"SI"},null,{"$f":"+Tabla1[[#This Row],[nivel 1]]&Tabla1[[#This Row],[nivel 2]]&Tabla1[[#This Row],[nivel 3]]&Tabla1[[#This Row],[nivel 4]]&Tabla1[[#This Row],[nivel 5]]&Tabla1[[#This Row],[nivel 6]]&Tabla1[[#This Row],[nivel 7]]","v":"1.105.04.08."}]
[null,"1.","105.","05.",null,null,null,null,"Operaciones de Permuta",{"$f":"+EsNegrita(I222)","v":"NO"},null,{"$f":"+Tabla1[[#This Row],[nivel 1]]&Tabla1[[#This Row],[nivel 2]]&Tabla1[[#This Row],[nivel 3]]&Tabla1[[#This Row],[nivel 4]]&Tabla1[[#This Row],[nivel 5]]&Tabla1[[#This Row],[nivel 6]]&Tabla1[[#This Row],[nivel 7]]","v":"1.105.05."}]
[null,"1.","105.","05.","01.",null,null,null,"Valores Públicos",{"$f":"+EsNegrita(I223)","v":"SI"},null,{"$f":"+Tabla1[[#This Row],[nivel 1]]&Tabla1[[#This Row],[nivel 2]]&Tabla1[[#This Row],[nivel 3]]&Tabla1[[#This Row],[nivel 4]]&Tabla1[[#This Row],[nivel 5]]&Tabla1[[#This Row],[nivel 6]]&Tabla1[[#This Row],[nivel 7]]","v":"1.105.05.01."}]
[null,"1.","105.","05.","02.",null,null,null,"Valores Privados",{"$f":"+EsNegrita(I224)","v":"SI"},null,{"$f":"+Tabla1[[#This Row],[nivel 1]]&Tabla1[[#This Row],[nivel 2]]&Tabla1[[#This Row],[nivel 3]]&Tabla1[[#This Row],[nivel 4]]&Tabla1[[#This Row],[nivel 5]]&Tabla1[[#This Row],[nivel 6]]&Tabla1[[#This Row],[nivel 7]]","v":"1.105.05.02."}]
[null,"1.","105.","05.","03.",null,null,null,"Inmuebles",{"$f":"+EsNegrita(I225)","v":"SI"},null,{"$f":"+Tabla1[[#This Row],[nivel 1]]&Tabla1[[#This Row],[nivel 2]]&Tabla1[[#This Row],[nivel 3]]&Tabla1[[#This Row],[nivel 4]]&Tabla1[[#This Row],[nivel 5]]&Tabla1[[#This Row],[nivel 6]]&Tabla1[[#This Row],[nivel 7]]","v":"1.105.05.03."}]
[null,"1.","105.","05.","04.",null,null,null,"Terrenos",{"$f":"+EsNegrita(I226)","v":"SI"},null,{"$f":"+Tabla1[[#This Row],[nivel 1]]&Tabla1[[#This Row],[nivel 2]]&Tabla1[[#This Row],[nivel 3]]&Tabla1[[#This Row],[nivel 4]]&Tabla1[[#This Row],[nivel 5]]&Tabla1[[#This Row],[nivel 6]]&Tabla1[[#This Row],[nivel 7]]","v":"1.105.05.04."}]
[null,"1.","105.","05.","05.",null,null,null,"Otros",{"$f":"+EsNegrita(I227)","v":"SI"},null,{"$f":"+Tabla1[[#This Row],[nivel 1]]&Tabla1[[#This Row],[nivel 2]]&Tabla1[[#This Row],[nivel 3]]&Tabla1[[#This Row],[nivel 4]]&Tabla1[[#This Row],[nivel 5]]&Tabla1[[#This Row],[nivel 6]]&Tabla1[[#This Row],[nivel 7]]","v":"1.105.05.05."}]
[null,"1.","106.",null,null,null,null,null,"OTROS ACTIVOS",{"$f":"+EsNegrita(I228)","v":"NO"},null,{"$f":"+Tabla1[[#This Row],[nivel 1]]&Tabla1[[#This Row],[nivel 2]]&Tabla1[[#This Row],[nivel 3]]&Tabla1[[#This Row],[nivel 4]]&Tabla1[[#This Row],[nivel 5]]&Tabla1[[#This Row],[nivel 6]]&Tabla1[[#This Row],[nivel 7]]","v":"1.106."}]
[null,"1.","106.","01.",null,null,null,null,"Operaciones en Tránsito",{"$f":"+EsNegrita(I229)","v":"NO"},null,{"$f":"+Tabla1[[#This Row],[nivel 1]]&Tabla1[[#This Row],[nivel 2]]&Tabla1[[#This Row],[nivel 3]]&Tabla1[[#This Row],[nivel 4]]&Tabla1[[#This Row],[nivel 5]]&Tabla1[[#This Row],[nivel 6]]&Tabla1[[#This Row],[nivel 7]]","v":"1.106.01."}]
[null,"1.","106.","01.","01.",null,null,null,"Bancarias",{"$f":"+EsNegrita(I230)","v":"NO"},null,{"$f":"+Tabla1[[#This Row],[nivel 1]]&Tabla1[[#This Row],[nivel 2]]&Tabla1[[#This Row],[nivel 3]]&Tabla1[[#This Row],[nivel 4]]&Tabla1[[#This Row],[nivel 5]]&Tabla1[[#This Row],[nivel 6]]&Tabla1[[#This Row],[nivel 7]]","v":"1.106.01.01."}]
[null,"1.","106.","01.","01.","01.",null,null,"Moneda Nacional",{"$f":"+EsNegrita(I231)","v":"SI"},null,{"$f":"+Tabla1[[#This Row],[nivel 1]]&Tabla1[[#This Row],[nivel 2]]&Tabla1[[#This Row],[nivel 3]]&Tabla1[[#This Row],[nivel 4]]&Tabla1[[#This Row],[nivel 5]]&Tabla1[[#This Row],[nivel 6]]&Tabla1[[#This Row],[nivel 7]]","v":"1.106.01.01.01."}]
[null,"1.","106.","01.","01.","02.",null,null,"Moneda Extranjera",{"$f":"+EsNegrita(I232)","v":"SI"},null,{"$f":"+Tabla1[[#This Row],[nivel 1]]&Tabla1[[#This Row],[nivel 2]]&Tabla1[[#This Row],[nivel 3]]&Tabla1[[#This Row],[nivel 4]]&Tabla1[[#This Row],[nivel 5]]&Tabla1[[#This Row],[nivel 6]]&Tabla1[[#This Row],[nivel 7]]","v":"1.106.01.01.02."}]
[null,"1.","106.","01.","02.",null,null,null,"Otros",{"$f":"+EsNegrita(I233)","v":"NO"},null,{"$f":"+Tabla1[[#This Row],[nivel 1]]&Tabla1[[#This Row],[nivel 2]]&Tabla1[[#This Row],[nivel 3]]&Tabla1[[#This Row],[nivel 4]]&Tabla1[[#This Row],[nivel 5]]&Tabla1[[#This Row],[nivel 6]]&Tabla1[[#This Row],[nivel 7]]","v":"1.106.01.02."}]
[null,"1.","106.","01.","02.","01.",null,null,"Moneda Nacional",{"$f":"+EsNegrita(I234)","v":"SI"},null,{"$f":"+Tabla1[[#This Row],[nivel 1]]&Tabla1[[#This Row],[nivel 2]]&Tabla1[[#This Row],[nivel 3]]&Tabla1[[#This Row],[nivel 4]]&Tabla1[[#This Row],[nivel 5]]&Tabla1[[#This Row],[nivel 6]]&Tabla1[[#This Row],[nivel 7]]","v":"1.106.01.02.01."}]
[null,"1.","106.","01.","02.","02.",null,null,"Moneda Extranjera",{"$f":"+EsNegrita(I235)","v":"SI"},null,{"$f":"+Tabla1[[#This Row],[nivel 1]]&Tabla1[[#This Row],[nivel 2]]&Tabla1[[#This Row],[nivel 3]]&Tabla1[[#This Row],[nivel 4]]&Tabla1[[#This Row],[nivel 5]]&Tabla1[[#This Row],[nivel 6]]&Tabla1[[#This Row],[nivel 7]]","v":"1.106.01.02.02."}]
[null,"1.","106.","02.",null,null,null,null,"Propiedades, Mejoras Inmobiliarias y Equipos",{"$f":"+EsNegrita(I236)","v":"NO"},null,{"$f":"+Tabla1[[#This Row],[nivel 1]]&Tabla1[[#This Row],[nivel 2]]&Tabla1[[#This Row],[nivel 3]]&Tabla1[[#This Row],[nivel 4]]&Tabla1[[#This Row],[nivel 5]]&Tabla1[[#This Row],[nivel 6]]&Tabla1[[#This Row],[nivel 7]]","v":"1.106.02."}]
[null,"1.","106.","02.","01.",null,null,null,"Edificaciones en Construcción",{"$f":"+EsNegrita(I237)","v":"SI"},null,{"$f":"+Tabla1[[#This Row],[nivel 1]]&Tabla1[[#This Row],[nivel 2]]&Tabla1[[#This Row],[nivel 3]]&Tabla1[[#This Row],[nivel 4]]&Tabla1[[#This Row],[nivel 5]]&Tabla1[[#This Row],[nivel 6]]&Tabla1[[#This Row],[nivel 7]]","v":"1.106.02.01."}]
[null,"1.","106.","02.","02.",null,null,null,"Mejoras Inmobiliarias",{"$f":"+EsNegrita(I238)","v":"SI"},null,{"$f":"+Tabla1[[#This Row],[nivel 1]]&Tabla1[[#This Row],[nivel 2]]&Tabla1[[#This Row],[nivel 3]]&Tabla1[[#This Row],[nivel 4]]&Tabla1[[#This Row],[nivel 5]]&Tabla1[[#This Row],[nivel 6]]&Tabla1[[#This Row],[nivel 7]]","v":"1.106.02.02."}]
[null,"1.","106.","02.","03.",null,null,null,"Equipos",{"$f":"+EsNegrita(I239)","v":"SI"},null,{"$f":"+Tabla1[[#This Row],[nivel 1]]&Tabla1[[#This Row],[nivel 2]]&Tabla1[[#This Row],[nivel 3]]&Tabla1[[#This Row],[nivel 4]]&Tabla1[[#This Row],[nivel 5]]&Tabla1[[#This Row],[nivel 6]]&Tabla1[[#This Row],[nivel 7]]","v":"1.106.02.03."}]
[null,"1.","106.","02.","04.",null,null,null,"Otros",{"$f":"+EsNegrita(I240)","v":"SI"},null,{"$f":"+Tabla1[[#This Row],[nivel 1]]&Tabla1[[#This Row],[nivel 2]]&Tabla1[[#This Row],[nivel 3]]&Tabla1[[#This Row],[nivel 4]]&Tabla1[[#This Row],[nivel 5]]&Tabla1[[#This Row],[nivel 6]]&Tabla1[[#This Row],[nivel 7]]","v":"1.106.02.04."}]
[null,"1.","106.","03.",null,null,null,null,"Acervo Artístico ",{"$f":"+EsNegrita(I241)","v":"NO"},null,{"$f":"+Tabla1[[#This Row],[nivel 1]]&Tabla1[[#This Row],[nivel 2]]&Tabla1[[#This Row],[nivel 3]]&Tabla1[[#This Row],[nivel 4]]&Tabla1[[#This Row],[nivel 5]]&Tabla1[[#This Row],[nivel 6]]&Tabla1[[#This Row],[nivel 7]]","v":"1.106.03."}]
[null,"1.","106.","03.","01.",null,null,null,"Pinturas",{"$f":"+EsNegrita(I242)","v":"SI"},null,{"$f":"+Tabla1[[#This Row],[nivel 1]]&Tabla1[[#This Row],[nivel 2]]&Tabla1[[#This Row],[nivel 3]]&Tabla1[[#This Row],[nivel 4]]&Tabla1[[#This Row],[nivel 5]]&Tabla1[[#This Row],[nivel 6]]&Tabla1[[#This Row],[nivel 7]]","v":"1.106.03.01."}]
[null,"1.","106.","03.","02.",null,null,null,"Esculturas",{"$f":"+EsNegrita(I243)","v":"SI"},null,{"$f":"+Tabla1[[#This Row],[nivel 1]]&Tabla1[[#This Row],[nivel 2]]&Tabla1[[#This Row],[nivel 3]]&Tabla1[[#This Row],[nivel 4]]&Tabla1[[#This Row],[nivel 5]]&Tabla1[[#This Row],[nivel 6]]&Tabla1[[#This Row],[nivel 7]]","v":"1.106.03.02."}]
[null,"1.","106.","03.","03.",null,null,null,"Otros",{"$f":"+EsNegrita(I244)","v":"SI"},null,{"$f":"+Tabla1[[#This Row],[nivel 1]]&Tabla1[[#This Row],[nivel 2]]&Tabla1[[#This Row],[nivel 3]]&Tabla1[[#This Row],[nivel 4]]&Tabla1[[#This Row],[nivel 5]]&Tabla1[[#This Row],[nivel 6]]&Tabla1[[#This Row],[nivel 7]]","v":"1.106.03.03."}]
[null,"1.","106.","04.",null,null,null,null,"Depósitos en Garantía de Servicios ",{"$f":"+EsNegrita(I245)","v":"SI"},null,{"$f":"+Tabla1[[#This Row],[nivel 1]]&Tabla1[[#This Row],[nivel 2]]&Tabla1[[#This Row],[nivel 3]]&Tabla1[[#This Row],[nivel 4]]&Tabla1[[#This Row],[nivel 5]]&Tabla1[[#This Row],[nivel 6]]&Tabla1[[#This Row],[nivel 7]]","v":"1.106.04."}]
[null,"2.",null,null,null,null,null,null,"CUENTAS DE ORDEN",{"$f":"+EsNegrita(I246)","v":"NO"},null,{"$f":"+Tabla1[[#This Row],[nivel 1]]&Tabla1[[#This Row],[nivel 2]]&Tabla1[[#This Row],[nivel 3]]&Tabla1[[#This Row],[nivel 4]]&Tabla1[[#This Row],[nivel 5]]&Tabla1[[#This Row],[nivel 6]]&Tabla1[[#This Row],[nivel 7]]","v":"2."}]
[null,"2.","201.",null,null,null,null,null,"FONDOS O CONTRATOS ADMINISTRADOS",{"$f":"+EsNegrita(I247)","v":"NO"},null,{"$f":"+Tabla1[[#This Row],[nivel 1]]&Tabla1[[#This Row],[nivel 2]]&Tabla1[[#This Row],[nivel 3]]&Tabla1[[#This Row],[nivel 4]]&Tabla1[[#This Row],[nivel 5]]&Tabla1[[#This Row],[nivel 6]]&Tabla1[[#This Row],[nivel 7]]","v":"2.201."}]
[null,"2.","201.","01.",null,null,null,null,"Depósitos Recibidos por Fondos o Contratos Administrados",{"$f":"+EsNegrita(I248)","v":"NO"},null,{"$f":"+Tabla1[[#This Row],[nivel 1]]&Tabla1[[#This Row],[nivel 2]]&Tabla1[[#This Row],[nivel 3]]&Tabla1[[#This Row],[nivel 4]]&Tabla1[[#This Row],[nivel 5]]&Tabla1[[#This Row],[nivel 6]]&Tabla1[[#This Row],[nivel 7]]","v":"2.201.01."}]
[null,"2.","201.","01.","01.",null,null,null,"Empresas de Seguros",{"$f":"+EsNegrita(I249)","v":"SI"},null,{"$f":"+Tabla1[[#This Row],[nivel 1]]&Tabla1[[#This Row],[nivel 2]]&Tabla1[[#This Row],[nivel 3]]&Tabla1[[#This Row],[nivel 4]]&Tabla1[[#This Row],[nivel 5]]&Tabla1[[#This Row],[nivel 6]]&Tabla1[[#This Row],[nivel 7]]","v":"2.201.01.01."}]
[null,"2.","201.","01.","02.",null,null,null,"Empresas de Medicina Prepagada",{"$f":"+EsNegrita(I250)","v":"SI"},null,{"$f":"+Tabla1[[#This Row],[nivel 1]]&Tabla1[[#This Row],[nivel 2]]&Tabla1[[#This Row],[nivel 3]]&Tabla1[[#This Row],[nivel 4]]&Tabla1[[#This Row],[nivel 5]]&Tabla1[[#This Row],[nivel 6]]&Tabla1[[#This Row],[nivel 7]]","v":"2.201.01.02."}]
[null,"2.","201.","01.","03.",null,null,null,"Otros Contratantes",{"$f":"+EsNegrita(I251)","v":"NO"},null,{"$f":"+Tabla1[[#This Row],[nivel 1]]&Tabla1[[#This Row],[nivel 2]]&Tabla1[[#This Row],[nivel 3]]&Tabla1[[#This Row],[nivel 4]]&Tabla1[[#This Row],[nivel 5]]&Tabla1[[#This Row],[nivel 6]]&Tabla1[[#This Row],[nivel 7]]","v":"2.201.01.03."}]
[null,"2.","201.","01.","03.","01.",null,null,"Organismos y Entes de la Administración Pública",{"$f":"+EsNegrita(I252)","v":"SI"},null,{"$f":"+Tabla1[[#This Row],[nivel 1]]&Tabla1[[#This Row],[nivel 2]]&Tabla1[[#This Row],[nivel 3]]&Tabla1[[#This Row],[nivel 4]]&Tabla1[[#This Row],[nivel 5]]&Tabla1[[#This Row],[nivel 6]]&Tabla1[[#This Row],[nivel 7]]","v":"2.201.01.03.01."}]
[null,"2.","201.","01.","03.","02.",null,null,"Contratantes del sector Privado",{"$f":"+EsNegrita(I253)","v":"SI"},null,{"$f":"+Tabla1[[#This Row],[nivel 1]]&Tabla1[[#This Row],[nivel 2]]&Tabla1[[#This Row],[nivel 3]]&Tabla1[[#This Row],[nivel 4]]&Tabla1[[#This Row],[nivel 5]]&Tabla1[[#This Row],[nivel 6]]&Tabla1[[#This Row],[nivel 7]]","v":"2.201.01.03.02."}]
[null,"2.","201.","02.",null,null,null,null,"Siniestros o Reembolsos de Fondos o Contratos Administrados",{"$f":"+EsNegrita(I254)","v":"NO"},null,{"$f":"+Tabla1[[#This Row],[nivel 1]]&Tabla1[[#This Row],[nivel 2]]&Tabla1[[#This Row],[nivel 3]]&Tabla1[[#This Row],[nivel 4]]&Tabla1[[#This Row],[nivel 5]]&Tabla1[[#This Row],[nivel 6]]&Tabla1[[#This Row],[nivel 7]]","v":"2.201.02."}]
[null,"2.","201.","02.","01.",null,null,null,"Siniestros o Reembolsos de Fondos o Contratos Administrados por Cobrar",{"$f":"+EsNegrita(I255)","v":"NO"},null,{"$f":"+Tabla1[[#This Row],[nivel 1]]&Tabla1[[#This Row],[nivel 2]]&Tabla1[[#This Row],[nivel 3]]&Tabla1[[#This Row],[nivel 4]]&Tabla1[[#This Row],[nivel 5]]&Tabla1[[#This Row],[nivel 6]]&Tabla1[[#This Row],[nivel 7]]","v":"2.201.02.01."}]
[null,"2.","201.","02.","01.","01.",null,null,"Empresas de Seguros",{"$f":"+EsNegrita(I256)","v":"SI"},null,{"$f":"+Tabla1[[#This Row],[nivel 1]]&Tabla1[[#This Row],[nivel 2]]&Tabla1[[#This Row],[nivel 3]]&Tabla1[[#This Row],[nivel 4]]&Tabla1[[#This Row],[nivel 5]]&Tabla1[[#This Row],[nivel 6]]&Tabla1[[#This Row],[nivel 7]]","v":"2.201.02.01.01."}]
[null,"2.","201.","02.","01.","02.",null,null,"Empresas de Medicina Prepagada",{"$f":"+EsNegrita(I257)","v":"SI"},null,{"$f":"+Tabla1[[#This Row],[nivel 1]]&Tabla1[[#This Row],[nivel 2]]&Tabla1[[#This Row],[nivel 3]]&Tabla1[[#This Row],[nivel 4]]&Tabla1[[#This Row],[nivel 5]]&Tabla1[[#This Row],[nivel 6]]&Tabla1[[#This Row],[nivel 7]]","v":"2.201.02.01.02."}]
[null,"2.","201.","02.","01.","03.",null,null,"Otros Contratantes",{"$f":"+EsNegrita(I258)","v":"NO"},null,{"$f":"+Tabla1[[#This Row],[nivel 1]]&Tabla1[[#This Row],[nivel 2]]&Tabla1[[#This Row],[nivel 3]]&Tabla1[[#This Row],[nivel 4]]&Tabla1[[#This Row],[nivel 5]]&Tabla1[[#This Row],[nivel 6]]&Tabla1[[#This Row],[nivel 7]]","v":"2.201.02.01.03."}]
[null,"2.","201.","02.","01.","03.","01.",null,"Organismos y Entes de la Administración Pública",{"$f":"+EsNegrita(I259)","v":"SI"},null,{"$f":"+Tabla1[[#This Row],[nivel 1]]&Tabla1[[#This Row],[nivel 2]]&Tabla1[[#This Row],[nivel 3]]&Tabla1[[#This Row],[nivel 4]]&Tabla1[[#This Row],[nivel 5]]&Tabla1[[#This Row],[nivel 6]]&Tabla1[[#This Row],[nivel 7]]","v":"2.201.02.01.03.01."}]
[null,"2.","201.","02.","01.","03.","02.",null,"Contratantes del sector Privado",{"$f":"+EsNegrita(I260)","v":"SI"},null,{"$f":"+Tabla1[[#This Row],[nivel 1]]&Tabla1[[#This Row],[nivel 2]]&Tabla1[[#This Row],[nivel 3]]&Tabla1[[#This Row],[nivel 4]]&Tabla1[[#This Row],[nivel 5]]&Tabla1[[#This Row],[nivel 6]]&Tabla1[[#This Row],[nivel 7]]","v":"2.201.02.01.03.02."}]
[null,"2.","201.","02.","02.",null,null,null,"Siniestros o Reembolsos de Fondos o Contratos Administrados Pagados",{"$f":"+EsNegrita(I261)","v":"NO"},null,{"$f":"+Tabla1[[#This Row],[nivel 1]]&Tabla1[[#This Row],[nivel 2]]&Tabla1[[#This Row],[nivel 3]]&Tabla1[[#This Row],[nivel 4]]&Tabla1[[#This Row],[nivel 5]]&Tabla1[[#This Row],[nivel 6]]&Tabla1[[#This Row],[nivel 7]]","v":"2.201.02.02."}]
[null,"2.","201.","02.","02.","01.",null,null,"Empresas de Seguros",{"$f":"+EsNegrita(I262)","v":"SI"},null,{"$f":"+Tabla1[[#This Row],[nivel 1]]&Tabla1[[#This Row],[nivel 2]]&Tabla1[[#This Row],[nivel 3]]&Tabla1[[#This Row],[nivel 4]]&Tabla1[[#This Row],[nivel 5]]&Tabla1[[#This Row],[nivel 6]]&Tabla1[[#This Row],[nivel 7]]","v":"2.201.02.02.01."}]
[null,"2.","201.","02.","02.","02.",null,null,"Empresas de Medicina Prepagada",{"$f":"+EsNegrita(I263)","v":"SI"},null,{"$f":"+Tabla1[[#This Row],[nivel 1]]&Tabla1[[#This Row],[nivel 2]]&Tabla1[[#This Row],[nivel 3]]&Tabla1[[#This Row],[nivel 4]]&Tabla1[[#This Row],[nivel 5]]&Tabla1[[#This Row],[nivel 6]]&Tabla1[[#This Row],[nivel 7]]","v":"2.201.02.02.02."}]
[null,"2.","201.","02.","02.","03.",null,null,"Otros Contratantes",{"$f":"+EsNegrita(I264)","v":"NO"},null,{"$f":"+Tabla1[[#This Row],[nivel 1]]&Tabla1[[#This Row],[nivel 2]]&Tabla1[[#This Row],[nivel 3]]&Tabla1[[#This Row],[nivel 4]]&Tabla1[[#This Row],[nivel 5]]&Tabla1[[#This Row],[nivel 6]]&Tabla1[[#This Row],[nivel 7]]","v":"2.201.02.02.03."}]
[null,"2.","201.","02.","02.","03.","01.",null,"Organismos y Entes de la Administración Pública",{"$f":"+EsNegrita(I265)","v":"SI"},null,{"$f":"+Tabla1[[#This Row],[nivel 1]]&Tabla1[[#This Row],[nivel 2]]&Tabla1[[#This Row],[nivel 3]]&Tabla1[[#This Row],[nivel 4]]&Tabla1[[#This Row],[nivel 5]]&Tabla1[[#This Row],[nivel 6]]&Tabla1[[#This Row],[nivel 7]]","v":"2.201.02.02.03.01."}]
[null,"2.","201.","02.","02.","03.","02.",null,"Contratantes del sector Privado",{"$f":"+EsNegrita(I266)","v":"SI"},null,{"$f":"+Tabla1[[#This Row],[nivel 1]]&Tabla1[[#This Row],[nivel 2]]&Tabla1[[#This Row],[nivel 3]]&Tabla1[[#This Row],[nivel 4]]&Tabla1[[#This Row],[nivel 5]]&Tabla1[[#This Row],[nivel 6]]&Tabla1[[#This Row],[nivel 7]]","v":"2.201.02.02.03.02."}]
[null,"2.","201.","03.",null,null,null,null,"Devoluciones por Anulaciones de Fondos o Contratos Administrados",{"$f":"+EsNegrita(I267)","v":"NO"},null,{"$f":"+Tabla1[[#This Row],[nivel 1]]&Tabla1[[#This Row],[nivel 2]]&Tabla1[[#This Row],[nivel 3]]&Tabla1[[#This Row],[nivel 4]]&Tabla1[[#This Row],[nivel 5]]&Tabla1[[#This Row],[nivel 6]]&Tabla1[[#This Row],[nivel 7]]","v":"2.201.03."}]
[null,"2.","201.","03.","01.",null,null,null,"Empresas de Seguros",{"$f":"+EsNegrita(I268)","v":"SI"},null,{"$f":"+Tabla1[[#This Row],[nivel 1]]&Tabla1[[#This Row],[nivel 2]]&Tabla1[[#This Row],[nivel 3]]&Tabla1[[#This Row],[nivel 4]]&Tabla1[[#This Row],[nivel 5]]&Tabla1[[#This Row],[nivel 6]]&Tabla1[[#This Row],[nivel 7]]","v":"2.201.03.01."}]
[null,"2.","201.","03.","02.",null,null,null,"Empresas de Medicina Prepagada",{"$f":"+EsNegrita(I269)","v":"SI"},null,{"$f":"+Tabla1[[#This Row],[nivel 1]]&Tabla1[[#This Row],[nivel 2]]&Tabla1[[#This Row],[nivel 3]]&Tabla1[[#This Row],[nivel 4]]&Tabla1[[#This Row],[nivel 5]]&Tabla1[[#This Row],[nivel 6]]&Tabla1[[#This Row],[nivel 7]]","v":"2.201.03.02."}]
[null,"2.","201.","03.","03.",null,null,null,"Otros Contratantes",{"$f":"+EsNegrita(I270)","v":"NO"},null,{"$f":"+Tabla1[[#This Row],[nivel 1]]&Tabla1[[#This Row],[nivel 2]]&Tabla1[[#This Row],[nivel 3]]&Tabla1[[#This Row],[nivel 4]]&Tabla1[[#This Row],[nivel 5]]&Tabla1[[#This Row],[nivel 6]]&Tabla1[[#This Row],[nivel 7]]","v":"2.201.03.03."}]
[null,"2.","201.","03.","03.","01.",null,null,"Organismos y Entes de la Administración Pública",{"$f":"+EsNegrita(I271)","v":"SI"},null,{"$f":"+Tabla1[[#This Row],[nivel 1]]&Tabla1[[#This Row],[nivel 2]]&Tabla1[[#This Row],[nivel 3]]&Tabla1[[#This Row],[nivel 4]]&Tabla1[[#This Row],[nivel 5]]&Tabla1[[#This Row],[nivel 6]]&Tabla1[[#This Row],[nivel 7]]","v":"2.201.03.03.01."}]
[null,"2.","201.","03.","03.","02.",null,null,"Contratantes del sector Privado",{"$f":"+EsNegrita(I272)","v":"SI"},null,{"$f":"+Tabla1[[#This Row],[nivel 1]]&Tabla1[[#This Row],[nivel 2]]&Tabla1[[#This Row],[nivel 3]]&Tabla1[[#This Row],[nivel 4]]&Tabla1[[#This Row],[nivel 5]]&Tabla1[[#This Row],[nivel 6]]&Tabla1[[#This Row],[nivel 7]]","v":"2.201.03.03.02."}]
[null,"2.","201.","04.",null,null,null,null,"Gravámenes ",{"$f":"+EsNegrita(I273)","v":"NO"},null,{"$f":"+Tabla1[[#This Row],[nivel 1]]&Tabla1[[#This Row],[nivel 2]]&Tabla1[[#This Row],[nivel 3]]&Tabla1[[#This Row],[nivel 4]]&Tabla1[[#This Row],[nivel 5]]&Tabla1[[#This Row],[nivel 6]]&Tabla1[[#This Row],[nivel 7]]","v":"2.201.04."}]
[null,"2.","201.","04.","01.",null,null,null,"Impuesto sobre la Renta",{"$f":"+EsNegrita(I274)","v":"NO"},null,{"$f":"+Tabla1[[#This Row],[nivel 1]]&Tabla1[[#This Row],[nivel 2]]&Tabla1[[#This Row],[nivel 3]]&Tabla1[[#This Row],[nivel 4]]&Tabla1[[#This Row],[nivel 5]]&Tabla1[[#This Row],[nivel 6]]&Tabla1[[#This Row],[nivel 7]]","v":"2.201.04.01."}]
[null,"2.","201.","04.","01.","01.",null,null,"ISLR - Retenido por Terceros",{"$f":"+EsNegrita(I275)","v":"SI"},null,{"$f":"+Tabla1[[#This Row],[nivel 1]]&Tabla1[[#This Row],[nivel 2]]&Tabla1[[#This Row],[nivel 3]]&Tabla1[[#This Row],[nivel 4]]&Tabla1[[#This Row],[nivel 5]]&Tabla1[[#This Row],[nivel 6]]&Tabla1[[#This Row],[nivel 7]]","v":"2.201.04.01.01."}]
[null,"2.","201.","04.","01.","02.",null,null,"ISLR - Declaración Estimada",{"$f":"+EsNegrita(I276)","v":"SI"},null,{"$f":"+Tabla1[[#This Row],[nivel 1]]&Tabla1[[#This Row],[nivel 2]]&Tabla1[[#This Row],[nivel 3]]&Tabla1[[#This Row],[nivel 4]]&Tabla1[[#This Row],[nivel 5]]&Tabla1[[#This Row],[nivel 6]]&Tabla1[[#This Row],[nivel 7]]","v":"2.201.04.01.02."}]
[null,"2.","201.","04.","01.","03.",null,null,"Anticipo  - ISLR  ",{"$f":"+EsNegrita(I277)","v":"SI"},null,{"$f":"+Tabla1[[#This Row],[nivel 1]]&Tabla1[[#This Row],[nivel 2]]&Tabla1[[#This Row],[nivel 3]]&Tabla1[[#This Row],[nivel 4]]&Tabla1[[#This Row],[nivel 5]]&Tabla1[[#This Row],[nivel 6]]&Tabla1[[#This Row],[nivel 7]]","v":"2.201.04.01.03."}]
[null,"2.","201.","04.","01.","04.",null,null,"ISRL por Compensar (Pagado en Exceso)",{"$f":"+EsNegrita(I278)","v":"SI"},null,{"$f":"+Tabla1[[#This Row],[nivel 1]]&Tabla1[[#This Row],[nivel 2]]&Tabla1[[#This Row],[nivel 3]]&Tabla1[[#This Row],[nivel 4]]&Tabla1[[#This Row],[nivel 5]]&Tabla1[[#This Row],[nivel 6]]&Tabla1[[#This Row],[nivel 7]]","v":"2.201.04.01.04."}]
[null,"2.","201.","04.","02.",null,null,null,"Impuesto al Valor Agregado",{"$f":"+EsNegrita(I279)","v":"NO"},null,{"$f":"+Tabla1[[#This Row],[nivel 1]]&Tabla1[[#This Row],[nivel 2]]&Tabla1[[#This Row],[nivel 3]]&Tabla1[[#This Row],[nivel 4]]&Tabla1[[#This Row],[nivel 5]]&Tabla1[[#This Row],[nivel 6]]&Tabla1[[#This Row],[nivel 7]]","v":"2.201.04.02."}]
[null,"2.","201.","04.","02.","01.",null,null,"IVA - Retenido por Terceros sobre Compras o Servicios Recibidos (Crédito Fiscal)",{"$f":"+EsNegrita(I280)","v":"SI"},null,{"$f":"+Tabla1[[#This Row],[nivel 1]]&Tabla1[[#This Row],[nivel 2]]&Tabla1[[#This Row],[nivel 3]]&Tabla1[[#This Row],[nivel 4]]&Tabla1[[#This Row],[nivel 5]]&Tabla1[[#This Row],[nivel 6]]&Tabla1[[#This Row],[nivel 7]]","v":"2.201.04.02.01."}]
[null,"2.","201.","04.","03.",null,null,null,"Impuesto a las Grandes Transacciones Financieras",{"$f":"+EsNegrita(I281)","v":"NO"},null,{"$f":"+Tabla1[[#This Row],[nivel 1]]&Tabla1[[#This Row],[nivel 2]]&Tabla1[[#This Row],[nivel 3]]&Tabla1[[#This Row],[nivel 4]]&Tabla1[[#This Row],[nivel 5]]&Tabla1[[#This Row],[nivel 6]]&Tabla1[[#This Row],[nivel 7]]","v":"2.201.04.03."}]
[null,"2.","201.","04.","04.",null,null,null,"Impuesto a los Grandes Patrimonios",{"$f":"+EsNegrita(I282)","v":"NO"},null,{"$f":"+Tabla1[[#This Row],[nivel 1]]&Tabla1[[#This Row],[nivel 2]]&Tabla1[[#This Row],[nivel 3]]&Tabla1[[#This Row],[nivel 4]]&Tabla1[[#This Row],[nivel 5]]&Tabla1[[#This Row],[nivel 6]]&Tabla1[[#This Row],[nivel 7]]","v":"2.201.04.04."}]
[null,"2.","202.",null,null,null,null,null,"DEPÓSITOS RECIBIDOS EN GARANTÍA",{"$f":"+EsNegrita(I283)","v":"NO"},null,{"$f":"+Tabla1[[#This Row],[nivel 1]]&Tabla1[[#This Row],[nivel 2]]&Tabla1[[#This Row],[nivel 3]]&Tabla1[[#This Row],[nivel 4]]&Tabla1[[#This Row],[nivel 5]]&Tabla1[[#This Row],[nivel 6]]&Tabla1[[#This Row],[nivel 7]]","v":"2.202."}]
[null,"2.","202.","01.",null,null,null,null,"Bancos",{"$f":"+EsNegrita(I284)","v":"SI"},null,{"$f":"+Tabla1[[#This Row],[nivel 1]]&Tabla1[[#This Row],[nivel 2]]&Tabla1[[#This Row],[nivel 3]]&Tabla1[[#This Row],[nivel 4]]&Tabla1[[#This Row],[nivel 5]]&Tabla1[[#This Row],[nivel 6]]&Tabla1[[#This Row],[nivel 7]]","v":"2.202.01."}]
[null,"2.","202.","02.",null,null,null,null,"Otras Inversiones",{"$f":"+EsNegrita(I285)","v":"SI"},null,{"$f":"+Tabla1[[#This Row],[nivel 1]]&Tabla1[[#This Row],[nivel 2]]&Tabla1[[#This Row],[nivel 3]]&Tabla1[[#This Row],[nivel 4]]&Tabla1[[#This Row],[nivel 5]]&Tabla1[[#This Row],[nivel 6]]&Tabla1[[#This Row],[nivel 7]]","v":"2.202.02."}]
[null,"2.","203.",null,null,null,null,null,"FIDEICOMISO - TRABAJADORES DE LA EMPRESA ADMINISTRADORA DE RIESGOS",{"$f":"+EsNegrita(I286)","v":"SI"},null,{"$f":"+Tabla1[[#This Row],[nivel 1]]&Tabla1[[#This Row],[nivel 2]]&Tabla1[[#This Row],[nivel 3]]&Tabla1[[#This Row],[nivel 4]]&Tabla1[[#This Row],[nivel 5]]&Tabla1[[#This Row],[nivel 6]]&Tabla1[[#This Row],[nivel 7]]","v":"2.203."}]
[null,"2.","204.",null,null,null,null,null,"DEMANDAS O LITIGIOS EN PROCESO",{"$f":"+EsNegrita(I287)","v":"SI"},null,{"$f":"+Tabla1[[#This Row],[nivel 1]]&Tabla1[[#This Row],[nivel 2]]&Tabla1[[#This Row],[nivel 3]]&Tabla1[[#This Row],[nivel 4]]&Tabla1[[#This Row],[nivel 5]]&Tabla1[[#This Row],[nivel 6]]&Tabla1[[#This Row],[nivel 7]]","v":"2.204."}]
[null,"2.","205.",null,null,null,null,null,"FIANZAS CONTRATADAS POR LA EMPRESA ADMINISTRADORA DE RIESGOS",{"$f":"+EsNegrita(I288)","v":"SI"},null,{"$f":"+Tabla1[[#This Row],[nivel 1]]&Tabla1[[#This Row],[nivel 2]]&Tabla1[[#This Row],[nivel 3]]&Tabla1[[#This Row],[nivel 4]]&Tabla1[[#This Row],[nivel 5]]&Tabla1[[#This Row],[nivel 6]]&Tabla1[[#This Row],[nivel 7]]","v":"2.205."}]
[null,null,null,null,null,null,null,null,"TOTAL CUENTAS DE ORDEN…..",{"$f":"+EsNegrita(I289)","v":"NO"}]

{"sheet":"Pasivo Analítico","index":1,"n_rows":366,"n_cols":12,"rows_kept":366,"cut":false,"hidden":false,"merged":[]}
[null,"EMPRESA ADMINISTRADORA DE RIESGOS"]
[null,"PASIVO ANALÍTICO"]
[null,"AL XX/XX/20___"]
[]
[null,"Nivel 1","Nivel 2","Nivel 3","Nivel 4","Nivel 5","Nivel 6","Nivel 7","Nombre de la Cuenta","Admite Monto","Identificador del Anexo","Cuenta Contable"]
[null,"3.",null,null,null,null,null,null,"PASIVO",{"$f":"+EsNegrita(I6)","v":"NO"},null,{"$f":"+Tabla2[[#This Row],[Nivel 1]]&Tabla2[[#This Row],[Nivel 2]]&Tabla2[[#This Row],[Nivel 3]]&Tabla2[[#This Row],[Nivel 4]]&Tabla2[[#This Row],[Nivel 5]]&Tabla2[[#This Row],[Nivel 6]]&Tabla2[[#This Row],[Nivel 7]]","v":"3."}]
[null,"3.","301.",null,null,null,null,null,"Obligaciones por Pagar",{"$f":"+EsNegrita(I7)","v":"NO"},null,{"$f":"+Tabla2[[#This Row],[Nivel 1]]&Tabla2[[#This Row],[Nivel 2]]&Tabla2[[#This Row],[Nivel 3]]&Tabla2[[#This Row],[Nivel 4]]&Tabla2[[#This Row],[Nivel 5]]&Tabla2[[#This Row],[Nivel 6]]&Tabla2[[#This Row],[Nivel 7]]","v":"3.301."}]
[null,"3.","301.","01.",null,null,null,null,"Cuentas por pagar - Administración de Riesgos",{"$f":"+EsNegrita(I8)","v":"NO"},null,{"$f":"+Tabla2[[#This Row],[Nivel 1]]&Tabla2[[#This Row],[Nivel 2]]&Tabla2[[#This Row],[Nivel 3]]&Tabla2[[#This Row],[Nivel 4]]&Tabla2[[#This Row],[Nivel 5]]&Tabla2[[#This Row],[Nivel 6]]&Tabla2[[#This Row],[Nivel 7]]","v":"3.301.01."}]
[null,"3.","301.","01.","01.",null,null,null,"Fondos Administrados",{"$f":"+EsNegrita(I9)","v":"NO"},null,{"$f":"+Tabla2[[#This Row],[Nivel 1]]&Tabla2[[#This Row],[Nivel 2]]&Tabla2[[#This Row],[Nivel 3]]&Tabla2[[#This Row],[Nivel 4]]&Tabla2[[#This Row],[Nivel 5]]&Tabla2[[#This Row],[Nivel 6]]&Tabla2[[#This Row],[Nivel 7]]","v":"3.301.01.01."}]
[null,"3.","301.","01.","01.","01.",null,null,"Empresas de Seguros",{"$f":"+EsNegrita(I10)","v":"SI"},null,{"$f":"+Tabla2[[#This Row],[Nivel 1]]&Tabla2[[#This Row],[Nivel 2]]&Tabla2[[#This Row],[Nivel 3]]&Tabla2[[#This Row],[Nivel 4]]&Tabla2[[#This Row],[Nivel 5]]&Tabla2[[#This Row],[Nivel 6]]&Tabla2[[#This Row],[Nivel 7]]","v":"3.301.01.01.01."}]
[null,"3.","301.","01.","01.","02.",null,null,"Empresas de Medicina Prepagada",{"$f":"+EsNegrita(I11)","v":"SI"},null,{"$f":"+Tabla2[[#This Row],[Nivel 1]]&Tabla2[[#This Row],[Nivel 2]]&Tabla2[[#This Row],[Nivel 3]]&Tabla2[[#This Row],[Nivel 4]]&Tabla2[[#This Row],[Nivel 5]]&Tabla2[[#This Row],[Nivel 6]]&Tabla2[[#This Row],[Nivel 7]]","v":"3.301.01.01.02."}]
[null,"3.","301.","01.","01.","03.",null,null,"Otros Contratantes",{"$f":"+EsNegrita(I12)","v":"NO"},null,{"$f":"+Tabla2[[#This Row],[Nivel 1]]&Tabla2[[#This Row],[Nivel 2]]&Tabla2[[#This Row],[Nivel 3]]&Tabla2[[#This Row],[Nivel 4]]&Tabla2[[#This Row],[Nivel 5]]&Tabla2[[#This Row],[Nivel 6]]&Tabla2[[#This Row],[Nivel 7]]","v":"3.301.01.01.03."}]
[null,"3.","301.","01.","01.","03.","01.",null,"Organismos y Entes de la Administración Pública",{"$f":"+EsNegrita(I13)","v":"SI"},null,{"$f":"+Tabla2[[#This Row],[Nivel 1]]&Tabla2[[#This Row],[Nivel 2]]&Tabla2[[#This Row],[Nivel 3]]&Tabla2[[#This Row],[Nivel 4]]&Tabla2[[#This Row],[Nivel 5]]&Tabla2[[#This Row],[Nivel 6]]&Tabla2[[#This Row],[Nivel 7]]","v":"3.301.01.01.03.01."}]
[null,"3.","301.","01.","01.","03.","02.",null,"Contratantes del sector Privado",{"$f":"+EsNegrita(I14)","v":"SI"},null,{"$f":"+Tabla2[[#This Row],[Nivel 1]]&Tabla2[[#This Row],[Nivel 2]]&Tabla2[[#This Row],[Nivel 3]]&Tabla2[[#This Row],[Nivel 4]]&Tabla2[[#This Row],[Nivel 5]]&Tabla2[[#This Row],[Nivel 6]]&Tabla2[[#This Row],[Nivel 7]]","v":"3.301.01.01.03.02."}]
[null,"3.","301.","01.","02.",null,null,null,"Administración de Siniestros",{"$f":"+EsNegrita(I15)","v":"NO"},null,{"$f":"+Tabla2[[#This Row],[Nivel 1]]&Tabla2[[#This Row],[Nivel 2]]&Tabla2[[#This Row],[Nivel 3]]&Tabla2[[#This Row],[Nivel 4]]&Tabla2[[#This Row],[Nivel 5]]&Tabla2[[#This Row],[Nivel 6]]&Tabla2[[#This Row],[Nivel 7]]","v":"3.301.01.02."}]
[null,"3.","301.","01.","02.","01.",null,null,"Empresas de Seguros",{"$f":"+EsNegrita(I16)","v":"SI"},null,{"$f":"+Tabla2[[#This Row],[Nivel 1]]&Tabla2[[#This Row],[Nivel 2]]&Tabla2[[#This Row],[Nivel 3]]&Tabla2[[#This Row],[Nivel 4]]&Tabla2[[#This Row],[Nivel 5]]&Tabla2[[#This Row],[Nivel 6]]&Tabla2[[#This Row],[Nivel 7]]","v":"3.301.01.02.01."}]
[null,"3.","301.","01.","02.","02.",null,null,"Empresas de Medicina Prepagada",{"$f":"+EsNegrita(I17)","v":"SI"},null,{"$f":"+Tabla2[[#This Row],[Nivel 1]]&Tabla2[[#This Row],[Nivel 2]]&Tabla2[[#This Row],[Nivel 3]]&Tabla2[[#This Row],[Nivel 4]]&Tabla2[[#This Row],[Nivel 5]]&Tabla2[[#This Row],[Nivel 6]]&Tabla2[[#This Row],[Nivel 7]]","v":"3.301.01.02.02."}]
[null,"3.","301.","01.","02.","03.",null,null,"Otros Contratantes",{"$f":"+EsNegrita(I18)","v":"NO"},null,{"$f":"+Tabla2[[#This Row],[Nivel 1]]&Tabla2[[#This Row],[Nivel 2]]&Tabla2[[#This Row],[Nivel 3]]&Tabla2[[#This Row],[Nivel 4]]&Tabla2[[#This Row],[Nivel 5]]&Tabla2[[#This Row],[Nivel 6]]&Tabla2[[#This Row],[Nivel 7]]","v":"3.301.01.02.03."}]
[null,"3.","301.","01.","02.","03.","01.",null,"Organismos y Entes de la Administración Pública",{"$f":"+EsNegrita(I19)","v":"SI"},null,{"$f":"+Tabla2[[#This Row],[Nivel 1]]&Tabla2[[#This Row],[Nivel 2]]&Tabla2[[#This Row],[Nivel 3]]&Tabla2[[#This Row],[Nivel 4]]&Tabla2[[#This Row],[Nivel 5]]&Tabla2[[#This Row],[Nivel 6]]&Tabla2[[#This Row],[Nivel 7]]","v":"3.301.01.02.03.01."}]
[null,"3.","301.","01.","02.","03.","02.",null,"Contratantes del sector Privado",{"$f":"+EsNegrita(I20)","v":"SI"},null,{"$f":"+Tabla2[[#This Row],[Nivel 1]]&Tabla2[[#This Row],[Nivel 2]]&Tabla2[[#This Row],[Nivel 3]]&Tabla2[[#This Row],[Nivel 4]]&Tabla2[[#This Row],[Nivel 5]]&Tabla2[[#This Row],[Nivel 6]]&Tabla2[[#This Row],[Nivel 7]]","v":"3.301.01.02.03.02."}]
[null,"3.","301.","02.",null,null,null,null,"A Corto Plazo",{"$f":"+EsNegrita(I21)","v":"NO"},"A6",{"$f":"+Tabla2[[#This Row],[Nivel 1]]&Tabla2[[#This Row],[Nivel 2]]&Tabla2[[#This Row],[Nivel 3]]&Tabla2[[#This Row],[Nivel 4]]&Tabla2[[#This Row],[Nivel 5]]&Tabla2[[#This Row],[Nivel 6]]&Tabla2[[#This Row],[Nivel 7]]","v":"3.301.02."}]
[null,"3.","301.","02.","01.",null,null,null,"Préstamos Bancarios",{"$f":"+EsNegrita(I22)","v":"SI"},"A6",{"$f":"+Tabla2[[#This Row],[Nivel 1]]&Tabla2[[#This Row],[Nivel 2]]&Tabla2[[#This Row],[Nivel 3]]&Tabla2[[#This Row],[Nivel 4]]&Tabla2[[#This Row],[Nivel 5]]&Tabla2[[#This Row],[Nivel 6]]&Tabla2[[#This Row],[Nivel 7]]","v":"3.301.02.01."}]
[null,"3.","301.","02.","02.",null,null,null,"Sobregiros",{"$f":"+EsNegrita(I23)","v":"SI"},"A6",{"$f":"+Tabla2[[#This Row],[Nivel 1]]&Tabla2[[#This Row],[Nivel 2]]&Tabla2[[#This Row],[Nivel 3]]&Tabla2[[#This Row],[Nivel 4]]&Tabla2[[#This Row],[Nivel 5]]&Tabla2[[#This Row],[Nivel 6]]&Tabla2[[#This Row],[Nivel 7]]","v":"3.301.02.02."}]
[null,"3.","301.","02.","03.",null,null,null,"Pagarés",{"$f":"+EsNegrita(I24)","v":"SI"},"A6",{"$f":"+Tabla2[[#This Row],[Nivel 1]]&Tabla2[[#This Row],[Nivel 2]]&Tabla2[[#This Row],[Nivel 3]]&Tabla2[[#This Row],[Nivel 4]]&Tabla2[[#This Row],[Nivel 5]]&Tabla2[[#This Row],[Nivel 6]]&Tabla2[[#This Row],[Nivel 7]]","v":"3.301.02.03."}]
[null,"3.","301.","02.","04.",null,null,null,"Línea de Crédito",{"$f":"+EsNegrita(I25)","v":"SI"},"A6",{"$f":"+Tabla2[[#This Row],[Nivel 1]]&Tabla2[[#This Row],[Nivel 2]]&Tabla2[[#This Row],[Nivel 3]]&Tabla2[[#This Row],[Nivel 4]]&Tabla2[[#This Row],[Nivel 5]]&Tabla2[[#This Row],[Nivel 6]]&Tabla2[[#This Row],[Nivel 7]]","v":"3.301.02.04."}]
[null,"3.","301.","02.","05.",null,null,null,"Cartas de Crédito",{"$f":"+EsNegrita(I26)","v":"SI"},"A6",{"$f":"+Tabla2[[#This Row],[Nivel 1]]&Tabla2[[#This Row],[Nivel 2]]&Tabla2[[#This Row],[Nivel 3]]&Tabla2[[#This Row],[Nivel 4]]&Tabla2[[#This Row],[Nivel 5]]&Tabla2[[#This Row],[Nivel 6]]&Tabla2[[#This Row],[Nivel 7]]","v":"3.301.02.05."}]
[null,"3.","301.","02.","06.",null,null,null,"Otras Obligaciones a Corto Plazo",{"$f":"+EsNegrita(I27)","v":"SI"},"A6",{"$f":"+Tabla2[[#This Row],[Nivel 1]]&Tabla2[[#This Row],[Nivel 2]]&Tabla2[[#This Row],[Nivel 3]]&Tabla2[[#This Row],[Nivel 4]]&Tabla2[[#This Row],[Nivel 5]]&Tabla2[[#This Row],[Nivel 6]]&Tabla2[[#This Row],[Nivel 7]]","v":"3.301.02.06."}]
[null,"3.","301.","03.",null,null,null,null,"A Largo Plazo",{"$f":"+EsNegrita(I28)","v":"NO"},"A7",{"$f":"+Tabla2[[#This Row],[Nivel 1]]&Tabla2[[#This Row],[Nivel 2]]&Tabla2[[#This Row],[Nivel 3]]&Tabla2[[#This Row],[Nivel 4]]&Tabla2[[#This Row],[Nivel 5]]&Tabla2[[#This Row],[Nivel 6]]&Tabla2[[#This Row],[Nivel 7]]","v":"3.301.03."}]
[null,"3.","301.","03.","01.",null,null,null,"Hipotecas",{"$f":"+EsNegrita(I29)","v":"SI"},"A7",{"$f":"+Tabla2[[#This Row],[Nivel 1]]&Tabla2[[#This Row],[Nivel 2]]&Tabla2[[#This Row],[Nivel 3]]&Tabla2[[#This Row],[Nivel 4]]&Tabla2[[#This Row],[Nivel 5]]&Tabla2[[#This Row],[Nivel 6]]&Tabla2[[#This Row],[Nivel 7]]","v":"3.301.03.01."}]
[null,"3.","301.","03.","02.",null,null,null,"Bonos y Obligaciones",{"$f":"+EsNegrita(I30)","v":"SI"},"A7",{"$f":"+Tabla2[[#This Row],[Nivel 1]]&Tabla2[[#This Row],[Nivel 2]]&Tabla2[[#This Row],[Nivel 3]]&Tabla2[[#This Row],[Nivel 4]]&Tabla2[[#This Row],[Nivel 5]]&Tabla2[[#This Row],[Nivel 6]]&Tabla2[[#This Row],[Nivel 7]]","v":"3.301.03.02."}]
[null,"3.","301.","03.","03.",null,null,null,"Otras Obligaciones a Largo Plazo ",{"$f":"+EsNegrita(I31)","v":"SI"},"A7",{"$f":"+Tabla2[[#This Row],[Nivel 1]]&Tabla2[[#This Row],[Nivel 2]]&Tabla2[[#This Row],[Nivel 3]]&Tabla2[[#This Row],[Nivel 4]]&Tabla2[[#This Row],[Nivel 5]]&Tabla2[[#This Row],[Nivel 6]]&Tabla2[[#This Row],[Nivel 7]]","v":"3.301.03.03."}]
[null,"3.","301.","04.",null,null,null,null,"Participación Estatutaria",{"$f":"+EsNegrita(I32)","v":"NO"},null,{"$f":"+Tabla2[[#This Row],[Nivel 1]]&Tabla2[[#This Row],[Nivel 2]]&Tabla2[[#This Row],[Nivel 3]]&Tabla2[[#This Row],[Nivel 4]]&Tabla2[[#This Row],[Nivel 5]]&Tabla2[[#This Row],[Nivel 6]]&Tabla2[[#This Row],[Nivel 7]]","v":"3.301.04."}]
[null,"3.","301.","04.","01.",null,null,null,"Junta Directiva",{"$f":"+EsNegrita(I33)","v":"SI"},null,{"$f":"+Tabla2[[#This Row],[Nivel 1]]&Tabla2[[#This Row],[Nivel 2]]&Tabla2[[#This Row],[Nivel 3]]&Tabla2[[#This Row],[Nivel 4]]&Tabla2[[#This Row],[Nivel 5]]&Tabla2[[#This Row],[Nivel 6]]&Tabla2[[#This Row],[Nivel 7]]","v":"3.301.04.01."}]
[null,"3.","301.","04.","02.",null,null,null,"Ejecutivos",{"$f":"+EsNegrita(I34)","v":"SI"},null,{"$f":"+Tabla2[[#This Row],[Nivel 1]]&Tabla2[[#This Row],[Nivel 2]]&Tabla2[[#This Row],[Nivel 3]]&Tabla2[[#This Row],[Nivel 4]]&Tabla2[[#This Row],[Nivel 5]]&Tabla2[[#This Row],[Nivel 6]]&Tabla2[[#This Row],[Nivel 7]]","v":"3.301.04.02."}]
[null,"3.","301.","05.",null,null,null,null,"Cuentas por Pagar Accionistas",{"$f":"+EsNegrita(I35)","v":"NO"},null,{"$f":"+Tabla2[[#This Row],[Nivel 1]]&Tabla2[[#This Row],[Nivel 2]]&Tabla2[[#This Row],[Nivel 3]]&Tabla2[[#This Row],[Nivel 4]]&Tabla2[[#This Row],[Nivel 5]]&Tabla2[[#This Row],[Nivel 6]]&Tabla2[[#This Row],[Nivel 7]]","v":"3.301.05."}]
[null,"3.","301.","05.","01.",null,null,null,"Dividendos Decretados",{"$f":"+EsNegrita(I36)","v":"SI"},null,{"$f":"+Tabla2[[#This Row],[Nivel 1]]&Tabla2[[#This Row],[Nivel 2]]&Tabla2[[#This Row],[Nivel 3]]&Tabla2[[#This Row],[Nivel 4]]&Tabla2[[#This Row],[Nivel 5]]&Tabla2[[#This Row],[Nivel 6]]&Tabla2[[#This Row],[Nivel 7]]","v":"3.301.05.01."}]
[null,"3.","301.","05.","02.",null,null,null,"Otras cuentas por Pagar",{"$f":"+EsNegrita(I37)","v":"SI"},"A8",{"$f":"+Tabla2[[#This Row],[Nivel 1]]&Tabla2[[#This Row],[Nivel 2]]&Tabla2[[#This Row],[Nivel 3]]&Tabla2[[#This Row],[Nivel 4]]&Tabla2[[#This Row],[Nivel 5]]&Tabla2[[#This Row],[Nivel 6]]&Tabla2[[#This Row],[Nivel 7]]","v":"3.301.05.02."}]
[null,"3.","301.","06.",null,null,null,null,"Gastos Acumulados por Pagar",{"$f":"+EsNegrita(I38)","v":"NO"},null,{"$f":"+Tabla2[[#This Row],[Nivel 1]]&Tabla2[[#This Row],[Nivel 2]]&Tabla2[[#This Row],[Nivel 3]]&Tabla2[[#This Row],[Nivel 4]]&Tabla2[[#This Row],[Nivel 5]]&Tabla2[[#This Row],[Nivel 6]]&Tabla2[[#This Row],[Nivel 7]]","v":"3.301.06."}]
[null,"3.","301.","06.","01.",null,null,null,"Proveedores de Bienes  y Servicios ",{"$f":"+EsNegrita(I39)","v":"SI"},null,{"$f":"+Tabla2[[#This Row],[Nivel 1]]&Tabla2[[#This Row],[Nivel 2]]&Tabla2[[#This Row],[Nivel 3]]&Tabla2[[#This Row],[Nivel 4]]&Tabla2[[#This Row],[Nivel 5]]&Tabla2[[#This Row],[Nivel 6]]&Tabla2[[#This Row],[Nivel 7]]","v":"3.301.06.01."}]
[null,"3.","301.","06.","02.",null,null,null,"Otros Gastos Acumulados",{"$f":"+EsNegrita(I40)","v":"SI"},null,{"$f":"+Tabla2[[#This Row],[Nivel 1]]&Tabla2[[#This Row],[Nivel 2]]&Tabla2[[#This Row],[Nivel 3]]&Tabla2[[#This Row],[Nivel 4]]&Tabla2[[#This Row],[Nivel 5]]&Tabla2[[#This Row],[Nivel 6]]&Tabla2[[#This Row],[Nivel 7]]","v":"3.301.06.02."}]
[null,"3.","301.","07.",null,null,null,null,"Gravámenes y Contribuciones por Pagar",{"$f":"+EsNegrita(I41)","v":"NO"},null,{"$f":"+Tabla2[[#This Row],[Nivel 1]]&Tabla2[[#This Row],[Nivel 2]]&Tabla2[[#This Row],[Nivel 3]]&Tabla2[[#This Row],[Nivel 4]]&Tabla2[[#This Row],[Nivel 5]]&Tabla2[[#This Row],[Nivel 6]]&Tabla2[[#This Row],[Nivel 7]]","v":"3.301.07."}]
[null,"3.","301.","07.","01.",null,null,null,"Gravámenes  por Pagar",{"$f":"+EsNegrita(I42)","v":"NO"},null,{"$f":"+Tabla2[[#This Row],[Nivel 1]]&Tabla2[[#This Row],[Nivel 2]]&Tabla2[[#This Row],[Nivel 3]]&Tabla2[[#This Row],[Nivel 4]]&Tabla2[[#This Row],[Nivel 5]]&Tabla2[[#This Row],[Nivel 6]]&Tabla2[[#This Row],[Nivel 7]]","v":"3.301.07.01."}]
[null,"3.","301.","07.","01.","01.",null,null,"Impuesto sobre la Renta",{"$f":"+EsNegrita(I43)","v":"NO"},null,{"$f":"+Tabla2[[#This Row],[Nivel 1]]&Tabla2[[#This Row],[Nivel 2]]&Tabla2[[#This Row],[Nivel 3]]&Tabla2[[#This Row],[Nivel 4]]&Tabla2[[#This Row],[Nivel 5]]&Tabla2[[#This Row],[Nivel 6]]&Tabla2[[#This Row],[Nivel 7]]","v":"3.301.07.01.01."}]
[null,"3.","301.","07.","01.","01.","01.",null,"Utilidad del Ejercicio",{"$f":"+EsNegrita(I44)","v":"SI"},null,{"$f":"+Tabla2[[#This Row],[Nivel 1]]&Tabla2[[#This Row],[Nivel 2]]&Tabla2[[#This Row],[Nivel 3]]&Tabla2[[#This Row],[Nivel 4]]&Tabla2[[#This Row],[Nivel 5]]&Tabla2[[#This Row],[Nivel 6]]&Tabla2[[#This Row],[Nivel 7]]","v":"3.301.07.01.01.01."}]
[null,"3.","301.","07.","01.","01.","02.",null,"Retenciones Junta Directiva",{"$f":"+EsNegrita(I45)","v":"SI"},null,{"$f":"+Tabla2[[#This Row],[Nivel 1]]&Tabla2[[#This Row],[Nivel 2]]&Tabla2[[#This Row],[Nivel 3]]&Tabla2[[#This Row],[Nivel 4]]&Tabla2[[#This Row],[Nivel 5]]&Tabla2[[#This Row],[Nivel 6]]&Tabla2[[#This Row],[Nivel 7]]","v":"3.301.07.01.01.02."}]
[null,"3.","301.","07.","01.","01.","03.",null,"Retenciones al Personal - Ejecutivos",{"$f":"+EsNegrita(I46)","v":"SI"},null,{"$f":"+Tabla2[[#This Row],[Nivel 1]]&Tabla2[[#This Row],[Nivel 2]]&Tabla2[[#This Row],[Nivel 3]]&Tabla2[[#This Row],[Nivel 4]]&Tabla2[[#This Row],[Nivel 5]]&Tabla2[[#This Row],[Nivel 6]]&Tabla2[[#This Row],[Nivel 7]]","v":"3.301.07.01.01.03."}]
[null,"3.","301.","07.","01.","01.","04.",null,"Retenciones al Personal - Empleados ",{"$f":"+EsNegrita(I47)","v":"SI"},null,{"$f":"+Tabla2[[#This Row],[Nivel 1]]&Tabla2[[#This Row],[Nivel 2]]&Tabla2[[#This Row],[Nivel 3]]&Tabla2[[#This Row],[Nivel 4]]&Tabla2[[#This Row],[Nivel 5]]&Tabla2[[#This Row],[Nivel 6]]&Tabla2[[#This Row],[Nivel 7]]","v":"3.301.07.01.01.04."}]
[null,"3.","301.","07.","01.","01.","05.",null,"Retenciones Varias del ISLR - Personas Naturales",{"$f":"+EsNegrita(I48)","v":"SI"},null,{"$f":"+Tabla2[[#This Row],[Nivel 1]]&Tabla2[[#This Row],[Nivel 2]]&Tabla2[[#This Row],[Nivel 3]]&Tabla2[[#This Row],[Nivel 4]]&Tabla2[[#This Row],[Nivel 5]]&Tabla2[[#This Row],[Nivel 6]]&Tabla2[[#This Row],[Nivel 7]]","v":"3.301.07.01.01.05."}]
[null,"3.","301.","07.","01.","01.","06.",null,"Retenciones Varias del ISLR - Personas Jurídicas",{"$f":"+EsNegrita(I49)","v":"SI"},null,{"$f":"+Tabla2[[#This Row],[Nivel 1]]&Tabla2[[#This Row],[Nivel 2]]&Tabla2[[#This Row],[Nivel 3]]&Tabla2[[#This Row],[Nivel 4]]&Tabla2[[#This Row],[Nivel 5]]&Tabla2[[#This Row],[Nivel 6]]&Tabla2[[#This Row],[Nivel 7]]","v":"3.301.07.01.01.06."}]
[null,"3.","301.","07.","01.","01.","07.",null,"Retenciones por Pagos al Exterior",{"$f":"+EsNegrita(I50)","v":"SI"},null,{"$f":"+Tabla2[[#This Row],[Nivel 1]]&Tabla2[[#This Row],[Nivel 2]]&Tabla2[[#This Row],[Nivel 3]]&Tabla2[[#This Row],[Nivel 4]]&Tabla2[[#This Row],[Nivel 5]]&Tabla2[[#This Row],[Nivel 6]]&Tabla2[[#This Row],[Nivel 7]]","v":"3.301.07.01.01.07."}]
[null,"3.","301.","07.","01.","01.","08.",null,"ISLR sobre Dividendos Decretados",{"$f":"+EsNegrita(I51)","v":"SI"},null,{"$f":"+Tabla2[[#This Row],[Nivel 1]]&Tabla2[[#This Row],[Nivel 2]]&Tabla2[[#This Row],[Nivel 3]]&Tabla2[[#This Row],[Nivel 4]]&Tabla2[[#This Row],[Nivel 5]]&Tabla2[[#This Row],[Nivel 6]]&Tabla2[[#This Row],[Nivel 7]]","v":"3.301.07.01.01.08."}]
[null,"3.","301.","07.","01.","01.","09.",null,"ISLR Diferido",{"$f":"+EsNegrita(I52)","v":"SI"},null,{"$f":"+Tabla2[[#This Row],[Nivel 1]]&Tabla2[[#This Row],[Nivel 2]]&Tabla2[[#This Row],[Nivel 3]]&Tabla2[[#This Row],[Nivel 4]]&Tabla2[[#This Row],[Nivel 5]]&Tabla2[[#This Row],[Nivel 6]]&Tabla2[[#This Row],[Nivel 7]]","v":"3.301.07.01.01.09."}]
[null,"3.","301.","07.","01.","02.",null,null,"Impuesto al Valor Agregado",{"$f":"+EsNegrita(I53)","v":"NO"},null,{"$f":"+Tabla2[[#This Row],[Nivel 1]]&Tabla2[[#This Row],[Nivel 2]]&Tabla2[[#This Row],[Nivel 3]]&Tabla2[[#This Row],[Nivel 4]]&Tabla2[[#This Row],[Nivel 5]]&Tabla2[[#This Row],[Nivel 6]]&Tabla2[[#This Row],[Nivel 7]]","v":"3.301.07.01.02."}]
[null,"3.","301.","07.","01.","02.","01.",null,"IVA - Retenido a Terceros sobre Ventas o Servicios Prestados (Débito Fiscal) ",{"$f":"+EsNegrita(I54)","v":"SI"},null,{"$f":"+Tabla2[[#This Row],[Nivel 1]]&Tabla2[[#This Row],[Nivel 2]]&Tabla2[[#This Row],[Nivel 3]]&Tabla2[[#This Row],[Nivel 4]]&Tabla2[[#This Row],[Nivel 5]]&Tabla2[[#This Row],[Nivel 6]]&Tabla2[[#This Row],[Nivel 7]]","v":"3.301.07.01.02.01."}]
[null,"3.","301.","07.","01.","03.",null,null,"Impuesto a las Grandes Transacciones Financieras",{"$f":"+EsNegrita(I55)","v":"SI"},null,{"$f":"+Tabla2[[#This Row],[Nivel 1]]&Tabla2[[#This Row],[Nivel 2]]&Tabla2[[#This Row],[Nivel 3]]&Tabla2[[#This Row],[Nivel 4]]&Tabla2[[#This Row],[Nivel 5]]&Tabla2[[#This Row],[Nivel 6]]&Tabla2[[#This Row],[Nivel 7]]","v":"3.301.07.01.03."}]
[null,"3.","301.","07.","01.","04.",null,null,"Impuesto a los Grandes Patrimonios",{"$f":"+EsNegrita(I56)","v":"SI"},null,{"$f":"+Tabla2[[#This Row],[Nivel 1]]&Tabla2[[#This Row],[Nivel 2]]&Tabla2[[#This Row],[Nivel 3]]&Tabla2[[#This Row],[Nivel 4]]&Tabla2[[#This Row],[Nivel 5]]&Tabla2[[#This Row],[Nivel 6]]&Tabla2[[#This Row],[Nivel 7]]","v":"3.301.07.01.04."}]
[null,"3.","301.","07.","01.","05.",null,null,"Otros Impuestos Nacionales",{"$f":"+EsNegrita(I57)","v":"NO"},null,{"$f":"+Tabla2[[#This Row],[Nivel 1]]&Tabla2[[#This Row],[Nivel 2]]&Tabla2[[#This Row],[Nivel 3]]&Tabla2[[#This Row],[Nivel 4]]&Tabla2[[#This Row],[Nivel 5]]&Tabla2[[#This Row],[Nivel 6]]&Tabla2[[#This Row],[Nivel 7]]","v":"3.301.07.01.05."}]
[null,"3.","301.","07.","01.","05.","01.",null,"Impuestos Municipales",{"$f":"+EsNegrita(I58)","v":"NO"},null,{"$f":"+Tabla2[[#This Row],[Nivel 1]]&Tabla2[[#This Row],[Nivel 2]]&Tabla2[[#This Row],[Nivel 3]]&Tabla2[[#This Row],[Nivel 4]]&Tabla2[[#This Row],[Nivel 5]]&Tabla2[[#This Row],[Nivel 6]]&Tabla2[[#This Row],[Nivel 7]]","v":"3.301.07.01.05.01."}]
[null,"3.","301.","07.","01.","05.","01.","01.","Patente de Industria y Comercio",{"$f":"+EsNegrita(I59)","v":"SI"},null,{"$f":"+Tabla2[[#This Row],[Nivel 1]]&Tabla2[[#This Row],[Nivel 2]]&Tabla2[[#This Row],[Nivel 3]]&Tabla2[[#This Row],[Nivel 4]]&Tabla2[[#This Row],[Nivel 5]]&Tabla2[[#This Row],[Nivel 6]]&Tabla2[[#This Row],[Nivel 7]]","v":"3.301.07.01.05.01.01."}]
[null,"3.","301.","07.","01.","05.","01.","02.","Impuesto Inmobiliario Urbano",{"$f":"+EsNegrita(I60)","v":"SI"},null,{"$f":"+Tabla2[[#This Row],[Nivel 1]]&Tabla2[[#This Row],[Nivel 2]]&Tabla2[[#This Row],[Nivel 3]]&Tabla2[[#This Row],[Nivel 4]]&Tabla2[[#This Row],[Nivel 5]]&Tabla2[[#This Row],[Nivel 6]]&Tabla2[[#This Row],[Nivel 7]]","v":"3.301.07.01.05.01.02."}]
[null,"3.","301.","07.","01.","05.","01.","03.","Impuesto sobre Publicidad y Propaganda",{"$f":"+EsNegrita(I61)","v":"SI"},null,{"$f":"+Tabla2[[#This Row],[Nivel 1]]&Tabla2[[#This Row],[Nivel 2]]&Tabla2[[#This Row],[Nivel 3]]&Tabla2[[#This Row],[Nivel 4]]&Tabla2[[#This Row],[Nivel 5]]&Tabla2[[#This Row],[Nivel 6]]&Tabla2[[#This Row],[Nivel 7]]","v":"3.301.07.01.05.01.03."}]
[null,"3.","301.","07.","01.","05.","01.","04.","Impuesto sobre Circulación de Vehículos",{"$f":"+EsNegrita(I62)","v":"SI"},null,{"$f":"+Tabla2[[#This Row],[Nivel 1]]&Tabla2[[#This Row],[Nivel 2]]&Tabla2[[#This Row],[Nivel 3]]&Tabla2[[#This Row],[Nivel 4]]&Tabla2[[#This Row],[Nivel 5]]&Tabla2[[#This Row],[Nivel 6]]&Tabla2[[#This Row],[Nivel 7]]","v":"3.301.07.01.05.01.04."}]
[null,"3.","301.","07.","01.","05.","01.","05.","Otros Impuestos",{"$f":"+EsNegrita(I63)","v":"SI"},null,{"$f":"+Tabla2[[#This Row],[Nivel 1]]&Tabla2[[#This Row],[Nivel 2]]&Tabla2[[#This Row],[Nivel 3]]&Tabla2[[#This Row],[Nivel 4]]&Tabla2[[#This Row],[Nivel 5]]&Tabla2[[#This Row],[Nivel 6]]&Tabla2[[#This Row],[Nivel 7]]","v":"3.301.07.01.05.01.05."}]
[null,"3.","301.","07.","02.",null,null,null,"Contribuciones por Pagar",{"$f":"+EsNegrita(I64)","v":"NO"},null,{"$f":"+Tabla2[[#This Row],[Nivel 1]]&Tabla2[[#This Row],[Nivel 2]]&Tabla2[[#This Row],[Nivel 3]]&Tabla2[[#This Row],[Nivel 4]]&Tabla2[[#This Row],[Nivel 5]]&Tabla2[[#This Row],[Nivel 6]]&Tabla2[[#This Row],[Nivel 7]]","v":"3.301.07.02."}]
[null,"3.","301.","07.","02.","01.",null,null,"Instituto Nacional de Capacitación y Educación Socialista (INCES) ",{"$f":"+EsNegrita(I65)","v":"NO"},null,{"$f":"+Tabla2[[#This Row],[Nivel 1]]&Tabla2[[#This Row],[Nivel 2]]&Tabla2[[#This Row],[Nivel 3]]&Tabla2[[#This Row],[Nivel 4]]&Tabla2[[#This Row],[Nivel 5]]&Tabla2[[#This Row],[Nivel 6]]&Tabla2[[#This Row],[Nivel 7]]","v":"3.301.07.02.01."}]
[null,"3.","301.","07.","02.","01.","01.",null,"Aporte - Patronal",{"$f":"+EsNegrita(I66)","v":"SI"},null,{"$f":"+Tabla2[[#This Row],[Nivel 1]]&Tabla2[[#This Row],[Nivel 2]]&Tabla2[[#This Row],[Nivel 3]]&Tabla2[[#This Row],[Nivel 4]]&Tabla2[[#This Row],[Nivel 5]]&Tabla2[[#This Row],[Nivel 6]]&Tabla2[[#This Row],[Nivel 7]]","v":"3.301.07.02.01.01."}]
[null,"3.","301.","07.","02.","01.","02.",null,"Aporte - Empleado ",{"$f":"+EsNegrita(I67)","v":"SI"},null,{"$f":"+Tabla2[[#This Row],[Nivel 1]]&Tabla2[[#This Row],[Nivel 2]]&Tabla2[[#This Row],[Nivel 3]]&Tabla2[[#This Row],[Nivel 4]]&Tabla2[[#This Row],[Nivel 5]]&Tabla2[[#This Row],[Nivel 6]]&Tabla2[[#This Row],[Nivel 7]]","v":"3.301.07.02.01.02."}]
[null,"3.","301.","07.","02.","02.",null,null,"Instituto Venezolano de los Seguros Sociales (IVSS) ",{"$f":"+EsNegrita(I68)","v":"NO"},null,{"$f":"+Tabla2[[#This Row],[Nivel 1]]&Tabla2[[#This Row],[Nivel 2]]&Tabla2[[#This Row],[Nivel 3]]&Tabla2[[#This Row],[Nivel 4]]&Tabla2[[#This Row],[Nivel 5]]&Tabla2[[#This Row],[Nivel 6]]&Tabla2[[#This Row],[Nivel 7]]","v":"3.301.07.02.02."}]
[null,"3.","301.","07.","02.","02.","01.",null,"Aporte - Patronal",{"$f":"+EsNegrita(I69)","v":"SI"},null,{"$f":"+Tabla2[[#This Row],[Nivel 1]]&Tabla2[[#This Row],[Nivel 2]]&Tabla2[[#This Row],[Nivel 3]]&Tabla2[[#This Row],[Nivel 4]]&Tabla2[[#This Row],[Nivel 5]]&Tabla2[[#This Row],[Nivel 6]]&Tabla2[[#This Row],[Nivel 7]]","v":"3.301.07.02.02.01."}]
[null,"3.","301.","07.","02.","02.","02.",null,"Aporte - Empleado ",{"$f":"+EsNegrita(I70)","v":"SI"},null,{"$f":"+Tabla2[[#This Row],[Nivel 1]]&Tabla2[[#This Row],[Nivel 2]]&Tabla2[[#This Row],[Nivel 3]]&Tabla2[[#This Row],[Nivel 4]]&Tabla2[[#This Row],[Nivel 5]]&Tabla2[[#This Row],[Nivel 6]]&Tabla2[[#This Row],[Nivel 7]]","v":"3.301.07.02.02.02."}]
[null,"3.","301.","07.","02.","03.",null,null,"Instituto Venezolano de los Seguros Sociales (IVSS) - Paro Forzoso ",{"$f":"+EsNegrita(I71)","v":"NO"},null,{"$f":"+Tabla2[[#This Row],[Nivel 1]]&Tabla2[[#This Row],[Nivel 2]]&Tabla2[[#This Row],[Nivel 3]]&Tabla2[[#This Row],[Nivel 4]]&Tabla2[[#This Row],[Nivel 5]]&Tabla2[[#This Row],[Nivel 6]]&Tabla2[[#This Row],[Nivel 7]]","v":"3.301.07.02.03."}]
[null,"3.","301.","07.","02.","03.","01.",null,"Aporte - Patronal",{"$f":"+EsNegrita(I72)","v":"SI"},null,{"$f":"+Tabla2[[#This Row],[Nivel 1]]&Tabla2[[#This Row],[Nivel 2]]&Tabla2[[#This Row],[Nivel 3]]&Tabla2[[#This Row],[Nivel 4]]&Tabla2[[#This Row],[Nivel 5]]&Tabla2[[#This Row],[Nivel 6]]&Tabla2[[#This Row],[Nivel 7]]","v":"3.301.07.02.03.01."}]
[null,"3.","301.","07.","02.","03.","02.",null,"Aporte - Empleado ",{"$f":"+EsNegrita(I73)","v":"SI"},null,{"$f":"+Tabla2[[#This Row],[Nivel 1]]&Tabla2[[#This Row],[Nivel 2]]&Tabla2[[#This Row],[Nivel 3]]&Tabla2[[#This Row],[Nivel 4]]&Tabla2[[#This Row],[Nivel 5]]&Tabla2[[#This Row],[Nivel 6]]&Tabla2[[#This Row],[Nivel 7]]","v":"3.301.07.02.03.02."}]
[null,"3.","301.","07.","02.","04.",null,null,"Fondo de Ahorro Obligatorio para la Vivienda (FAOV)",{"$f":"+EsNegrita(I74)","v":"NO"},null,{"$f":"+Tabla2[[#This Row],[Nivel 1]]&Tabla2[[#This Row],[Nivel 2]]&Tabla2[[#This Row],[Nivel 3]]&Tabla2[[#This Row],[Nivel 4]]&Tabla2[[#This Row],[Nivel 5]]&Tabla2[[#This Row],[Nivel 6]]&Tabla2[[#This Row],[Nivel 7]]","v":"3.301.07.02.04."}]
[null,"3.","301.","07.","02.","04.","01.",null,"Aporte - Patronal",{"$f":"+EsNegrita(I75)","v":"SI"},null,{"$f":"+Tabla2[[#This Row],[Nivel 1]]&Tabla2[[#This Row],[Nivel 2]]&Tabla2[[#This Row],[Nivel 3]]&Tabla2[[#This Row],[Nivel 4]]&Tabla2[[#This Row],[Nivel 5]]&Tabla2[[#This Row],[Nivel 6]]&Tabla2[[#This Row],[Nivel 7]]","v":"3.301.07.02.04.01."}]
[null,"3.","301.","07.","02.","04.","02.",null,"Aporte - Empleado ",{"$f":"+EsNegrita(I76)","v":"SI"},null,{"$f":"+Tabla2[[#This Row],[Nivel 1]]&Tabla2[[#This Row],[Nivel 2]]&Tabla2[[#This Row],[Nivel 3]]&Tabla2[[#This Row],[Nivel 4]]&Tabla2[[#This Row],[Nivel 5]]&Tabla2[[#This Row],[Nivel 6]]&Tabla2[[#This Row],[Nivel 7]]","v":"3.301.07.02.04.02."}]
[null,"3.","301.","07.","02.","05.",null,null,"Aporte Especial a la Superintendencia de la Actividad Aseguradora",{"$f":"+EsNegrita(I77)","v":"SI"},null,{"$f":"+Tabla2[[#This Row],[Nivel 1]]&Tabla2[[#This Row],[Nivel 2]]&Tabla2[[#This Row],[Nivel 3]]&Tabla2[[#This Row],[Nivel 4]]&Tabla2[[#This Row],[Nivel 5]]&Tabla2[[#This Row],[Nivel 6]]&Tabla2[[#This Row],[Nivel 7]]","v":"3.301.07.02.05."}]
[null,"3.","301.","07.","02.","06.",null,null,"Aporte para el Desarrollo Social ",{"$f":"+EsNegrita(I78)","v":"SI"},null,{"$f":"+Tabla2[[#This Row],[Nivel 1]]&Tabla2[[#This Row],[Nivel 2]]&Tabla2[[#This Row],[Nivel 3]]&Tabla2[[#This Row],[Nivel 4]]&Tabla2[[#This Row],[Nivel 5]]&Tabla2[[#This Row],[Nivel 6]]&Tabla2[[#This Row],[Nivel 7]]","v":"3.301.07.02.06."}]
[null,"3.","301.","07.","02.","07.",null,null,"Ley Orgánica de Ciencia, Tecnología e Innovación (LOCTI)",{"$f":"+EsNegrita(I79)","v":"SI"},null,{"$f":"+Tabla2[[#This Row],[Nivel 1]]&Tabla2[[#This Row],[Nivel 2]]&Tabla2[[#This Row],[Nivel 3]]&Tabla2[[#This Row],[Nivel 4]]&Tabla2[[#This Row],[Nivel 5]]&Tabla2[[#This Row],[Nivel 6]]&Tabla2[[#This Row],[Nivel 7]]","v":"3.301.07.02.07."}]
[null,"3.","301.","07.","02.","08.",null,null,"Decreto con Fuerza de Ley de los Cuerpos de Bomberos y Bomberas y Administración de Emergencias de Carácter Civil",{"$f":"+EsNegrita(I80)","v":"SI"},null,{"$f":"+Tabla2[[#This Row],[Nivel 1]]&Tabla2[[#This Row],[Nivel 2]]&Tabla2[[#This Row],[Nivel 3]]&Tabla2[[#This Row],[Nivel 4]]&Tabla2[[#This Row],[Nivel 5]]&Tabla2[[#This Row],[Nivel 6]]&Tabla2[[#This Row],[Nivel 7]]","v":"3.301.07.02.08."}]
[null,"3.","301.","07.","02.","09.",null,null,"Ley Orgánica Contra el Tráfico Ilícito y el Consumo de Sustancias Estupefacientes y Psicotrópicas (LOCTICSEP) ",{"$f":"+EsNegrita(I81)","v":"SI"},null,{"$f":"+Tabla2[[#This Row],[Nivel 1]]&Tabla2[[#This Row],[Nivel 2]]&Tabla2[[#This Row],[Nivel 3]]&Tabla2[[#This Row],[Nivel 4]]&Tabla2[[#This Row],[Nivel 5]]&Tabla2[[#This Row],[Nivel 6]]&Tabla2[[#This Row],[Nivel 7]]","v":"3.301.07.02.09."}]
[null,"3.","301.","07.","02.","10.",null,null,"Ley del Deporte",{"$f":"+EsNegrita(I82)","v":"SI"},null,{"$f":"+Tabla2[[#This Row],[Nivel 1]]&Tabla2[[#This Row],[Nivel 2]]&Tabla2[[#This Row],[Nivel 3]]&Tabla2[[#This Row],[Nivel 4]]&Tabla2[[#This Row],[Nivel 5]]&Tabla2[[#This Row],[Nivel 6]]&Tabla2[[#This Row],[Nivel 7]]","v":"3.301.07.02.10."}]
[null,"3.","301.","07.","02.","11.",null,null,"Ley de Gestión Integral de Riesgos Socio-Naturales y Tecnológicos",{"$f":"+EsNegrita(I83)","v":"SI"},null,{"$f":"+Tabla2[[#This Row],[Nivel 1]]&Tabla2[[#This Row],[Nivel 2]]&Tabla2[[#This Row],[Nivel 3]]&Tabla2[[#This Row],[Nivel 4]]&Tabla2[[#This Row],[Nivel 5]]&Tabla2[[#This Row],[Nivel 6]]&Tabla2[[#This Row],[Nivel 7]]","v":"3.301.07.02.11."}]
[null,"3.","301.","07.","02.","12.",null,null,"Otras Contribuciones",{"$f":"+EsNegrita(I84)","v":"SI"},null,{"$f":"+Tabla2[[#This Row],[Nivel 1]]&Tabla2[[#This Row],[Nivel 2]]&Tabla2[[#This Row],[Nivel 3]]&Tabla2[[#This Row],[Nivel 4]]&Tabla2[[#This Row],[Nivel 5]]&Tabla2[[#This Row],[Nivel 6]]&Tabla2[[#This Row],[Nivel 7]]","v":"3.301.07.02.12."}]
[null,"3.","302.",null,null,null,null,null,"CUENTAS DIVERSAS",{"$f":"+EsNegrita(I85)","v":"NO"},null,{"$f":"+Tabla2[[#This Row],[Nivel 1]]&Tabla2[[#This Row],[Nivel 2]]&Tabla2[[#This Row],[Nivel 3]]&Tabla2[[#This Row],[Nivel 4]]&Tabla2[[#This Row],[Nivel 5]]&Tabla2[[#This Row],[Nivel 6]]&Tabla2[[#This Row],[Nivel 7]]","v":"3.302."}]
[null,"3.","302.","01.",null,null,null,null,"Cuentas por Pagar  ",{"$f":"+EsNegrita(I86)","v":"NO"},"A9",{"$f":"+Tabla2[[#This Row],[Nivel 1]]&Tabla2[[#This Row],[Nivel 2]]&Tabla2[[#This Row],[Nivel 3]]&Tabla2[[#This Row],[Nivel 4]]&Tabla2[[#This Row],[Nivel 5]]&Tabla2[[#This Row],[Nivel 6]]&Tabla2[[#This Row],[Nivel 7]]","v":"3.302.01."}]
[null,"3.","302.","01.","01.",null,null,null,"Empresas Filiales, Afiliadas y Relacionadas",{"$f":"+EsNegrita(I87)","v":"NO"},null,{"$f":"+Tabla2[[#This Row],[Nivel 1]]&Tabla2[[#This Row],[Nivel 2]]&Tabla2[[#This Row],[Nivel 3]]&Tabla2[[#This Row],[Nivel 4]]&Tabla2[[#This Row],[Nivel 5]]&Tabla2[[#This Row],[Nivel 6]]&Tabla2[[#This Row],[Nivel 7]]","v":"3.302.01.01."}]
[null,"3.","302.","01.","01.","01.",null,null,"Empresas Filiales",{"$f":"+EsNegrita(I88)","v":"SI"},"A9",{"$f":"+Tabla2[[#This Row],[Nivel 1]]&Tabla2[[#This Row],[Nivel 2]]&Tabla2[[#This Row],[Nivel 3]]&Tabla2[[#This Row],[Nivel 4]]&Tabla2[[#This Row],[Nivel 5]]&Tabla2[[#This Row],[Nivel 6]]&Tabla2[[#This Row],[Nivel 7]]","v":"3.302.01.01.01."}]
[null,"3.","302.","01.","01.","02.",null,null,"Empresas Afiliadas",{"$f":"+EsNegrita(I89)","v":"SI"},"A9",{"$f":"+Tabla2[[#This Row],[Nivel 1]]&Tabla2[[#This Row],[Nivel 2]]&Tabla2[[#This Row],[Nivel 3]]&Tabla2[[#This Row],[Nivel 4]]&Tabla2[[#This Row],[Nivel 5]]&Tabla2[[#This Row],[Nivel 6]]&Tabla2[[#This Row],[Nivel 7]]","v":"3.302.01.01.02."}]
[null,"3.","302.","01.","01.","03.",null,null,"Empresas Relacionadas",{"$f":"+EsNegrita(I90)","v":"SI"},"A9",{"$f":"+Tabla2[[#This Row],[Nivel 1]]&Tabla2[[#This Row],[Nivel 2]]&Tabla2[[#This Row],[Nivel 3]]&Tabla2[[#This Row],[Nivel 4]]&Tabla2[[#This Row],[Nivel 5]]&Tabla2[[#This Row],[Nivel 6]]&Tabla2[[#This Row],[Nivel 7]]","v":"3.302.01.01.03."}]
[null,"3.","302.","01.","02.",null,null,null,"Proveedores de Bienes y Servicios",{"$f":"+EsNegrita(I91)","v":"NO"},null,{"$f":"+Tabla2[[#This Row],[Nivel 1]]&Tabla2[[#This Row],[Nivel 2]]&Tabla2[[#This Row],[Nivel 3]]&Tabla2[[#This Row],[Nivel 4]]&Tabla2[[#This Row],[Nivel 5]]&Tabla2[[#This Row],[Nivel 6]]&Tabla2[[#This Row],[Nivel 7]]","v":"3.302.01.02."}]
[null,"3.","302.","01.","03.",null,null,null,"Arrendamientos por Pagar",{"$f":"+EsNegrita(I92)","v":"SI"},"A9",{"$f":"+Tabla2[[#This Row],[Nivel 1]]&Tabla2[[#This Row],[Nivel 2]]&Tabla2[[#This Row],[Nivel 3]]&Tabla2[[#This Row],[Nivel 4]]&Tabla2[[#This Row],[Nivel 5]]&Tabla2[[#This Row],[Nivel 6]]&Tabla2[[#This Row],[Nivel 7]]","v":"3.302.01.03."}]
[null,"3.","302.","01.","04.",null,null,null,"Otras Cuentas por Pagar",{"$f":"+EsNegrita(I93)","v":"SI"},"A9",{"$f":"+Tabla2[[#This Row],[Nivel 1]]&Tabla2[[#This Row],[Nivel 2]]&Tabla2[[#This Row],[Nivel 3]]&Tabla2[[#This Row],[Nivel 4]]&Tabla2[[#This Row],[Nivel 5]]&Tabla2[[#This Row],[Nivel 6]]&Tabla2[[#This Row],[Nivel 7]]","v":"3.302.01.04."}]
[null,"3.","302.","02.",null,null,null,null,"Comisiones por Pagar - Intermediarios",{"$f":"+EsNegrita(I94)","v":"NO"},"A10",{"$f":"+Tabla2[[#This Row],[Nivel 1]]&Tabla2[[#This Row],[Nivel 2]]&Tabla2[[#This Row],[Nivel 3]]&Tabla2[[#This Row],[Nivel 4]]&Tabla2[[#This Row],[Nivel 5]]&Tabla2[[#This Row],[Nivel 6]]&Tabla2[[#This Row],[Nivel 7]]","v":"3.302.02."}]
[null,"3.","302.","02.","01.",null,null,null,"Agentes",{"$f":"+EsNegrita(I95)","v":"SI"},"A10",{"$f":"+Tabla2[[#This Row],[Nivel 1]]&Tabla2[[#This Row],[Nivel 2]]&Tabla2[[#This Row],[Nivel 3]]&Tabla2[[#This Row],[Nivel 4]]&Tabla2[[#This Row],[Nivel 5]]&Tabla2[[#This Row],[Nivel 6]]&Tabla2[[#This Row],[Nivel 7]]","v":"3.302.02.01."}]
[null,"3.","302.","02.","02.",null,null,null,"Corredores de Seguros",{"$f":"+EsNegrita(I96)","v":"SI"},"A10",{"$f":"+Tabla2[[#This Row],[Nivel 1]]&Tabla2[[#This Row],[Nivel 2]]&Tabla2[[#This Row],[Nivel 3]]&Tabla2[[#This Row],[Nivel 4]]&Tabla2[[#This Row],[Nivel 5]]&Tabla2[[#This Row],[Nivel 6]]&Tabla2[[#This Row],[Nivel 7]]","v":"3.302.02.02."}]
[null,"3.","302.","02.","03.",null,null,null,"Sociedades de Corretaje de Seguros",{"$f":"+EsNegrita(I97)","v":"SI"},"A10",{"$f":"+Tabla2[[#This Row],[Nivel 1]]&Tabla2[[#This Row],[Nivel 2]]&Tabla2[[#This Row],[Nivel 3]]&Tabla2[[#This Row],[Nivel 4]]&Tabla2[[#This Row],[Nivel 5]]&Tabla2[[#This Row],[Nivel 6]]&Tabla2[[#This Row],[Nivel 7]]","v":"3.302.02.03."}]
[null,"3.","302.","03.",null,null,null,null,"Intereses sobre Comisiones por pagar",{"$f":"+EsNegrita(I98)","v":"NO"},null,{"$f":"+Tabla2[[#This Row],[Nivel 1]]&Tabla2[[#This Row],[Nivel 2]]&Tabla2[[#This Row],[Nivel 3]]&Tabla2[[#This Row],[Nivel 4]]&Tabla2[[#This Row],[Nivel 5]]&Tabla2[[#This Row],[Nivel 6]]&Tabla2[[#This Row],[Nivel 7]]","v":"3.302.03."}]
[null,"3.","302.","03.","01.",null,null,null,"Agentes",{"$f":"+EsNegrita(I99)","v":"SI"},null,{"$f":"+Tabla2[[#This Row],[Nivel 1]]&Tabla2[[#This Row],[Nivel 2]]&Tabla2[[#This Row],[Nivel 3]]&Tabla2[[#This Row],[Nivel 4]]&Tabla2[[#This Row],[Nivel 5]]&Tabla2[[#This Row],[Nivel 6]]&Tabla2[[#This Row],[Nivel 7]]","v":"3.302.03.01."}]
[null,"3.","302.","03.","02.",null,null,null,"Corredores de Seguros",{"$f":"+EsNegrita(I100)","v":"SI"},null,{"$f":"+Tabla2[[#This Row],[Nivel 1]]&Tabla2[[#This Row],[Nivel 2]]&Tabla2[[#This Row],[Nivel 3]]&Tabla2[[#This Row],[Nivel 4]]&Tabla2[[#This Row],[Nivel 5]]&Tabla2[[#This Row],[Nivel 6]]&Tabla2[[#This Row],[Nivel 7]]","v":"3.302.03.02."}]
[null,"3.","302.","03.","03.",null,null,null,"Sociedades de Corretaje de Seguros",{"$f":"+EsNegrita(I101)","v":"SI"},null,{"$f":"+Tabla2[[#This Row],[Nivel 1]]&Tabla2[[#This Row],[Nivel 2]]&Tabla2[[#This Row],[Nivel 3]]&Tabla2[[#This Row],[Nivel 4]]&Tabla2[[#This Row],[Nivel 5]]&Tabla2[[#This Row],[Nivel 6]]&Tabla2[[#This Row],[Nivel 7]]","v":"3.302.03.03."}]
[null,"3.","302.","04.",null,null,null,null,"Cuentas por Pagar - Proveedores de Servicios de Seguros",{"$f":"+EsNegrita(I102)","v":"NO"},"A11",{"$f":"+Tabla2[[#This Row],[Nivel 1]]&Tabla2[[#This Row],[Nivel 2]]&Tabla2[[#This Row],[Nivel 3]]&Tabla2[[#This Row],[Nivel 4]]&Tabla2[[#This Row],[Nivel 5]]&Tabla2[[#This Row],[Nivel 6]]&Tabla2[[#This Row],[Nivel 7]]","v":"3.302.04."}]
[null,"3.","302.","05.",null,null,null,null,"Cuentas por Pagar al Personal",{"$f":"+EsNegrita(I103)","v":"NO"},null,{"$f":"+Tabla2[[#This Row],[Nivel 1]]&Tabla2[[#This Row],[Nivel 2]]&Tabla2[[#This Row],[Nivel 3]]&Tabla2[[#This Row],[Nivel 4]]&Tabla2[[#This Row],[Nivel 5]]&Tabla2[[#This Row],[Nivel 6]]&Tabla2[[#This Row],[Nivel 7]]","v":"3.302.05."}]
[null,"3.","302.","05.","01.",null,null,null,"Sueldos y Salarios",{"$f":"+EsNegrita(I104)","v":"SI"},null,{"$f":"+Tabla2[[#This Row],[Nivel 1]]&Tabla2[[#This Row],[Nivel 2]]&Tabla2[[#This Row],[Nivel 3]]&Tabla2[[#This Row],[Nivel 4]]&Tabla2[[#This Row],[Nivel 5]]&Tabla2[[#This Row],[Nivel 6]]&Tabla2[[#This Row],[Nivel 7]]","v":"3.302.05.01."}]
[null,"3.","302.","05.","02.",null,null,null,"Vacaciones",{"$f":"+EsNegrita(I105)","v":"SI"},null,{"$f":"+Tabla2[[#This Row],[Nivel 1]]&Tabla2[[#This Row],[Nivel 2]]&Tabla2[[#This Row],[Nivel 3]]&Tabla2[[#This Row],[Nivel 4]]&Tabla2[[#This Row],[Nivel 5]]&Tabla2[[#This Row],[Nivel 6]]&Tabla2[[#This Row],[Nivel 7]]","v":"3.302.05.02."}]
[null,"3.","302.","05.","03.",null,null,null,"Bono vacacional",{"$f":"+EsNegrita(I106)","v":"SI"},null,{"$f":"+Tabla2[[#This Row],[Nivel 1]]&Tabla2[[#This Row],[Nivel 2]]&Tabla2[[#This Row],[Nivel 3]]&Tabla2[[#This Row],[Nivel 4]]&Tabla2[[#This Row],[Nivel 5]]&Tabla2[[#This Row],[Nivel 6]]&Tabla2[[#This Row],[Nivel 7]]","v":"3.302.05.03."}]
[null,"3.","302.","05.","04.",null,null,null,"Bonificaciones Especiales",{"$f":"+EsNegrita(I107)","v":"SI"},null,{"$f":"+Tabla2[[#This Row],[Nivel 1]]&Tabla2[[#This Row],[Nivel 2]]&Tabla2[[#This Row],[Nivel 3]]&Tabla2[[#This Row],[Nivel 4]]&Tabla2[[#This Row],[Nivel 5]]&Tabla2[[#This Row],[Nivel 6]]&Tabla2[[#This Row],[Nivel 7]]","v":"3.302.05.04."}]
[null,"3.","302.","05.","05.",null,null,null,"Utilidades o Aguinaldos",{"$f":"+EsNegrita(I108)","v":"SI"},null,{"$f":"+Tabla2[[#This Row],[Nivel 1]]&Tabla2[[#This Row],[Nivel 2]]&Tabla2[[#This Row],[Nivel 3]]&Tabla2[[#This Row],[Nivel 4]]&Tabla2[[#This Row],[Nivel 5]]&Tabla2[[#This Row],[Nivel 6]]&Tabla2[[#This Row],[Nivel 7]]","v":"3.302.05.05."}]
[null,"3.","302.","05.","06.",null,null,null,"Prestaciones Sociales",{"$f":"+EsNegrita(I109)","v":"SI"},null,{"$f":"+Tabla2[[#This Row],[Nivel 1]]&Tabla2[[#This Row],[Nivel 2]]&Tabla2[[#This Row],[Nivel 3]]&Tabla2[[#This Row],[Nivel 4]]&Tabla2[[#This Row],[Nivel 5]]&Tabla2[[#This Row],[Nivel 6]]&Tabla2[[#This Row],[Nivel 7]]","v":"3.302.05.06."}]
[null,"3.","302.","05.","07.",null,null,null,"Intereses Sobre Prestaciones Sociales",{"$f":"+EsNegrita(I110)","v":"SI"},null,{"$f":"+Tabla2[[#This Row],[Nivel 1]]&Tabla2[[#This Row],[Nivel 2]]&Tabla2[[#This Row],[Nivel 3]]&Tabla2[[#This Row],[Nivel 4]]&Tabla2[[#This Row],[Nivel 5]]&Tabla2[[#This Row],[Nivel 6]]&Tabla2[[#This Row],[Nivel 7]]","v":"3.302.05.07."}]
[null,"3.","302.","05.","08.",null,null,null,"Otras Cuentas por Pagar al Personal",{"$f":"+EsNegrita(I111)","v":"SI"},null,{"$f":"+Tabla2[[#This Row],[Nivel 1]]&Tabla2[[#This Row],[Nivel 2]]&Tabla2[[#This Row],[Nivel 3]]&Tabla2[[#This Row],[Nivel 4]]&Tabla2[[#This Row],[Nivel 5]]&Tabla2[[#This Row],[Nivel 6]]&Tabla2[[#This Row],[Nivel 7]]","v":"3.302.05.08."}]
[null,"3.","303.",null,null,null,null,null,"CRÉDITOS DIFERIDOS",{"$f":"+EsNegrita(I112)","v":"NO"},null,{"$f":"+Tabla2[[#This Row],[Nivel 1]]&Tabla2[[#This Row],[Nivel 2]]&Tabla2[[#This Row],[Nivel 3]]&Tabla2[[#This Row],[Nivel 4]]&Tabla2[[#This Row],[Nivel 5]]&Tabla2[[#This Row],[Nivel 6]]&Tabla2[[#This Row],[Nivel 7]]","v":"3.303."}]
[null,"3.","303.","01.",null,null,null,null,"Descuentos en Adquisición de Títulos Valores",{"$f":"+EsNegrita(I113)","v":"NO"},null,{"$f":"+Tabla2[[#This Row],[Nivel 1]]&Tabla2[[#This Row],[Nivel 2]]&Tabla2[[#This Row],[Nivel 3]]&Tabla2[[#This Row],[Nivel 4]]&Tabla2[[#This Row],[Nivel 5]]&Tabla2[[#This Row],[Nivel 6]]&Tabla2[[#This Row],[Nivel 7]]","v":"3.303.01."}]
[null,"3.","303.","01.","01.",null,null,null,"Valores Públicos",{"$f":"+EsNegrita(I114)","v":"NO"},null,{"$f":"+Tabla2[[#This Row],[Nivel 1]]&Tabla2[[#This Row],[Nivel 2]]&Tabla2[[#This Row],[Nivel 3]]&Tabla2[[#This Row],[Nivel 4]]&Tabla2[[#This Row],[Nivel 5]]&Tabla2[[#This Row],[Nivel 6]]&Tabla2[[#This Row],[Nivel 7]]","v":"3.303.01.01."}]
[null,"3.","303.","01.","01.","01.",null,null,"Emitidos o Garantizados por la República",{"$f":"+EsNegrita(I115)","v":"SI"},null,{"$f":"+Tabla2[[#This Row],[Nivel 1]]&Tabla2[[#This Row],[Nivel 2]]&Tabla2[[#This Row],[Nivel 3]]&Tabla2[[#This Row],[Nivel 4]]&Tabla2[[#This Row],[Nivel 5]]&Tabla2[[#This Row],[Nivel 6]]&Tabla2[[#This Row],[Nivel 7]]","v":"3.303.01.01.01."}]
[null,"3.","303.","01.","01.","02.",null,null,"Emitidos por Otros Sujetos de Derecho Público Nacional",{"$f":"+EsNegrita(I116)","v":"SI"},null,{"$f":"+Tabla2[[#This Row],[Nivel 1]]&Tabla2[[#This Row],[Nivel 2]]&Tabla2[[#This Row],[Nivel 3]]&Tabla2[[#This Row],[Nivel 4]]&Tabla2[[#This Row],[Nivel 5]]&Tabla2[[#This Row],[Nivel 6]]&Tabla2[[#This Row],[Nivel 7]]","v":"3.303.01.01.02."}]
[null,"3.","303.","01.","01.","03.",null,null,"Emitidos por Empresas con Participación de la República",{"$f":"+EsNegrita(I117)","v":"SI"},null,{"$f":"+Tabla2[[#This Row],[Nivel 1]]&Tabla2[[#This Row],[Nivel 2]]&Tabla2[[#This Row],[Nivel 3]]&Tabla2[[#This Row],[Nivel 4]]&Tabla2[[#This Row],[Nivel 5]]&Tabla2[[#This Row],[Nivel 6]]&Tabla2[[#This Row],[Nivel 7]]","v":"3.303.01.01.03."}]
[null,"3.","303.","01.","01.","04.",null,null,"Emitidos por Instituciones con Participación de la República",{"$f":"+EsNegrita(I118)","v":"SI"},null,{"$f":"+Tabla2[[#This Row],[Nivel 1]]&Tabla2[[#This Row],[Nivel 2]]&Tabla2[[#This Row],[Nivel 3]]&Tabla2[[#This Row],[Nivel 4]]&Tabla2[[#This Row],[Nivel 5]]&Tabla2[[#This Row],[Nivel 6]]&Tabla2[[#This Row],[Nivel 7]]","v":"3.303.01.01.04."}]
[null,"3.","303.","01.","02.",null,null,null,"Participación en Fondos de Inversión",{"$f":"+EsNegrita(I119)","v":"NO"},null,{"$f":"+Tabla2[[#This Row],[Nivel 1]]&Tabla2[[#This Row],[Nivel 2]]&Tabla2[[#This Row],[Nivel 3]]&Tabla2[[#This Row],[Nivel 4]]&Tabla2[[#This Row],[Nivel 5]]&Tabla2[[#This Row],[Nivel 6]]&Tabla2[[#This Row],[Nivel 7]]","v":"3.303.01.02."}]
[null,"3.","303.","01.","02.","01.",null,null,"Renta Fija",{"$f":"+EsNegrita(I120)","v":"SI"},null,{"$f":"+Tabla2[[#This Row],[Nivel 1]]&Tabla2[[#This Row],[Nivel 2]]&Tabla2[[#This Row],[Nivel 3]]&Tabla2[[#This Row],[Nivel 4]]&Tabla2[[#This Row],[Nivel 5]]&Tabla2[[#This Row],[Nivel 6]]&Tabla2[[#This Row],[Nivel 7]]","v":"3.303.01.02.01."}]
[null,"3.","303.","01.","02.","02.",null,null,"Renta Variable",{"$f":"+EsNegrita(I121)","v":"SI"},null,{"$f":"+Tabla2[[#This Row],[Nivel 1]]&Tabla2[[#This Row],[Nivel 2]]&Tabla2[[#This Row],[Nivel 3]]&Tabla2[[#This Row],[Nivel 4]]&Tabla2[[#This Row],[Nivel 5]]&Tabla2[[#This Row],[Nivel 6]]&Tabla2[[#This Row],[Nivel 7]]","v":"3.303.01.02.02."}]
[null,"3.","303.","01.","03.",null,null,null,"Garantía a la Nación",{"$f":"+EsNegrita(I122)","v":"NO"},null,{"$f":"+Tabla2[[#This Row],[Nivel 1]]&Tabla2[[#This Row],[Nivel 2]]&Tabla2[[#This Row],[Nivel 3]]&Tabla2[[#This Row],[Nivel 4]]&Tabla2[[#This Row],[Nivel 5]]&Tabla2[[#This Row],[Nivel 6]]&Tabla2[[#This Row],[Nivel 7]]","v":"3.303.01.03."}]
[null,"3.","303.","01.","03.","01.",null,null,"Valores Públicos",{"$f":"+EsNegrita(I123)","v":"SI"},null,{"$f":"+Tabla2[[#This Row],[Nivel 1]]&Tabla2[[#This Row],[Nivel 2]]&Tabla2[[#This Row],[Nivel 3]]&Tabla2[[#This Row],[Nivel 4]]&Tabla2[[#This Row],[Nivel 5]]&Tabla2[[#This Row],[Nivel 6]]&Tabla2[[#This Row],[Nivel 7]]","v":"3.303.01.03.01."}]
[null,"3.","303.","01.","04.",null,null,null,"Valores Privados",{"$f":"+EsNegrita(I124)","v":"NO"},null,{"$f":"+Tabla2[[#This Row],[Nivel 1]]&Tabla2[[#This Row],[Nivel 2]]&Tabla2[[#This Row],[Nivel 3]]&Tabla2[[#This Row],[Nivel 4]]&Tabla2[[#This Row],[Nivel 5]]&Tabla2[[#This Row],[Nivel 6]]&Tabla2[[#This Row],[Nivel 7]]","v":"3.303.01.04."}]
[null,"3.","303.","01.","04.","01.",null,null,"Acciones de Sociedades Anónimas",{"$f":"+EsNegrita(I125)","v":"NO"},null,{"$f":"+Tabla2[[#This Row],[Nivel 1]]&Tabla2[[#This Row],[Nivel 2]]&Tabla2[[#This Row],[Nivel 3]]&Tabla2[[#This Row],[Nivel 4]]&Tabla2[[#This Row],[Nivel 5]]&Tabla2[[#This Row],[Nivel 6]]&Tabla2[[#This Row],[Nivel 7]]","v":"3.303.01.04.01."}]
[null,"3.","303.","01.","04.","01.","01.",null,"Empresas de Seguros o Reaseguros",{"$f":"+EsNegrita(I126)","v":"SI"},null,{"$f":"+Tabla2[[#This Row],[Nivel 1]]&Tabla2[[#This Row],[Nivel 2]]&Tabla2[[#This Row],[Nivel 3]]&Tabla2[[#This Row],[Nivel 4]]&Tabla2[[#This Row],[Nivel 5]]&Tabla2[[#This Row],[Nivel 6]]&Tabla2[[#This Row],[Nivel 7]]","v":"3.303.01.04.01.01."}]
[null,"3.","303.","01.","04.","01.","02.",null,"Sociedades de Corretaje de Seguros, de Reaseguros o de Valores",{"$f":"+EsNegrita(I127)","v":"SI"},null,{"$f":"+Tabla2[[#This Row],[Nivel 1]]&Tabla2[[#This Row],[Nivel 2]]&Tabla2[[#This Row],[Nivel 3]]&Tabla2[[#This Row],[Nivel 4]]&Tabla2[[#This Row],[Nivel 5]]&Tabla2[[#This Row],[Nivel 6]]&Tabla2[[#This Row],[Nivel 7]]","v":"3.303.01.04.01.02."}]
[null,"3.","303.","01.","04.","01.","03.",null,"Bancos y Otras Instituciones Financieras",{"$f":"+EsNegrita(I128)","v":"SI"},null,{"$f":"+Tabla2[[#This Row],[Nivel 1]]&Tabla2[[#This Row],[Nivel 2]]&Tabla2[[#This Row],[Nivel 3]]&Tabla2[[#This Row],[Nivel 4]]&Tabla2[[#This Row],[Nivel 5]]&Tabla2[[#This Row],[Nivel 6]]&Tabla2[[#This Row],[Nivel 7]]","v":"3.303.01.04.01.03."}]
[null,"3.","303.","01.","04.","01.","04.",null,"Sociedades Industriales y Comerciales",{"$f":"+EsNegrita(I129)","v":"SI"},null,{"$f":"+Tabla2[[#This Row],[Nivel 1]]&Tabla2[[#This Row],[Nivel 2]]&Tabla2[[#This Row],[Nivel 3]]&Tabla2[[#This Row],[Nivel 4]]&Tabla2[[#This Row],[Nivel 5]]&Tabla2[[#This Row],[Nivel 6]]&Tabla2[[#This Row],[Nivel 7]]","v":"3.303.01.04.01.04."}]
[null,"3.","303.","01.","04.","01.","05.",null,"Sociedades Civiles",{"$f":"+EsNegrita(I130)","v":"SI"},null,{"$f":"+Tabla2[[#This Row],[Nivel 1]]&Tabla2[[#This Row],[Nivel 2]]&Tabla2[[#This Row],[Nivel 3]]&Tabla2[[#This Row],[Nivel 4]]&Tabla2[[#This Row],[Nivel 5]]&Tabla2[[#This Row],[Nivel 6]]&Tabla2[[#This Row],[Nivel 7]]","v":"3.303.01.04.01.05."}]
[null,"3.","303.","01.","04.","01.","06.",null,"Empresas Filiales, Afiliadas y Relacionadas",{"$f":"+EsNegrita(I131)","v":"SI"},null,{"$f":"+Tabla2[[#This Row],[Nivel 1]]&Tabla2[[#This Row],[Nivel 2]]&Tabla2[[#This Row],[Nivel 3]]&Tabla2[[#This Row],[Nivel 4]]&Tabla2[[#This Row],[Nivel 5]]&Tabla2[[#This Row],[Nivel 6]]&Tabla2[[#This Row],[Nivel 7]]","v":"3.303.01.04.01.06."}]
[null,"3.","303.","01.","04.","01.","07.",null,"Otras Sociedades Anónimas",{"$f":"+EsNegrita(I132)","v":"SI"},null,{"$f":"+Tabla2[[#This Row],[Nivel 1]]&Tabla2[[#This Row],[Nivel 2]]&Tabla2[[#This Row],[Nivel 3]]&Tabla2[[#This Row],[Nivel 4]]&Tabla2[[#This Row],[Nivel 5]]&Tabla2[[#This Row],[Nivel 6]]&Tabla2[[#This Row],[Nivel 7]]","v":"3.303.01.04.01.07."}]
[null,"3.","303.","01.","04.","02.",null,null,"Bonos de Sociedades Anónimas",{"$f":"+EsNegrita(I133)","v":"SI"},null,{"$f":"+Tabla2[[#This Row],[Nivel 1]]&Tabla2[[#This Row],[Nivel 2]]&Tabla2[[#This Row],[Nivel 3]]&Tabla2[[#This Row],[Nivel 4]]&Tabla2[[#This Row],[Nivel 5]]&Tabla2[[#This Row],[Nivel 6]]&Tabla2[[#This Row],[Nivel 7]]","v":"3.303.01.04.02."}]
[null,"3.","303.","01.","04.","03.",null,null,"Otras Inversiones emitidas por el Sector Privado.",{"$f":"+EsNegrita(I134)","v":"SI"},null,{"$f":"+Tabla2[[#This Row],[Nivel 1]]&Tabla2[[#This Row],[Nivel 2]]&Tabla2[[#This Row],[Nivel 3]]&Tabla2[[#This Row],[Nivel 4]]&Tabla2[[#This Row],[Nivel 5]]&Tabla2[[#This Row],[Nivel 6]]&Tabla2[[#This Row],[Nivel 7]]","v":"3.303.01.04.03."}]
[null,"3.","303.","01.","05.",null,null,null,"Activos en el Extranjero",{"$f":"+EsNegrita(I135)","v":"NO"},null,{"$f":"+Tabla2[[#This Row],[Nivel 1]]&Tabla2[[#This Row],[Nivel 2]]&Tabla2[[#This Row],[Nivel 3]]&Tabla2[[#This Row],[Nivel 4]]&Tabla2[[#This Row],[Nivel 5]]&Tabla2[[#This Row],[Nivel 6]]&Tabla2[[#This Row],[Nivel 7]]","v":"3.303.01.05."}]
[null,"3.","303.","02.",null,null,null,null,"Utilidad No Realizada en Venta de Bienes Inmuebles",{"$f":"+EsNegrita(I136)","v":"NO"},null,{"$f":"+Tabla2[[#This Row],[Nivel 1]]&Tabla2[[#This Row],[Nivel 2]]&Tabla2[[#This Row],[Nivel 3]]&Tabla2[[#This Row],[Nivel 4]]&Tabla2[[#This Row],[Nivel 5]]&Tabla2[[#This Row],[Nivel 6]]&Tabla2[[#This Row],[Nivel 7]]","v":"3.303.02."}]
[null,"3.","303.","02.","01.",null,null,null,"Terrenos",{"$f":"+EsNegrita(I137)","v":"SI"},null,{"$f":"+Tabla2[[#This Row],[Nivel 1]]&Tabla2[[#This Row],[Nivel 2]]&Tabla2[[#This Row],[Nivel 3]]&Tabla2[[#This Row],[Nivel 4]]&Tabla2[[#This Row],[Nivel 5]]&Tabla2[[#This Row],[Nivel 6]]&Tabla2[[#This Row],[Nivel 7]]","v":"3.303.02.01."}]
[null,"3.","303.","02.","02.",null,null,null,"Inmuebles Edificados",{"$f":"+EsNegrita(I138)","v":"SI"},null,{"$f":"+Tabla2[[#This Row],[Nivel 1]]&Tabla2[[#This Row],[Nivel 2]]&Tabla2[[#This Row],[Nivel 3]]&Tabla2[[#This Row],[Nivel 4]]&Tabla2[[#This Row],[Nivel 5]]&Tabla2[[#This Row],[Nivel 6]]&Tabla2[[#This Row],[Nivel 7]]","v":"3.303.02.02."}]
[null,"3.","303.","03.",null,null,null,null,"Fluctuación Cambiaria",{"$f":"+EsNegrita(I139)","v":"NO"},null,{"$f":"+Tabla2[[#This Row],[Nivel 1]]&Tabla2[[#This Row],[Nivel 2]]&Tabla2[[#This Row],[Nivel 3]]&Tabla2[[#This Row],[Nivel 4]]&Tabla2[[#This Row],[Nivel 5]]&Tabla2[[#This Row],[Nivel 6]]&Tabla2[[#This Row],[Nivel 7]]","v":"3.303.03."}]
[null,"3.","303.","03.","01.",null,null,null,"Sobre Activos",{"$f":"+EsNegrita(I140)","v":"NO"},null,{"$f":"+Tabla2[[#This Row],[Nivel 1]]&Tabla2[[#This Row],[Nivel 2]]&Tabla2[[#This Row],[Nivel 3]]&Tabla2[[#This Row],[Nivel 4]]&Tabla2[[#This Row],[Nivel 5]]&Tabla2[[#This Row],[Nivel 6]]&Tabla2[[#This Row],[Nivel 7]]","v":"3.303.03.01."}]
[null,"3.","303.","03.","01.","01.",null,null,"Valores Públicos",{"$f":"+EsNegrita(I141)","v":"NO"},null,{"$f":"+Tabla2[[#This Row],[Nivel 1]]&Tabla2[[#This Row],[Nivel 2]]&Tabla2[[#This Row],[Nivel 3]]&Tabla2[[#This Row],[Nivel 4]]&Tabla2[[#This Row],[Nivel 5]]&Tabla2[[#This Row],[Nivel 6]]&Tabla2[[#This Row],[Nivel 7]]","v":"3.303.03.01.01."}]
[null,"3.","303.","03.","01.","01.","01.",null,"Emitidos o Garantizados por la República",{"$f":"+EsNegrita(I142)","v":"SI"},null,{"$f":"+Tabla2[[#This Row],[Nivel 1]]&Tabla2[[#This Row],[Nivel 2]]&Tabla2[[#This Row],[Nivel 3]]&Tabla2[[#This Row],[Nivel 4]]&Tabla2[[#This Row],[Nivel 5]]&Tabla2[[#This Row],[Nivel 6]]&Tabla2[[#This Row],[Nivel 7]]","v":"3.303.03.01.01.01."}]
[null,"3.","303.","03.","01.","01.","02.",null,"Emitidos por Otros Sujetos de Derecho Público Nacional",{"$f":"+EsNegrita(I143)","v":"SI"},null,{"$f":"+Tabla2[[#This Row],[Nivel 1]]&Tabla2[[#This Row],[Nivel 2]]&Tabla2[[#This Row],[Nivel 3]]&Tabla2[[#This Row],[Nivel 4]]&Tabla2[[#This Row],[Nivel 5]]&Tabla2[[#This Row],[Nivel 6]]&Tabla2[[#This Row],[Nivel 7]]","v":"3.303.03.01.01.02."}]
[null,"3.","303.","03.","01.","01.","03.",null,"Emitidos por Empresas con Participación de la República",{"$f":"+EsNegrita(I144)","v":"SI"},null,{"$f":"+Tabla2[[#This Row],[Nivel 1]]&Tabla2[[#This Row],[Nivel 2]]&Tabla2[[#This Row],[Nivel 3]]&Tabla2[[#This Row],[Nivel 4]]&Tabla2[[#This Row],[Nivel 5]]&Tabla2[[#This Row],[Nivel 6]]&Tabla2[[#This Row],[Nivel 7]]","v":"3.303.03.01.01.03."}]
[null,"3.","303.","03.","01.","01.","04.",null,"Emitidos por Instituciones con Participación de la República",{"$f":"+EsNegrita(I145)","v":"SI"},null,{"$f":"+Tabla2[[#This Row],[Nivel 1]]&Tabla2[[#This Row],[Nivel 2]]&Tabla2[[#This Row],[Nivel 3]]&Tabla2[[#This Row],[Nivel 4]]&Tabla2[[#This Row],[Nivel 5]]&Tabla2[[#This Row],[Nivel 6]]&Tabla2[[#This Row],[Nivel 7]]","v":"3.303.03.01.01.04."}]
[null,"3.","303.","03.","01.","02.",null,null,"Participación en Fondos de Inversión",{"$f":"+EsNegrita(I146)","v":"NO"},null,{"$f":"+Tabla2[[#This Row],[Nivel 1]]&Tabla2[[#This Row],[Nivel 2]]&Tabla2[[#This Row],[Nivel 3]]&Tabla2[[#This Row],[Nivel 4]]&Tabla2[[#This Row],[Nivel 5]]&Tabla2[[#This Row],[Nivel 6]]&Tabla2[[#This Row],[Nivel 7]]","v":"3.303.03.01.02."}]
[null,"3.","303.","03.","01.","02.","01.",null,"Renta Fija",{"$f":"+EsNegrita(I147)","v":"SI"},null,{"$f":"+Tabla2[[#This Row],[Nivel 1]]&Tabla2[[#This Row],[Nivel 2]]&Tabla2[[#This Row],[Nivel 3]]&Tabla2[[#This Row],[Nivel 4]]&Tabla2[[#This Row],[Nivel 5]]&Tabla2[[#This Row],[Nivel 6]]&Tabla2[[#This Row],[Nivel 7]]","v":"3.303.03.01.02.01."}]
[null,"3.","303.","03.","01.","02.","02.",null,"Renta Variable",{"$f":"+EsNegrita(I148)","v":"SI"},null,{"$f":"+Tabla2[[#This Row],[Nivel 1]]&Tabla2[[#This Row],[Nivel 2]]&Tabla2[[#This Row],[Nivel 3]]&Tabla2[[#This Row],[Nivel 4]]&Tabla2[[#This Row],[Nivel 5]]&Tabla2[[#This Row],[Nivel 6]]&Tabla2[[#This Row],[Nivel 7]]","v":"3.303.03.01.02.02."}]
[null,"3.","303.","03.","01.","03.",null,null,"Participación Fondos de Inversión Inmobiliarios",{"$f":"+EsNegrita(I149)","v":"NO"},null,{"$f":"+Tabla2[[#This Row],[Nivel 1]]&Tabla2[[#This Row],[Nivel 2]]&Tabla2[[#This Row],[Nivel 3]]&Tabla2[[#This Row],[Nivel 4]]&Tabla2[[#This Row],[Nivel 5]]&Tabla2[[#This Row],[Nivel 6]]&Tabla2[[#This Row],[Nivel 7]]","v":"3.303.03.01.03."}]
[null,"3.","303.","03.","01.","04.",null,null,"Valores Privados",{"$f":"+EsNegrita(I150)","v":"NO"},null,{"$f":"+Tabla2[[#This Row],[Nivel 1]]&Tabla2[[#This Row],[Nivel 2]]&Tabla2[[#This Row],[Nivel 3]]&Tabla2[[#This Row],[Nivel 4]]&Tabla2[[#This Row],[Nivel 5]]&Tabla2[[#This Row],[Nivel 6]]&Tabla2[[#This Row],[Nivel 7]]","v":"3.303.03.01.04."}]
[null,"3.","303.","03.","01.","04.","01.",null,"Acciones de Sociedades Anónimas",{"$f":"+EsNegrita(I151)","v":"NO"},null,{"$f":"+Tabla2[[#This Row],[Nivel 1]]&Tabla2[[#This Row],[Nivel 2]]&Tabla2[[#This Row],[Nivel 3]]&Tabla2[[#This Row],[Nivel 4]]&Tabla2[[#This Row],[Nivel 5]]&Tabla2[[#This Row],[Nivel 6]]&Tabla2[[#This Row],[Nivel 7]]","v":"3.303.03.01.04.01."}]
[null,"3.","303.","03.","01.","04.","01.","01.","Empresas de Seguros o Reaseguros",{"$f":"+EsNegrita(I152)","v":"SI"},null,{"$f":"+Tabla2[[#This Row],[Nivel 1]]&Tabla2[[#This Row],[Nivel 2]]&Tabla2[[#This Row],[Nivel 3]]&Tabla2[[#This Row],[Nivel 4]]&Tabla2[[#This Row],[Nivel 5]]&Tabla2[[#This Row],[Nivel 6]]&Tabla2[[#This Row],[Nivel 7]]","v":"3.303.03.01.04.01.01."}]
[null,"3.","303.","03.","01.","04.","01.","02.","Sociedades de Corretaje de Seguros, de Reaseguros o de Valores",{"$f":"+EsNegrita(I153)","v":"SI"},null,{"$f":"+Tabla2[[#This Row],[Nivel 1]]&Tabla2[[#This Row],[Nivel 2]]&Tabla2[[#This Row],[Nivel 3]]&Tabla2[[#This Row],[Nivel 4]]&Tabla2[[#This Row],[Nivel 5]]&Tabla2[[#This Row],[Nivel 6]]&Tabla2[[#This Row],[Nivel 7]]","v":"3.303.03.01.04.01.02."}]
[null,"3.","303.","03.","01.","04.","01.","03.","Bancos y Otras Instituciones Financieras",{"$f":"+EsNegrita(I154)","v":"SI"},null,{"$f":"+Tabla2[[#This Row],[Nivel 1]]&Tabla2[[#This Row],[Nivel 2]]&Tabla2[[#This Row],[Nivel 3]]&Tabla2[[#This Row],[Nivel 4]]&Tabla2[[#This Row],[Nivel 5]]&Tabla2[[#This Row],[Nivel 6]]&Tabla2[[#This Row],[Nivel 7]]","v":"3.303.03.01.04.01.03."}]
[null,"3.","303.","03.","01.","04.","01.","04.","Sociedades Industriales y Comerciales",{"$f":"+EsNegrita(I155)","v":"SI"},null,{"$f":"+Tabla2[[#This Row],[Nivel 1]]&Tabla2[[#This Row],[Nivel 2]]&Tabla2[[#This Row],[Nivel 3]]&Tabla2[[#This Row],[Nivel 4]]&Tabla2[[#This Row],[Nivel 5]]&Tabla2[[#This Row],[Nivel 6]]&Tabla2[[#This Row],[Nivel 7]]","v":"3.303.03.01.04.01.04."}]
[null,"3.","303.","03.","01.","04.","01.","05.","Sociedades Civiles",{"$f":"+EsNegrita(I156)","v":"SI"},null,{"$f":"+Tabla2[[#This Row],[Nivel 1]]&Tabla2[[#This Row],[Nivel 2]]&Tabla2[[#This Row],[Nivel 3]]&Tabla2[[#This Row],[Nivel 4]]&Tabla2[[#This Row],[Nivel 5]]&Tabla2[[#This Row],[Nivel 6]]&Tabla2[[#This Row],[Nivel 7]]","v":"3.303.03.01.04.01.05."}]
[null,"3.","303.","03.","01.","04.","01.","06.","Empresas Filiales, Afiliadas y Relacionadas",{"$f":"+EsNegrita(I157)","v":"SI"},null,{"$f":"+Tabla2[[#This Row],[Nivel 1]]&Tabla2[[#This Row],[Nivel 2]]&Tabla2[[#This Row],[Nivel 3]]&Tabla2[[#This Row],[Nivel 4]]&Tabla2[[#This Row],[Nivel 5]]&Tabla2[[#This Row],[Nivel 6]]&Tabla2[[#This Row],[Nivel 7]]","v":"3.303.03.01.04.01.06."}]
[null,"3.","303.","03.","01.","04.","01.","07.","Otras Sociedades Anónimas",{"$f":"+EsNegrita(I158)","v":"SI"},null,{"$f":"+Tabla2[[#This Row],[Nivel 1]]&Tabla2[[#This Row],[Nivel 2]]&Tabla2[[#This Row],[Nivel 3]]&Tabla2[[#This Row],[Nivel 4]]&Tabla2[[#This Row],[Nivel 5]]&Tabla2[[#This Row],[Nivel 6]]&Tabla2[[#This Row],[Nivel 7]]","v":"3.303.03.01.04.01.07."}]
[null,"3.","303.","03.","01.","04.","02.",null,"Bonos de Sociedades Anónimas",{"$f":"+EsNegrita(I159)","v":"SI"},null,{"$f":"+Tabla2[[#This Row],[Nivel 1]]&Tabla2[[#This Row],[Nivel 2]]&Tabla2[[#This Row],[Nivel 3]]&Tabla2[[#This Row],[Nivel 4]]&Tabla2[[#This Row],[Nivel 5]]&Tabla2[[#This Row],[Nivel 6]]&Tabla2[[#This Row],[Nivel 7]]","v":"3.303.03.01.04.02."}]
[null,"3.","303.","03.","01.","04.","03.",null,"Otras Inversiones emitidas por el Sector Privado.",{"$f":"+EsNegrita(I160)","v":"SI"},null,{"$f":"+Tabla2[[#This Row],[Nivel 1]]&Tabla2[[#This Row],[Nivel 2]]&Tabla2[[#This Row],[Nivel 3]]&Tabla2[[#This Row],[Nivel 4]]&Tabla2[[#This Row],[Nivel 5]]&Tabla2[[#This Row],[Nivel 6]]&Tabla2[[#This Row],[Nivel 7]]","v":"3.303.03.01.04.03."}]
[null,"3.","303.","03.","01.","05.",null,null,"Activos en el Extranjero",{"$f":"+EsNegrita(I161)","v":"NO"},null,{"$f":"+Tabla2[[#This Row],[Nivel 1]]&Tabla2[[#This Row],[Nivel 2]]&Tabla2[[#This Row],[Nivel 3]]&Tabla2[[#This Row],[Nivel 4]]&Tabla2[[#This Row],[Nivel 5]]&Tabla2[[#This Row],[Nivel 6]]&Tabla2[[#This Row],[Nivel 7]]","v":"3.303.03.01.05."}]
[null,"3.","303.","03.","01.","05.","01.",null,"Bancos  ",{"$f":"+EsNegrita(I162)","v":"SI"},null,{"$f":"+Tabla2[[#This Row],[Nivel 1]]&Tabla2[[#This Row],[Nivel 2]]&Tabla2[[#This Row],[Nivel 3]]&Tabla2[[#This Row],[Nivel 4]]&Tabla2[[#This Row],[Nivel 5]]&Tabla2[[#This Row],[Nivel 6]]&Tabla2[[#This Row],[Nivel 7]]","v":"3.303.03.01.05.01."}]
[null,"3.","303.","03.","01.","05.","02.",null,"Títulos Valores",{"$f":"+EsNegrita(I163)","v":"SI"},null,{"$f":"+Tabla2[[#This Row],[Nivel 1]]&Tabla2[[#This Row],[Nivel 2]]&Tabla2[[#This Row],[Nivel 3]]&Tabla2[[#This Row],[Nivel 4]]&Tabla2[[#This Row],[Nivel 5]]&Tabla2[[#This Row],[Nivel 6]]&Tabla2[[#This Row],[Nivel 7]]","v":"3.303.03.01.05.02."}]
[null,"3.","303.","03.","01.","05.","03.",null,"Inmuebles ",{"$f":"+EsNegrita(I164)","v":"SI"},null,{"$f":"+Tabla2[[#This Row],[Nivel 1]]&Tabla2[[#This Row],[Nivel 2]]&Tabla2[[#This Row],[Nivel 3]]&Tabla2[[#This Row],[Nivel 4]]&Tabla2[[#This Row],[Nivel 5]]&Tabla2[[#This Row],[Nivel 6]]&Tabla2[[#This Row],[Nivel 7]]","v":"3.303.03.01.05.03."}]
[null,"3.","303.","03.","01.","05.","04.",null,"Otras Inversiones ",{"$f":"+EsNegrita(I165)","v":"SI"},null,{"$f":"+Tabla2[[#This Row],[Nivel 1]]&Tabla2[[#This Row],[Nivel 2]]&Tabla2[[#This Row],[Nivel 3]]&Tabla2[[#This Row],[Nivel 4]]&Tabla2[[#This Row],[Nivel 5]]&Tabla2[[#This Row],[Nivel 6]]&Tabla2[[#This Row],[Nivel 7]]","v":"3.303.03.01.05.04."}]
[null,"3.","303.","04.",null,null,null,null,"Operaciones en Proceso",{"$f":"+EsNegrita(I166)","v":"NO"},null,{"$f":"+Tabla2[[#This Row],[Nivel 1]]&Tabla2[[#This Row],[Nivel 2]]&Tabla2[[#This Row],[Nivel 3]]&Tabla2[[#This Row],[Nivel 4]]&Tabla2[[#This Row],[Nivel 5]]&Tabla2[[#This Row],[Nivel 6]]&Tabla2[[#This Row],[Nivel 7]]","v":"3.303.04."}]
[null,"3.","303.","04.","01.",null,null,null,"Operaciones Bancarias",{"$f":"+EsNegrita(I167)","v":"SI"},null,{"$f":"+Tabla2[[#This Row],[Nivel 1]]&Tabla2[[#This Row],[Nivel 2]]&Tabla2[[#This Row],[Nivel 3]]&Tabla2[[#This Row],[Nivel 4]]&Tabla2[[#This Row],[Nivel 5]]&Tabla2[[#This Row],[Nivel 6]]&Tabla2[[#This Row],[Nivel 7]]","v":"3.303.04.01."}]
[null,"3.","303.","04.","02.",null,null,null,"Operaciones de Caja o Cobranzas",{"$f":"+EsNegrita(I168)","v":"SI"},null,{"$f":"+Tabla2[[#This Row],[Nivel 1]]&Tabla2[[#This Row],[Nivel 2]]&Tabla2[[#This Row],[Nivel 3]]&Tabla2[[#This Row],[Nivel 4]]&Tabla2[[#This Row],[Nivel 5]]&Tabla2[[#This Row],[Nivel 6]]&Tabla2[[#This Row],[Nivel 7]]","v":"3.303.04.02."}]
[null,"3.","303.","04.","03.",null,null,null,"Otras Operaciones en Proceso",{"$f":"+EsNegrita(I169)","v":"SI"},null,{"$f":"+Tabla2[[#This Row],[Nivel 1]]&Tabla2[[#This Row],[Nivel 2]]&Tabla2[[#This Row],[Nivel 3]]&Tabla2[[#This Row],[Nivel 4]]&Tabla2[[#This Row],[Nivel 5]]&Tabla2[[#This Row],[Nivel 6]]&Tabla2[[#This Row],[Nivel 7]]","v":"3.303.04.03."}]
[null,"3.","303.","05.",null,null,null,null,"Organismos y Entes de la Administración Pública",{"$f":"+EsNegrita(I170)","v":"SI"},null,{"$f":"+Tabla2[[#This Row],[Nivel 1]]&Tabla2[[#This Row],[Nivel 2]]&Tabla2[[#This Row],[Nivel 3]]&Tabla2[[#This Row],[Nivel 4]]&Tabla2[[#This Row],[Nivel 5]]&Tabla2[[#This Row],[Nivel 6]]&Tabla2[[#This Row],[Nivel 7]]","v":"3.303.05."}]
[null,"3.","303.","06.",null,null,null,null,"Operaciones de Permuta",{"$f":"+EsNegrita(I171)","v":"NO"},null,{"$f":"+Tabla2[[#This Row],[Nivel 1]]&Tabla2[[#This Row],[Nivel 2]]&Tabla2[[#This Row],[Nivel 3]]&Tabla2[[#This Row],[Nivel 4]]&Tabla2[[#This Row],[Nivel 5]]&Tabla2[[#This Row],[Nivel 6]]&Tabla2[[#This Row],[Nivel 7]]","v":"3.303.06."}]
[null,"3.","303.","06.","01.",null,null,null,"Valores Públicos",{"$f":"+EsNegrita(I172)","v":"SI"},null,{"$f":"+Tabla2[[#This Row],[Nivel 1]]&Tabla2[[#This Row],[Nivel 2]]&Tabla2[[#This Row],[Nivel 3]]&Tabla2[[#This Row],[Nivel 4]]&Tabla2[[#This Row],[Nivel 5]]&Tabla2[[#This Row],[Nivel 6]]&Tabla2[[#This Row],[Nivel 7]]","v":"3.303.06.01."}]
[null,"3.","303.","06.","02.",null,null,null,"Valores Privados",{"$f":"+EsNegrita(I173)","v":"SI"},null,{"$f":"+Tabla2[[#This Row],[Nivel 1]]&Tabla2[[#This Row],[Nivel 2]]&Tabla2[[#This Row],[Nivel 3]]&Tabla2[[#This Row],[Nivel 4]]&Tabla2[[#This Row],[Nivel 5]]&Tabla2[[#This Row],[Nivel 6]]&Tabla2[[#This Row],[Nivel 7]]","v":"3.303.06.02."}]
[null,"3.","303.","06.","03.",null,null,null,"Terrenos y Edificaciones",{"$f":"+EsNegrita(I174)","v":"SI"},null,{"$f":"+Tabla2[[#This Row],[Nivel 1]]&Tabla2[[#This Row],[Nivel 2]]&Tabla2[[#This Row],[Nivel 3]]&Tabla2[[#This Row],[Nivel 4]]&Tabla2[[#This Row],[Nivel 5]]&Tabla2[[#This Row],[Nivel 6]]&Tabla2[[#This Row],[Nivel 7]]","v":"3.303.06.03."}]
[null,"3.","303.","06.","04.",null,null,null,"Otros Activos",{"$f":"+EsNegrita(I175)","v":"SI"},null,{"$f":"+Tabla2[[#This Row],[Nivel 1]]&Tabla2[[#This Row],[Nivel 2]]&Tabla2[[#This Row],[Nivel 3]]&Tabla2[[#This Row],[Nivel 4]]&Tabla2[[#This Row],[Nivel 5]]&Tabla2[[#This Row],[Nivel 6]]&Tabla2[[#This Row],[Nivel 7]]","v":"3.303.06.04."}]
[null,"3.","303.","07.",null,null,null,null,"Otros Créditos Diferidos",{"$f":"+EsNegrita(I176)","v":"SI"},null,{"$f":"+Tabla2[[#This Row],[Nivel 1]]&Tabla2[[#This Row],[Nivel 2]]&Tabla2[[#This Row],[Nivel 3]]&Tabla2[[#This Row],[Nivel 4]]&Tabla2[[#This Row],[Nivel 5]]&Tabla2[[#This Row],[Nivel 6]]&Tabla2[[#This Row],[Nivel 7]]","v":"3.303.07."}]
[null,"3.","304.",null,null,null,null,null,"RESERVAS DE PROVISIÓN",{"$f":"+EsNegrita(I177)","v":"NO"},null,{"$f":"+Tabla2[[#This Row],[Nivel 1]]&Tabla2[[#This Row],[Nivel 2]]&Tabla2[[#This Row],[Nivel 3]]&Tabla2[[#This Row],[Nivel 4]]&Tabla2[[#This Row],[Nivel 5]]&Tabla2[[#This Row],[Nivel 6]]&Tabla2[[#This Row],[Nivel 7]]","v":"3.304."}]
[null,"3.","304.","01.",null,null,null,null,"Para Cuentas Dudosas",{"$f":"+EsNegrita(I178)","v":"NO"},"A12",{"$f":"+Tabla2[[#This Row],[Nivel 1]]&Tabla2[[#This Row],[Nivel 2]]&Tabla2[[#This Row],[Nivel 3]]&Tabla2[[#This Row],[Nivel 4]]&Tabla2[[#This Row],[Nivel 5]]&Tabla2[[#This Row],[Nivel 6]]&Tabla2[[#This Row],[Nivel 7]]","v":"3.304.01."}]
[null,"3.","304.","01.","01.",null,null,null,"Cuentas por Cobrar ",{"$f":"+EsNegrita(I179)","v":"SI"},"A12",{"$f":"+Tabla2[[#This Row],[Nivel 1]]&Tabla2[[#This Row],[Nivel 2]]&Tabla2[[#This Row],[Nivel 3]]&Tabla2[[#This Row],[Nivel 4]]&Tabla2[[#This Row],[Nivel 5]]&Tabla2[[#This Row],[Nivel 6]]&Tabla2[[#This Row],[Nivel 7]]","v":"3.304.01.01."}]
[null,"3.","304.","01.","02.",null,null,null,"Préstamos por Cobrar ",{"$f":"+EsNegrita(I180)","v":"SI"},"A12",{"$f":"+Tabla2[[#This Row],[Nivel 1]]&Tabla2[[#This Row],[Nivel 2]]&Tabla2[[#This Row],[Nivel 3]]&Tabla2[[#This Row],[Nivel 4]]&Tabla2[[#This Row],[Nivel 5]]&Tabla2[[#This Row],[Nivel 6]]&Tabla2[[#This Row],[Nivel 7]]","v":"3.304.01.02."}]
[null,"3.","304.","01.","03.",null,null,null,"Otras Cuentas por Cobrar",{"$f":"+EsNegrita(I181)","v":"SI"},"A12",{"$f":"+Tabla2[[#This Row],[Nivel 1]]&Tabla2[[#This Row],[Nivel 2]]&Tabla2[[#This Row],[Nivel 3]]&Tabla2[[#This Row],[Nivel 4]]&Tabla2[[#This Row],[Nivel 5]]&Tabla2[[#This Row],[Nivel 6]]&Tabla2[[#This Row],[Nivel 7]]","v":"3.304.01.03."}]
[null,"3.","304.","02.",null,null,null,null,"Para Otros Fines",{"$f":"+EsNegrita(I182)","v":"NO"},null,{"$f":"+Tabla2[[#This Row],[Nivel 1]]&Tabla2[[#This Row],[Nivel 2]]&Tabla2[[#This Row],[Nivel 3]]&Tabla2[[#This Row],[Nivel 4]]&Tabla2[[#This Row],[Nivel 5]]&Tabla2[[#This Row],[Nivel 6]]&Tabla2[[#This Row],[Nivel 7]]","v":"3.304.02."}]
[null,"3.","304.","02.","01.",null,null,null,"Depósitos y Títulos Valores ",{"$f":"+EsNegrita(I183)","v":"NO"},null,{"$f":"+Tabla2[[#This Row],[Nivel 1]]&Tabla2[[#This Row],[Nivel 2]]&Tabla2[[#This Row],[Nivel 3]]&Tabla2[[#This Row],[Nivel 4]]&Tabla2[[#This Row],[Nivel 5]]&Tabla2[[#This Row],[Nivel 6]]&Tabla2[[#This Row],[Nivel 7]]","v":"3.304.02.01."}]
[null,"3.","304.","02.","01.","01.",null,null,"Bancos",{"$f":"+EsNegrita(I184)","v":"SI"},null,{"$f":"+Tabla2[[#This Row],[Nivel 1]]&Tabla2[[#This Row],[Nivel 2]]&Tabla2[[#This Row],[Nivel 3]]&Tabla2[[#This Row],[Nivel 4]]&Tabla2[[#This Row],[Nivel 5]]&Tabla2[[#This Row],[Nivel 6]]&Tabla2[[#This Row],[Nivel 7]]","v":"3.304.02.01.01."}]
[null,"3.","304.","02.","01.","02.",null,null,"Títulos Valores",{"$f":"+EsNegrita(I185)","v":"NO"},null,{"$f":"+Tabla2[[#This Row],[Nivel 1]]&Tabla2[[#This Row],[Nivel 2]]&Tabla2[[#This Row],[Nivel 3]]&Tabla2[[#This Row],[Nivel 4]]&Tabla2[[#This Row],[Nivel 5]]&Tabla2[[#This Row],[Nivel 6]]&Tabla2[[#This Row],[Nivel 7]]","v":"3.304.02.01.02."}]
[null,"3.","304.","02.","01.","02.","01.",null,"Públicos",{"$f":"+EsNegrita(I186)","v":"SI"},null,{"$f":"+Tabla2[[#This Row],[Nivel 1]]&Tabla2[[#This Row],[Nivel 2]]&Tabla2[[#This Row],[Nivel 3]]&Tabla2[[#This Row],[Nivel 4]]&Tabla2[[#This Row],[Nivel 5]]&Tabla2[[#This Row],[Nivel 6]]&Tabla2[[#This Row],[Nivel 7]]","v":"3.304.02.01.02.01."}]
[null,"3.","304.","02.","01.","02.","02.",null,"Privados",{"$f":"+EsNegrita(I187)","v":"SI"},null,{"$f":"+Tabla2[[#This Row],[Nivel 1]]&Tabla2[[#This Row],[Nivel 2]]&Tabla2[[#This Row],[Nivel 3]]&Tabla2[[#This Row],[Nivel 4]]&Tabla2[[#This Row],[Nivel 5]]&Tabla2[[#This Row],[Nivel 6]]&Tabla2[[#This Row],[Nivel 7]]","v":"3.304.02.01.02.02."}]
[null,"3.","304.","02.","02.",null,null,null,"Organismos y Entes de la Administración Pública",{"$f":"+EsNegrita(I188)","v":"SI"},null,{"$f":"+Tabla2[[#This Row],[Nivel 1]]&Tabla2[[#This Row],[Nivel 2]]&Tabla2[[#This Row],[Nivel 3]]&Tabla2[[#This Row],[Nivel 4]]&Tabla2[[#This Row],[Nivel 5]]&Tabla2[[#This Row],[Nivel 6]]&Tabla2[[#This Row],[Nivel 7]]","v":"3.304.02.02."}]
[null,"3.","304.","02.","03.",null,null,null,"Valores Privados",{"$f":"+EsNegrita(I189)","v":"NO"},null,{"$f":"+Tabla2[[#This Row],[Nivel 1]]&Tabla2[[#This Row],[Nivel 2]]&Tabla2[[#This Row],[Nivel 3]]&Tabla2[[#This Row],[Nivel 4]]&Tabla2[[#This Row],[Nivel 5]]&Tabla2[[#This Row],[Nivel 6]]&Tabla2[[#This Row],[Nivel 7]]","v":"3.304.02.03."}]
[null,"3.","304.","02.","03.","01.",null,null,"Acciones de Sociedades Anónimas",{"$f":"+EsNegrita(I190)","v":"SI"},null,{"$f":"+Tabla2[[#This Row],[Nivel 1]]&Tabla2[[#This Row],[Nivel 2]]&Tabla2[[#This Row],[Nivel 3]]&Tabla2[[#This Row],[Nivel 4]]&Tabla2[[#This Row],[Nivel 5]]&Tabla2[[#This Row],[Nivel 6]]&Tabla2[[#This Row],[Nivel 7]]","v":"3.304.02.03.01."}]
[null,"3.","304.","02.","03.","02.",null,null,"Bonos de Sociedades Anónimas",{"$f":"+EsNegrita(I191)","v":"SI"},null,{"$f":"+Tabla2[[#This Row],[Nivel 1]]&Tabla2[[#This Row],[Nivel 2]]&Tabla2[[#This Row],[Nivel 3]]&Tabla2[[#This Row],[Nivel 4]]&Tabla2[[#This Row],[Nivel 5]]&Tabla2[[#This Row],[Nivel 6]]&Tabla2[[#This Row],[Nivel 7]]","v":"3.304.02.03.02."}]
[null,"3.","304.","02.","03.","03.",null,null,"Obligaciones Mercantiles",{"$f":"+EsNegrita(I192)","v":"SI"},null,{"$f":"+Tabla2[[#This Row],[Nivel 1]]&Tabla2[[#This Row],[Nivel 2]]&Tabla2[[#This Row],[Nivel 3]]&Tabla2[[#This Row],[Nivel 4]]&Tabla2[[#This Row],[Nivel 5]]&Tabla2[[#This Row],[Nivel 6]]&Tabla2[[#This Row],[Nivel 7]]","v":"3.304.02.03.03."}]
[null,"3.","304.","02.","03.","04.",null,null,"Otras Inversiones ",{"$f":"+EsNegrita(I193)","v":"SI"},null,{"$f":"+Tabla2[[#This Row],[Nivel 1]]&Tabla2[[#This Row],[Nivel 2]]&Tabla2[[#This Row],[Nivel 3]]&Tabla2[[#This Row],[Nivel 4]]&Tabla2[[#This Row],[Nivel 5]]&Tabla2[[#This Row],[Nivel 6]]&Tabla2[[#This Row],[Nivel 7]]","v":"3.304.02.03.04."}]
[null,"3.","304.","02.","03.","05.",null,null,"Otras Inversiones emitidas por el Sector Privado.",{"$f":"+EsNegrita(I194)","v":"SI"},null,{"$f":"+Tabla2[[#This Row],[Nivel 1]]&Tabla2[[#This Row],[Nivel 2]]&Tabla2[[#This Row],[Nivel 3]]&Tabla2[[#This Row],[Nivel 4]]&Tabla2[[#This Row],[Nivel 5]]&Tabla2[[#This Row],[Nivel 6]]&Tabla2[[#This Row],[Nivel 7]]","v":"3.304.02.03.05."}]
[null,"3.","304.","02.","03.","06.",null,null,"Activos en el Extranjero",{"$f":"+EsNegrita(I195)","v":"SI"},null,{"$f":"+Tabla2[[#This Row],[Nivel 1]]&Tabla2[[#This Row],[Nivel 2]]&Tabla2[[#This Row],[Nivel 3]]&Tabla2[[#This Row],[Nivel 4]]&Tabla2[[#This Row],[Nivel 5]]&Tabla2[[#This Row],[Nivel 6]]&Tabla2[[#This Row],[Nivel 7]]","v":"3.304.02.03.06."}]
[null,"3.","304.","03.",null,null,null,null,"Otras Contingencias",{"$f":"+EsNegrita(I196)","v":"NO"},null,{"$f":"+Tabla2[[#This Row],[Nivel 1]]&Tabla2[[#This Row],[Nivel 2]]&Tabla2[[#This Row],[Nivel 3]]&Tabla2[[#This Row],[Nivel 4]]&Tabla2[[#This Row],[Nivel 5]]&Tabla2[[#This Row],[Nivel 6]]&Tabla2[[#This Row],[Nivel 7]]","v":"3.304.03."}]
[null,"3.","304.","03.","01.",null,null,null,"Litigios",{"$f":"+EsNegrita(I197)","v":"SI"},null,{"$f":"+Tabla2[[#This Row],[Nivel 1]]&Tabla2[[#This Row],[Nivel 2]]&Tabla2[[#This Row],[Nivel 3]]&Tabla2[[#This Row],[Nivel 4]]&Tabla2[[#This Row],[Nivel 5]]&Tabla2[[#This Row],[Nivel 6]]&Tabla2[[#This Row],[Nivel 7]]","v":"3.304.03.01."}]
[null,"3.","304.","03.","02.",null,null,null,"Multas ",{"$f":"+EsNegrita(I198)","v":"SI"},null,{"$f":"+Tabla2[[#This Row],[Nivel 1]]&Tabla2[[#This Row],[Nivel 2]]&Tabla2[[#This Row],[Nivel 3]]&Tabla2[[#This Row],[Nivel 4]]&Tabla2[[#This Row],[Nivel 5]]&Tabla2[[#This Row],[Nivel 6]]&Tabla2[[#This Row],[Nivel 7]]","v":"3.304.03.02."}]
[null,"3.","304.","03.","03.",null,null,null,"Reparos",{"$f":"+EsNegrita(I199)","v":"SI"},null,{"$f":"+Tabla2[[#This Row],[Nivel 1]]&Tabla2[[#This Row],[Nivel 2]]&Tabla2[[#This Row],[Nivel 3]]&Tabla2[[#This Row],[Nivel 4]]&Tabla2[[#This Row],[Nivel 5]]&Tabla2[[#This Row],[Nivel 6]]&Tabla2[[#This Row],[Nivel 7]]","v":"3.304.03.03."}]
[null,"3.","304.","03.","04.",null,null,null,"Otras ",{"$f":"+EsNegrita(I200)","v":"SI"},null,{"$f":"+Tabla2[[#This Row],[Nivel 1]]&Tabla2[[#This Row],[Nivel 2]]&Tabla2[[#This Row],[Nivel 3]]&Tabla2[[#This Row],[Nivel 4]]&Tabla2[[#This Row],[Nivel 5]]&Tabla2[[#This Row],[Nivel 6]]&Tabla2[[#This Row],[Nivel 7]]","v":"3.304.03.04."}]
[null,"3.","304.","04.",null,null,null,null,"Participación Estatutaria",{"$f":"+EsNegrita(I201)","v":"SI"},null,{"$f":"+Tabla2[[#This Row],[Nivel 1]]&Tabla2[[#This Row],[Nivel 2]]&Tabla2[[#This Row],[Nivel 3]]&Tabla2[[#This Row],[Nivel 4]]&Tabla2[[#This Row],[Nivel 5]]&Tabla2[[#This Row],[Nivel 6]]&Tabla2[[#This Row],[Nivel 7]]","v":"3.304.04."}]
[null,"3.","304.","05.",null,null,null,null,"Prestaciones Laborales de Ley",{"$f":"+EsNegrita(I202)","v":"NO"},null,{"$f":"+Tabla2[[#This Row],[Nivel 1]]&Tabla2[[#This Row],[Nivel 2]]&Tabla2[[#This Row],[Nivel 3]]&Tabla2[[#This Row],[Nivel 4]]&Tabla2[[#This Row],[Nivel 5]]&Tabla2[[#This Row],[Nivel 6]]&Tabla2[[#This Row],[Nivel 7]]","v":"3.304.05."}]
[null,"3.","304.","05.","01.",null,null,null,"Vacaciones ",{"$f":"+EsNegrita(I203)","v":"SI"},null,{"$f":"+Tabla2[[#This Row],[Nivel 1]]&Tabla2[[#This Row],[Nivel 2]]&Tabla2[[#This Row],[Nivel 3]]&Tabla2[[#This Row],[Nivel 4]]&Tabla2[[#This Row],[Nivel 5]]&Tabla2[[#This Row],[Nivel 6]]&Tabla2[[#This Row],[Nivel 7]]","v":"3.304.05.01."}]
[null,"3.","304.","05.","02.",null,null,null,"Bono Vacacional",{"$f":"+EsNegrita(I204)","v":"SI"},null,{"$f":"+Tabla2[[#This Row],[Nivel 1]]&Tabla2[[#This Row],[Nivel 2]]&Tabla2[[#This Row],[Nivel 3]]&Tabla2[[#This Row],[Nivel 4]]&Tabla2[[#This Row],[Nivel 5]]&Tabla2[[#This Row],[Nivel 6]]&Tabla2[[#This Row],[Nivel 7]]","v":"3.304.05.02."}]
[null,"3.","304.","05.","03.",null,null,null,"Bonificaciones Especiales",{"$f":"+EsNegrita(I205)","v":"SI"},null,{"$f":"+Tabla2[[#This Row],[Nivel 1]]&Tabla2[[#This Row],[Nivel 2]]&Tabla2[[#This Row],[Nivel 3]]&Tabla2[[#This Row],[Nivel 4]]&Tabla2[[#This Row],[Nivel 5]]&Tabla2[[#This Row],[Nivel 6]]&Tabla2[[#This Row],[Nivel 7]]","v":"3.304.05.03."}]
[null,"3.","304.","05.","04.",null,null,null,"Prestaciones Sociales",{"$f":"+EsNegrita(I206)","v":"SI"},null,{"$f":"+Tabla2[[#This Row],[Nivel 1]]&Tabla2[[#This Row],[Nivel 2]]&Tabla2[[#This Row],[Nivel 3]]&Tabla2[[#This Row],[Nivel 4]]&Tabla2[[#This Row],[Nivel 5]]&Tabla2[[#This Row],[Nivel 6]]&Tabla2[[#This Row],[Nivel 7]]","v":"3.304.05.04."}]
[null,"3.","304.","05.","05.",null,null,null,"Caja de Ahorro de los Trabajadores - Aporte Patronal",{"$f":"+EsNegrita(I207)","v":"SI"},null,{"$f":"+Tabla2[[#This Row],[Nivel 1]]&Tabla2[[#This Row],[Nivel 2]]&Tabla2[[#This Row],[Nivel 3]]&Tabla2[[#This Row],[Nivel 4]]&Tabla2[[#This Row],[Nivel 5]]&Tabla2[[#This Row],[Nivel 6]]&Tabla2[[#This Row],[Nivel 7]]","v":"3.304.05.05."}]
[null,"3.","304.","05.","06.",null,null,null,"Otras Cuentas por Pagar al Personal",{"$f":"+EsNegrita(I208)","v":"SI"},null,{"$f":"+Tabla2[[#This Row],[Nivel 1]]&Tabla2[[#This Row],[Nivel 2]]&Tabla2[[#This Row],[Nivel 3]]&Tabla2[[#This Row],[Nivel 4]]&Tabla2[[#This Row],[Nivel 5]]&Tabla2[[#This Row],[Nivel 6]]&Tabla2[[#This Row],[Nivel 7]]","v":"3.304.05.06."}]
[null,"3.","304.","06.",null,null,null,null,"Gravámenes y Contribuciones",{"$f":"+EsNegrita(I209)","v":"NO"},null,{"$f":"+Tabla2[[#This Row],[Nivel 1]]&Tabla2[[#This Row],[Nivel 2]]&Tabla2[[#This Row],[Nivel 3]]&Tabla2[[#This Row],[Nivel 4]]&Tabla2[[#This Row],[Nivel 5]]&Tabla2[[#This Row],[Nivel 6]]&Tabla2[[#This Row],[Nivel 7]]","v":"3.304.06."}]
[null,"3.","304.","06.","01.",null,null,null,"Gravámenes",{"$f":"+EsNegrita(I210)","v":"NO"},null,{"$f":"+Tabla2[[#This Row],[Nivel 1]]&Tabla2[[#This Row],[Nivel 2]]&Tabla2[[#This Row],[Nivel 3]]&Tabla2[[#This Row],[Nivel 4]]&Tabla2[[#This Row],[Nivel 5]]&Tabla2[[#This Row],[Nivel 6]]&Tabla2[[#This Row],[Nivel 7]]","v":"3.304.06.01."}]
[null,"3.","304.","06.","01.","01.",null,null,"Impuesto Sobre la Renta",{"$f":"+EsNegrita(I211)","v":"SI"},null,{"$f":"+Tabla2[[#This Row],[Nivel 1]]&Tabla2[[#This Row],[Nivel 2]]&Tabla2[[#This Row],[Nivel 3]]&Tabla2[[#This Row],[Nivel 4]]&Tabla2[[#This Row],[Nivel 5]]&Tabla2[[#This Row],[Nivel 6]]&Tabla2[[#This Row],[Nivel 7]]","v":"3.304.06.01.01."}]
[null,"3.","304.","06.","01.","02.",null,null,"Impuesto Sobre la Renta - Diferido",{"$f":"+EsNegrita(I212)","v":"SI"},null,{"$f":"+Tabla2[[#This Row],[Nivel 1]]&Tabla2[[#This Row],[Nivel 2]]&Tabla2[[#This Row],[Nivel 3]]&Tabla2[[#This Row],[Nivel 4]]&Tabla2[[#This Row],[Nivel 5]]&Tabla2[[#This Row],[Nivel 6]]&Tabla2[[#This Row],[Nivel 7]]","v":"3.304.06.01.02."}]
[null,"3.","304.","06.","01.","03.",null,null,"Impuesto al Valor Agregado",{"$f":"+EsNegrita(I213)","v":"SI"},null,{"$f":"+Tabla2[[#This Row],[Nivel 1]]&Tabla2[[#This Row],[Nivel 2]]&Tabla2[[#This Row],[Nivel 3]]&Tabla2[[#This Row],[Nivel 4]]&Tabla2[[#This Row],[Nivel 5]]&Tabla2[[#This Row],[Nivel 6]]&Tabla2[[#This Row],[Nivel 7]]","v":"3.304.06.01.03."}]
[null,"3.","304.","06.","01.","04.",null,null,"Impuesto a las Grandes Transacciones Financieras",{"$f":"+EsNegrita(I214)","v":"SI"},null,{"$f":"+Tabla2[[#This Row],[Nivel 1]]&Tabla2[[#This Row],[Nivel 2]]&Tabla2[[#This Row],[Nivel 3]]&Tabla2[[#This Row],[Nivel 4]]&Tabla2[[#This Row],[Nivel 5]]&Tabla2[[#This Row],[Nivel 6]]&Tabla2[[#This Row],[Nivel 7]]","v":"3.304.06.01.04."}]
[null,"3.","304.","06.","01.","05.",null,null,"Impuesto a los Grandes Patrimonios",{"$f":"+EsNegrita(I215)","v":"SI"},null,{"$f":"+Tabla2[[#This Row],[Nivel 1]]&Tabla2[[#This Row],[Nivel 2]]&Tabla2[[#This Row],[Nivel 3]]&Tabla2[[#This Row],[Nivel 4]]&Tabla2[[#This Row],[Nivel 5]]&Tabla2[[#This Row],[Nivel 6]]&Tabla2[[#This Row],[Nivel 7]]","v":"3.304.06.01.05."}]
[null,"3.","304.","06.","01.","06.",null,null,"Impuestos Municipales",{"$f":"+EsNegrita(I216)","v":"SI"},null,{"$f":"+Tabla2[[#This Row],[Nivel 1]]&Tabla2[[#This Row],[Nivel 2]]&Tabla2[[#This Row],[Nivel 3]]&Tabla2[[#This Row],[Nivel 4]]&Tabla2[[#This Row],[Nivel 5]]&Tabla2[[#This Row],[Nivel 6]]&Tabla2[[#This Row],[Nivel 7]]","v":"3.304.06.01.06."}]
[null,"3.","304.","06.","01.","07.",null,null,"Otros Impuestos",{"$f":"+EsNegrita(I217)","v":"SI"},null,{"$f":"+Tabla2[[#This Row],[Nivel 1]]&Tabla2[[#This Row],[Nivel 2]]&Tabla2[[#This Row],[Nivel 3]]&Tabla2[[#This Row],[Nivel 4]]&Tabla2[[#This Row],[Nivel 5]]&Tabla2[[#This Row],[Nivel 6]]&Tabla2[[#This Row],[Nivel 7]]","v":"3.304.06.01.07."}]
[null,"3.","304.","06.","02.",null,null,null,"Contribuciones",{"$f":"+EsNegrita(I218)","v":"NO"},null,{"$f":"+Tabla2[[#This Row],[Nivel 1]]&Tabla2[[#This Row],[Nivel 2]]&Tabla2[[#This Row],[Nivel 3]]&Tabla2[[#This Row],[Nivel 4]]&Tabla2[[#This Row],[Nivel 5]]&Tabla2[[#This Row],[Nivel 6]]&Tabla2[[#This Row],[Nivel 7]]","v":"3.304.06.02."}]
[null,"3.","304.","06.","02.","01.",null,null,"Instituto Nacional de Capacitación y Educación Socialista (INCES) - Aporte Patronal",{"$f":"+EsNegrita(I219)","v":"SI"},null,{"$f":"+Tabla2[[#This Row],[Nivel 1]]&Tabla2[[#This Row],[Nivel 2]]&Tabla2[[#This Row],[Nivel 3]]&Tabla2[[#This Row],[Nivel 4]]&Tabla2[[#This Row],[Nivel 5]]&Tabla2[[#This Row],[Nivel 6]]&Tabla2[[#This Row],[Nivel 7]]","v":"3.304.06.02.01."}]
[null,"3.","304.","06.","02.","02.",null,null,"Instituto Venezolano de los Seguros Sociales (IVSS) - Aporte Patronal",{"$f":"+EsNegrita(I220)","v":"SI"},null,{"$f":"+Tabla2[[#This Row],[Nivel 1]]&Tabla2[[#This Row],[Nivel 2]]&Tabla2[[#This Row],[Nivel 3]]&Tabla2[[#This Row],[Nivel 4]]&Tabla2[[#This Row],[Nivel 5]]&Tabla2[[#This Row],[Nivel 6]]&Tabla2[[#This Row],[Nivel 7]]","v":"3.304.06.02.02."}]
[null,"3.","304.","06.","02.","03.",null,null,"Instituto Venezolano de los Seguros Sociales (IVSS) - Paro Forzoso - Aporte Patronal ",{"$f":"+EsNegrita(I221)","v":"SI"},null,{"$f":"+Tabla2[[#This Row],[Nivel 1]]&Tabla2[[#This Row],[Nivel 2]]&Tabla2[[#This Row],[Nivel 3]]&Tabla2[[#This Row],[Nivel 4]]&Tabla2[[#This Row],[Nivel 5]]&Tabla2[[#This Row],[Nivel 6]]&Tabla2[[#This Row],[Nivel 7]]","v":"3.304.06.02.03."}]
[null,"3.","304.","06.","02.","04.",null,null,"Fondo de Ahorro Obligatorio para la Vivienda (FAOV) -  Aporte Patronal",{"$f":"+EsNegrita(I222)","v":"SI"},null,{"$f":"+Tabla2[[#This Row],[Nivel 1]]&Tabla2[[#This Row],[Nivel 2]]&Tabla2[[#This Row],[Nivel 3]]&Tabla2[[#This Row],[Nivel 4]]&Tabla2[[#This Row],[Nivel 5]]&Tabla2[[#This Row],[Nivel 6]]&Tabla2[[#This Row],[Nivel 7]]","v":"3.304.06.02.04."}]
[null,"3.","304.","06.","02.","05.",null,null,"Aporte Especial a la Superintendencia de la Actividad Aseguradora",{"$f":"+EsNegrita(I223)","v":"SI"},null,{"$f":"+Tabla2[[#This Row],[Nivel 1]]&Tabla2[[#This Row],[Nivel 2]]&Tabla2[[#This Row],[Nivel 3]]&Tabla2[[#This Row],[Nivel 4]]&Tabla2[[#This Row],[Nivel 5]]&Tabla2[[#This Row],[Nivel 6]]&Tabla2[[#This Row],[Nivel 7]]","v":"3.304.06.02.05."}]
[null,"3.","304.","06.","02.","06.",null,null,"Aporte para el Desarrollo Social ",{"$f":"+EsNegrita(I224)","v":"SI"},null,{"$f":"+Tabla2[[#This Row],[Nivel 1]]&Tabla2[[#This Row],[Nivel 2]]&Tabla2[[#This Row],[Nivel 3]]&Tabla2[[#This Row],[Nivel 4]]&Tabla2[[#This Row],[Nivel 5]]&Tabla2[[#This Row],[Nivel 6]]&Tabla2[[#This Row],[Nivel 7]]","v":"3.304.06.02.06."}]
[null,"3.","304.","06.","02.","07.",null,null,"Ley Orgánica de Ciencia, Tecnología e Innovación (LOCTI)",{"$f":"+EsNegrita(I225)","v":"SI"},null,{"$f":"+Tabla2[[#This Row],[Nivel 1]]&Tabla2[[#This Row],[Nivel 2]]&Tabla2[[#This Row],[Nivel 3]]&Tabla2[[#This Row],[Nivel 4]]&Tabla2[[#This Row],[Nivel 5]]&Tabla2[[#This Row],[Nivel 6]]&Tabla2[[#This Row],[Nivel 7]]","v":"3.304.06.02.07."}]
[null,"3.","304.","06.","02.","08.",null,null,"Decreto con Fuerza de Ley de los Cuerpos de Bomberos y Bomberas y Administración de Emergencias de Carácter Civil",{"$f":"+EsNegrita(I226)","v":"SI"},null,{"$f":"+Tabla2[[#This Row],[Nivel 1]]&Tabla2[[#This Row],[Nivel 2]]&Tabla2[[#This Row],[Nivel 3]]&Tabla2[[#This Row],[Nivel 4]]&Tabla2[[#This Row],[Nivel 5]]&Tabla2[[#This Row],[Nivel 6]]&Tabla2[[#This Row],[Nivel 7]]","v":"3.304.06.02.08."}]
[null,"3.","304.","06.","02.","09.",null,null,"Ley Orgánica de Drogas",{"$f":"+EsNegrita(I227)","v":"SI"},null,{"$f":"+Tabla2[[#This Row],[Nivel 1]]&Tabla2[[#This Row],[Nivel 2]]&Tabla2[[#This Row],[Nivel 3]]&Tabla2[[#This Row],[Nivel 4]]&Tabla2[[#This Row],[Nivel 5]]&Tabla2[[#This Row],[Nivel 6]]&Tabla2[[#This Row],[Nivel 7]]","v":"3.304.06.02.09."}]
[null,"3.","304.","06.","02.","10.",null,null,"Ley del Deporte",{"$f":"+EsNegrita(I228)","v":"SI"},null,{"$f":"+Tabla2[[#This Row],[Nivel 1]]&Tabla2[[#This Row],[Nivel 2]]&Tabla2[[#This Row],[Nivel 3]]&Tabla2[[#This Row],[Nivel 4]]&Tabla2[[#This Row],[Nivel 5]]&Tabla2[[#This Row],[Nivel 6]]&Tabla2[[#This Row],[Nivel 7]]","v":"3.304.06.02.10."}]
[null,"3.","304.","06.","02.","11.",null,null,"Ley de Gestión Integral de Riesgos Socio-Naturales y Tecnológicos",{"$f":"+EsNegrita(I229)","v":"SI"},null,{"$f":"+Tabla2[[#This Row],[Nivel 1]]&Tabla2[[#This Row],[Nivel 2]]&Tabla2[[#This Row],[Nivel 3]]&Tabla2[[#This Row],[Nivel 4]]&Tabla2[[#This Row],[Nivel 5]]&Tabla2[[#This Row],[Nivel 6]]&Tabla2[[#This Row],[Nivel 7]]","v":"3.304.06.02.11."}]
[null,"3.","304.","06.","02.","12.",null,null,"Otras Contribuciones",{"$f":"+EsNegrita(I230)","v":"SI"},null,{"$f":"+Tabla2[[#This Row],[Nivel 1]]&Tabla2[[#This Row],[Nivel 2]]&Tabla2[[#This Row],[Nivel 3]]&Tabla2[[#This Row],[Nivel 4]]&Tabla2[[#This Row],[Nivel 5]]&Tabla2[[#This Row],[Nivel 6]]&Tabla2[[#This Row],[Nivel 7]]","v":"3.304.06.02.12."}]
[null,"3.","305.",null,null,null,null,null,"RESERVAS DE DEPRECIACIÓN, AMORTIZACIÓN Y DEVALUACIÓN",{"$f":"+EsNegrita(I231)","v":"NO"},null,{"$f":"+Tabla2[[#This Row],[Nivel 1]]&Tabla2[[#This Row],[Nivel 2]]&Tabla2[[#This Row],[Nivel 3]]&Tabla2[[#This Row],[Nivel 4]]&Tabla2[[#This Row],[Nivel 5]]&Tabla2[[#This Row],[Nivel 6]]&Tabla2[[#This Row],[Nivel 7]]","v":"3.305."}]
[null,"3.","305.","01.",null,null,null,null,"Depreciación Acumulada",{"$f":"+EsNegrita(I232)","v":"NO"},null,{"$f":"+Tabla2[[#This Row],[Nivel 1]]&Tabla2[[#This Row],[Nivel 2]]&Tabla2[[#This Row],[Nivel 3]]&Tabla2[[#This Row],[Nivel 4]]&Tabla2[[#This Row],[Nivel 5]]&Tabla2[[#This Row],[Nivel 6]]&Tabla2[[#This Row],[Nivel 7]]","v":"3.305.01."}]
[null,"3.","305.","01.","01.",null,null,null,"Inmuebles ",{"$f":"+EsNegrita(I233)","v":"SI"},"A2-C12",{"$f":"+Tabla2[[#This Row],[Nivel 1]]&Tabla2[[#This Row],[Nivel 2]]&Tabla2[[#This Row],[Nivel 3]]&Tabla2[[#This Row],[Nivel 4]]&Tabla2[[#This Row],[Nivel 5]]&Tabla2[[#This Row],[Nivel 6]]&Tabla2[[#This Row],[Nivel 7]]","v":"3.305.01.01."}]
[null,"3.","305.","01.","02.",null,null,null,"Mobiliario",{"$f":"+EsNegrita(I234)","v":"SI"},null,{"$f":"+Tabla2[[#This Row],[Nivel 1]]&Tabla2[[#This Row],[Nivel 2]]&Tabla2[[#This Row],[Nivel 3]]&Tabla2[[#This Row],[Nivel 4]]&Tabla2[[#This Row],[Nivel 5]]&Tabla2[[#This Row],[Nivel 6]]&Tabla2[[#This Row],[Nivel 7]]","v":"3.305.01.02."}]
[null,"3.","305.","01.","03.",null,null,null,"Equipos de Oficina",{"$f":"+EsNegrita(I235)","v":"SI"},null,{"$f":"+Tabla2[[#This Row],[Nivel 1]]&Tabla2[[#This Row],[Nivel 2]]&Tabla2[[#This Row],[Nivel 3]]&Tabla2[[#This Row],[Nivel 4]]&Tabla2[[#This Row],[Nivel 5]]&Tabla2[[#This Row],[Nivel 6]]&Tabla2[[#This Row],[Nivel 7]]","v":"3.305.01.03."}]
[null,"3.","305.","01.","04.",null,null,null,"Equipos de Computación y Software",{"$f":"+EsNegrita(I236)","v":"SI"},null,{"$f":"+Tabla2[[#This Row],[Nivel 1]]&Tabla2[[#This Row],[Nivel 2]]&Tabla2[[#This Row],[Nivel 3]]&Tabla2[[#This Row],[Nivel 4]]&Tabla2[[#This Row],[Nivel 5]]&Tabla2[[#This Row],[Nivel 6]]&Tabla2[[#This Row],[Nivel 7]]","v":"3.305.01.04."}]
[null,"3.","305.","01.","05.",null,null,null,"Vehículos",{"$f":"+EsNegrita(I237)","v":"SI"},null,{"$f":"+Tabla2[[#This Row],[Nivel 1]]&Tabla2[[#This Row],[Nivel 2]]&Tabla2[[#This Row],[Nivel 3]]&Tabla2[[#This Row],[Nivel 4]]&Tabla2[[#This Row],[Nivel 5]]&Tabla2[[#This Row],[Nivel 6]]&Tabla2[[#This Row],[Nivel 7]]","v":"3.305.01.05."}]
[null,"3.","305.","01.","06.",null,null,null,"Aeronaves",{"$f":"+EsNegrita(I238)","v":"SI"},null,{"$f":"+Tabla2[[#This Row],[Nivel 1]]&Tabla2[[#This Row],[Nivel 2]]&Tabla2[[#This Row],[Nivel 3]]&Tabla2[[#This Row],[Nivel 4]]&Tabla2[[#This Row],[Nivel 5]]&Tabla2[[#This Row],[Nivel 6]]&Tabla2[[#This Row],[Nivel 7]]","v":"3.305.01.06."}]
[null,"3.","305.","01.","07.",null,null,null,"Naves",{"$f":"+EsNegrita(I239)","v":"SI"},null,{"$f":"+Tabla2[[#This Row],[Nivel 1]]&Tabla2[[#This Row],[Nivel 2]]&Tabla2[[#This Row],[Nivel 3]]&Tabla2[[#This Row],[Nivel 4]]&Tabla2[[#This Row],[Nivel 5]]&Tabla2[[#This Row],[Nivel 6]]&Tabla2[[#This Row],[Nivel 7]]","v":"3.305.01.07."}]
[null,"3.","305.","02.",null,null,null,null,"Amortización Acumulada ",{"$f":"+EsNegrita(I240)","v":"NO"},null,{"$f":"+Tabla2[[#This Row],[Nivel 1]]&Tabla2[[#This Row],[Nivel 2]]&Tabla2[[#This Row],[Nivel 3]]&Tabla2[[#This Row],[Nivel 4]]&Tabla2[[#This Row],[Nivel 5]]&Tabla2[[#This Row],[Nivel 6]]&Tabla2[[#This Row],[Nivel 7]]","v":"3.305.02."}]
[null,"3.","305.","02.","01.",null,null,null,"Gastos de Constitución",{"$f":"+EsNegrita(I241)","v":"SI"},null,{"$f":"+Tabla2[[#This Row],[Nivel 1]]&Tabla2[[#This Row],[Nivel 2]]&Tabla2[[#This Row],[Nivel 3]]&Tabla2[[#This Row],[Nivel 4]]&Tabla2[[#This Row],[Nivel 5]]&Tabla2[[#This Row],[Nivel 6]]&Tabla2[[#This Row],[Nivel 7]]","v":"3.305.02.01."}]
[null,"3.","305.","02.","02.",null,null,null,"Gastos de Instalación",{"$f":"+EsNegrita(I242)","v":"SI"},null,{"$f":"+Tabla2[[#This Row],[Nivel 1]]&Tabla2[[#This Row],[Nivel 2]]&Tabla2[[#This Row],[Nivel 3]]&Tabla2[[#This Row],[Nivel 4]]&Tabla2[[#This Row],[Nivel 5]]&Tabla2[[#This Row],[Nivel 6]]&Tabla2[[#This Row],[Nivel 7]]","v":"3.305.02.02."}]
[null,"3.","305.","03.",null,null,null,null,"Devaluación",{"$f":"+EsNegrita(I243)","v":"NO"},null,{"$f":"+Tabla2[[#This Row],[Nivel 1]]&Tabla2[[#This Row],[Nivel 2]]&Tabla2[[#This Row],[Nivel 3]]&Tabla2[[#This Row],[Nivel 4]]&Tabla2[[#This Row],[Nivel 5]]&Tabla2[[#This Row],[Nivel 6]]&Tabla2[[#This Row],[Nivel 7]]","v":"3.305.03."}]
[null,"3.","305.","03.","01.",null,null,null,"Valores",{"$f":"+EsNegrita(I244)","v":"NO"},null,{"$f":"+Tabla2[[#This Row],[Nivel 1]]&Tabla2[[#This Row],[Nivel 2]]&Tabla2[[#This Row],[Nivel 3]]&Tabla2[[#This Row],[Nivel 4]]&Tabla2[[#This Row],[Nivel 5]]&Tabla2[[#This Row],[Nivel 6]]&Tabla2[[#This Row],[Nivel 7]]","v":"3.305.03.01."}]
[null,"3.","305.","03.","01.","01.",null,null,"Valores Públicos",{"$f":"+EsNegrita(I245)","v":"NO"},null,{"$f":"+Tabla2[[#This Row],[Nivel 1]]&Tabla2[[#This Row],[Nivel 2]]&Tabla2[[#This Row],[Nivel 3]]&Tabla2[[#This Row],[Nivel 4]]&Tabla2[[#This Row],[Nivel 5]]&Tabla2[[#This Row],[Nivel 6]]&Tabla2[[#This Row],[Nivel 7]]","v":"3.305.03.01.01."}]
[null,"3.","305.","03.","01.","01.","01.",null,"Emitidos o Garantizados por la República",{"$f":"+EsNegrita(I246)","v":"SI"},null,{"$f":"+Tabla2[[#This Row],[Nivel 1]]&Tabla2[[#This Row],[Nivel 2]]&Tabla2[[#This Row],[Nivel 3]]&Tabla2[[#This Row],[Nivel 4]]&Tabla2[[#This Row],[Nivel 5]]&Tabla2[[#This Row],[Nivel 6]]&Tabla2[[#This Row],[Nivel 7]]","v":"3.305.03.01.01.01."}]
[null,"3.","305.","03.","01.","01.","02.",null,"Emitidos por Otros Sujetos de Derecho Público Nacional",{"$f":"+EsNegrita(I247)","v":"SI"},null,{"$f":"+Tabla2[[#This Row],[Nivel 1]]&Tabla2[[#This Row],[Nivel 2]]&Tabla2[[#This Row],[Nivel 3]]&Tabla2[[#This Row],[Nivel 4]]&Tabla2[[#This Row],[Nivel 5]]&Tabla2[[#This Row],[Nivel 6]]&Tabla2[[#This Row],[Nivel 7]]","v":"3.305.03.01.01.02."}]
[null,"3.","305.","03.","01.","01.","03.",null,"Emitidos por Empresas con Participación de la República",{"$f":"+EsNegrita(I248)","v":"SI"},null,{"$f":"+Tabla2[[#This Row],[Nivel 1]]&Tabla2[[#This Row],[Nivel 2]]&Tabla2[[#This Row],[Nivel 3]]&Tabla2[[#This Row],[Nivel 4]]&Tabla2[[#This Row],[Nivel 5]]&Tabla2[[#This Row],[Nivel 6]]&Tabla2[[#This Row],[Nivel 7]]","v":"3.305.03.01.01.03."}]
[null,"3.","305.","03.","01.","01.","04.",null,"Emitidos por Instituciones con Participación de la República",{"$f":"+EsNegrita(I249)","v":"SI"},null,{"$f":"+Tabla2[[#This Row],[Nivel 1]]&Tabla2[[#This Row],[Nivel 2]]&Tabla2[[#This Row],[Nivel 3]]&Tabla2[[#This Row],[Nivel 4]]&Tabla2[[#This Row],[Nivel 5]]&Tabla2[[#This Row],[Nivel 6]]&Tabla2[[#This Row],[Nivel 7]]","v":"3.305.03.01.01.04."}]
[null,"3.","305.","03.","01.","02.",null,null,"Participación en Fondos de Inversión",{"$f":"+EsNegrita(I250)","v":"NO"},null,{"$f":"+Tabla2[[#This Row],[Nivel 1]]&Tabla2[[#This Row],[Nivel 2]]&Tabla2[[#This Row],[Nivel 3]]&Tabla2[[#This Row],[Nivel 4]]&Tabla2[[#This Row],[Nivel 5]]&Tabla2[[#This Row],[Nivel 6]]&Tabla2[[#This Row],[Nivel 7]]","v":"3.305.03.01.02."}]
[null,"3.","305.","03.","01.","02.","01.",null,"Renta Fija",{"$f":"+EsNegrita(I251)","v":"SI"},null,{"$f":"+Tabla2[[#This Row],[Nivel 1]]&Tabla2[[#This Row],[Nivel 2]]&Tabla2[[#This Row],[Nivel 3]]&Tabla2[[#This Row],[Nivel 4]]&Tabla2[[#This Row],[Nivel 5]]&Tabla2[[#This Row],[Nivel 6]]&Tabla2[[#This Row],[Nivel 7]]","v":"3.305.03.01.02.01."}]
[null,"3.","305.","03.","01.","02.","02.",null,"Renta Variable",{"$f":"+EsNegrita(I252)","v":"SI"},null,{"$f":"+Tabla2[[#This Row],[Nivel 1]]&Tabla2[[#This Row],[Nivel 2]]&Tabla2[[#This Row],[Nivel 3]]&Tabla2[[#This Row],[Nivel 4]]&Tabla2[[#This Row],[Nivel 5]]&Tabla2[[#This Row],[Nivel 6]]&Tabla2[[#This Row],[Nivel 7]]","v":"3.305.03.01.02.02."}]
[null,"3.","305.","03.","01.","03.",null,null,"Valores Privados",{"$f":"+EsNegrita(I253)","v":"NO"},null,{"$f":"+Tabla2[[#This Row],[Nivel 1]]&Tabla2[[#This Row],[Nivel 2]]&Tabla2[[#This Row],[Nivel 3]]&Tabla2[[#This Row],[Nivel 4]]&Tabla2[[#This Row],[Nivel 5]]&Tabla2[[#This Row],[Nivel 6]]&Tabla2[[#This Row],[Nivel 7]]","v":"3.305.03.01.03."}]
[null,"3.","305.","03.","01.","03.","01.",null,"Acciones de Sociedades Anónimas",{"$f":"+EsNegrita(I254)","v":"NO"},null,{"$f":"+Tabla2[[#This Row],[Nivel 1]]&Tabla2[[#This Row],[Nivel 2]]&Tabla2[[#This Row],[Nivel 3]]&Tabla2[[#This Row],[Nivel 4]]&Tabla2[[#This Row],[Nivel 5]]&Tabla2[[#This Row],[Nivel 6]]&Tabla2[[#This Row],[Nivel 7]]","v":"3.305.03.01.03.01."}]
[null,"3.","305.","03.","01.","03.","01.","01.","Empresas de Seguros o Reaseguros",{"$f":"+EsNegrita(I255)","v":"SI"},null,{"$f":"+Tabla2[[#This Row],[Nivel 1]]&Tabla2[[#This Row],[Nivel 2]]&Tabla2[[#This Row],[Nivel 3]]&Tabla2[[#This Row],[Nivel 4]]&Tabla2[[#This Row],[Nivel 5]]&Tabla2[[#This Row],[Nivel 6]]&Tabla2[[#This Row],[Nivel 7]]","v":"3.305.03.01.03.01.01."}]
[null,"3.","305.","03.","01.","03.","01.","02.","Sociedades de Corretaje de Seguros, de Reaseguros o de Valores",{"$f":"+EsNegrita(I256)","v":"SI"},null,{"$f":"+Tabla2[[#This Row],[Nivel 1]]&Tabla2[[#This Row],[Nivel 2]]&Tabla2[[#This Row],[Nivel 3]]&Tabla2[[#This Row],[Nivel 4]]&Tabla2[[#This Row],[Nivel 5]]&Tabla2[[#This Row],[Nivel 6]]&Tabla2[[#This Row],[Nivel 7]]","v":"3.305.03.01.03.01.02."}]
[null,"3.","305.","03.","01.","03.","01.","03.","Bancos y Otras Instituciones Financieras",{"$f":"+EsNegrita(I257)","v":"SI"},null,{"$f":"+Tabla2[[#This Row],[Nivel 1]]&Tabla2[[#This Row],[Nivel 2]]&Tabla2[[#This Row],[Nivel 3]]&Tabla2[[#This Row],[Nivel 4]]&Tabla2[[#This Row],[Nivel 5]]&Tabla2[[#This Row],[Nivel 6]]&Tabla2[[#This Row],[Nivel 7]]","v":"3.305.03.01.03.01.03."}]
[null,"3.","305.","03.","01.","03.","01.","04.","Sociedades Industriales y Comerciales",{"$f":"+EsNegrita(I258)","v":"SI"},null,{"$f":"+Tabla2[[#This Row],[Nivel 1]]&Tabla2[[#This Row],[Nivel 2]]&Tabla2[[#This Row],[Nivel 3]]&Tabla2[[#This Row],[Nivel 4]]&Tabla2[[#This Row],[Nivel 5]]&Tabla2[[#This Row],[Nivel 6]]&Tabla2[[#This Row],[Nivel 7]]","v":"3.305.03.01.03.01.04."}]
[null,"3.","305.","03.","01.","03.","01.","05.","Sociedades Civiles",{"$f":"+EsNegrita(I259)","v":"SI"},null,{"$f":"+Tabla2[[#This Row],[Nivel 1]]&Tabla2[[#This Row],[Nivel 2]]&Tabla2[[#This Row],[Nivel 3]]&Tabla2[[#This Row],[Nivel 4]]&Tabla2[[#This Row],[Nivel 5]]&Tabla2[[#This Row],[Nivel 6]]&Tabla2[[#This Row],[Nivel 7]]","v":"3.305.03.01.03.01.05."}]
[null,"3.","305.","03.","01.","03.","01.","06.","Empresas Filiales, Afiliadas y Relacionadas",{"$f":"+EsNegrita(I260)","v":"SI"},null,{"$f":"+Tabla2[[#This Row],[Nivel 1]]&Tabla2[[#This Row],[Nivel 2]]&Tabla2[[#This Row],[Nivel 3]]&Tabla2[[#This Row],[Nivel 4]]&Tabla2[[#This Row],[Nivel 5]]&Tabla2[[#This Row],[Nivel 6]]&Tabla2[[#This Row],[Nivel 7]]","v":"3.305.03.01.03.01.06."}]
[null,"3.","305.","03.","01.","03.","01.","07.","Otras Sociedades Anónimas",{"$f":"+EsNegrita(I261)","v":"SI"},null,{"$f":"+Tabla2[[#This Row],[Nivel 1]]&Tabla2[[#This Row],[Nivel 2]]&Tabla2[[#This Row],[Nivel 3]]&Tabla2[[#This Row],[Nivel 4]]&Tabla2[[#This Row],[Nivel 5]]&Tabla2[[#This Row],[Nivel 6]]&Tabla2[[#This Row],[Nivel 7]]","v":"3.305.03.01.03.01.07."}]
[null,"3.","305.","03.","01.","03.","02.",null,"Bonos de Sociedades Anónimas",{"$f":"+EsNegrita(I262)","v":"SI"},null,{"$f":"+Tabla2[[#This Row],[Nivel 1]]&Tabla2[[#This Row],[Nivel 2]]&Tabla2[[#This Row],[Nivel 3]]&Tabla2[[#This Row],[Nivel 4]]&Tabla2[[#This Row],[Nivel 5]]&Tabla2[[#This Row],[Nivel 6]]&Tabla2[[#This Row],[Nivel 7]]","v":"3.305.03.01.03.02."}]
[null,"3.","305.","03.","01.","03.","03.",null,"Otras Inversiones emitidas por el Sector Privado.",{"$f":"+EsNegrita(I263)","v":"SI"},null,{"$f":"+Tabla2[[#This Row],[Nivel 1]]&Tabla2[[#This Row],[Nivel 2]]&Tabla2[[#This Row],[Nivel 3]]&Tabla2[[#This Row],[Nivel 4]]&Tabla2[[#This Row],[Nivel 5]]&Tabla2[[#This Row],[Nivel 6]]&Tabla2[[#This Row],[Nivel 7]]","v":"3.305.03.01.03.03."}]
[null,"3.","305.","03.","01.","04.",null,null,"Activos en el Extranjero",{"$f":"+EsNegrita(I264)","v":"NO"},null,{"$f":"+Tabla2[[#This Row],[Nivel 1]]&Tabla2[[#This Row],[Nivel 2]]&Tabla2[[#This Row],[Nivel 3]]&Tabla2[[#This Row],[Nivel 4]]&Tabla2[[#This Row],[Nivel 5]]&Tabla2[[#This Row],[Nivel 6]]&Tabla2[[#This Row],[Nivel 7]]","v":"3.305.03.01.04."}]
[null,"3.","305.","03.","01.","04.","01.",null,"Títulos Valores",{"$f":"+EsNegrita(I265)","v":"SI"},null,{"$f":"+Tabla2[[#This Row],[Nivel 1]]&Tabla2[[#This Row],[Nivel 2]]&Tabla2[[#This Row],[Nivel 3]]&Tabla2[[#This Row],[Nivel 4]]&Tabla2[[#This Row],[Nivel 5]]&Tabla2[[#This Row],[Nivel 6]]&Tabla2[[#This Row],[Nivel 7]]","v":"3.305.03.01.04.01."}]
[null,"3.","305.","03.","01.","05.",null,null,"Depósitos y Títulos Valores en Instituciones Intervenidas",{"$f":"+EsNegrita(I266)","v":"SI"},null,{"$f":"+Tabla2[[#This Row],[Nivel 1]]&Tabla2[[#This Row],[Nivel 2]]&Tabla2[[#This Row],[Nivel 3]]&Tabla2[[#This Row],[Nivel 4]]&Tabla2[[#This Row],[Nivel 5]]&Tabla2[[#This Row],[Nivel 6]]&Tabla2[[#This Row],[Nivel 7]]","v":"3.305.03.01.05."}]
[null,"3.","305.","03.","02.",null,null,null,"Bienes",{"$f":"+EsNegrita(I267)","v":"NO"},null,{"$f":"+Tabla2[[#This Row],[Nivel 1]]&Tabla2[[#This Row],[Nivel 2]]&Tabla2[[#This Row],[Nivel 3]]&Tabla2[[#This Row],[Nivel 4]]&Tabla2[[#This Row],[Nivel 5]]&Tabla2[[#This Row],[Nivel 6]]&Tabla2[[#This Row],[Nivel 7]]","v":"3.305.03.02."}]
[null,"3.","305.","03.","02.","01.",null,null,"Participación Fondos de Inversión Inmobiliarios",{"$f":"+EsNegrita(I268)","v":"SI"},null,{"$f":"+Tabla2[[#This Row],[Nivel 1]]&Tabla2[[#This Row],[Nivel 2]]&Tabla2[[#This Row],[Nivel 3]]&Tabla2[[#This Row],[Nivel 4]]&Tabla2[[#This Row],[Nivel 5]]&Tabla2[[#This Row],[Nivel 6]]&Tabla2[[#This Row],[Nivel 7]]","v":"3.305.03.02.01."}]
[null,"3.","305.","03.","02.","02.",null,null,"Activos Depreciables  ",{"$f":"+EsNegrita(I269)","v":"NO"},"A2-C13",{"$f":"+Tabla2[[#This Row],[Nivel 1]]&Tabla2[[#This Row],[Nivel 2]]&Tabla2[[#This Row],[Nivel 3]]&Tabla2[[#This Row],[Nivel 4]]&Tabla2[[#This Row],[Nivel 5]]&Tabla2[[#This Row],[Nivel 6]]&Tabla2[[#This Row],[Nivel 7]]","v":"3.305.03.02.02."}]
[null,"3.","305.","03.","02.","02.","01.",null,"Terrenos",{"$f":"+EsNegrita(I270)","v":"SI"},"A2-C13",{"$f":"+Tabla2[[#This Row],[Nivel 1]]&Tabla2[[#This Row],[Nivel 2]]&Tabla2[[#This Row],[Nivel 3]]&Tabla2[[#This Row],[Nivel 4]]&Tabla2[[#This Row],[Nivel 5]]&Tabla2[[#This Row],[Nivel 6]]&Tabla2[[#This Row],[Nivel 7]]","v":"3.305.03.02.02.01."}]
[null,"3.","305.","03.","02.","02.","02.",null,"Inmuebles",{"$f":"+EsNegrita(I271)","v":"SI"},"A2-C13",{"$f":"+Tabla2[[#This Row],[Nivel 1]]&Tabla2[[#This Row],[Nivel 2]]&Tabla2[[#This Row],[Nivel 3]]&Tabla2[[#This Row],[Nivel 4]]&Tabla2[[#This Row],[Nivel 5]]&Tabla2[[#This Row],[Nivel 6]]&Tabla2[[#This Row],[Nivel 7]]","v":"3.305.03.02.02.02."}]
[null,"3.","305.","03.","02.","03.",null,null,"Activos en el Extranjero",{"$f":"+EsNegrita(I272)","v":"NO"},null,{"$f":"+Tabla2[[#This Row],[Nivel 1]]&Tabla2[[#This Row],[Nivel 2]]&Tabla2[[#This Row],[Nivel 3]]&Tabla2[[#This Row],[Nivel 4]]&Tabla2[[#This Row],[Nivel 5]]&Tabla2[[#This Row],[Nivel 6]]&Tabla2[[#This Row],[Nivel 7]]","v":"3.305.03.02.03."}]
[null,"3.","305.","03.","02.","03.","01.",null,"Inmuebles ",{"$f":"+EsNegrita(I273)","v":"SI"},null,{"$f":"+Tabla2[[#This Row],[Nivel 1]]&Tabla2[[#This Row],[Nivel 2]]&Tabla2[[#This Row],[Nivel 3]]&Tabla2[[#This Row],[Nivel 4]]&Tabla2[[#This Row],[Nivel 5]]&Tabla2[[#This Row],[Nivel 6]]&Tabla2[[#This Row],[Nivel 7]]","v":"3.305.03.02.03.01."}]
[null,"3.","305.","03.","02.","03.","02.",null,"Otras Inversiones ",{"$f":"+EsNegrita(I274)","v":"SI"},null,{"$f":"+Tabla2[[#This Row],[Nivel 1]]&Tabla2[[#This Row],[Nivel 2]]&Tabla2[[#This Row],[Nivel 3]]&Tabla2[[#This Row],[Nivel 4]]&Tabla2[[#This Row],[Nivel 5]]&Tabla2[[#This Row],[Nivel 6]]&Tabla2[[#This Row],[Nivel 7]]","v":"3.305.03.02.03.02."}]
[null,"4.",null,null,null,null,null,null,"PATRIMONIO",{"$f":"+EsNegrita(I275)","v":"NO"},null,{"$f":"+Tabla2[[#This Row],[Nivel 1]]&Tabla2[[#This Row],[Nivel 2]]&Tabla2[[#This Row],[Nivel 3]]&Tabla2[[#This Row],[Nivel 4]]&Tabla2[[#This Row],[Nivel 5]]&Tabla2[[#This Row],[Nivel 6]]&Tabla2[[#This Row],[Nivel 7]]","v":"4."}]
[null,"4.","401.",null,null,null,null,null,"Capital Pagado","SI","A13",{"$f":"+Tabla2[[#This Row],[Nivel 1]]&Tabla2[[#This Row],[Nivel 2]]&Tabla2[[#This Row],[Nivel 3]]&Tabla2[[#This Row],[Nivel 4]]&Tabla2[[#This Row],[Nivel 5]]&Tabla2[[#This Row],[Nivel 6]]&Tabla2[[#This Row],[Nivel 7]]","v":"4.401."}]
[null,"4.","402.",null,null,null,null,null,"Superávit Ganado",{"$f":"+EsNegrita(I277)","v":"NO"},null,{"$f":"+Tabla2[[#This Row],[Nivel 1]]&Tabla2[[#This Row],[Nivel 2]]&Tabla2[[#This Row],[Nivel 3]]&Tabla2[[#This Row],[Nivel 4]]&Tabla2[[#This Row],[Nivel 5]]&Tabla2[[#This Row],[Nivel 6]]&Tabla2[[#This Row],[Nivel 7]]","v":"4.402."}]
[null,"4.","402.","01.",null,null,null,null,"Reserva Legal",{"$f":"+EsNegrita(I278)","v":"SI"},null,{"$f":"+Tabla2[[#This Row],[Nivel 1]]&Tabla2[[#This Row],[Nivel 2]]&Tabla2[[#This Row],[Nivel 3]]&Tabla2[[#This Row],[Nivel 4]]&Tabla2[[#This Row],[Nivel 5]]&Tabla2[[#This Row],[Nivel 6]]&Tabla2[[#This Row],[Nivel 7]]","v":"4.402.01."}]
[null,"4.","402.","02.",null,null,null,null,"Reservas Estatutarias",{"$f":"+EsNegrita(I279)","v":"SI"},null,{"$f":"+Tabla2[[#This Row],[Nivel 1]]&Tabla2[[#This Row],[Nivel 2]]&Tabla2[[#This Row],[Nivel 3]]&Tabla2[[#This Row],[Nivel 4]]&Tabla2[[#This Row],[Nivel 5]]&Tabla2[[#This Row],[Nivel 6]]&Tabla2[[#This Row],[Nivel 7]]","v":"4.402.02."}]
[null,"4.","402.","03.",null,null,null,null,"Reservas Voluntarias",{"$f":"+EsNegrita(I280)","v":"SI"},null,{"$f":"+Tabla2[[#This Row],[Nivel 1]]&Tabla2[[#This Row],[Nivel 2]]&Tabla2[[#This Row],[Nivel 3]]&Tabla2[[#This Row],[Nivel 4]]&Tabla2[[#This Row],[Nivel 5]]&Tabla2[[#This Row],[Nivel 6]]&Tabla2[[#This Row],[Nivel 7]]","v":"4.402.03."}]
[null,"4.","402.","04.",null,null,null,null,"Utilidades No Distribuidas",{"$f":"+EsNegrita(I281)","v":"SI"},null,{"$f":"+Tabla2[[#This Row],[Nivel 1]]&Tabla2[[#This Row],[Nivel 2]]&Tabla2[[#This Row],[Nivel 3]]&Tabla2[[#This Row],[Nivel 4]]&Tabla2[[#This Row],[Nivel 5]]&Tabla2[[#This Row],[Nivel 6]]&Tabla2[[#This Row],[Nivel 7]]","v":"4.402.04."}]
[null,"4.","403.",null,null,null,null,null,"Utilidad",{"$f":"+EsNegrita(I282)","v":"NO"},null,{"$f":"+Tabla2[[#This Row],[Nivel 1]]&Tabla2[[#This Row],[Nivel 2]]&Tabla2[[#This Row],[Nivel 3]]&Tabla2[[#This Row],[Nivel 4]]&Tabla2[[#This Row],[Nivel 5]]&Tabla2[[#This Row],[Nivel 6]]&Tabla2[[#This Row],[Nivel 7]]","v":"4.403."}]
[null,"4.","403.","01.",null,null,null,null,"Utilidad Del Ejercicio ",{"$f":"+EsNegrita(I283)","v":"SI"},null,{"$f":"+Tabla2[[#This Row],[Nivel 1]]&Tabla2[[#This Row],[Nivel 2]]&Tabla2[[#This Row],[Nivel 3]]&Tabla2[[#This Row],[Nivel 4]]&Tabla2[[#This Row],[Nivel 5]]&Tabla2[[#This Row],[Nivel 6]]&Tabla2[[#This Row],[Nivel 7]]","v":"4.403.01."}]
[null,"4.","403.","02.",null,null,null,null,"Saldo de Operaciones - Utilidad",{"$f":"+EsNegrita(I284)","v":"SI"},null,{"$f":"+Tabla2[[#This Row],[Nivel 1]]&Tabla2[[#This Row],[Nivel 2]]&Tabla2[[#This Row],[Nivel 3]]&Tabla2[[#This Row],[Nivel 4]]&Tabla2[[#This Row],[Nivel 5]]&Tabla2[[#This Row],[Nivel 6]]&Tabla2[[#This Row],[Nivel 7]]","v":"4.403.02."}]
[null,"4.","404.",null,null,null,null,null,"Pérdidas ",{"$f":"+EsNegrita(I285)","v":"NO"},null,{"$f":"+Tabla2[[#This Row],[Nivel 1]]&Tabla2[[#This Row],[Nivel 2]]&Tabla2[[#This Row],[Nivel 3]]&Tabla2[[#This Row],[Nivel 4]]&Tabla2[[#This Row],[Nivel 5]]&Tabla2[[#This Row],[Nivel 6]]&Tabla2[[#This Row],[Nivel 7]]","v":"4.404."}]
[null,"4.","404.","01.",null,null,null,null,"Pérdida Del Ejercicio ",{"$f":"+EsNegrita(I286)","v":"SI"},null,{"$f":"+Tabla2[[#This Row],[Nivel 1]]&Tabla2[[#This Row],[Nivel 2]]&Tabla2[[#This Row],[Nivel 3]]&Tabla2[[#This Row],[Nivel 4]]&Tabla2[[#This Row],[Nivel 5]]&Tabla2[[#This Row],[Nivel 6]]&Tabla2[[#This Row],[Nivel 7]]","v":"4.404.01."}]
[null,"4.","404.","02.",null,null,null,null,"Pérdidas De Ejercicios Anteriores",{"$f":"+EsNegrita(I287)","v":"SI"},null,{"$f":"+Tabla2[[#This Row],[Nivel 1]]&Tabla2[[#This Row],[Nivel 2]]&Tabla2[[#This Row],[Nivel 3]]&Tabla2[[#This Row],[Nivel 4]]&Tabla2[[#This Row],[Nivel 5]]&Tabla2[[#This Row],[Nivel 6]]&Tabla2[[#This Row],[Nivel 7]]","v":"4.404.02."}]
[null,"4.","404.","03.",null,null,null,null,"Saldo de Operaciones - Pérdida",{"$f":"+EsNegrita(I288)","v":"SI"},null,{"$f":"+Tabla2[[#This Row],[Nivel 1]]&Tabla2[[#This Row],[Nivel 2]]&Tabla2[[#This Row],[Nivel 3]]&Tabla2[[#This Row],[Nivel 4]]&Tabla2[[#This Row],[Nivel 5]]&Tabla2[[#This Row],[Nivel 6]]&Tabla2[[#This Row],[Nivel 7]]","v":"4.404.03."}]
[null,"4.","405.",null,null,null,null,null,"Aportes No Capitalizados",{"$f":"+EsNegrita(I289)","v":"NO"},null,{"$f":"+Tabla2[[#This Row],[Nivel 1]]&Tabla2[[#This Row],[Nivel 2]]&Tabla2[[#This Row],[Nivel 3]]&Tabla2[[#This Row],[Nivel 4]]&Tabla2[[#This Row],[Nivel 5]]&Tabla2[[#This Row],[Nivel 6]]&Tabla2[[#This Row],[Nivel 7]]","v":"4.405."}]
[null,"4.","405.","01.",null,null,null,null,"Efectivo",{"$f":"+EsNegrita(I290)","v":"SI"},null,{"$f":"+Tabla2[[#This Row],[Nivel 1]]&Tabla2[[#This Row],[Nivel 2]]&Tabla2[[#This Row],[Nivel 3]]&Tabla2[[#This Row],[Nivel 4]]&Tabla2[[#This Row],[Nivel 5]]&Tabla2[[#This Row],[Nivel 6]]&Tabla2[[#This Row],[Nivel 7]]","v":"4.405.01."}]
[null,"4.","405.","02.",null,null,null,null,"Títulos del Estado Venezolano indexados ",{"$f":"+EsNegrita(I291)","v":"SI"},null,{"$f":"+Tabla2[[#This Row],[Nivel 1]]&Tabla2[[#This Row],[Nivel 2]]&Tabla2[[#This Row],[Nivel 3]]&Tabla2[[#This Row],[Nivel 4]]&Tabla2[[#This Row],[Nivel 5]]&Tabla2[[#This Row],[Nivel 6]]&Tabla2[[#This Row],[Nivel 7]]","v":"4.405.02."}]
[null,"4.","406.",null,null,null,null,null,"SUPERÁVIT NO REALIZADO",{"$f":"+EsNegrita(I292)","v":"NO"},null,{"$f":"+Tabla2[[#This Row],[Nivel 1]]&Tabla2[[#This Row],[Nivel 2]]&Tabla2[[#This Row],[Nivel 3]]&Tabla2[[#This Row],[Nivel 4]]&Tabla2[[#This Row],[Nivel 5]]&Tabla2[[#This Row],[Nivel 6]]&Tabla2[[#This Row],[Nivel 7]]","v":"4.406."}]
[null,"4.","406.","01.",null,null,null,null,"Reservas para Revalorización de Valores",{"$f":"+EsNegrita(I293)","v":"NO"},null,{"$f":"+Tabla2[[#This Row],[Nivel 1]]&Tabla2[[#This Row],[Nivel 2]]&Tabla2[[#This Row],[Nivel 3]]&Tabla2[[#This Row],[Nivel 4]]&Tabla2[[#This Row],[Nivel 5]]&Tabla2[[#This Row],[Nivel 6]]&Tabla2[[#This Row],[Nivel 7]]","v":"4.406.01."}]
[null,"4.","406.","01.","01.",null,null,null,"Valores Públicos",{"$f":"+EsNegrita(I294)","v":"NO"},null,{"$f":"+Tabla2[[#This Row],[Nivel 1]]&Tabla2[[#This Row],[Nivel 2]]&Tabla2[[#This Row],[Nivel 3]]&Tabla2[[#This Row],[Nivel 4]]&Tabla2[[#This Row],[Nivel 5]]&Tabla2[[#This Row],[Nivel 6]]&Tabla2[[#This Row],[Nivel 7]]","v":"4.406.01.01."}]
[null,"4.","406.","01.","01.","01.",null,null,"Emitidos o Garantizados por la República",{"$f":"+EsNegrita(I295)","v":"SI"},null,{"$f":"+Tabla2[[#This Row],[Nivel 1]]&Tabla2[[#This Row],[Nivel 2]]&Tabla2[[#This Row],[Nivel 3]]&Tabla2[[#This Row],[Nivel 4]]&Tabla2[[#This Row],[Nivel 5]]&Tabla2[[#This Row],[Nivel 6]]&Tabla2[[#This Row],[Nivel 7]]","v":"4.406.01.01.01."}]
[null,"4.","406.","01.","01.","02.",null,null,"Emitidos por Otros Sujetos de Derecho Público Nacional",{"$f":"+EsNegrita(I296)","v":"SI"},null,{"$f":"+Tabla2[[#This Row],[Nivel 1]]&Tabla2[[#This Row],[Nivel 2]]&Tabla2[[#This Row],[Nivel 3]]&Tabla2[[#This Row],[Nivel 4]]&Tabla2[[#This Row],[Nivel 5]]&Tabla2[[#This Row],[Nivel 6]]&Tabla2[[#This Row],[Nivel 7]]","v":"4.406.01.01.02."}]
[null,"4.","406.","01.","01.","03.",null,null,"Emitidos por Empresas con Participación de la República",{"$f":"+EsNegrita(I297)","v":"SI"},null,{"$f":"+Tabla2[[#This Row],[Nivel 1]]&Tabla2[[#This Row],[Nivel 2]]&Tabla2[[#This Row],[Nivel 3]]&Tabla2[[#This Row],[Nivel 4]]&Tabla2[[#This Row],[Nivel 5]]&Tabla2[[#This Row],[Nivel 6]]&Tabla2[[#This Row],[Nivel 7]]","v":"4.406.01.01.03."}]
[null,"4.","406.","01.","01.","04.",null,null,"Emitidos por Instituciones con Participación de la República",{"$f":"+EsNegrita(I298)","v":"SI"},null,{"$f":"+Tabla2[[#This Row],[Nivel 1]]&Tabla2[[#This Row],[Nivel 2]]&Tabla2[[#This Row],[Nivel 3]]&Tabla2[[#This Row],[Nivel 4]]&Tabla2[[#This Row],[Nivel 5]]&Tabla2[[#This Row],[Nivel 6]]&Tabla2[[#This Row],[Nivel 7]]","v":"4.406.01.01.04."}]
[null,"4.","406.","01.","02.",null,null,null,"Reservas para Revalorización de Fondos de Inversión",{"$f":"+EsNegrita(I299)","v":"NO"},null,{"$f":"+Tabla2[[#This Row],[Nivel 1]]&Tabla2[[#This Row],[Nivel 2]]&Tabla2[[#This Row],[Nivel 3]]&Tabla2[[#This Row],[Nivel 4]]&Tabla2[[#This Row],[Nivel 5]]&Tabla2[[#This Row],[Nivel 6]]&Tabla2[[#This Row],[Nivel 7]]","v":"4.406.01.02."}]
[null,"4.","406.","01.","02.","01.",null,null,"Participación en Fondos de Inversión",{"$f":"+EsNegrita(I300)","v":"SI"},null,{"$f":"+Tabla2[[#This Row],[Nivel 1]]&Tabla2[[#This Row],[Nivel 2]]&Tabla2[[#This Row],[Nivel 3]]&Tabla2[[#This Row],[Nivel 4]]&Tabla2[[#This Row],[Nivel 5]]&Tabla2[[#This Row],[Nivel 6]]&Tabla2[[#This Row],[Nivel 7]]","v":"4.406.01.02.01."}]
[null,"4.","406.","01.","02.","02.",null,null,"Participación Fondos de Inversión Inmobiliarios",{"$f":"+EsNegrita(I301)","v":"SI"},null,{"$f":"+Tabla2[[#This Row],[Nivel 1]]&Tabla2[[#This Row],[Nivel 2]]&Tabla2[[#This Row],[Nivel 3]]&Tabla2[[#This Row],[Nivel 4]]&Tabla2[[#This Row],[Nivel 5]]&Tabla2[[#This Row],[Nivel 6]]&Tabla2[[#This Row],[Nivel 7]]","v":"4.406.01.02.02."}]
[null,"4.","406.","01.","03.",null,null,null,"Valores Privados",{"$f":"+EsNegrita(I302)","v":"NO"},null,{"$f":"+Tabla2[[#This Row],[Nivel 1]]&Tabla2[[#This Row],[Nivel 2]]&Tabla2[[#This Row],[Nivel 3]]&Tabla2[[#This Row],[Nivel 4]]&Tabla2[[#This Row],[Nivel 5]]&Tabla2[[#This Row],[Nivel 6]]&Tabla2[[#This Row],[Nivel 7]]","v":"4.406.01.03."}]
[null,"4.","406.","01.","03.","01.",null,null,"Acciones de Sociedades Anónimas",{"$f":"+EsNegrita(I303)","v":"NO"},null,{"$f":"+Tabla2[[#This Row],[Nivel 1]]&Tabla2[[#This Row],[Nivel 2]]&Tabla2[[#This Row],[Nivel 3]]&Tabla2[[#This Row],[Nivel 4]]&Tabla2[[#This Row],[Nivel 5]]&Tabla2[[#This Row],[Nivel 6]]&Tabla2[[#This Row],[Nivel 7]]","v":"4.406.01.03.01."}]
[null,"4.","406.","01.","03.","01.","01.",null,"Empresas de Seguros o Reaseguros",{"$f":"+EsNegrita(I304)","v":"SI"},null,{"$f":"+Tabla2[[#This Row],[Nivel 1]]&Tabla2[[#This Row],[Nivel 2]]&Tabla2[[#This Row],[Nivel 3]]&Tabla2[[#This Row],[Nivel 4]]&Tabla2[[#This Row],[Nivel 5]]&Tabla2[[#This Row],[Nivel 6]]&Tabla2[[#This Row],[Nivel 7]]","v":"4.406.01.03.01.01."}]
[null,"4.","406.","01.","03.","01.","02.",null,"Sociedades de Corretaje de Seguros, de Reaseguros o de Valores",{"$f":"+EsNegrita(I305)","v":"SI"},null,{"$f":"+Tabla2[[#This Row],[Nivel 1]]&Tabla2[[#This Row],[Nivel 2]]&Tabla2[[#This Row],[Nivel 3]]&Tabla2[[#This Row],[Nivel 4]]&Tabla2[[#This Row],[Nivel 5]]&Tabla2[[#This Row],[Nivel 6]]&Tabla2[[#This Row],[Nivel 7]]","v":"4.406.01.03.01.02."}]
[null,"4.","406.","01.","03.","01.","03.",null,"Bancos y Otras Instituciones Financieras",{"$f":"+EsNegrita(I306)","v":"SI"},null,{"$f":"+Tabla2[[#This Row],[Nivel 1]]&Tabla2[[#This Row],[Nivel 2]]&Tabla2[[#This Row],[Nivel 3]]&Tabla2[[#This Row],[Nivel 4]]&Tabla2[[#This Row],[Nivel 5]]&Tabla2[[#This Row],[Nivel 6]]&Tabla2[[#This Row],[Nivel 7]]","v":"4.406.01.03.01.03."}]
[null,"4.","406.","01.","03.","01.","04.",null,"Sociedades Industriales y Comerciales",{"$f":"+EsNegrita(I307)","v":"SI"},null,{"$f":"+Tabla2[[#This Row],[Nivel 1]]&Tabla2[[#This Row],[Nivel 2]]&Tabla2[[#This Row],[Nivel 3]]&Tabla2[[#This Row],[Nivel 4]]&Tabla2[[#This Row],[Nivel 5]]&Tabla2[[#This Row],[Nivel 6]]&Tabla2[[#This Row],[Nivel 7]]","v":"4.406.01.03.01.04."}]
[null,"4.","406.","01.","03.","01.","05.",null,"Sociedades Civiles",{"$f":"+EsNegrita(I308)","v":"SI"},null,{"$f":"+Tabla2[[#This Row],[Nivel 1]]&Tabla2[[#This Row],[Nivel 2]]&Tabla2[[#This Row],[Nivel 3]]&Tabla2[[#This Row],[Nivel 4]]&Tabla2[[#This Row],[Nivel 5]]&Tabla2[[#This Row],[Nivel 6]]&Tabla2[[#This Row],[Nivel 7]]","v":"4.406.01.03.01.05."}]
[null,"4.","406.","01.","03.","01.","06.",null,"Empresas Filiales, Afiliadas y Relacionadas",{"$f":"+EsNegrita(I309)","v":"SI"},null,{"$f":"+Tabla2[[#This Row],[Nivel 1]]&Tabla2[[#This Row],[Nivel 2]]&Tabla2[[#This Row],[Nivel 3]]&Tabla2[[#This Row],[Nivel 4]]&Tabla2[[#This Row],[Nivel 5]]&Tabla2[[#This Row],[Nivel 6]]&Tabla2[[#This Row],[Nivel 7]]","v":"4.406.01.03.01.06."}]
[null,"4.","406.","01.","03.","01.","07.",null,"Otras Sociedades Anónimas",{"$f":"+EsNegrita(I310)","v":"SI"},null,{"$f":"+Tabla2[[#This Row],[Nivel 1]]&Tabla2[[#This Row],[Nivel 2]]&Tabla2[[#This Row],[Nivel 3]]&Tabla2[[#This Row],[Nivel 4]]&Tabla2[[#This Row],[Nivel 5]]&Tabla2[[#This Row],[Nivel 6]]&Tabla2[[#This Row],[Nivel 7]]","v":"4.406.01.03.01.07."}]
[null,"4.","406.","01.","03.","02.",null,null,"Bonos de Sociedades Anónimas",{"$f":"+EsNegrita(I311)","v":"SI"},null,{"$f":"+Tabla2[[#This Row],[Nivel 1]]&Tabla2[[#This Row],[Nivel 2]]&Tabla2[[#This Row],[Nivel 3]]&Tabla2[[#This Row],[Nivel 4]]&Tabla2[[#This Row],[Nivel 5]]&Tabla2[[#This Row],[Nivel 6]]&Tabla2[[#This Row],[Nivel 7]]","v":"4.406.01.03.02."}]
[null,"4.","406.","01.","03.","03.",null,null,"Otras Inversiones emitidas por el Sector Privado.",{"$f":"+EsNegrita(I312)","v":"SI"},null,{"$f":"+Tabla2[[#This Row],[Nivel 1]]&Tabla2[[#This Row],[Nivel 2]]&Tabla2[[#This Row],[Nivel 3]]&Tabla2[[#This Row],[Nivel 4]]&Tabla2[[#This Row],[Nivel 5]]&Tabla2[[#This Row],[Nivel 6]]&Tabla2[[#This Row],[Nivel 7]]","v":"4.406.01.03.03."}]
[null,"4.","406.","01.","04.",null,null,null,"Activos en el Extranjero",{"$f":"+EsNegrita(I313)","v":"NO"},null,{"$f":"+Tabla2[[#This Row],[Nivel 1]]&Tabla2[[#This Row],[Nivel 2]]&Tabla2[[#This Row],[Nivel 3]]&Tabla2[[#This Row],[Nivel 4]]&Tabla2[[#This Row],[Nivel 5]]&Tabla2[[#This Row],[Nivel 6]]&Tabla2[[#This Row],[Nivel 7]]","v":"4.406.01.04."}]
[null,"4.","406.","01.","04.","01.",null,null,"Títulos Valores",{"$f":"+EsNegrita(I314)","v":"SI"},null,{"$f":"+Tabla2[[#This Row],[Nivel 1]]&Tabla2[[#This Row],[Nivel 2]]&Tabla2[[#This Row],[Nivel 3]]&Tabla2[[#This Row],[Nivel 4]]&Tabla2[[#This Row],[Nivel 5]]&Tabla2[[#This Row],[Nivel 6]]&Tabla2[[#This Row],[Nivel 7]]","v":"4.406.01.04.01."}]
[null,"4.","406.","02.",null,null,null,null,"Reservas para Revalorización de Inmuebles",{"$f":"+EsNegrita(I315)","v":"NO"},"A2-C12",{"$f":"+Tabla2[[#This Row],[Nivel 1]]&Tabla2[[#This Row],[Nivel 2]]&Tabla2[[#This Row],[Nivel 3]]&Tabla2[[#This Row],[Nivel 4]]&Tabla2[[#This Row],[Nivel 5]]&Tabla2[[#This Row],[Nivel 6]]&Tabla2[[#This Row],[Nivel 7]]","v":"4.406.02."}]
[null,"4.","406.","02.","01.",null,null,null,"Terrenos",{"$f":"+EsNegrita(I316)","v":"SI"},"A2-C12",{"$f":"+Tabla2[[#This Row],[Nivel 1]]&Tabla2[[#This Row],[Nivel 2]]&Tabla2[[#This Row],[Nivel 3]]&Tabla2[[#This Row],[Nivel 4]]&Tabla2[[#This Row],[Nivel 5]]&Tabla2[[#This Row],[Nivel 6]]&Tabla2[[#This Row],[Nivel 7]]","v":"4.406.02.01."}]
[null,"4.","406.","02.","02.",null,null,null,"Inmuebles",{"$f":"+EsNegrita(I317)","v":"SI"},"A2-C12",{"$f":"+Tabla2[[#This Row],[Nivel 1]]&Tabla2[[#This Row],[Nivel 2]]&Tabla2[[#This Row],[Nivel 3]]&Tabla2[[#This Row],[Nivel 4]]&Tabla2[[#This Row],[Nivel 5]]&Tabla2[[#This Row],[Nivel 6]]&Tabla2[[#This Row],[Nivel 7]]","v":"4.406.02.02."}]
[null,"4.","406.","02.","03.",null,null,null,"Otros",{"$f":"+EsNegrita(I318)","v":"SI"},null,{"$f":"+Tabla2[[#This Row],[Nivel 1]]&Tabla2[[#This Row],[Nivel 2]]&Tabla2[[#This Row],[Nivel 3]]&Tabla2[[#This Row],[Nivel 4]]&Tabla2[[#This Row],[Nivel 5]]&Tabla2[[#This Row],[Nivel 6]]&Tabla2[[#This Row],[Nivel 7]]","v":"4.406.02.03."}]
[null,"4.","406.","03.",null,null,null,null,"Reservas para Revalorización de Acervo Artístico",{"$f":"+EsNegrita(I319)","v":"NO"},null,{"$f":"+Tabla2[[#This Row],[Nivel 1]]&Tabla2[[#This Row],[Nivel 2]]&Tabla2[[#This Row],[Nivel 3]]&Tabla2[[#This Row],[Nivel 4]]&Tabla2[[#This Row],[Nivel 5]]&Tabla2[[#This Row],[Nivel 6]]&Tabla2[[#This Row],[Nivel 7]]","v":"4.406.03."}]
[null,"4.","406.","03.","01.",null,null,null,"Pinturas",{"$f":"+EsNegrita(I320)","v":"SI"},null,{"$f":"+Tabla2[[#This Row],[Nivel 1]]&Tabla2[[#This Row],[Nivel 2]]&Tabla2[[#This Row],[Nivel 3]]&Tabla2[[#This Row],[Nivel 4]]&Tabla2[[#This Row],[Nivel 5]]&Tabla2[[#This Row],[Nivel 6]]&Tabla2[[#This Row],[Nivel 7]]","v":"4.406.03.01."}]
[null,"4.","406.","03.","02.",null,null,null,"Esculturas",{"$f":"+EsNegrita(I321)","v":"SI"},null,{"$f":"+Tabla2[[#This Row],[Nivel 1]]&Tabla2[[#This Row],[Nivel 2]]&Tabla2[[#This Row],[Nivel 3]]&Tabla2[[#This Row],[Nivel 4]]&Tabla2[[#This Row],[Nivel 5]]&Tabla2[[#This Row],[Nivel 6]]&Tabla2[[#This Row],[Nivel 7]]","v":"4.406.03.02."}]
[null,"4.","406.","03.","03.",null,null,null,"Otros",{"$f":"+EsNegrita(I322)","v":"SI"},null,{"$f":"+Tabla2[[#This Row],[Nivel 1]]&Tabla2[[#This Row],[Nivel 2]]&Tabla2[[#This Row],[Nivel 3]]&Tabla2[[#This Row],[Nivel 4]]&Tabla2[[#This Row],[Nivel 5]]&Tabla2[[#This Row],[Nivel 6]]&Tabla2[[#This Row],[Nivel 7]]","v":"4.406.03.03."}]
[null,"5.",null,null,null,null,null,null,"CUENTAS DE ORDEN",{"$f":"+EsNegrita(I323)","v":"NO"},null,{"$f":"+Tabla2[[#This Row],[Nivel 1]]&Tabla2[[#This Row],[Nivel 2]]&Tabla2[[#This Row],[Nivel 3]]&Tabla2[[#This Row],[Nivel 4]]&Tabla2[[#This Row],[Nivel 5]]&Tabla2[[#This Row],[Nivel 6]]&Tabla2[[#This Row],[Nivel 7]]","v":"5."}]
[null,"5.","501.",null,null,null,null,null,"FONDOS O CONTRATOS ADMINISTRADOS",{"$f":"+EsNegrita(I324)","v":"NO"},null,{"$f":"+Tabla2[[#This Row],[Nivel 1]]&Tabla2[[#This Row],[Nivel 2]]&Tabla2[[#This Row],[Nivel 3]]&Tabla2[[#This Row],[Nivel 4]]&Tabla2[[#This Row],[Nivel 5]]&Tabla2[[#This Row],[Nivel 6]]&Tabla2[[#This Row],[Nivel 7]]","v":"5.501."}]
[null,"5.","501.","01.",null,null,null,null,"Depósitos Recibidos por Fondos o Contratos Administrados",{"$f":"+EsNegrita(I325)","v":"NO"},null,{"$f":"+Tabla2[[#This Row],[Nivel 1]]&Tabla2[[#This Row],[Nivel 2]]&Tabla2[[#This Row],[Nivel 3]]&Tabla2[[#This Row],[Nivel 4]]&Tabla2[[#This Row],[Nivel 5]]&Tabla2[[#This Row],[Nivel 6]]&Tabla2[[#This Row],[Nivel 7]]","v":"5.501.01."}]
[null,"5.","501.","01.","01.",null,null,null,"Empresas de Seguros",{"$f":"+EsNegrita(I326)","v":"SI"},null,{"$f":"+Tabla2[[#This Row],[Nivel 1]]&Tabla2[[#This Row],[Nivel 2]]&Tabla2[[#This Row],[Nivel 3]]&Tabla2[[#This Row],[Nivel 4]]&Tabla2[[#This Row],[Nivel 5]]&Tabla2[[#This Row],[Nivel 6]]&Tabla2[[#This Row],[Nivel 7]]","v":"5.501.01.01."}]
[null,"5.","501.","01.","02.",null,null,null,"Empresas de Medicina Prepagada",{"$f":"+EsNegrita(I327)","v":"SI"},null,{"$f":"+Tabla2[[#This Row],[Nivel 1]]&Tabla2[[#This Row],[Nivel 2]]&Tabla2[[#This Row],[Nivel 3]]&Tabla2[[#This Row],[Nivel 4]]&Tabla2[[#This Row],[Nivel 5]]&Tabla2[[#This Row],[Nivel 6]]&Tabla2[[#This Row],[Nivel 7]]","v":"5.501.01.02."}]
[null,"5.","501.","01.","03.",null,null,null,"Otros Contratantes",{"$f":"+EsNegrita(I328)","v":"NO"},null,{"$f":"+Tabla2[[#This Row],[Nivel 1]]&Tabla2[[#This Row],[Nivel 2]]&Tabla2[[#This Row],[Nivel 3]]&Tabla2[[#This Row],[Nivel 4]]&Tabla2[[#This Row],[Nivel 5]]&Tabla2[[#This Row],[Nivel 6]]&Tabla2[[#This Row],[Nivel 7]]","v":"5.501.01.03."}]
[null,"5.","501.","01.","03.","01.",null,null,"Organismos y Entes de la Administración Pública",{"$f":"+EsNegrita(I329)","v":"SI"},null,{"$f":"+Tabla2[[#This Row],[Nivel 1]]&Tabla2[[#This Row],[Nivel 2]]&Tabla2[[#This Row],[Nivel 3]]&Tabla2[[#This Row],[Nivel 4]]&Tabla2[[#This Row],[Nivel 5]]&Tabla2[[#This Row],[Nivel 6]]&Tabla2[[#This Row],[Nivel 7]]","v":"5.501.01.03.01."}]
[null,"5.","501.","01.","03.","02.",null,null,"Contratantes del sector Privado",{"$f":"+EsNegrita(I330)","v":"SI"},null,{"$f":"+Tabla2[[#This Row],[Nivel 1]]&Tabla2[[#This Row],[Nivel 2]]&Tabla2[[#This Row],[Nivel 3]]&Tabla2[[#This Row],[Nivel 4]]&Tabla2[[#This Row],[Nivel 5]]&Tabla2[[#This Row],[Nivel 6]]&Tabla2[[#This Row],[Nivel 7]]","v":"5.501.01.03.02."}]
[null,"5.","501.","02.",null,null,null,null,"Siniestros o Reembolsos de Fondos o Contratos Administrados",{"$f":"+EsNegrita(I331)","v":"NO"},null,{"$f":"+Tabla2[[#This Row],[Nivel 1]]&Tabla2[[#This Row],[Nivel 2]]&Tabla2[[#This Row],[Nivel 3]]&Tabla2[[#This Row],[Nivel 4]]&Tabla2[[#This Row],[Nivel 5]]&Tabla2[[#This Row],[Nivel 6]]&Tabla2[[#This Row],[Nivel 7]]","v":"5.501.02."}]
[null,"5.","501.","02.","01.",null,null,null,"Siniestros o Reembolsos de Fondos o Contratos Administrados por Cobrar",{"$f":"+EsNegrita(I332)","v":"NO"},null,{"$f":"+Tabla2[[#This Row],[Nivel 1]]&Tabla2[[#This Row],[Nivel 2]]&Tabla2[[#This Row],[Nivel 3]]&Tabla2[[#This Row],[Nivel 4]]&Tabla2[[#This Row],[Nivel 5]]&Tabla2[[#This Row],[Nivel 6]]&Tabla2[[#This Row],[Nivel 7]]","v":"5.501.02.01."}]
[null,"5.","501.","02.","01.","01.",null,null,"Empresas de Seguros",{"$f":"+EsNegrita(I333)","v":"SI"},null,{"$f":"+Tabla2[[#This Row],[Nivel 1]]&Tabla2[[#This Row],[Nivel 2]]&Tabla2[[#This Row],[Nivel 3]]&Tabla2[[#This Row],[Nivel 4]]&Tabla2[[#This Row],[Nivel 5]]&Tabla2[[#This Row],[Nivel 6]]&Tabla2[[#This Row],[Nivel 7]]","v":"5.501.02.01.01."}]
[null,"5.","501.","02.","01.","02.",null,null,"Empresas de Medicina Prepagada",{"$f":"+EsNegrita(I334)","v":"SI"},null,{"$f":"+Tabla2[[#This Row],[Nivel 1]]&Tabla2[[#This Row],[Nivel 2]]&Tabla2[[#This Row],[Nivel 3]]&Tabla2[[#This Row],[Nivel 4]]&Tabla2[[#This Row],[Nivel 5]]&Tabla2[[#This Row],[Nivel 6]]&Tabla2[[#This Row],[Nivel 7]]","v":"5.501.02.01.02."}]
[null,"5.","501.","02.","01.","03.",null,null,"Otros Contratantes",{"$f":"+EsNegrita(I335)","v":"NO"},null,{"$f":"+Tabla2[[#This Row],[Nivel 1]]&Tabla2[[#This Row],[Nivel 2]]&Tabla2[[#This Row],[Nivel 3]]&Tabla2[[#This Row],[Nivel 4]]&Tabla2[[#This Row],[Nivel 5]]&Tabla2[[#This Row],[Nivel 6]]&Tabla2[[#This Row],[Nivel 7]]","v":"5.501.02.01.03."}]
[null,"5.","501.","02.","01.","03.","01.",null,"Organismos y Entes de la Administración Pública",{"$f":"+EsNegrita(I336)","v":"SI"},null,{"$f":"+Tabla2[[#This Row],[Nivel 1]]&Tabla2[[#This Row],[Nivel 2]]&Tabla2[[#This Row],[Nivel 3]]&Tabla2[[#This Row],[Nivel 4]]&Tabla2[[#This Row],[Nivel 5]]&Tabla2[[#This Row],[Nivel 6]]&Tabla2[[#This Row],[Nivel 7]]","v":"5.501.02.01.03.01."}]
[null,"5.","501.","02.","01.","03.","02.",null,"Contratantes del sector Privado",{"$f":"+EsNegrita(I337)","v":"SI"},null,{"$f":"+Tabla2[[#This Row],[Nivel 1]]&Tabla2[[#This Row],[Nivel 2]]&Tabla2[[#This Row],[Nivel 3]]&Tabla2[[#This Row],[Nivel 4]]&Tabla2[[#This Row],[Nivel 5]]&Tabla2[[#This Row],[Nivel 6]]&Tabla2[[#This Row],[Nivel 7]]","v":"5.501.02.01.03.02."}]
[null,"5.","501.","02.","02.",null,null,null,"Siniestros o Reembolsos de Fondos o Contratos Administrados Pagados",{"$f":"+EsNegrita(I338)","v":"NO"},null,{"$f":"+Tabla2[[#This Row],[Nivel 1]]&Tabla2[[#This Row],[Nivel 2]]&Tabla2[[#This Row],[Nivel 3]]&Tabla2[[#This Row],[Nivel 4]]&Tabla2[[#This Row],[Nivel 5]]&Tabla2[[#This Row],[Nivel 6]]&Tabla2[[#This Row],[Nivel 7]]","v":"5.501.02.02."}]
[null,"5.","501.","02.","02.","01.",null,null,"Empresas de Seguros",{"$f":"+EsNegrita(I339)","v":"SI"},null,{"$f":"+Tabla2[[#This Row],[Nivel 1]]&Tabla2[[#This Row],[Nivel 2]]&Tabla2[[#This Row],[Nivel 3]]&Tabla2[[#This Row],[Nivel 4]]&Tabla2[[#This Row],[Nivel 5]]&Tabla2[[#This Row],[Nivel 6]]&Tabla2[[#This Row],[Nivel 7]]","v":"5.501.02.02.01."}]
[null,"5.","501.","02.","02.","02.",null,null,"Empresas de Medicina Prepagada",{"$f":"+EsNegrita(I340)","v":"SI"},null,{"$f":"+Tabla2[[#This Row],[Nivel 1]]&Tabla2[[#This Row],[Nivel 2]]&Tabla2[[#This Row],[Nivel 3]]&Tabla2[[#This Row],[Nivel 4]]&Tabla2[[#This Row],[Nivel 5]]&Tabla2[[#This Row],[Nivel 6]]&Tabla2[[#This Row],[Nivel 7]]","v":"5.501.02.02.02."}]
[null,"5.","501.","02.","02.","03.",null,null,"Otros Contratantes",{"$f":"+EsNegrita(I341)","v":"NO"},null,{"$f":"+Tabla2[[#This Row],[Nivel 1]]&Tabla2[[#This Row],[Nivel 2]]&Tabla2[[#This Row],[Nivel 3]]&Tabla2[[#This Row],[Nivel 4]]&Tabla2[[#This Row],[Nivel 5]]&Tabla2[[#This Row],[Nivel 6]]&Tabla2[[#This Row],[Nivel 7]]","v":"5.501.02.02.03."}]
[null,"5.","501.","02.","02.","03.","01.",null,"Organismos y Entes de la Administración Pública",{"$f":"+EsNegrita(I342)","v":"SI"},null,{"$f":"+Tabla2[[#This Row],[Nivel 1]]&Tabla2[[#This Row],[Nivel 2]]&Tabla2[[#This Row],[Nivel 3]]&Tabla2[[#This Row],[Nivel 4]]&Tabla2[[#This Row],[Nivel 5]]&Tabla2[[#This Row],[Nivel 6]]&Tabla2[[#This Row],[Nivel 7]]","v":"5.501.02.02.03.01."}]
[null,"5.","501.","02.","02.","03.","02.",null,"Contratantes del sector Privado",{"$f":"+EsNegrita(I343)","v":"SI"},null,{"$f":"+Tabla2[[#This Row],[Nivel 1]]&Tabla2[[#This Row],[Nivel 2]]&Tabla2[[#This Row],[Nivel 3]]&Tabla2[[#This Row],[Nivel 4]]&Tabla2[[#This Row],[Nivel 5]]&Tabla2[[#This Row],[Nivel 6]]&Tabla2[[#This Row],[Nivel 7]]","v":"5.501.02.02.03.02."}]
[null,"5.","501.","03.",null,null,null,null,"Devoluciones por Anulaciones de Fondos o Contratos Administrados",{"$f":"+EsNegrita(I344)","v":"NO"},null,{"$f":"+Tabla2[[#This Row],[Nivel 1]]&Tabla2[[#This Row],[Nivel 2]]&Tabla2[[#This Row],[Nivel 3]]&Tabla2[[#This Row],[Nivel 4]]&Tabla2[[#This Row],[Nivel 5]]&Tabla2[[#This Row],[Nivel 6]]&Tabla2[[#This Row],[Nivel 7]]","v":"5.501.03."}]
[null,"5.","501.","03.","01.",null,null,null,"Empresas de Seguros",{"$f":"+EsNegrita(I345)","v":"SI"},null,{"$f":"+Tabla2[[#This Row],[Nivel 1]]&Tabla2[[#This Row],[Nivel 2]]&Tabla2[[#This Row],[Nivel 3]]&Tabla2[[#This Row],[Nivel 4]]&Tabla2[[#This Row],[Nivel 5]]&Tabla2[[#This Row],[Nivel 6]]&Tabla2[[#This Row],[Nivel 7]]","v":"5.501.03.01."}]
[null,"5.","501.","03.","02.",null,null,null,"Empresas de Medicina Prepagada",{"$f":"+EsNegrita(I346)","v":"SI"},null,{"$f":"+Tabla2[[#This Row],[Nivel 1]]&Tabla2[[#This Row],[Nivel 2]]&Tabla2[[#This Row],[Nivel 3]]&Tabla2[[#This Row],[Nivel 4]]&Tabla2[[#This Row],[Nivel 5]]&Tabla2[[#This Row],[Nivel 6]]&Tabla2[[#This Row],[Nivel 7]]","v":"5.501.03.02."}]
[null,"5.","501.","03.","03.",null,null,null,"Otros Contratantes",{"$f":"+EsNegrita(I347)","v":"NO"},null,{"$f":"+Tabla2[[#This Row],[Nivel 1]]&Tabla2[[#This Row],[Nivel 2]]&Tabla2[[#This Row],[Nivel 3]]&Tabla2[[#This Row],[Nivel 4]]&Tabla2[[#This Row],[Nivel 5]]&Tabla2[[#This Row],[Nivel 6]]&Tabla2[[#This Row],[Nivel 7]]","v":"5.501.03.03."}]
[null,"5.","501.","03.","03.","01.",null,null,"Organismos y Entes de la Administración Pública",{"$f":"+EsNegrita(I348)","v":"SI"},null,{"$f":"+Tabla2[[#This Row],[Nivel 1]]&Tabla2[[#This Row],[Nivel 2]]&Tabla2[[#This Row],[Nivel 3]]&Tabla2[[#This Row],[Nivel 4]]&Tabla2[[#This Row],[Nivel 5]]&Tabla2[[#This Row],[Nivel 6]]&Tabla2[[#This Row],[Nivel 7]]","v":"5.501.03.03.01."}]
[null,"5.","501.","03.","03.","02.",null,null,"Contratantes del sector Privado",{"$f":"+EsNegrita(I349)","v":"SI"},null,{"$f":"+Tabla2[[#This Row],[Nivel 1]]&Tabla2[[#This Row],[Nivel 2]]&Tabla2[[#This Row],[Nivel 3]]&Tabla2[[#This Row],[Nivel 4]]&Tabla2[[#This Row],[Nivel 5]]&Tabla2[[#This Row],[Nivel 6]]&Tabla2[[#This Row],[Nivel 7]]","v":"5.501.03.03.02."}]
[null,"5.","501.","04.",null,null,null,null,"Gravámenes ",{"$f":"+EsNegrita(I350)","v":"NO"},null,{"$f":"+Tabla2[[#This Row],[Nivel 1]]&Tabla2[[#This Row],[Nivel 2]]&Tabla2[[#This Row],[Nivel 3]]&Tabla2[[#This Row],[Nivel 4]]&Tabla2[[#This Row],[Nivel 5]]&Tabla2[[#This Row],[Nivel 6]]&Tabla2[[#This Row],[Nivel 7]]","v":"5.501.04."}]
[null,"5.","501.","04.","01.",null,null,null,"Impuesto sobre la Renta",{"$f":"+EsNegrita(I351)","v":"NO"},null,{"$f":"+Tabla2[[#This Row],[Nivel 1]]&Tabla2[[#This Row],[Nivel 2]]&Tabla2[[#This Row],[Nivel 3]]&Tabla2[[#This Row],[Nivel 4]]&Tabla2[[#This Row],[Nivel 5]]&Tabla2[[#This Row],[Nivel 6]]&Tabla2[[#This Row],[Nivel 7]]","v":"5.501.04.01."}]
[null,"5.","501.","04.","01.","01.",null,null,"ISLR - Retenido por Terceros",{"$f":"+EsNegrita(I352)","v":"SI"},null,{"$f":"+Tabla2[[#This Row],[Nivel 1]]&Tabla2[[#This Row],[Nivel 2]]&Tabla2[[#This Row],[Nivel 3]]&Tabla2[[#This Row],[Nivel 4]]&Tabla2[[#This Row],[Nivel 5]]&Tabla2[[#This Row],[Nivel 6]]&Tabla2[[#This Row],[Nivel 7]]","v":"5.501.04.01.01."}]
[null,"5.","501.","04.","01.","02.",null,null,"ISLR - Declaración Estimada",{"$f":"+EsNegrita(I353)","v":"SI"},null,{"$f":"+Tabla2[[#This Row],[Nivel 1]]&Tabla2[[#This Row],[Nivel 2]]&Tabla2[[#This Row],[Nivel 3]]&Tabla2[[#This Row],[Nivel 4]]&Tabla2[[#This Row],[Nivel 5]]&Tabla2[[#This Row],[Nivel 6]]&Tabla2[[#This Row],[Nivel 7]]","v":"5.501.04.01.02."}]
[null,"5.","501.","04.","01.","03.",null,null,"Anticipo  - ISLR  ",{"$f":"+EsNegrita(I354)","v":"SI"},null,{"$f":"+Tabla2[[#This Row],[Nivel 1]]&Tabla2[[#This Row],[Nivel 2]]&Tabla2[[#This Row],[Nivel 3]]&Tabla2[[#This Row],[Nivel 4]]&Tabla2[[#This Row],[Nivel 5]]&Tabla2[[#This Row],[Nivel 6]]&Tabla2[[#This Row],[Nivel 7]]","v":"5.501.04.01.03."}]
[null,"5.","501.","04.","01.","04.",null,null,"ISRL por Compensar (Pagado en Exceso)",{"$f":"+EsNegrita(I355)","v":"SI"},null,{"$f":"+Tabla2[[#This Row],[Nivel 1]]&Tabla2[[#This Row],[Nivel 2]]&Tabla2[[#This Row],[Nivel 3]]&Tabla2[[#This Row],[Nivel 4]]&Tabla2[[#This Row],[Nivel 5]]&Tabla2[[#This Row],[Nivel 6]]&Tabla2[[#This Row],[Nivel 7]]","v":"5.501.04.01.04."}]
[null,"5.","501.","04.","02.",null,null,null,"Impuesto al Valor Agregado",{"$f":"+EsNegrita(I356)","v":"NO"},null,{"$f":"+Tabla2[[#This Row],[Nivel 1]]&Tabla2[[#This Row],[Nivel 2]]&Tabla2[[#This Row],[Nivel 3]]&Tabla2[[#This Row],[Nivel 4]]&Tabla2[[#This Row],[Nivel 5]]&Tabla2[[#This Row],[Nivel 6]]&Tabla2[[#This Row],[Nivel 7]]","v":"5.501.04.02."}]
[null,"5.","501.","04.","02.","01.",null,null,"IVA - Retenido por Terceros sobre Compras o Servicios Recibidos (Crédito Fiscal)",{"$f":"+EsNegrita(I357)","v":"SI"},null,{"$f":"+Tabla2[[#This Row],[Nivel 1]]&Tabla2[[#This Row],[Nivel 2]]&Tabla2[[#This Row],[Nivel 3]]&Tabla2[[#This Row],[Nivel 4]]&Tabla2[[#This Row],[Nivel 5]]&Tabla2[[#This Row],[Nivel 6]]&Tabla2[[#This Row],[Nivel 7]]","v":"5.501.04.02.01."}]
[null,"5.","501.","04.","03.",null,null,null,"Impuesto a las Grandes Transacciones Financieras",{"$f":"+EsNegrita(I358)","v":"SI"},null,{"$f":"+Tabla2[[#This Row],[Nivel 1]]&Tabla2[[#This Row],[Nivel 2]]&Tabla2[[#This Row],[Nivel 3]]&Tabla2[[#This Row],[Nivel 4]]&Tabla2[[#This Row],[Nivel 5]]&Tabla2[[#This Row],[Nivel 6]]&Tabla2[[#This Row],[Nivel 7]]","v":"5.501.04.03."}]
[null,"5.","501.","04.","04.",null,null,null,"Impuesto a los Grandes Patrimonios",{"$f":"+EsNegrita(I359)","v":"SI"},null,{"$f":"+Tabla2[[#This Row],[Nivel 1]]&Tabla2[[#This Row],[Nivel 2]]&Tabla2[[#This Row],[Nivel 3]]&Tabla2[[#This Row],[Nivel 4]]&Tabla2[[#This Row],[Nivel 5]]&Tabla2[[#This Row],[Nivel 6]]&Tabla2[[#This Row],[Nivel 7]]","v":"5.501.04.04."}]
[null,"5.","502.",null,null,null,null,null,"DEPÓSITOS RECIBIDOS EN GARANTÍA",{"$f":"+EsNegrita(I360)","v":"NO"},null,{"$f":"+Tabla2[[#This Row],[Nivel 1]]&Tabla2[[#This Row],[Nivel 2]]&Tabla2[[#This Row],[Nivel 3]]&Tabla2[[#This Row],[Nivel 4]]&Tabla2[[#This Row],[Nivel 5]]&Tabla2[[#This Row],[Nivel 6]]&Tabla2[[#This Row],[Nivel 7]]","v":"5.502."}]
[null,"5.","502.","01.",null,null,null,null,"Bancos",{"$f":"+EsNegrita(I361)","v":"SI"},null,{"$f":"+Tabla2[[#This Row],[Nivel 1]]&Tabla2[[#This Row],[Nivel 2]]&Tabla2[[#This Row],[Nivel 3]]&Tabla2[[#This Row],[Nivel 4]]&Tabla2[[#This Row],[Nivel 5]]&Tabla2[[#This Row],[Nivel 6]]&Tabla2[[#This Row],[Nivel 7]]","v":"5.502.01."}]
[null,"5.","502.","02.",null,null,null,null,"Otras Inversiones",{"$f":"+EsNegrita(I362)","v":"SI"},null,{"$f":"+Tabla2[[#This Row],[Nivel 1]]&Tabla2[[#This Row],[Nivel 2]]&Tabla2[[#This Row],[Nivel 3]]&Tabla2[[#This Row],[Nivel 4]]&Tabla2[[#This Row],[Nivel 5]]&Tabla2[[#This Row],[Nivel 6]]&Tabla2[[#This Row],[Nivel 7]]","v":"5.502.02."}]
[null,"5.","503.",null,null,null,null,null,"FIDEICOMISO - TRABAJADORES DE LA EMPRESA ADMINISTRADORA DE RIESGOS",{"$f":"+EsNegrita(I363)","v":"SI"},null,{"$f":"+Tabla2[[#This Row],[Nivel 1]]&Tabla2[[#This Row],[Nivel 2]]&Tabla2[[#This Row],[Nivel 3]]&Tabla2[[#This Row],[Nivel 4]]&Tabla2[[#This Row],[Nivel 5]]&Tabla2[[#This Row],[Nivel 6]]&Tabla2[[#This Row],[Nivel 7]]","v":"5.503."}]
[null,"5.","504.",null,null,null,null,null,"DEMANDAS O LITIGIOS EN PROCESO",{"$f":"+EsNegrita(I364)","v":"SI"},null,{"$f":"+Tabla2[[#This Row],[Nivel 1]]&Tabla2[[#This Row],[Nivel 2]]&Tabla2[[#This Row],[Nivel 3]]&Tabla2[[#This Row],[Nivel 4]]&Tabla2[[#This Row],[Nivel 5]]&Tabla2[[#This Row],[Nivel 6]]&Tabla2[[#This Row],[Nivel 7]]","v":"5.504."}]
[null,"5.","505.",null,null,null,null,null,"FIANZAS CONTRATADAS POR LA EMPRESA ADMINISTRADORA DE RIESGOS",{"$f":"+EsNegrita(I365)","v":"SI"},null,{"$f":"+Tabla2[[#This Row],[Nivel 1]]&Tabla2[[#This Row],[Nivel 2]]&Tabla2[[#This Row],[Nivel 3]]&Tabla2[[#This Row],[Nivel 4]]&Tabla2[[#This Row],[Nivel 5]]&Tabla2[[#This Row],[Nivel 6]]&Tabla2[[#This Row],[Nivel 7]]","v":"5.505."}]
[null,null,null,null,null,null,null,null,"TOTAL CUENTAS DE ORDEN…..",{"$f":"+EsNegrita(I366)","v":"NO"}]

{"sheet":"Egresos Analítico","index":2,"n_rows":275,"n_cols":12,"rows_kept":275,"cut":false,"hidden":false,"merged":[]}
[null,"EMPRESA ADMINISTRADORA DE RIESGOS"]
[null,"EGRESO ANALÍTICO"]
[null,"AL XX/XX/20___"]
[]
[null,"Nivel 1","Nivel 2","Nivel 3","Nivel 4","Nivel 5","Nivel 6","Nivel 7","Nombre de la Cuenta","Admite Monto","Identificador del Anexo","Cuenta Contable"]
[null,"6.",null,null,null,null,null,null,"EGRESO",{"$f":"+EsNegrita(I6)","v":"NO"},null,{"$f":"+Tabla3[[#This Row],[Nivel 1]]&Tabla3[[#This Row],[Nivel 2]]&Tabla3[[#This Row],[Nivel 3]]&Tabla3[[#This Row],[Nivel 4]]&Tabla3[[#This Row],[Nivel 5]]&Tabla3[[#This Row],[Nivel 6]]&Tabla3[[#This Row],[Nivel 7]]","v":"6."}]
[null,"6.","601.",null,null,null,null,null,"COMISIONES PAGADAS",{"$f":"+EsNegrita(I7)","v":"NO"},"A14",{"$f":"+Tabla3[[#This Row],[Nivel 1]]&Tabla3[[#This Row],[Nivel 2]]&Tabla3[[#This Row],[Nivel 3]]&Tabla3[[#This Row],[Nivel 4]]&Tabla3[[#This Row],[Nivel 5]]&Tabla3[[#This Row],[Nivel 6]]&Tabla3[[#This Row],[Nivel 7]]","v":"6.601."}]
[null,"6.","601.","01.",null,null,null,null,"Fondos Administrados",{"$f":"+EsNegrita(I8)","v":"NO"},"A14",{"$f":"+Tabla3[[#This Row],[Nivel 1]]&Tabla3[[#This Row],[Nivel 2]]&Tabla3[[#This Row],[Nivel 3]]&Tabla3[[#This Row],[Nivel 4]]&Tabla3[[#This Row],[Nivel 5]]&Tabla3[[#This Row],[Nivel 6]]&Tabla3[[#This Row],[Nivel 7]]","v":"6.601.01."}]
[null,"6.","601.","01.","01.",null,null,null,"Personas No Vida",{"$f":"+EsNegrita(I9)","v":"NO"},null,{"$f":"+Tabla3[[#This Row],[Nivel 1]]&Tabla3[[#This Row],[Nivel 2]]&Tabla3[[#This Row],[Nivel 3]]&Tabla3[[#This Row],[Nivel 4]]&Tabla3[[#This Row],[Nivel 5]]&Tabla3[[#This Row],[Nivel 6]]&Tabla3[[#This Row],[Nivel 7]]","v":"6.601.01.01."}]
[null,"6.","601.","01.","01.","01.",null,null,"Accidentes Personales",{"$f":"+EsNegrita(I10)","v":"SI"},"A14",{"$f":"+Tabla3[[#This Row],[Nivel 1]]&Tabla3[[#This Row],[Nivel 2]]&Tabla3[[#This Row],[Nivel 3]]&Tabla3[[#This Row],[Nivel 4]]&Tabla3[[#This Row],[Nivel 5]]&Tabla3[[#This Row],[Nivel 6]]&Tabla3[[#This Row],[Nivel 7]]","v":"6.601.01.01.01."}]
[null,"6.","601.","01.","01.","02.",null,null,"Salud",{"$f":"+EsNegrita(I11)","v":"SI"},"A14",{"$f":"+Tabla3[[#This Row],[Nivel 1]]&Tabla3[[#This Row],[Nivel 2]]&Tabla3[[#This Row],[Nivel 3]]&Tabla3[[#This Row],[Nivel 4]]&Tabla3[[#This Row],[Nivel 5]]&Tabla3[[#This Row],[Nivel 6]]&Tabla3[[#This Row],[Nivel 7]]","v":"6.601.01.01.02."}]
[null,"6.","601.","01.","01.","03.",null,null,"Funerarios Servicios",{"$f":"+EsNegrita(I12)","v":"SI"},"A14",{"$f":"+Tabla3[[#This Row],[Nivel 1]]&Tabla3[[#This Row],[Nivel 2]]&Tabla3[[#This Row],[Nivel 3]]&Tabla3[[#This Row],[Nivel 4]]&Tabla3[[#This Row],[Nivel 5]]&Tabla3[[#This Row],[Nivel 6]]&Tabla3[[#This Row],[Nivel 7]]","v":"6.601.01.01.03."}]
[null,"6.","601.","01.","02.",null,null,null,"Patrimoniales",{"$f":"+EsNegrita(I13)","v":"NO"},null,{"$f":"+Tabla3[[#This Row],[Nivel 1]]&Tabla3[[#This Row],[Nivel 2]]&Tabla3[[#This Row],[Nivel 3]]&Tabla3[[#This Row],[Nivel 4]]&Tabla3[[#This Row],[Nivel 5]]&Tabla3[[#This Row],[Nivel 6]]&Tabla3[[#This Row],[Nivel 7]]","v":"6.601.01.02."}]
[null,"6.","601.","01.","02.","01.",null,null,"Automóvil Casco",{"$f":"+EsNegrita(I14)","v":"SI"},"A14",{"$f":"+Tabla3[[#This Row],[Nivel 1]]&Tabla3[[#This Row],[Nivel 2]]&Tabla3[[#This Row],[Nivel 3]]&Tabla3[[#This Row],[Nivel 4]]&Tabla3[[#This Row],[Nivel 5]]&Tabla3[[#This Row],[Nivel 6]]&Tabla3[[#This Row],[Nivel 7]]","v":"6.601.01.02.01."}]
[null,"6.","601.","01.","03.",null,null,null,"Obligacionales o de Responsabilidad",{"$f":"+EsNegrita(I15)","v":"NO"},null,{"$f":"+Tabla3[[#This Row],[Nivel 1]]&Tabla3[[#This Row],[Nivel 2]]&Tabla3[[#This Row],[Nivel 3]]&Tabla3[[#This Row],[Nivel 4]]&Tabla3[[#This Row],[Nivel 5]]&Tabla3[[#This Row],[Nivel 6]]&Tabla3[[#This Row],[Nivel 7]]","v":"6.601.01.03."}]
[null,"6.","601.","01.","03.","01.",null,null,"Responsabilidad Civil Patronal",{"$f":"+EsNegrita(I16)","v":"SI"},"A14",{"$f":"+Tabla3[[#This Row],[Nivel 1]]&Tabla3[[#This Row],[Nivel 2]]&Tabla3[[#This Row],[Nivel 3]]&Tabla3[[#This Row],[Nivel 4]]&Tabla3[[#This Row],[Nivel 5]]&Tabla3[[#This Row],[Nivel 6]]&Tabla3[[#This Row],[Nivel 7]]","v":"6.601.01.03.01."}]
[null,"6.","601.","01.","03.","02.",null,null,"Responsabilidad Civil Empresarial",{"$f":"+EsNegrita(I17)","v":"SI"},"A14",{"$f":"+Tabla3[[#This Row],[Nivel 1]]&Tabla3[[#This Row],[Nivel 2]]&Tabla3[[#This Row],[Nivel 3]]&Tabla3[[#This Row],[Nivel 4]]&Tabla3[[#This Row],[Nivel 5]]&Tabla3[[#This Row],[Nivel 6]]&Tabla3[[#This Row],[Nivel 7]]","v":"6.601.01.03.02."}]
[null,"6.","601.","01.","04.",null,null,null,"Otros Ramos Autorizados",{"$f":"+EsNegrita(I18)","v":"SI"},"A14",{"$f":"+Tabla3[[#This Row],[Nivel 1]]&Tabla3[[#This Row],[Nivel 2]]&Tabla3[[#This Row],[Nivel 3]]&Tabla3[[#This Row],[Nivel 4]]&Tabla3[[#This Row],[Nivel 5]]&Tabla3[[#This Row],[Nivel 6]]&Tabla3[[#This Row],[Nivel 7]]","v":"6.601.01.04."}]
[null,"6.","601.","02.",null,null,null,null,"Administración de Siniestros",{"$f":"+EsNegrita(I19)","v":"NO"},null,{"$f":"+Tabla3[[#This Row],[Nivel 1]]&Tabla3[[#This Row],[Nivel 2]]&Tabla3[[#This Row],[Nivel 3]]&Tabla3[[#This Row],[Nivel 4]]&Tabla3[[#This Row],[Nivel 5]]&Tabla3[[#This Row],[Nivel 6]]&Tabla3[[#This Row],[Nivel 7]]","v":"6.601.02."}]
[null,"6.","601.","02.","01.",null,null,null,"Personas No Vida",{"$f":"+EsNegrita(I20)","v":"NO"},null,{"$f":"+Tabla3[[#This Row],[Nivel 1]]&Tabla3[[#This Row],[Nivel 2]]&Tabla3[[#This Row],[Nivel 3]]&Tabla3[[#This Row],[Nivel 4]]&Tabla3[[#This Row],[Nivel 5]]&Tabla3[[#This Row],[Nivel 6]]&Tabla3[[#This Row],[Nivel 7]]","v":"6.601.02.01."}]
[null,"6.","601.","02.","01.","01.",null,null,"Accidentes Personales",{"$f":"+EsNegrita(I21)","v":"SI"},"A14",{"$f":"+Tabla3[[#This Row],[Nivel 1]]&Tabla3[[#This Row],[Nivel 2]]&Tabla3[[#This Row],[Nivel 3]]&Tabla3[[#This Row],[Nivel 4]]&Tabla3[[#This Row],[Nivel 5]]&Tabla3[[#This Row],[Nivel 6]]&Tabla3[[#This Row],[Nivel 7]]","v":"6.601.02.01.01."}]
[null,"6.","601.","02.","01.","02.",null,null,"Salud",{"$f":"+EsNegrita(I22)","v":"SI"},"A14",{"$f":"+Tabla3[[#This Row],[Nivel 1]]&Tabla3[[#This Row],[Nivel 2]]&Tabla3[[#This Row],[Nivel 3]]&Tabla3[[#This Row],[Nivel 4]]&Tabla3[[#This Row],[Nivel 5]]&Tabla3[[#This Row],[Nivel 6]]&Tabla3[[#This Row],[Nivel 7]]","v":"6.601.02.01.02."}]
[null,"6.","601.","02.","01.","03.",null,null,"Funerarios Servicios",{"$f":"+EsNegrita(I23)","v":"SI"},"A14",{"$f":"+Tabla3[[#This Row],[Nivel 1]]&Tabla3[[#This Row],[Nivel 2]]&Tabla3[[#This Row],[Nivel 3]]&Tabla3[[#This Row],[Nivel 4]]&Tabla3[[#This Row],[Nivel 5]]&Tabla3[[#This Row],[Nivel 6]]&Tabla3[[#This Row],[Nivel 7]]","v":"6.601.02.01.03."}]
[null,"6.","601.","02.","02.",null,null,null,"Patrimoniales",{"$f":"+EsNegrita(I24)","v":"NO"},null,{"$f":"+Tabla3[[#This Row],[Nivel 1]]&Tabla3[[#This Row],[Nivel 2]]&Tabla3[[#This Row],[Nivel 3]]&Tabla3[[#This Row],[Nivel 4]]&Tabla3[[#This Row],[Nivel 5]]&Tabla3[[#This Row],[Nivel 6]]&Tabla3[[#This Row],[Nivel 7]]","v":"6.601.02.02."}]
[null,"6.","601.","02.","02.","01.",null,null,"Automóvil Casco",{"$f":"+EsNegrita(I25)","v":"SI"},"A14",{"$f":"+Tabla3[[#This Row],[Nivel 1]]&Tabla3[[#This Row],[Nivel 2]]&Tabla3[[#This Row],[Nivel 3]]&Tabla3[[#This Row],[Nivel 4]]&Tabla3[[#This Row],[Nivel 5]]&Tabla3[[#This Row],[Nivel 6]]&Tabla3[[#This Row],[Nivel 7]]","v":"6.601.02.02.01."}]
[null,"6.","601.","02.","03.",null,null,null,"Obligacionales o de Responsabilidad",{"$f":"+EsNegrita(I26)","v":"NO"},null,{"$f":"+Tabla3[[#This Row],[Nivel 1]]&Tabla3[[#This Row],[Nivel 2]]&Tabla3[[#This Row],[Nivel 3]]&Tabla3[[#This Row],[Nivel 4]]&Tabla3[[#This Row],[Nivel 5]]&Tabla3[[#This Row],[Nivel 6]]&Tabla3[[#This Row],[Nivel 7]]","v":"6.601.02.03."}]
[null,"6.","601.","02.","03.","01.",null,null,"Responsabilidad Civil Patronal",{"$f":"+EsNegrita(I27)","v":"SI"},"A14",{"$f":"+Tabla3[[#This Row],[Nivel 1]]&Tabla3[[#This Row],[Nivel 2]]&Tabla3[[#This Row],[Nivel 3]]&Tabla3[[#This Row],[Nivel 4]]&Tabla3[[#This Row],[Nivel 5]]&Tabla3[[#This Row],[Nivel 6]]&Tabla3[[#This Row],[Nivel 7]]","v":"6.601.02.03.01."}]
[null,"6.","601.","02.","03.","02.",null,null,"Responsabilidad Civil Empresarial",{"$f":"+EsNegrita(I28)","v":"SI"},"A14",{"$f":"+Tabla3[[#This Row],[Nivel 1]]&Tabla3[[#This Row],[Nivel 2]]&Tabla3[[#This Row],[Nivel 3]]&Tabla3[[#This Row],[Nivel 4]]&Tabla3[[#This Row],[Nivel 5]]&Tabla3[[#This Row],[Nivel 6]]&Tabla3[[#This Row],[Nivel 7]]","v":"6.601.02.03.02."}]
[null,"6.","601.","02.","04.",null,null,null,"Otros Ramos Autorizados",{"$f":"+EsNegrita(I29)","v":"SI"},"A14",{"$f":"+Tabla3[[#This Row],[Nivel 1]]&Tabla3[[#This Row],[Nivel 2]]&Tabla3[[#This Row],[Nivel 3]]&Tabla3[[#This Row],[Nivel 4]]&Tabla3[[#This Row],[Nivel 5]]&Tabla3[[#This Row],[Nivel 6]]&Tabla3[[#This Row],[Nivel 7]]","v":"6.601.02.04."}]
[null,"6.","601.","03.",null,null,null,null,"Intereses sobre Comisiones pagadas",{"$f":"+EsNegrita(I30)","v":"SI"},"A14",{"$f":"+Tabla3[[#This Row],[Nivel 1]]&Tabla3[[#This Row],[Nivel 2]]&Tabla3[[#This Row],[Nivel 3]]&Tabla3[[#This Row],[Nivel 4]]&Tabla3[[#This Row],[Nivel 5]]&Tabla3[[#This Row],[Nivel 6]]&Tabla3[[#This Row],[Nivel 7]]","v":"6.601.03."}]
[null,"6.","602.",null,null,null,null,null,"GESTIÓN GENERAL DE LA EMPRESA",{"$f":"+EsNegrita(I31)","v":"NO"},null,{"$f":"+Tabla3[[#This Row],[Nivel 1]]&Tabla3[[#This Row],[Nivel 2]]&Tabla3[[#This Row],[Nivel 3]]&Tabla3[[#This Row],[Nivel 4]]&Tabla3[[#This Row],[Nivel 5]]&Tabla3[[#This Row],[Nivel 6]]&Tabla3[[#This Row],[Nivel 7]]","v":"6.602."}]
[null,"6.","602.","01.",null,null,null,null,"GASTOS DE ADMINISTRACIÓN",{"$f":"+EsNegrita(I32)","v":"NO"},null,{"$f":"+Tabla3[[#This Row],[Nivel 1]]&Tabla3[[#This Row],[Nivel 2]]&Tabla3[[#This Row],[Nivel 3]]&Tabla3[[#This Row],[Nivel 4]]&Tabla3[[#This Row],[Nivel 5]]&Tabla3[[#This Row],[Nivel 6]]&Tabla3[[#This Row],[Nivel 7]]","v":"6.602.01."}]
[null,"6.","602.","01.","01.",null,null,null,"Gastos de Personal",{"$f":"+EsNegrita(I33)","v":"NO"},null,{"$f":"+Tabla3[[#This Row],[Nivel 1]]&Tabla3[[#This Row],[Nivel 2]]&Tabla3[[#This Row],[Nivel 3]]&Tabla3[[#This Row],[Nivel 4]]&Tabla3[[#This Row],[Nivel 5]]&Tabla3[[#This Row],[Nivel 6]]&Tabla3[[#This Row],[Nivel 7]]","v":"6.602.01.01."}]
[null,"6.","602.","01.","01.","01.",null,null,"Sueldos y Salarios",{"$f":"+EsNegrita(I34)","v":"SI"},null,{"$f":"+Tabla3[[#This Row],[Nivel 1]]&Tabla3[[#This Row],[Nivel 2]]&Tabla3[[#This Row],[Nivel 3]]&Tabla3[[#This Row],[Nivel 4]]&Tabla3[[#This Row],[Nivel 5]]&Tabla3[[#This Row],[Nivel 6]]&Tabla3[[#This Row],[Nivel 7]]","v":"6.602.01.01.01."}]
[null,"6.","602.","01.","01.","02.",null,null,"Vacaciones",{"$f":"+EsNegrita(I35)","v":"SI"},null,{"$f":"+Tabla3[[#This Row],[Nivel 1]]&Tabla3[[#This Row],[Nivel 2]]&Tabla3[[#This Row],[Nivel 3]]&Tabla3[[#This Row],[Nivel 4]]&Tabla3[[#This Row],[Nivel 5]]&Tabla3[[#This Row],[Nivel 6]]&Tabla3[[#This Row],[Nivel 7]]","v":"6.602.01.01.02."}]
[null,"6.","602.","01.","01.","03.",null,null,"Bono Vacacional",{"$f":"+EsNegrita(I36)","v":"SI"},null,{"$f":"+Tabla3[[#This Row],[Nivel 1]]&Tabla3[[#This Row],[Nivel 2]]&Tabla3[[#This Row],[Nivel 3]]&Tabla3[[#This Row],[Nivel 4]]&Tabla3[[#This Row],[Nivel 5]]&Tabla3[[#This Row],[Nivel 6]]&Tabla3[[#This Row],[Nivel 7]]","v":"6.602.01.01.03."}]
[null,"6.","602.","01.","01.","04.",null,null,"Bonificaciones Especiales",{"$f":"+EsNegrita(I37)","v":"SI"},null,{"$f":"+Tabla3[[#This Row],[Nivel 1]]&Tabla3[[#This Row],[Nivel 2]]&Tabla3[[#This Row],[Nivel 3]]&Tabla3[[#This Row],[Nivel 4]]&Tabla3[[#This Row],[Nivel 5]]&Tabla3[[#This Row],[Nivel 6]]&Tabla3[[#This Row],[Nivel 7]]","v":"6.602.01.01.04."}]
[null,"6.","602.","01.","01.","05.",null,null,"Utilidades o aguinaldos",{"$f":"+EsNegrita(I38)","v":"SI"},null,{"$f":"+Tabla3[[#This Row],[Nivel 1]]&Tabla3[[#This Row],[Nivel 2]]&Tabla3[[#This Row],[Nivel 3]]&Tabla3[[#This Row],[Nivel 4]]&Tabla3[[#This Row],[Nivel 5]]&Tabla3[[#This Row],[Nivel 6]]&Tabla3[[#This Row],[Nivel 7]]","v":"6.602.01.01.05."}]
[null,"6.","602.","01.","01.","06.",null,null,"Prestaciones Sociales",{"$f":"+EsNegrita(I39)","v":"SI"},null,{"$f":"+Tabla3[[#This Row],[Nivel 1]]&Tabla3[[#This Row],[Nivel 2]]&Tabla3[[#This Row],[Nivel 3]]&Tabla3[[#This Row],[Nivel 4]]&Tabla3[[#This Row],[Nivel 5]]&Tabla3[[#This Row],[Nivel 6]]&Tabla3[[#This Row],[Nivel 7]]","v":"6.602.01.01.06."}]
[null,"6.","602.","01.","01.","07.",null,null,"Intereses Sobre Prestaciones Sociales",{"$f":"+EsNegrita(I40)","v":"SI"},null,{"$f":"+Tabla3[[#This Row],[Nivel 1]]&Tabla3[[#This Row],[Nivel 2]]&Tabla3[[#This Row],[Nivel 3]]&Tabla3[[#This Row],[Nivel 4]]&Tabla3[[#This Row],[Nivel 5]]&Tabla3[[#This Row],[Nivel 6]]&Tabla3[[#This Row],[Nivel 7]]","v":"6.602.01.01.07."}]
[null,"6.","602.","01.","01.","08.",null,null,"Otros Gastos del Personal",{"$f":"+EsNegrita(I41)","v":"SI"},null,{"$f":"+Tabla3[[#This Row],[Nivel 1]]&Tabla3[[#This Row],[Nivel 2]]&Tabla3[[#This Row],[Nivel 3]]&Tabla3[[#This Row],[Nivel 4]]&Tabla3[[#This Row],[Nivel 5]]&Tabla3[[#This Row],[Nivel 6]]&Tabla3[[#This Row],[Nivel 7]]","v":"6.602.01.01.08."}]
[null,"6.","602.","01.","02.",null,null,null,"Gravámenes y Contribuciones ",{"$f":"+EsNegrita(I42)","v":"NO"},null,{"$f":"+Tabla3[[#This Row],[Nivel 1]]&Tabla3[[#This Row],[Nivel 2]]&Tabla3[[#This Row],[Nivel 3]]&Tabla3[[#This Row],[Nivel 4]]&Tabla3[[#This Row],[Nivel 5]]&Tabla3[[#This Row],[Nivel 6]]&Tabla3[[#This Row],[Nivel 7]]","v":"6.602.01.02."}]
[null,"6.","602.","01.","02.","01.",null,null,"Gravámenes",{"$f":"+EsNegrita(I43)","v":"NO"},null,{"$f":"+Tabla3[[#This Row],[Nivel 1]]&Tabla3[[#This Row],[Nivel 2]]&Tabla3[[#This Row],[Nivel 3]]&Tabla3[[#This Row],[Nivel 4]]&Tabla3[[#This Row],[Nivel 5]]&Tabla3[[#This Row],[Nivel 6]]&Tabla3[[#This Row],[Nivel 7]]","v":"6.602.01.02.01."}]
[null,"6.","602.","01.","02.","01.","01.",null,"Impuesto Sobre la Renta",{"$f":"+EsNegrita(I44)","v":"SI"},null,{"$f":"+Tabla3[[#This Row],[Nivel 1]]&Tabla3[[#This Row],[Nivel 2]]&Tabla3[[#This Row],[Nivel 3]]&Tabla3[[#This Row],[Nivel 4]]&Tabla3[[#This Row],[Nivel 5]]&Tabla3[[#This Row],[Nivel 6]]&Tabla3[[#This Row],[Nivel 7]]","v":"6.602.01.02.01.01."}]
[null,"6.","602.","01.","02.","01.","02.",null,"Impuesto al Valor Agregado",{"$f":"+EsNegrita(I45)","v":"SI"},null,{"$f":"+Tabla3[[#This Row],[Nivel 1]]&Tabla3[[#This Row],[Nivel 2]]&Tabla3[[#This Row],[Nivel 3]]&Tabla3[[#This Row],[Nivel 4]]&Tabla3[[#This Row],[Nivel 5]]&Tabla3[[#This Row],[Nivel 6]]&Tabla3[[#This Row],[Nivel 7]]","v":"6.602.01.02.01.02."}]
[null,"6.","602.","01.","02.","01.","03.",null,"Impuesto a las Grandes Transacciones Financieras",{"$f":"+EsNegrita(I46)","v":"SI"},null,{"$f":"+Tabla3[[#This Row],[Nivel 1]]&Tabla3[[#This Row],[Nivel 2]]&Tabla3[[#This Row],[Nivel 3]]&Tabla3[[#This Row],[Nivel 4]]&Tabla3[[#This Row],[Nivel 5]]&Tabla3[[#This Row],[Nivel 6]]&Tabla3[[#This Row],[Nivel 7]]","v":"6.602.01.02.01.03."}]
[null,"6.","602.","01.","02.","01.","04.",null,"Impuesto a los Grandes Patrimonios",{"$f":"+EsNegrita(I47)","v":"SI"},null,{"$f":"+Tabla3[[#This Row],[Nivel 1]]&Tabla3[[#This Row],[Nivel 2]]&Tabla3[[#This Row],[Nivel 3]]&Tabla3[[#This Row],[Nivel 4]]&Tabla3[[#This Row],[Nivel 5]]&Tabla3[[#This Row],[Nivel 6]]&Tabla3[[#This Row],[Nivel 7]]","v":"6.602.01.02.01.04."}]
[null,"6.","602.","01.","02.","02.",null,null,"Impuestos ",{"$f":"+EsNegrita(I48)","v":"NO"},null,{"$f":"+Tabla3[[#This Row],[Nivel 1]]&Tabla3[[#This Row],[Nivel 2]]&Tabla3[[#This Row],[Nivel 3]]&Tabla3[[#This Row],[Nivel 4]]&Tabla3[[#This Row],[Nivel 5]]&Tabla3[[#This Row],[Nivel 6]]&Tabla3[[#This Row],[Nivel 7]]","v":"6.602.01.02.02."}]
[null,"6.","602.","01.","02.","02.","01.",null,"Impuestos Municipales",{"$f":"+EsNegrita(I49)","v":"NO"},null,{"$f":"+Tabla3[[#This Row],[Nivel 1]]&Tabla3[[#This Row],[Nivel 2]]&Tabla3[[#This Row],[Nivel 3]]&Tabla3[[#This Row],[Nivel 4]]&Tabla3[[#This Row],[Nivel 5]]&Tabla3[[#This Row],[Nivel 6]]&Tabla3[[#This Row],[Nivel 7]]","v":"6.602.01.02.02.01."}]
[null,"6.","602.","01.","02.","02.","01.","01.","Patente de Industria y Comercio",{"$f":"+EsNegrita(I50)","v":"SI"},null,{"$f":"+Tabla3[[#This Row],[Nivel 1]]&Tabla3[[#This Row],[Nivel 2]]&Tabla3[[#This Row],[Nivel 3]]&Tabla3[[#This Row],[Nivel 4]]&Tabla3[[#This Row],[Nivel 5]]&Tabla3[[#This Row],[Nivel 6]]&Tabla3[[#This Row],[Nivel 7]]","v":"6.602.01.02.02.01.01."}]
[null,"6.","602.","01.","02.","02.","01.","02.","Impuesto Inmobiliario Urbano",{"$f":"+EsNegrita(I51)","v":"SI"},null,{"$f":"+Tabla3[[#This Row],[Nivel 1]]&Tabla3[[#This Row],[Nivel 2]]&Tabla3[[#This Row],[Nivel 3]]&Tabla3[[#This Row],[Nivel 4]]&Tabla3[[#This Row],[Nivel 5]]&Tabla3[[#This Row],[Nivel 6]]&Tabla3[[#This Row],[Nivel 7]]","v":"6.602.01.02.02.01.02."}]
[null,"6.","602.","01.","02.","02.","01.","03.","Impuesto sobre Publicidad y Propaganda",{"$f":"+EsNegrita(I52)","v":"SI"},null,{"$f":"+Tabla3[[#This Row],[Nivel 1]]&Tabla3[[#This Row],[Nivel 2]]&Tabla3[[#This Row],[Nivel 3]]&Tabla3[[#This Row],[Nivel 4]]&Tabla3[[#This Row],[Nivel 5]]&Tabla3[[#This Row],[Nivel 6]]&Tabla3[[#This Row],[Nivel 7]]","v":"6.602.01.02.02.01.03."}]
[null,"6.","602.","01.","02.","02.","01.","04.","Impuesto sobre Circulación de Vehículos",{"$f":"+EsNegrita(I53)","v":"SI"},null,{"$f":"+Tabla3[[#This Row],[Nivel 1]]&Tabla3[[#This Row],[Nivel 2]]&Tabla3[[#This Row],[Nivel 3]]&Tabla3[[#This Row],[Nivel 4]]&Tabla3[[#This Row],[Nivel 5]]&Tabla3[[#This Row],[Nivel 6]]&Tabla3[[#This Row],[Nivel 7]]","v":"6.602.01.02.02.01.04."}]
[null,"6.","602.","01.","02.","02.","01.","05.","Otros Impuestos Municipales",{"$f":"+EsNegrita(I54)","v":"SI"},null,{"$f":"+Tabla3[[#This Row],[Nivel 1]]&Tabla3[[#This Row],[Nivel 2]]&Tabla3[[#This Row],[Nivel 3]]&Tabla3[[#This Row],[Nivel 4]]&Tabla3[[#This Row],[Nivel 5]]&Tabla3[[#This Row],[Nivel 6]]&Tabla3[[#This Row],[Nivel 7]]","v":"6.602.01.02.02.01.05."}]
[null,"6.","602.","01.","02.","02.","02.",null,"Otros Impuestos",{"$f":"+EsNegrita(I55)","v":"SI"},null,{"$f":"+Tabla3[[#This Row],[Nivel 1]]&Tabla3[[#This Row],[Nivel 2]]&Tabla3[[#This Row],[Nivel 3]]&Tabla3[[#This Row],[Nivel 4]]&Tabla3[[#This Row],[Nivel 5]]&Tabla3[[#This Row],[Nivel 6]]&Tabla3[[#This Row],[Nivel 7]]","v":"6.602.01.02.02.02."}]
[null,"6.","602.","01.","02.","03.",null,null,"Contribuciones",{"$f":"+EsNegrita(I56)","v":"NO"},null,{"$f":"+Tabla3[[#This Row],[Nivel 1]]&Tabla3[[#This Row],[Nivel 2]]&Tabla3[[#This Row],[Nivel 3]]&Tabla3[[#This Row],[Nivel 4]]&Tabla3[[#This Row],[Nivel 5]]&Tabla3[[#This Row],[Nivel 6]]&Tabla3[[#This Row],[Nivel 7]]","v":"6.602.01.02.03."}]
[null,"6.","602.","01.","02.","03.","01.",null,"Instituto Nacional de Capacitación y Educación Socialista (INCES) ",{"$f":"+EsNegrita(I57)","v":"SI"},null,{"$f":"+Tabla3[[#This Row],[Nivel 1]]&Tabla3[[#This Row],[Nivel 2]]&Tabla3[[#This Row],[Nivel 3]]&Tabla3[[#This Row],[Nivel 4]]&Tabla3[[#This Row],[Nivel 5]]&Tabla3[[#This Row],[Nivel 6]]&Tabla3[[#This Row],[Nivel 7]]","v":"6.602.01.02.03.01."}]
[null,"6.","602.","01.","02.","03.","02.",null,"Instituto Venezolano de los Seguros Sociales (IVSS) ",{"$f":"+EsNegrita(I58)","v":"SI"},null,{"$f":"+Tabla3[[#This Row],[Nivel 1]]&Tabla3[[#This Row],[Nivel 2]]&Tabla3[[#This Row],[Nivel 3]]&Tabla3[[#This Row],[Nivel 4]]&Tabla3[[#This Row],[Nivel 5]]&Tabla3[[#This Row],[Nivel 6]]&Tabla3[[#This Row],[Nivel 7]]","v":"6.602.01.02.03.02."}]
[null,"6.","602.","01.","02.","03.","03.",null,"Instituto Venezolano de los Seguros Sociales (IVSS) - Paro Forzoso ",{"$f":"+EsNegrita(I59)","v":"SI"},null,{"$f":"+Tabla3[[#This Row],[Nivel 1]]&Tabla3[[#This Row],[Nivel 2]]&Tabla3[[#This Row],[Nivel 3]]&Tabla3[[#This Row],[Nivel 4]]&Tabla3[[#This Row],[Nivel 5]]&Tabla3[[#This Row],[Nivel 6]]&Tabla3[[#This Row],[Nivel 7]]","v":"6.602.01.02.03.03."}]
[null,"6.","602.","01.","02.","03.","04.",null,"Fondo de Ahorro Obligatorio para la Vivienda (FAOV)",{"$f":"+EsNegrita(I60)","v":"SI"},null,{"$f":"+Tabla3[[#This Row],[Nivel 1]]&Tabla3[[#This Row],[Nivel 2]]&Tabla3[[#This Row],[Nivel 3]]&Tabla3[[#This Row],[Nivel 4]]&Tabla3[[#This Row],[Nivel 5]]&Tabla3[[#This Row],[Nivel 6]]&Tabla3[[#This Row],[Nivel 7]]","v":"6.602.01.02.03.04."}]
[null,"6.","602.","01.","02.","03.","05.",null,"Aporte Especial a la Superintendencia de la Actividad Aseguradora",{"$f":"+EsNegrita(I61)","v":"SI"},null,{"$f":"+Tabla3[[#This Row],[Nivel 1]]&Tabla3[[#This Row],[Nivel 2]]&Tabla3[[#This Row],[Nivel 3]]&Tabla3[[#This Row],[Nivel 4]]&Tabla3[[#This Row],[Nivel 5]]&Tabla3[[#This Row],[Nivel 6]]&Tabla3[[#This Row],[Nivel 7]]","v":"6.602.01.02.03.05."}]
[null,"6.","602.","01.","02.","03.","06.",null,"Aporte para el Desarrollo Social",{"$f":"+EsNegrita(I62)","v":"SI"},null,{"$f":"+Tabla3[[#This Row],[Nivel 1]]&Tabla3[[#This Row],[Nivel 2]]&Tabla3[[#This Row],[Nivel 3]]&Tabla3[[#This Row],[Nivel 4]]&Tabla3[[#This Row],[Nivel 5]]&Tabla3[[#This Row],[Nivel 6]]&Tabla3[[#This Row],[Nivel 7]]","v":"6.602.01.02.03.06."}]
[null,"6.","602.","01.","02.","03.","07.",null,"Ley Orgánica de Ciencia, Tecnología é Innovación (LOCTI)",{"$f":"+EsNegrita(I63)","v":"SI"},null,{"$f":"+Tabla3[[#This Row],[Nivel 1]]&Tabla3[[#This Row],[Nivel 2]]&Tabla3[[#This Row],[Nivel 3]]&Tabla3[[#This Row],[Nivel 4]]&Tabla3[[#This Row],[Nivel 5]]&Tabla3[[#This Row],[Nivel 6]]&Tabla3[[#This Row],[Nivel 7]]","v":"6.602.01.02.03.07."}]
[null,"6.","602.","01.","02.","03.","08.",null,"Decreto con Fuerza de Ley de los Cuerpos de Bomberos y Bomberas y Administración de Emergencias de Carácter Civil",{"$f":"+EsNegrita(I64)","v":"SI"},null,{"$f":"+Tabla3[[#This Row],[Nivel 1]]&Tabla3[[#This Row],[Nivel 2]]&Tabla3[[#This Row],[Nivel 3]]&Tabla3[[#This Row],[Nivel 4]]&Tabla3[[#This Row],[Nivel 5]]&Tabla3[[#This Row],[Nivel 6]]&Tabla3[[#This Row],[Nivel 7]]","v":"6.602.01.02.03.08."}]
[null,"6.","602.","01.","02.","03.","09.",null,"Ley Orgánica de Drogas",{"$f":"+EsNegrita(I65)","v":"SI"},null,{"$f":"+Tabla3[[#This Row],[Nivel 1]]&Tabla3[[#This Row],[Nivel 2]]&Tabla3[[#This Row],[Nivel 3]]&Tabla3[[#This Row],[Nivel 4]]&Tabla3[[#This Row],[Nivel 5]]&Tabla3[[#This Row],[Nivel 6]]&Tabla3[[#This Row],[Nivel 7]]","v":"6.602.01.02.03.09."}]
[null,"6.","602.","01.","02.","03.","10.",null,"Ley del Deporte",{"$f":"+EsNegrita(I66)","v":"SI"},null,{"$f":"+Tabla3[[#This Row],[Nivel 1]]&Tabla3[[#This Row],[Nivel 2]]&Tabla3[[#This Row],[Nivel 3]]&Tabla3[[#This Row],[Nivel 4]]&Tabla3[[#This Row],[Nivel 5]]&Tabla3[[#This Row],[Nivel 6]]&Tabla3[[#This Row],[Nivel 7]]","v":"6.602.01.02.03.10."}]
[null,"6.","602.","01.","02.","03.","11.",null,"Ley de Gestión Integral de Riesgos Socio-Naturales y Tecnológicos",{"$f":"+EsNegrita(I67)","v":"SI"},null,{"$f":"+Tabla3[[#This Row],[Nivel 1]]&Tabla3[[#This Row],[Nivel 2]]&Tabla3[[#This Row],[Nivel 3]]&Tabla3[[#This Row],[Nivel 4]]&Tabla3[[#This Row],[Nivel 5]]&Tabla3[[#This Row],[Nivel 6]]&Tabla3[[#This Row],[Nivel 7]]","v":"6.602.01.02.03.11."}]
[null,"6.","602.","01.","02.","03.","12.",null,"Otras Contribuciones",{"$f":"+EsNegrita(I68)","v":"SI"},null,{"$f":"+Tabla3[[#This Row],[Nivel 1]]&Tabla3[[#This Row],[Nivel 2]]&Tabla3[[#This Row],[Nivel 3]]&Tabla3[[#This Row],[Nivel 4]]&Tabla3[[#This Row],[Nivel 5]]&Tabla3[[#This Row],[Nivel 6]]&Tabla3[[#This Row],[Nivel 7]]","v":"6.602.01.02.03.12."}]
[null,"6.","602.","01.","03.",null,null,null,"Arrendamientos",{"$f":"+EsNegrita(I69)","v":"SI"},null,{"$f":"+Tabla3[[#This Row],[Nivel 1]]&Tabla3[[#This Row],[Nivel 2]]&Tabla3[[#This Row],[Nivel 3]]&Tabla3[[#This Row],[Nivel 4]]&Tabla3[[#This Row],[Nivel 5]]&Tabla3[[#This Row],[Nivel 6]]&Tabla3[[#This Row],[Nivel 7]]","v":"6.602.01.03."}]
[null,"6.","602.","01.","04.",null,null,null,"Mantenimiento y Reparaciones Ordinarias",{"$f":"+EsNegrita(I70)","v":"SI"},null,{"$f":"+Tabla3[[#This Row],[Nivel 1]]&Tabla3[[#This Row],[Nivel 2]]&Tabla3[[#This Row],[Nivel 3]]&Tabla3[[#This Row],[Nivel 4]]&Tabla3[[#This Row],[Nivel 5]]&Tabla3[[#This Row],[Nivel 6]]&Tabla3[[#This Row],[Nivel 7]]","v":"6.602.01.04."}]
[null,"6.","602.","01.","05.",null,null,null,"Liberalidades",{"$f":"+EsNegrita(I71)","v":"SI"},null,{"$f":"+Tabla3[[#This Row],[Nivel 1]]&Tabla3[[#This Row],[Nivel 2]]&Tabla3[[#This Row],[Nivel 3]]&Tabla3[[#This Row],[Nivel 4]]&Tabla3[[#This Row],[Nivel 5]]&Tabla3[[#This Row],[Nivel 6]]&Tabla3[[#This Row],[Nivel 7]]","v":"6.602.01.05."}]
[null,"6.","602.","01.","06.",null,null,null,"Donaciones",{"$f":"+EsNegrita(I72)","v":"SI"},null,{"$f":"+Tabla3[[#This Row],[Nivel 1]]&Tabla3[[#This Row],[Nivel 2]]&Tabla3[[#This Row],[Nivel 3]]&Tabla3[[#This Row],[Nivel 4]]&Tabla3[[#This Row],[Nivel 5]]&Tabla3[[#This Row],[Nivel 6]]&Tabla3[[#This Row],[Nivel 7]]","v":"6.602.01.06."}]
[null,"6.","602.","01.","07.",null,null,null,"Publicidad y Propaganda",{"$f":"+EsNegrita(I73)","v":"SI"},null,{"$f":"+Tabla3[[#This Row],[Nivel 1]]&Tabla3[[#This Row],[Nivel 2]]&Tabla3[[#This Row],[Nivel 3]]&Tabla3[[#This Row],[Nivel 4]]&Tabla3[[#This Row],[Nivel 5]]&Tabla3[[#This Row],[Nivel 6]]&Tabla3[[#This Row],[Nivel 7]]","v":"6.602.01.07."}]
[null,"6.","602.","01.","08.",null,null,null,"Servicios Básicos",{"$f":"+EsNegrita(I74)","v":"NO"},null,{"$f":"+Tabla3[[#This Row],[Nivel 1]]&Tabla3[[#This Row],[Nivel 2]]&Tabla3[[#This Row],[Nivel 3]]&Tabla3[[#This Row],[Nivel 4]]&Tabla3[[#This Row],[Nivel 5]]&Tabla3[[#This Row],[Nivel 6]]&Tabla3[[#This Row],[Nivel 7]]","v":"6.602.01.08."}]
[null,"6.","602.","01.","08.","01.",null,null,"Energía Eléctrica",{"$f":"+EsNegrita(I75)","v":"SI"},null,{"$f":"+Tabla3[[#This Row],[Nivel 1]]&Tabla3[[#This Row],[Nivel 2]]&Tabla3[[#This Row],[Nivel 3]]&Tabla3[[#This Row],[Nivel 4]]&Tabla3[[#This Row],[Nivel 5]]&Tabla3[[#This Row],[Nivel 6]]&Tabla3[[#This Row],[Nivel 7]]","v":"6.602.01.08.01."}]
[null,"6.","602.","01.","08.","02.",null,null,"Comunicaciones",{"$f":"+EsNegrita(I76)","v":"SI"},null,{"$f":"+Tabla3[[#This Row],[Nivel 1]]&Tabla3[[#This Row],[Nivel 2]]&Tabla3[[#This Row],[Nivel 3]]&Tabla3[[#This Row],[Nivel 4]]&Tabla3[[#This Row],[Nivel 5]]&Tabla3[[#This Row],[Nivel 6]]&Tabla3[[#This Row],[Nivel 7]]","v":"6.602.01.08.02."}]
[null,"6.","602.","01.","08.","03.",null,null,"Servicio de Agua ",{"$f":"+EsNegrita(I77)","v":"SI"},null,{"$f":"+Tabla3[[#This Row],[Nivel 1]]&Tabla3[[#This Row],[Nivel 2]]&Tabla3[[#This Row],[Nivel 3]]&Tabla3[[#This Row],[Nivel 4]]&Tabla3[[#This Row],[Nivel 5]]&Tabla3[[#This Row],[Nivel 6]]&Tabla3[[#This Row],[Nivel 7]]","v":"6.602.01.08.03."}]
[null,"6.","602.","01.","08.","04.",null,null,"Aseo Urbano ",{"$f":"+EsNegrita(I78)","v":"SI"},null,{"$f":"+Tabla3[[#This Row],[Nivel 1]]&Tabla3[[#This Row],[Nivel 2]]&Tabla3[[#This Row],[Nivel 3]]&Tabla3[[#This Row],[Nivel 4]]&Tabla3[[#This Row],[Nivel 5]]&Tabla3[[#This Row],[Nivel 6]]&Tabla3[[#This Row],[Nivel 7]]","v":"6.602.01.08.04."}]
[null,"6.","602.","01.","09.",null,null,null,"Relaciones Públicas",{"$f":"+EsNegrita(I79)","v":"SI"},null,{"$f":"+Tabla3[[#This Row],[Nivel 1]]&Tabla3[[#This Row],[Nivel 2]]&Tabla3[[#This Row],[Nivel 3]]&Tabla3[[#This Row],[Nivel 4]]&Tabla3[[#This Row],[Nivel 5]]&Tabla3[[#This Row],[Nivel 6]]&Tabla3[[#This Row],[Nivel 7]]","v":"6.602.01.09."}]
[null,"6.","602.","01.","10.",null,null,null,"Honorarios Profesionales",{"$f":"+EsNegrita(I80)","v":"SI"},null,{"$f":"+Tabla3[[#This Row],[Nivel 1]]&Tabla3[[#This Row],[Nivel 2]]&Tabla3[[#This Row],[Nivel 3]]&Tabla3[[#This Row],[Nivel 4]]&Tabla3[[#This Row],[Nivel 5]]&Tabla3[[#This Row],[Nivel 6]]&Tabla3[[#This Row],[Nivel 7]]","v":"6.602.01.10."}]
[null,"6.","602.","01.","11.",null,null,null,"Gastos de Procesamiento de Datos",{"$f":"+EsNegrita(I81)","v":"SI"},null,{"$f":"+Tabla3[[#This Row],[Nivel 1]]&Tabla3[[#This Row],[Nivel 2]]&Tabla3[[#This Row],[Nivel 3]]&Tabla3[[#This Row],[Nivel 4]]&Tabla3[[#This Row],[Nivel 5]]&Tabla3[[#This Row],[Nivel 6]]&Tabla3[[#This Row],[Nivel 7]]","v":"6.602.01.11."}]
[null,"6.","602.","01.","12.",null,null,null,"Gastos de Viajes",{"$f":"+EsNegrita(I82)","v":"SI"},null,{"$f":"+Tabla3[[#This Row],[Nivel 1]]&Tabla3[[#This Row],[Nivel 2]]&Tabla3[[#This Row],[Nivel 3]]&Tabla3[[#This Row],[Nivel 4]]&Tabla3[[#This Row],[Nivel 5]]&Tabla3[[#This Row],[Nivel 6]]&Tabla3[[#This Row],[Nivel 7]]","v":"6.602.01.12."}]
[null,"6.","602.","01.","13.",null,null,null,"Gastos de Inmuebles",{"$f":"+EsNegrita(I83)","v":"SI"},null,{"$f":"+Tabla3[[#This Row],[Nivel 1]]&Tabla3[[#This Row],[Nivel 2]]&Tabla3[[#This Row],[Nivel 3]]&Tabla3[[#This Row],[Nivel 4]]&Tabla3[[#This Row],[Nivel 5]]&Tabla3[[#This Row],[Nivel 6]]&Tabla3[[#This Row],[Nivel 7]]","v":"6.602.01.13."}]
[null,"6.","602.","01.","14.",null,null,null,"Gastos de Producción",{"$f":"+EsNegrita(I84)","v":"SI"},null,{"$f":"+Tabla3[[#This Row],[Nivel 1]]&Tabla3[[#This Row],[Nivel 2]]&Tabla3[[#This Row],[Nivel 3]]&Tabla3[[#This Row],[Nivel 4]]&Tabla3[[#This Row],[Nivel 5]]&Tabla3[[#This Row],[Nivel 6]]&Tabla3[[#This Row],[Nivel 7]]","v":"6.602.01.14."}]
[null,"6.","602.","01.","15.",null,null,null,"Otros Gastos de Administración",{"$f":"+EsNegrita(I85)","v":"SI"},null,{"$f":"+Tabla3[[#This Row],[Nivel 1]]&Tabla3[[#This Row],[Nivel 2]]&Tabla3[[#This Row],[Nivel 3]]&Tabla3[[#This Row],[Nivel 4]]&Tabla3[[#This Row],[Nivel 5]]&Tabla3[[#This Row],[Nivel 6]]&Tabla3[[#This Row],[Nivel 7]]","v":"6.602.01.15."}]
[null,"6.","602.","01.","16.",null,null,null,"Gastos No Deducibles",{"$f":"+EsNegrita(I86)","v":"SI"},null,{"$f":"+Tabla3[[#This Row],[Nivel 1]]&Tabla3[[#This Row],[Nivel 2]]&Tabla3[[#This Row],[Nivel 3]]&Tabla3[[#This Row],[Nivel 4]]&Tabla3[[#This Row],[Nivel 5]]&Tabla3[[#This Row],[Nivel 6]]&Tabla3[[#This Row],[Nivel 7]]","v":"6.602.01.16."}]
[null,"6.","602.","02.",null,null,null,null,"EGRESOS FINANCIEROS",{"$f":"+EsNegrita(I87)","v":"NO"},null,{"$f":"+Tabla3[[#This Row],[Nivel 1]]&Tabla3[[#This Row],[Nivel 2]]&Tabla3[[#This Row],[Nivel 3]]&Tabla3[[#This Row],[Nivel 4]]&Tabla3[[#This Row],[Nivel 5]]&Tabla3[[#This Row],[Nivel 6]]&Tabla3[[#This Row],[Nivel 7]]","v":"6.602.02."}]
[null,"6.","602.","02.","01.",null,null,null,"Intereses Pagados",{"$f":"+EsNegrita(I88)","v":"NO"},null,{"$f":"+Tabla3[[#This Row],[Nivel 1]]&Tabla3[[#This Row],[Nivel 2]]&Tabla3[[#This Row],[Nivel 3]]&Tabla3[[#This Row],[Nivel 4]]&Tabla3[[#This Row],[Nivel 5]]&Tabla3[[#This Row],[Nivel 6]]&Tabla3[[#This Row],[Nivel 7]]","v":"6.602.02.01."}]
[null,"6.","602.","02.","01.","01.",null,null,"Sobre Comisiones y Operaciones Bancarias",{"$f":"+EsNegrita(I89)","v":"NO"},null,{"$f":"+Tabla3[[#This Row],[Nivel 1]]&Tabla3[[#This Row],[Nivel 2]]&Tabla3[[#This Row],[Nivel 3]]&Tabla3[[#This Row],[Nivel 4]]&Tabla3[[#This Row],[Nivel 5]]&Tabla3[[#This Row],[Nivel 6]]&Tabla3[[#This Row],[Nivel 7]]","v":"6.602.02.01.01."}]
[null,"6.","602.","02.","01.","01.","01.",null,"Moneda Nacional",{"$f":"+EsNegrita(I90)","v":"SI"},null,{"$f":"+Tabla3[[#This Row],[Nivel 1]]&Tabla3[[#This Row],[Nivel 2]]&Tabla3[[#This Row],[Nivel 3]]&Tabla3[[#This Row],[Nivel 4]]&Tabla3[[#This Row],[Nivel 5]]&Tabla3[[#This Row],[Nivel 6]]&Tabla3[[#This Row],[Nivel 7]]","v":"6.602.02.01.01.01."}]
[null,"6.","602.","02.","01.","01.","02.",null,"Moneda Extranjera",{"$f":"+EsNegrita(I91)","v":"SI"},null,{"$f":"+Tabla3[[#This Row],[Nivel 1]]&Tabla3[[#This Row],[Nivel 2]]&Tabla3[[#This Row],[Nivel 3]]&Tabla3[[#This Row],[Nivel 4]]&Tabla3[[#This Row],[Nivel 5]]&Tabla3[[#This Row],[Nivel 6]]&Tabla3[[#This Row],[Nivel 7]]","v":"6.602.02.01.01.02."}]
[null,"6.","602.","02.","01.","02.",null,null,"Sobre Valores",{"$f":"+EsNegrita(I92)","v":"NO"},null,{"$f":"+Tabla3[[#This Row],[Nivel 1]]&Tabla3[[#This Row],[Nivel 2]]&Tabla3[[#This Row],[Nivel 3]]&Tabla3[[#This Row],[Nivel 4]]&Tabla3[[#This Row],[Nivel 5]]&Tabla3[[#This Row],[Nivel 6]]&Tabla3[[#This Row],[Nivel 7]]","v":"6.602.02.01.02."}]
[null,"6.","602.","02.","01.","02.","01.",null,"Moneda Nacional",{"$f":"+EsNegrita(I93)","v":"SI"},null,{"$f":"+Tabla3[[#This Row],[Nivel 1]]&Tabla3[[#This Row],[Nivel 2]]&Tabla3[[#This Row],[Nivel 3]]&Tabla3[[#This Row],[Nivel 4]]&Tabla3[[#This Row],[Nivel 5]]&Tabla3[[#This Row],[Nivel 6]]&Tabla3[[#This Row],[Nivel 7]]","v":"6.602.02.01.02.01."}]
[null,"6.","602.","02.","01.","02.","02.",null,"Moneda Extranjera",{"$f":"+EsNegrita(I94)","v":"SI"},null,{"$f":"+Tabla3[[#This Row],[Nivel 1]]&Tabla3[[#This Row],[Nivel 2]]&Tabla3[[#This Row],[Nivel 3]]&Tabla3[[#This Row],[Nivel 4]]&Tabla3[[#This Row],[Nivel 5]]&Tabla3[[#This Row],[Nivel 6]]&Tabla3[[#This Row],[Nivel 7]]","v":"6.602.02.01.02.02."}]
[null,"6.","602.","02.","01.","03.",null,null,"Otras Inversiones ",{"$f":"+EsNegrita(I95)","v":"NO"},null,{"$f":"+Tabla3[[#This Row],[Nivel 1]]&Tabla3[[#This Row],[Nivel 2]]&Tabla3[[#This Row],[Nivel 3]]&Tabla3[[#This Row],[Nivel 4]]&Tabla3[[#This Row],[Nivel 5]]&Tabla3[[#This Row],[Nivel 6]]&Tabla3[[#This Row],[Nivel 7]]","v":"6.602.02.01.03."}]
[null,"6.","602.","02.","01.","03.","01.",null,"Moneda Nacional",{"$f":"+EsNegrita(I96)","v":"SI"},null,{"$f":"+Tabla3[[#This Row],[Nivel 1]]&Tabla3[[#This Row],[Nivel 2]]&Tabla3[[#This Row],[Nivel 3]]&Tabla3[[#This Row],[Nivel 4]]&Tabla3[[#This Row],[Nivel 5]]&Tabla3[[#This Row],[Nivel 6]]&Tabla3[[#This Row],[Nivel 7]]","v":"6.602.02.01.03.01."}]
[null,"6.","602.","02.","01.","03.","02.",null,"Moneda Extranjera",{"$f":"+EsNegrita(I97)","v":"SI"},null,{"$f":"+Tabla3[[#This Row],[Nivel 1]]&Tabla3[[#This Row],[Nivel 2]]&Tabla3[[#This Row],[Nivel 3]]&Tabla3[[#This Row],[Nivel 4]]&Tabla3[[#This Row],[Nivel 5]]&Tabla3[[#This Row],[Nivel 6]]&Tabla3[[#This Row],[Nivel 7]]","v":"6.602.02.01.03.02."}]
[null,"6.","602.","03.",null,null,null,null,"Ajustes de Valores, Bienes y Otros Activos",{"$f":"+EsNegrita(I98)","v":"NO"},null,{"$f":"+Tabla3[[#This Row],[Nivel 1]]&Tabla3[[#This Row],[Nivel 2]]&Tabla3[[#This Row],[Nivel 3]]&Tabla3[[#This Row],[Nivel 4]]&Tabla3[[#This Row],[Nivel 5]]&Tabla3[[#This Row],[Nivel 6]]&Tabla3[[#This Row],[Nivel 7]]","v":"6.602.03."}]
[null,"6.","602.","03.","01.",null,null,null,"Ajustes de Valores",{"$f":"+EsNegrita(I99)","v":"NO"},null,{"$f":"+Tabla3[[#This Row],[Nivel 1]]&Tabla3[[#This Row],[Nivel 2]]&Tabla3[[#This Row],[Nivel 3]]&Tabla3[[#This Row],[Nivel 4]]&Tabla3[[#This Row],[Nivel 5]]&Tabla3[[#This Row],[Nivel 6]]&Tabla3[[#This Row],[Nivel 7]]","v":"6.602.03.01."}]
[null,"6.","602.","03.","01.","01.",null,null,"Valores Públicos",{"$f":"+EsNegrita(I100)","v":"NO"},null,{"$f":"+Tabla3[[#This Row],[Nivel 1]]&Tabla3[[#This Row],[Nivel 2]]&Tabla3[[#This Row],[Nivel 3]]&Tabla3[[#This Row],[Nivel 4]]&Tabla3[[#This Row],[Nivel 5]]&Tabla3[[#This Row],[Nivel 6]]&Tabla3[[#This Row],[Nivel 7]]","v":"6.602.03.01.01."}]
[null,"6.","602.","03.","01.","01.","01.",null,"Emitidos o Garantizados por la República",{"$f":"+EsNegrita(I101)","v":"SI"},null,{"$f":"+Tabla3[[#This Row],[Nivel 1]]&Tabla3[[#This Row],[Nivel 2]]&Tabla3[[#This Row],[Nivel 3]]&Tabla3[[#This Row],[Nivel 4]]&Tabla3[[#This Row],[Nivel 5]]&Tabla3[[#This Row],[Nivel 6]]&Tabla3[[#This Row],[Nivel 7]]","v":"6.602.03.01.01.01."}]
[null,"6.","602.","03.","01.","01.","02.",null,"Emitidos por Otros Sujetos de Derecho Público Nacional",{"$f":"+EsNegrita(I102)","v":"SI"},null,{"$f":"+Tabla3[[#This Row],[Nivel 1]]&Tabla3[[#This Row],[Nivel 2]]&Tabla3[[#This Row],[Nivel 3]]&Tabla3[[#This Row],[Nivel 4]]&Tabla3[[#This Row],[Nivel 5]]&Tabla3[[#This Row],[Nivel 6]]&Tabla3[[#This Row],[Nivel 7]]","v":"6.602.03.01.01.02."}]
[null,"6.","602.","03.","01.","01.","03.",null,"Emitidos por Empresas con Participación de la República",{"$f":"+EsNegrita(I103)","v":"SI"},null,{"$f":"+Tabla3[[#This Row],[Nivel 1]]&Tabla3[[#This Row],[Nivel 2]]&Tabla3[[#This Row],[Nivel 3]]&Tabla3[[#This Row],[Nivel 4]]&Tabla3[[#This Row],[Nivel 5]]&Tabla3[[#This Row],[Nivel 6]]&Tabla3[[#This Row],[Nivel 7]]","v":"6.602.03.01.01.03."}]
[null,"6.","602.","03.","01.","01.","04.",null,"Emitidos por Instituciones con Participación de la República",{"$f":"+EsNegrita(I104)","v":"SI"},null,{"$f":"+Tabla3[[#This Row],[Nivel 1]]&Tabla3[[#This Row],[Nivel 2]]&Tabla3[[#This Row],[Nivel 3]]&Tabla3[[#This Row],[Nivel 4]]&Tabla3[[#This Row],[Nivel 5]]&Tabla3[[#This Row],[Nivel 6]]&Tabla3[[#This Row],[Nivel 7]]","v":"6.602.03.01.01.04."}]
[null,"6.","602.","03.","01.","02.",null,null,"Participación en Fondos de Inversión",{"$f":"+EsNegrita(I105)","v":"NO"},null,{"$f":"+Tabla3[[#This Row],[Nivel 1]]&Tabla3[[#This Row],[Nivel 2]]&Tabla3[[#This Row],[Nivel 3]]&Tabla3[[#This Row],[Nivel 4]]&Tabla3[[#This Row],[Nivel 5]]&Tabla3[[#This Row],[Nivel 6]]&Tabla3[[#This Row],[Nivel 7]]","v":"6.602.03.01.02."}]
[null,"6.","602.","03.","01.","02.","01.",null,"Renta Fija",{"$f":"+EsNegrita(I106)","v":"SI"},null,{"$f":"+Tabla3[[#This Row],[Nivel 1]]&Tabla3[[#This Row],[Nivel 2]]&Tabla3[[#This Row],[Nivel 3]]&Tabla3[[#This Row],[Nivel 4]]&Tabla3[[#This Row],[Nivel 5]]&Tabla3[[#This Row],[Nivel 6]]&Tabla3[[#This Row],[Nivel 7]]","v":"6.602.03.01.02.01."}]
[null,"6.","602.","03.","01.","02.","02.",null,"Renta Variable",{"$f":"+EsNegrita(I107)","v":"SI"},null,{"$f":"+Tabla3[[#This Row],[Nivel 1]]&Tabla3[[#This Row],[Nivel 2]]&Tabla3[[#This Row],[Nivel 3]]&Tabla3[[#This Row],[Nivel 4]]&Tabla3[[#This Row],[Nivel 5]]&Tabla3[[#This Row],[Nivel 6]]&Tabla3[[#This Row],[Nivel 7]]","v":"6.602.03.01.02.02."}]
[null,"6.","602.","03.","01.","03.",null,null,"Garantía a la Nación",{"$f":"+EsNegrita(I108)","v":"NO"},null,{"$f":"+Tabla3[[#This Row],[Nivel 1]]&Tabla3[[#This Row],[Nivel 2]]&Tabla3[[#This Row],[Nivel 3]]&Tabla3[[#This Row],[Nivel 4]]&Tabla3[[#This Row],[Nivel 5]]&Tabla3[[#This Row],[Nivel 6]]&Tabla3[[#This Row],[Nivel 7]]","v":"6.602.03.01.03."}]
[null,"6.","602.","03.","01.","03.","01.",null,"Valores Públicos",{"$f":"+EsNegrita(I109)","v":"SI"},null,{"$f":"+Tabla3[[#This Row],[Nivel 1]]&Tabla3[[#This Row],[Nivel 2]]&Tabla3[[#This Row],[Nivel 3]]&Tabla3[[#This Row],[Nivel 4]]&Tabla3[[#This Row],[Nivel 5]]&Tabla3[[#This Row],[Nivel 6]]&Tabla3[[#This Row],[Nivel 7]]","v":"6.602.03.01.03.01."}]
[null,"6.","602.","03.","01.","04.",null,null,"Valores Privados",{"$f":"+EsNegrita(I110)","v":"NO"},null,{"$f":"+Tabla3[[#This Row],[Nivel 1]]&Tabla3[[#This Row],[Nivel 2]]&Tabla3[[#This Row],[Nivel 3]]&Tabla3[[#This Row],[Nivel 4]]&Tabla3[[#This Row],[Nivel 5]]&Tabla3[[#This Row],[Nivel 6]]&Tabla3[[#This Row],[Nivel 7]]","v":"6.602.03.01.04."}]
[null,"6.","602.","03.","01.","04.","01.",null,"Acciones de Sociedades Anónimas",{"$f":"+EsNegrita(I111)","v":"NO"},null,{"$f":"+Tabla3[[#This Row],[Nivel 1]]&Tabla3[[#This Row],[Nivel 2]]&Tabla3[[#This Row],[Nivel 3]]&Tabla3[[#This Row],[Nivel 4]]&Tabla3[[#This Row],[Nivel 5]]&Tabla3[[#This Row],[Nivel 6]]&Tabla3[[#This Row],[Nivel 7]]","v":"6.602.03.01.04.01."}]
[null,"6.","602.","03.","01.","04.","01.","01.","Empresas de Seguros o Reaseguros",{"$f":"+EsNegrita(I112)","v":"SI"},null,{"$f":"+Tabla3[[#This Row],[Nivel 1]]&Tabla3[[#This Row],[Nivel 2]]&Tabla3[[#This Row],[Nivel 3]]&Tabla3[[#This Row],[Nivel 4]]&Tabla3[[#This Row],[Nivel 5]]&Tabla3[[#This Row],[Nivel 6]]&Tabla3[[#This Row],[Nivel 7]]","v":"6.602.03.01.04.01.01."}]
[null,"6.","602.","03.","01.","04.","01.","02.","Sociedades de Corretaje de Seguros, de Reaseguros o de Valores",{"$f":"+EsNegrita(I113)","v":"SI"},null,{"$f":"+Tabla3[[#This Row],[Nivel 1]]&Tabla3[[#This Row],[Nivel 2]]&Tabla3[[#This Row],[Nivel 3]]&Tabla3[[#This Row],[Nivel 4]]&Tabla3[[#This Row],[Nivel 5]]&Tabla3[[#This Row],[Nivel 6]]&Tabla3[[#This Row],[Nivel 7]]","v":"6.602.03.01.04.01.02."}]
[null,"6.","602.","03.","01.","04.","01.","03.","Bancos y Otras Instituciones Financieras",{"$f":"+EsNegrita(I114)","v":"SI"},null,{"$f":"+Tabla3[[#This Row],[Nivel 1]]&Tabla3[[#This Row],[Nivel 2]]&Tabla3[[#This Row],[Nivel 3]]&Tabla3[[#This Row],[Nivel 4]]&Tabla3[[#This Row],[Nivel 5]]&Tabla3[[#This Row],[Nivel 6]]&Tabla3[[#This Row],[Nivel 7]]","v":"6.602.03.01.04.01.03."}]
[null,"6.","602.","03.","01.","04.","01.","04.","Sociedades Industriales y Comerciales",{"$f":"+EsNegrita(I115)","v":"SI"},null,{"$f":"+Tabla3[[#This Row],[Nivel 1]]&Tabla3[[#This Row],[Nivel 2]]&Tabla3[[#This Row],[Nivel 3]]&Tabla3[[#This Row],[Nivel 4]]&Tabla3[[#This Row],[Nivel 5]]&Tabla3[[#This Row],[Nivel 6]]&Tabla3[[#This Row],[Nivel 7]]","v":"6.602.03.01.04.01.04."}]
[null,"6.","602.","03.","01.","04.","01.","05.","Sociedades Civiles",{"$f":"+EsNegrita(I116)","v":"SI"},null,{"$f":"+Tabla3[[#This Row],[Nivel 1]]&Tabla3[[#This Row],[Nivel 2]]&Tabla3[[#This Row],[Nivel 3]]&Tabla3[[#This Row],[Nivel 4]]&Tabla3[[#This Row],[Nivel 5]]&Tabla3[[#This Row],[Nivel 6]]&Tabla3[[#This Row],[Nivel 7]]","v":"6.602.03.01.04.01.05."}]
[null,"6.","602.","03.","01.","04.","01.","06.","Empresas Filiales, Afiliadas y Relacionadas",{"$f":"+EsNegrita(I117)","v":"SI"},null,{"$f":"+Tabla3[[#This Row],[Nivel 1]]&Tabla3[[#This Row],[Nivel 2]]&Tabla3[[#This Row],[Nivel 3]]&Tabla3[[#This Row],[Nivel 4]]&Tabla3[[#This Row],[Nivel 5]]&Tabla3[[#This Row],[Nivel 6]]&Tabla3[[#This Row],[Nivel 7]]","v":"6.602.03.01.04.01.06."}]
[null,"6.","602.","03.","01.","04.","01.","07.","Otras Sociedades Anónimas",{"$f":"+EsNegrita(I118)","v":"SI"},null,{"$f":"+Tabla3[[#This Row],[Nivel 1]]&Tabla3[[#This Row],[Nivel 2]]&Tabla3[[#This Row],[Nivel 3]]&Tabla3[[#This Row],[Nivel 4]]&Tabla3[[#This Row],[Nivel 5]]&Tabla3[[#This Row],[Nivel 6]]&Tabla3[[#This Row],[Nivel 7]]","v":"6.602.03.01.04.01.07."}]
[null,"6.","602.","03.","01.","04.","02.",null,"Bonos de Sociedades Anónimas",{"$f":"+EsNegrita(I119)","v":"SI"},null,{"$f":"+Tabla3[[#This Row],[Nivel 1]]&Tabla3[[#This Row],[Nivel 2]]&Tabla3[[#This Row],[Nivel 3]]&Tabla3[[#This Row],[Nivel 4]]&Tabla3[[#This Row],[Nivel 5]]&Tabla3[[#This Row],[Nivel 6]]&Tabla3[[#This Row],[Nivel 7]]","v":"6.602.03.01.04.02."}]
[null,"6.","602.","03.","01.","04.","03.",null,"Otras Inversiones emitidas por el Sector Privado.",{"$f":"+EsNegrita(I120)","v":"SI"},null,{"$f":"+Tabla3[[#This Row],[Nivel 1]]&Tabla3[[#This Row],[Nivel 2]]&Tabla3[[#This Row],[Nivel 3]]&Tabla3[[#This Row],[Nivel 4]]&Tabla3[[#This Row],[Nivel 5]]&Tabla3[[#This Row],[Nivel 6]]&Tabla3[[#This Row],[Nivel 7]]","v":"6.602.03.01.04.03."}]
[null,"6.","602.","03.","01.","05.",null,null,"Activos en el Extranjero",{"$f":"+EsNegrita(I121)","v":"NO"},null,{"$f":"+Tabla3[[#This Row],[Nivel 1]]&Tabla3[[#This Row],[Nivel 2]]&Tabla3[[#This Row],[Nivel 3]]&Tabla3[[#This Row],[Nivel 4]]&Tabla3[[#This Row],[Nivel 5]]&Tabla3[[#This Row],[Nivel 6]]&Tabla3[[#This Row],[Nivel 7]]","v":"6.602.03.01.05."}]
[null,"6.","602.","03.","01.","05.","01.",null,"Títulos Valores",{"$f":"+EsNegrita(I122)","v":"SI"},null,{"$f":"+Tabla3[[#This Row],[Nivel 1]]&Tabla3[[#This Row],[Nivel 2]]&Tabla3[[#This Row],[Nivel 3]]&Tabla3[[#This Row],[Nivel 4]]&Tabla3[[#This Row],[Nivel 5]]&Tabla3[[#This Row],[Nivel 6]]&Tabla3[[#This Row],[Nivel 7]]","v":"6.602.03.01.05.01."}]
[null,"6.","602.","03.","02.",null,null,null,"Bienes",{"$f":"+EsNegrita(I123)","v":"NO"},null,{"$f":"+Tabla3[[#This Row],[Nivel 1]]&Tabla3[[#This Row],[Nivel 2]]&Tabla3[[#This Row],[Nivel 3]]&Tabla3[[#This Row],[Nivel 4]]&Tabla3[[#This Row],[Nivel 5]]&Tabla3[[#This Row],[Nivel 6]]&Tabla3[[#This Row],[Nivel 7]]","v":"6.602.03.02."}]
[null,"6.","602.","03.","02.","01.",null,null,"Participación Fondos de Inversión Inmobiliarios",{"$f":"+EsNegrita(I124)","v":"SI"},null,{"$f":"+Tabla3[[#This Row],[Nivel 1]]&Tabla3[[#This Row],[Nivel 2]]&Tabla3[[#This Row],[Nivel 3]]&Tabla3[[#This Row],[Nivel 4]]&Tabla3[[#This Row],[Nivel 5]]&Tabla3[[#This Row],[Nivel 6]]&Tabla3[[#This Row],[Nivel 7]]","v":"6.602.03.02.01."}]
[null,"6.","602.","03.","02.","02.",null,null,"Bienes Inmuebles Edificados",{"$f":"+EsNegrita(I125)","v":"NO"},null,{"$f":"+Tabla3[[#This Row],[Nivel 1]]&Tabla3[[#This Row],[Nivel 2]]&Tabla3[[#This Row],[Nivel 3]]&Tabla3[[#This Row],[Nivel 4]]&Tabla3[[#This Row],[Nivel 5]]&Tabla3[[#This Row],[Nivel 6]]&Tabla3[[#This Row],[Nivel 7]]","v":"6.602.03.02.02."}]
[null,"6.","602.","03.","02.","02.","01.",null,"Terrenos",{"$f":"+EsNegrita(I126)","v":"SI"},null,{"$f":"+Tabla3[[#This Row],[Nivel 1]]&Tabla3[[#This Row],[Nivel 2]]&Tabla3[[#This Row],[Nivel 3]]&Tabla3[[#This Row],[Nivel 4]]&Tabla3[[#This Row],[Nivel 5]]&Tabla3[[#This Row],[Nivel 6]]&Tabla3[[#This Row],[Nivel 7]]","v":"6.602.03.02.02.01."}]
[null,"6.","602.","03.","02.","02.","02.",null,"Edificaciones",{"$f":"+EsNegrita(I127)","v":"SI"},null,{"$f":"+Tabla3[[#This Row],[Nivel 1]]&Tabla3[[#This Row],[Nivel 2]]&Tabla3[[#This Row],[Nivel 3]]&Tabla3[[#This Row],[Nivel 4]]&Tabla3[[#This Row],[Nivel 5]]&Tabla3[[#This Row],[Nivel 6]]&Tabla3[[#This Row],[Nivel 7]]","v":"6.602.03.02.02.02."}]
[null,"6.","602.","03.","02.","03.",null,null,"Activos en el Extranjero",{"$f":"+EsNegrita(I128)","v":"NO"},null,{"$f":"+Tabla3[[#This Row],[Nivel 1]]&Tabla3[[#This Row],[Nivel 2]]&Tabla3[[#This Row],[Nivel 3]]&Tabla3[[#This Row],[Nivel 4]]&Tabla3[[#This Row],[Nivel 5]]&Tabla3[[#This Row],[Nivel 6]]&Tabla3[[#This Row],[Nivel 7]]","v":"6.602.03.02.03."}]
[null,"6.","602.","03.","02.","03.","01.",null,"Inmuebles ",{"$f":"+EsNegrita(I129)","v":"SI"},null,{"$f":"+Tabla3[[#This Row],[Nivel 1]]&Tabla3[[#This Row],[Nivel 2]]&Tabla3[[#This Row],[Nivel 3]]&Tabla3[[#This Row],[Nivel 4]]&Tabla3[[#This Row],[Nivel 5]]&Tabla3[[#This Row],[Nivel 6]]&Tabla3[[#This Row],[Nivel 7]]","v":"6.602.03.02.03.01."}]
[null,"6.","602.","03.","02.","03.","02.",null,"Otras Inversiones ",{"$f":"+EsNegrita(I130)","v":"SI"},null,{"$f":"+Tabla3[[#This Row],[Nivel 1]]&Tabla3[[#This Row],[Nivel 2]]&Tabla3[[#This Row],[Nivel 3]]&Tabla3[[#This Row],[Nivel 4]]&Tabla3[[#This Row],[Nivel 5]]&Tabla3[[#This Row],[Nivel 6]]&Tabla3[[#This Row],[Nivel 7]]","v":"6.602.03.02.03.02."}]
[null,"6.","602.","03.","03.",null,null,null,"Acervo Artístico",{"$f":"+EsNegrita(I131)","v":"SI"},null,{"$f":"+Tabla3[[#This Row],[Nivel 1]]&Tabla3[[#This Row],[Nivel 2]]&Tabla3[[#This Row],[Nivel 3]]&Tabla3[[#This Row],[Nivel 4]]&Tabla3[[#This Row],[Nivel 5]]&Tabla3[[#This Row],[Nivel 6]]&Tabla3[[#This Row],[Nivel 7]]","v":"6.602.03.03."}]
[null,"6.","602.","04.",null,null,null,null,"Fluctuación Cambiaria",{"$f":"+EsNegrita(I132)","v":"NO"},null,{"$f":"+Tabla3[[#This Row],[Nivel 1]]&Tabla3[[#This Row],[Nivel 2]]&Tabla3[[#This Row],[Nivel 3]]&Tabla3[[#This Row],[Nivel 4]]&Tabla3[[#This Row],[Nivel 5]]&Tabla3[[#This Row],[Nivel 6]]&Tabla3[[#This Row],[Nivel 7]]","v":"6.602.04."}]
[null,"6.","602.","04.","01.",null,null,null,"Sobre Activos",{"$f":"+EsNegrita(I133)","v":"NO"},null,{"$f":"+Tabla3[[#This Row],[Nivel 1]]&Tabla3[[#This Row],[Nivel 2]]&Tabla3[[#This Row],[Nivel 3]]&Tabla3[[#This Row],[Nivel 4]]&Tabla3[[#This Row],[Nivel 5]]&Tabla3[[#This Row],[Nivel 6]]&Tabla3[[#This Row],[Nivel 7]]","v":"6.602.04.01."}]
[null,"6.","602.","04.","01.","01.",null,null,"Disponible",{"$f":"+EsNegrita(I134)","v":"NO"},null,{"$f":"+Tabla3[[#This Row],[Nivel 1]]&Tabla3[[#This Row],[Nivel 2]]&Tabla3[[#This Row],[Nivel 3]]&Tabla3[[#This Row],[Nivel 4]]&Tabla3[[#This Row],[Nivel 5]]&Tabla3[[#This Row],[Nivel 6]]&Tabla3[[#This Row],[Nivel 7]]","v":"6.602.04.01.01."}]
[null,"6.","602.","04.","01.","01.","01.",null,"Caja",{"$f":"+EsNegrita(I135)","v":"SI"},null,{"$f":"+Tabla3[[#This Row],[Nivel 1]]&Tabla3[[#This Row],[Nivel 2]]&Tabla3[[#This Row],[Nivel 3]]&Tabla3[[#This Row],[Nivel 4]]&Tabla3[[#This Row],[Nivel 5]]&Tabla3[[#This Row],[Nivel 6]]&Tabla3[[#This Row],[Nivel 7]]","v":"6.602.04.01.01.01."}]
[null,"6.","602.","04.","01.","01.","02.",null,"Caja Chica",{"$f":"+EsNegrita(I136)","v":"SI"},null,{"$f":"+Tabla3[[#This Row],[Nivel 1]]&Tabla3[[#This Row],[Nivel 2]]&Tabla3[[#This Row],[Nivel 3]]&Tabla3[[#This Row],[Nivel 4]]&Tabla3[[#This Row],[Nivel 5]]&Tabla3[[#This Row],[Nivel 6]]&Tabla3[[#This Row],[Nivel 7]]","v":"6.602.04.01.01.02."}]
[null,"6.","602.","04.","01.","01.","03.",null,"Depósitos a la Vista",{"$f":"+EsNegrita(I137)","v":"NO"},null,{"$f":"+Tabla3[[#This Row],[Nivel 1]]&Tabla3[[#This Row],[Nivel 2]]&Tabla3[[#This Row],[Nivel 3]]&Tabla3[[#This Row],[Nivel 4]]&Tabla3[[#This Row],[Nivel 5]]&Tabla3[[#This Row],[Nivel 6]]&Tabla3[[#This Row],[Nivel 7]]","v":"6.602.04.01.01.03."}]
[null,"6.","602.","04.","01.","01.","03.","01.","Bancos",{"$f":"+EsNegrita(I138)","v":"SI"},null,{"$f":"+Tabla3[[#This Row],[Nivel 1]]&Tabla3[[#This Row],[Nivel 2]]&Tabla3[[#This Row],[Nivel 3]]&Tabla3[[#This Row],[Nivel 4]]&Tabla3[[#This Row],[Nivel 5]]&Tabla3[[#This Row],[Nivel 6]]&Tabla3[[#This Row],[Nivel 7]]","v":"6.602.04.01.01.03.01."}]
[null,"6.","602.","04.","01.","01.","03.","02.","Otras Instituciones Financieras",{"$f":"+EsNegrita(I139)","v":"SI"},null,{"$f":"+Tabla3[[#This Row],[Nivel 1]]&Tabla3[[#This Row],[Nivel 2]]&Tabla3[[#This Row],[Nivel 3]]&Tabla3[[#This Row],[Nivel 4]]&Tabla3[[#This Row],[Nivel 5]]&Tabla3[[#This Row],[Nivel 6]]&Tabla3[[#This Row],[Nivel 7]]","v":"6.602.04.01.01.03.02."}]
[null,"6.","602.","04.","01.","01.","04.",null,"Depósitos a Plazo",{"$f":"+EsNegrita(I140)","v":"NO"},null,{"$f":"+Tabla3[[#This Row],[Nivel 1]]&Tabla3[[#This Row],[Nivel 2]]&Tabla3[[#This Row],[Nivel 3]]&Tabla3[[#This Row],[Nivel 4]]&Tabla3[[#This Row],[Nivel 5]]&Tabla3[[#This Row],[Nivel 6]]&Tabla3[[#This Row],[Nivel 7]]","v":"6.602.04.01.01.04."}]
[null,"6.","602.","04.","01.","01.","04.","01.","Bancos",{"$f":"+EsNegrita(I141)","v":"SI"},null,{"$f":"+Tabla3[[#This Row],[Nivel 1]]&Tabla3[[#This Row],[Nivel 2]]&Tabla3[[#This Row],[Nivel 3]]&Tabla3[[#This Row],[Nivel 4]]&Tabla3[[#This Row],[Nivel 5]]&Tabla3[[#This Row],[Nivel 6]]&Tabla3[[#This Row],[Nivel 7]]","v":"6.602.04.01.01.04.01."}]
[null,"6.","602.","04.","01.","01.","04.","02.","Otras Instituciones Financieras",{"$f":"+EsNegrita(I142)","v":"SI"},null,{"$f":"+Tabla3[[#This Row],[Nivel 1]]&Tabla3[[#This Row],[Nivel 2]]&Tabla3[[#This Row],[Nivel 3]]&Tabla3[[#This Row],[Nivel 4]]&Tabla3[[#This Row],[Nivel 5]]&Tabla3[[#This Row],[Nivel 6]]&Tabla3[[#This Row],[Nivel 7]]","v":"6.602.04.01.01.04.02."}]
[null,"6.","602.","04.","01.","02.",null,null,"Valores Públicos",{"$f":"+EsNegrita(I143)","v":"NO"},null,{"$f":"+Tabla3[[#This Row],[Nivel 1]]&Tabla3[[#This Row],[Nivel 2]]&Tabla3[[#This Row],[Nivel 3]]&Tabla3[[#This Row],[Nivel 4]]&Tabla3[[#This Row],[Nivel 5]]&Tabla3[[#This Row],[Nivel 6]]&Tabla3[[#This Row],[Nivel 7]]","v":"6.602.04.01.02."}]
[null,"6.","602.","04.","01.","02.","01.",null,"Emitidos o Garantizados por la República",{"$f":"+EsNegrita(I144)","v":"SI"},null,{"$f":"+Tabla3[[#This Row],[Nivel 1]]&Tabla3[[#This Row],[Nivel 2]]&Tabla3[[#This Row],[Nivel 3]]&Tabla3[[#This Row],[Nivel 4]]&Tabla3[[#This Row],[Nivel 5]]&Tabla3[[#This Row],[Nivel 6]]&Tabla3[[#This Row],[Nivel 7]]","v":"6.602.04.01.02.01."}]
[null,"6.","602.","04.","01.","02.","02.",null,"Emitidos por Otros Sujetos de Derecho Público Nacional",{"$f":"+EsNegrita(I145)","v":"SI"},null,{"$f":"+Tabla3[[#This Row],[Nivel 1]]&Tabla3[[#This Row],[Nivel 2]]&Tabla3[[#This Row],[Nivel 3]]&Tabla3[[#This Row],[Nivel 4]]&Tabla3[[#This Row],[Nivel 5]]&Tabla3[[#This Row],[Nivel 6]]&Tabla3[[#This Row],[Nivel 7]]","v":"6.602.04.01.02.02."}]
[null,"6.","602.","04.","01.","02.","03.",null,"Emitidos por Empresas con Participación de la República",{"$f":"+EsNegrita(I146)","v":"SI"},null,{"$f":"+Tabla3[[#This Row],[Nivel 1]]&Tabla3[[#This Row],[Nivel 2]]&Tabla3[[#This Row],[Nivel 3]]&Tabla3[[#This Row],[Nivel 4]]&Tabla3[[#This Row],[Nivel 5]]&Tabla3[[#This Row],[Nivel 6]]&Tabla3[[#This Row],[Nivel 7]]","v":"6.602.04.01.02.03."}]
[null,"6.","602.","04.","01.","02.","04.",null,"Emitidos por Instituciones con Participación de la República",{"$f":"+EsNegrita(I147)","v":"SI"},null,{"$f":"+Tabla3[[#This Row],[Nivel 1]]&Tabla3[[#This Row],[Nivel 2]]&Tabla3[[#This Row],[Nivel 3]]&Tabla3[[#This Row],[Nivel 4]]&Tabla3[[#This Row],[Nivel 5]]&Tabla3[[#This Row],[Nivel 6]]&Tabla3[[#This Row],[Nivel 7]]","v":"6.602.04.01.02.04."}]
[null,"6.","602.","04.","01.","03.",null,null,"Participación en Fondos de Inversión",{"$f":"+EsNegrita(I148)","v":"NO"},null,{"$f":"+Tabla3[[#This Row],[Nivel 1]]&Tabla3[[#This Row],[Nivel 2]]&Tabla3[[#This Row],[Nivel 3]]&Tabla3[[#This Row],[Nivel 4]]&Tabla3[[#This Row],[Nivel 5]]&Tabla3[[#This Row],[Nivel 6]]&Tabla3[[#This Row],[Nivel 7]]","v":"6.602.04.01.03."}]
[null,"6.","602.","04.","01.","03.","01.",null,"Renta Fija",{"$f":"+EsNegrita(I149)","v":"SI"},null,{"$f":"+Tabla3[[#This Row],[Nivel 1]]&Tabla3[[#This Row],[Nivel 2]]&Tabla3[[#This Row],[Nivel 3]]&Tabla3[[#This Row],[Nivel 4]]&Tabla3[[#This Row],[Nivel 5]]&Tabla3[[#This Row],[Nivel 6]]&Tabla3[[#This Row],[Nivel 7]]","v":"6.602.04.01.03.01."}]
[null,"6.","602.","04.","01.","03.","02.",null,"Renta Variable",{"$f":"+EsNegrita(I150)","v":"SI"},null,{"$f":"+Tabla3[[#This Row],[Nivel 1]]&Tabla3[[#This Row],[Nivel 2]]&Tabla3[[#This Row],[Nivel 3]]&Tabla3[[#This Row],[Nivel 4]]&Tabla3[[#This Row],[Nivel 5]]&Tabla3[[#This Row],[Nivel 6]]&Tabla3[[#This Row],[Nivel 7]]","v":"6.602.04.01.03.02."}]
[null,"6.","602.","04.","01.","04.",null,null,"Participación Fondos de Inversión Inmobiliarios",{"$f":"+EsNegrita(I151)","v":"SI"},null,{"$f":"+Tabla3[[#This Row],[Nivel 1]]&Tabla3[[#This Row],[Nivel 2]]&Tabla3[[#This Row],[Nivel 3]]&Tabla3[[#This Row],[Nivel 4]]&Tabla3[[#This Row],[Nivel 5]]&Tabla3[[#This Row],[Nivel 6]]&Tabla3[[#This Row],[Nivel 7]]","v":"6.602.04.01.04."}]
[null,"6.","602.","04.","01.","05.",null,null,"Valores Privados",{"$f":"+EsNegrita(I152)","v":"NO"},null,{"$f":"+Tabla3[[#This Row],[Nivel 1]]&Tabla3[[#This Row],[Nivel 2]]&Tabla3[[#This Row],[Nivel 3]]&Tabla3[[#This Row],[Nivel 4]]&Tabla3[[#This Row],[Nivel 5]]&Tabla3[[#This Row],[Nivel 6]]&Tabla3[[#This Row],[Nivel 7]]","v":"6.602.04.01.05."}]
[null,"6.","602.","04.","01.","05.","01.",null,"Acciones de Sociedades Anónimas",{"$f":"+EsNegrita(I153)","v":"NO"},null,{"$f":"+Tabla3[[#This Row],[Nivel 1]]&Tabla3[[#This Row],[Nivel 2]]&Tabla3[[#This Row],[Nivel 3]]&Tabla3[[#This Row],[Nivel 4]]&Tabla3[[#This Row],[Nivel 5]]&Tabla3[[#This Row],[Nivel 6]]&Tabla3[[#This Row],[Nivel 7]]","v":"6.602.04.01.05.01."}]
[null,"6.","602.","04.","01.","05.","01.","01.","Empresas de Seguros o Reaseguros",{"$f":"+EsNegrita(I154)","v":"SI"},null,{"$f":"+Tabla3[[#This Row],[Nivel 1]]&Tabla3[[#This Row],[Nivel 2]]&Tabla3[[#This Row],[Nivel 3]]&Tabla3[[#This Row],[Nivel 4]]&Tabla3[[#This Row],[Nivel 5]]&Tabla3[[#This Row],[Nivel 6]]&Tabla3[[#This Row],[Nivel 7]]","v":"6.602.04.01.05.01.01."}]
[null,"6.","602.","04.","01.","05.","01.","02.","Sociedades de Corretaje de Seguros, de Reaseguros o de Valores",{"$f":"+EsNegrita(I155)","v":"SI"},null,{"$f":"+Tabla3[[#This Row],[Nivel 1]]&Tabla3[[#This Row],[Nivel 2]]&Tabla3[[#This Row],[Nivel 3]]&Tabla3[[#This Row],[Nivel 4]]&Tabla3[[#This Row],[Nivel 5]]&Tabla3[[#This Row],[Nivel 6]]&Tabla3[[#This Row],[Nivel 7]]","v":"6.602.04.01.05.01.02."}]
[null,"6.","602.","04.","01.","05.","01.","03.","Bancos y Otras Instituciones Financieras",{"$f":"+EsNegrita(I156)","v":"SI"},null,{"$f":"+Tabla3[[#This Row],[Nivel 1]]&Tabla3[[#This Row],[Nivel 2]]&Tabla3[[#This Row],[Nivel 3]]&Tabla3[[#This Row],[Nivel 4]]&Tabla3[[#This Row],[Nivel 5]]&Tabla3[[#This Row],[Nivel 6]]&Tabla3[[#This Row],[Nivel 7]]","v":"6.602.04.01.05.01.03."}]
[null,"6.","602.","04.","01.","05.","01.","04.","Sociedades Industriales y Comerciales",{"$f":"+EsNegrita(I157)","v":"SI"},null,{"$f":"+Tabla3[[#This Row],[Nivel 1]]&Tabla3[[#This Row],[Nivel 2]]&Tabla3[[#This Row],[Nivel 3]]&Tabla3[[#This Row],[Nivel 4]]&Tabla3[[#This Row],[Nivel 5]]&Tabla3[[#This Row],[Nivel 6]]&Tabla3[[#This Row],[Nivel 7]]","v":"6.602.04.01.05.01.04."}]
[null,"6.","602.","04.","01.","05.","01.","05.","Sociedades Civiles",{"$f":"+EsNegrita(I158)","v":"SI"},null,{"$f":"+Tabla3[[#This Row],[Nivel 1]]&Tabla3[[#This Row],[Nivel 2]]&Tabla3[[#This Row],[Nivel 3]]&Tabla3[[#This Row],[Nivel 4]]&Tabla3[[#This Row],[Nivel 5]]&Tabla3[[#This Row],[Nivel 6]]&Tabla3[[#This Row],[Nivel 7]]","v":"6.602.04.01.05.01.05."}]
[null,"6.","602.","04.","01.","05.","01.","06.","Empresas Filiales, Afiliadas y Relacionadas",{"$f":"+EsNegrita(I159)","v":"SI"},null,{"$f":"+Tabla3[[#This Row],[Nivel 1]]&Tabla3[[#This Row],[Nivel 2]]&Tabla3[[#This Row],[Nivel 3]]&Tabla3[[#This Row],[Nivel 4]]&Tabla3[[#This Row],[Nivel 5]]&Tabla3[[#This Row],[Nivel 6]]&Tabla3[[#This Row],[Nivel 7]]","v":"6.602.04.01.05.01.06."}]
[null,"6.","602.","04.","01.","05.","01.","07.","Otras Sociedades Anónimas",{"$f":"+EsNegrita(I160)","v":"SI"},null,{"$f":"+Tabla3[[#This Row],[Nivel 1]]&Tabla3[[#This Row],[Nivel 2]]&Tabla3[[#This Row],[Nivel 3]]&Tabla3[[#This Row],[Nivel 4]]&Tabla3[[#This Row],[Nivel 5]]&Tabla3[[#This Row],[Nivel 6]]&Tabla3[[#This Row],[Nivel 7]]","v":"6.602.04.01.05.01.07."}]
[null,"6.","602.","04.","01.","05.","02.",null,"Bonos de Sociedades Anónimas",{"$f":"+EsNegrita(I161)","v":"SI"},null,{"$f":"+Tabla3[[#This Row],[Nivel 1]]&Tabla3[[#This Row],[Nivel 2]]&Tabla3[[#This Row],[Nivel 3]]&Tabla3[[#This Row],[Nivel 4]]&Tabla3[[#This Row],[Nivel 5]]&Tabla3[[#This Row],[Nivel 6]]&Tabla3[[#This Row],[Nivel 7]]","v":"6.602.04.01.05.02."}]
[null,"6.","602.","04.","01.","05.","03.",null,"Otras Inversiones emitidas por el Sector Privado.",{"$f":"+EsNegrita(I162)","v":"SI"},null,{"$f":"+Tabla3[[#This Row],[Nivel 1]]&Tabla3[[#This Row],[Nivel 2]]&Tabla3[[#This Row],[Nivel 3]]&Tabla3[[#This Row],[Nivel 4]]&Tabla3[[#This Row],[Nivel 5]]&Tabla3[[#This Row],[Nivel 6]]&Tabla3[[#This Row],[Nivel 7]]","v":"6.602.04.01.05.03."}]
[null,"6.","602.","04.","01.","06.",null,null,"Activos en el Extranjero",{"$f":"+EsNegrita(I163)","v":"NO"},null,{"$f":"+Tabla3[[#This Row],[Nivel 1]]&Tabla3[[#This Row],[Nivel 2]]&Tabla3[[#This Row],[Nivel 3]]&Tabla3[[#This Row],[Nivel 4]]&Tabla3[[#This Row],[Nivel 5]]&Tabla3[[#This Row],[Nivel 6]]&Tabla3[[#This Row],[Nivel 7]]","v":"6.602.04.01.06."}]
[null,"6.","602.","04.","01.","06.","01.",null,"Bancos  ",{"$f":"+EsNegrita(I164)","v":"SI"},null,{"$f":"+Tabla3[[#This Row],[Nivel 1]]&Tabla3[[#This Row],[Nivel 2]]&Tabla3[[#This Row],[Nivel 3]]&Tabla3[[#This Row],[Nivel 4]]&Tabla3[[#This Row],[Nivel 5]]&Tabla3[[#This Row],[Nivel 6]]&Tabla3[[#This Row],[Nivel 7]]","v":"6.602.04.01.06.01."}]
[null,"6.","602.","04.","01.","06.","02.",null,"Títulos Valores",{"$f":"+EsNegrita(I165)","v":"SI"},null,{"$f":"+Tabla3[[#This Row],[Nivel 1]]&Tabla3[[#This Row],[Nivel 2]]&Tabla3[[#This Row],[Nivel 3]]&Tabla3[[#This Row],[Nivel 4]]&Tabla3[[#This Row],[Nivel 5]]&Tabla3[[#This Row],[Nivel 6]]&Tabla3[[#This Row],[Nivel 7]]","v":"6.602.04.01.06.02."}]
[null,"6.","602.","04.","01.","06.","03.",null,"Inmuebles ",{"$f":"+EsNegrita(I166)","v":"SI"},null,{"$f":"+Tabla3[[#This Row],[Nivel 1]]&Tabla3[[#This Row],[Nivel 2]]&Tabla3[[#This Row],[Nivel 3]]&Tabla3[[#This Row],[Nivel 4]]&Tabla3[[#This Row],[Nivel 5]]&Tabla3[[#This Row],[Nivel 6]]&Tabla3[[#This Row],[Nivel 7]]","v":"6.602.04.01.06.03."}]
[null,"6.","602.","04.","01.","06.","04.",null,"Otras Inversiones ",{"$f":"+EsNegrita(I167)","v":"SI"},null,{"$f":"+Tabla3[[#This Row],[Nivel 1]]&Tabla3[[#This Row],[Nivel 2]]&Tabla3[[#This Row],[Nivel 3]]&Tabla3[[#This Row],[Nivel 4]]&Tabla3[[#This Row],[Nivel 5]]&Tabla3[[#This Row],[Nivel 6]]&Tabla3[[#This Row],[Nivel 7]]","v":"6.602.04.01.06.04."}]
[null,"6.","602.","05.",null,null,null,null,"Pérdida en Negociación de Valores, Bienes y Otros Activos",{"$f":"+EsNegrita(I168)","v":"NO"},null,{"$f":"+Tabla3[[#This Row],[Nivel 1]]&Tabla3[[#This Row],[Nivel 2]]&Tabla3[[#This Row],[Nivel 3]]&Tabla3[[#This Row],[Nivel 4]]&Tabla3[[#This Row],[Nivel 5]]&Tabla3[[#This Row],[Nivel 6]]&Tabla3[[#This Row],[Nivel 7]]","v":"6.602.05."}]
[null,"6.","602.","05.","01.",null,null,null,"Pérdida en Negociación de Valores  ",{"$f":"+EsNegrita(I169)","v":"NO"},null,{"$f":"+Tabla3[[#This Row],[Nivel 1]]&Tabla3[[#This Row],[Nivel 2]]&Tabla3[[#This Row],[Nivel 3]]&Tabla3[[#This Row],[Nivel 4]]&Tabla3[[#This Row],[Nivel 5]]&Tabla3[[#This Row],[Nivel 6]]&Tabla3[[#This Row],[Nivel 7]]","v":"6.602.05.01."}]
[null,"6.","602.","05.","01.","01.",null,null,"Valores Públicos",{"$f":"+EsNegrita(I170)","v":"NO"},null,{"$f":"+Tabla3[[#This Row],[Nivel 1]]&Tabla3[[#This Row],[Nivel 2]]&Tabla3[[#This Row],[Nivel 3]]&Tabla3[[#This Row],[Nivel 4]]&Tabla3[[#This Row],[Nivel 5]]&Tabla3[[#This Row],[Nivel 6]]&Tabla3[[#This Row],[Nivel 7]]","v":"6.602.05.01.01."}]
[null,"6.","602.","05.","01.","01.","01.",null,"Emitidos o Garantizados por la República",{"$f":"+EsNegrita(I171)","v":"SI"},null,{"$f":"+Tabla3[[#This Row],[Nivel 1]]&Tabla3[[#This Row],[Nivel 2]]&Tabla3[[#This Row],[Nivel 3]]&Tabla3[[#This Row],[Nivel 4]]&Tabla3[[#This Row],[Nivel 5]]&Tabla3[[#This Row],[Nivel 6]]&Tabla3[[#This Row],[Nivel 7]]","v":"6.602.05.01.01.01."}]
[null,"6.","602.","05.","01.","01.","02.",null,"Emitidos por Otros Sujetos de Derecho Público Nacional",{"$f":"+EsNegrita(I172)","v":"SI"},null,{"$f":"+Tabla3[[#This Row],[Nivel 1]]&Tabla3[[#This Row],[Nivel 2]]&Tabla3[[#This Row],[Nivel 3]]&Tabla3[[#This Row],[Nivel 4]]&Tabla3[[#This Row],[Nivel 5]]&Tabla3[[#This Row],[Nivel 6]]&Tabla3[[#This Row],[Nivel 7]]","v":"6.602.05.01.01.02."}]
[null,"6.","602.","05.","01.","01.","03.",null,"Emitidos por Empresas con Participación de la República",{"$f":"+EsNegrita(I173)","v":"SI"},null,{"$f":"+Tabla3[[#This Row],[Nivel 1]]&Tabla3[[#This Row],[Nivel 2]]&Tabla3[[#This Row],[Nivel 3]]&Tabla3[[#This Row],[Nivel 4]]&Tabla3[[#This Row],[Nivel 5]]&Tabla3[[#This Row],[Nivel 6]]&Tabla3[[#This Row],[Nivel 7]]","v":"6.602.05.01.01.03."}]
[null,"6.","602.","05.","01.","01.","04.",null,"Emitidos por Instituciones con Participación de la República",{"$f":"+EsNegrita(I174)","v":"SI"},null,{"$f":"+Tabla3[[#This Row],[Nivel 1]]&Tabla3[[#This Row],[Nivel 2]]&Tabla3[[#This Row],[Nivel 3]]&Tabla3[[#This Row],[Nivel 4]]&Tabla3[[#This Row],[Nivel 5]]&Tabla3[[#This Row],[Nivel 6]]&Tabla3[[#This Row],[Nivel 7]]","v":"6.602.05.01.01.04."}]
[null,"6.","602.","05.","01.","02.",null,null,"Participación en Fondos de Inversión",{"$f":"+EsNegrita(I175)","v":"NO"},null,{"$f":"+Tabla3[[#This Row],[Nivel 1]]&Tabla3[[#This Row],[Nivel 2]]&Tabla3[[#This Row],[Nivel 3]]&Tabla3[[#This Row],[Nivel 4]]&Tabla3[[#This Row],[Nivel 5]]&Tabla3[[#This Row],[Nivel 6]]&Tabla3[[#This Row],[Nivel 7]]","v":"6.602.05.01.02."}]
[null,"6.","602.","05.","01.","02.","01.",null,"Renta Fija",{"$f":"+EsNegrita(I176)","v":"SI"},null,{"$f":"+Tabla3[[#This Row],[Nivel 1]]&Tabla3[[#This Row],[Nivel 2]]&Tabla3[[#This Row],[Nivel 3]]&Tabla3[[#This Row],[Nivel 4]]&Tabla3[[#This Row],[Nivel 5]]&Tabla3[[#This Row],[Nivel 6]]&Tabla3[[#This Row],[Nivel 7]]","v":"6.602.05.01.02.01."}]
[null,"6.","602.","05.","01.","02.","02.",null,"Renta Variable",{"$f":"+EsNegrita(I177)","v":"SI"},null,{"$f":"+Tabla3[[#This Row],[Nivel 1]]&Tabla3[[#This Row],[Nivel 2]]&Tabla3[[#This Row],[Nivel 3]]&Tabla3[[#This Row],[Nivel 4]]&Tabla3[[#This Row],[Nivel 5]]&Tabla3[[#This Row],[Nivel 6]]&Tabla3[[#This Row],[Nivel 7]]","v":"6.602.05.01.02.02."}]
[null,"6.","602.","05.","01.","03.",null,null,"Garantía a la Nación",{"$f":"+EsNegrita(I178)","v":"NO"},null,{"$f":"+Tabla3[[#This Row],[Nivel 1]]&Tabla3[[#This Row],[Nivel 2]]&Tabla3[[#This Row],[Nivel 3]]&Tabla3[[#This Row],[Nivel 4]]&Tabla3[[#This Row],[Nivel 5]]&Tabla3[[#This Row],[Nivel 6]]&Tabla3[[#This Row],[Nivel 7]]","v":"6.602.05.01.03."}]
[null,"6.","602.","05.","01.","03.","01.",null,"Valores Públicos",{"$f":"+EsNegrita(I179)","v":"SI"},null,{"$f":"+Tabla3[[#This Row],[Nivel 1]]&Tabla3[[#This Row],[Nivel 2]]&Tabla3[[#This Row],[Nivel 3]]&Tabla3[[#This Row],[Nivel 4]]&Tabla3[[#This Row],[Nivel 5]]&Tabla3[[#This Row],[Nivel 6]]&Tabla3[[#This Row],[Nivel 7]]","v":"6.602.05.01.03.01."}]
[null,"6.","602.","05.","01.","04.",null,null,"Valores Privados",{"$f":"+EsNegrita(I180)","v":"NO"},null,{"$f":"+Tabla3[[#This Row],[Nivel 1]]&Tabla3[[#This Row],[Nivel 2]]&Tabla3[[#This Row],[Nivel 3]]&Tabla3[[#This Row],[Nivel 4]]&Tabla3[[#This Row],[Nivel 5]]&Tabla3[[#This Row],[Nivel 6]]&Tabla3[[#This Row],[Nivel 7]]","v":"6.602.05.01.04."}]
[null,"6.","602.","05.","01.","04.","01.",null,"Acciones de Sociedades Anónimas",{"$f":"+EsNegrita(I181)","v":"NO"},null,{"$f":"+Tabla3[[#This Row],[Nivel 1]]&Tabla3[[#This Row],[Nivel 2]]&Tabla3[[#This Row],[Nivel 3]]&Tabla3[[#This Row],[Nivel 4]]&Tabla3[[#This Row],[Nivel 5]]&Tabla3[[#This Row],[Nivel 6]]&Tabla3[[#This Row],[Nivel 7]]","v":"6.602.05.01.04.01."}]
[null,"6.","602.","05.","01.","04.","01.","01.","Empresas de Seguros o Reaseguros",{"$f":"+EsNegrita(I182)","v":"SI"},null,{"$f":"+Tabla3[[#This Row],[Nivel 1]]&Tabla3[[#This Row],[Nivel 2]]&Tabla3[[#This Row],[Nivel 3]]&Tabla3[[#This Row],[Nivel 4]]&Tabla3[[#This Row],[Nivel 5]]&Tabla3[[#This Row],[Nivel 6]]&Tabla3[[#This Row],[Nivel 7]]","v":"6.602.05.01.04.01.01."}]
[null,"6.","602.","05.","01.","04.","01.","02.","Sociedades de Corretaje de Seguros, de Reaseguros o de Valores",{"$f":"+EsNegrita(I183)","v":"SI"},null,{"$f":"+Tabla3[[#This Row],[Nivel 1]]&Tabla3[[#This Row],[Nivel 2]]&Tabla3[[#This Row],[Nivel 3]]&Tabla3[[#This Row],[Nivel 4]]&Tabla3[[#This Row],[Nivel 5]]&Tabla3[[#This Row],[Nivel 6]]&Tabla3[[#This Row],[Nivel 7]]","v":"6.602.05.01.04.01.02."}]
[null,"6.","602.","05.","01.","04.","01.","03.","Bancos y Otras Instituciones Financieras",{"$f":"+EsNegrita(I184)","v":"SI"},null,{"$f":"+Tabla3[[#This Row],[Nivel 1]]&Tabla3[[#This Row],[Nivel 2]]&Tabla3[[#This Row],[Nivel 3]]&Tabla3[[#This Row],[Nivel 4]]&Tabla3[[#This Row],[Nivel 5]]&Tabla3[[#This Row],[Nivel 6]]&Tabla3[[#This Row],[Nivel 7]]","v":"6.602.05.01.04.01.03."}]
[null,"6.","602.","05.","01.","04.","01.","04.","Sociedades Industriales y Comerciales",{"$f":"+EsNegrita(I185)","v":"SI"},null,{"$f":"+Tabla3[[#This Row],[Nivel 1]]&Tabla3[[#This Row],[Nivel 2]]&Tabla3[[#This Row],[Nivel 3]]&Tabla3[[#This Row],[Nivel 4]]&Tabla3[[#This Row],[Nivel 5]]&Tabla3[[#This Row],[Nivel 6]]&Tabla3[[#This Row],[Nivel 7]]","v":"6.602.05.01.04.01.04."}]
[null,"6.","602.","05.","01.","04.","01.","05.","Sociedades Civiles",{"$f":"+EsNegrita(I186)","v":"SI"},null,{"$f":"+Tabla3[[#This Row],[Nivel 1]]&Tabla3[[#This Row],[Nivel 2]]&Tabla3[[#This Row],[Nivel 3]]&Tabla3[[#This Row],[Nivel 4]]&Tabla3[[#This Row],[Nivel 5]]&Tabla3[[#This Row],[Nivel 6]]&Tabla3[[#This Row],[Nivel 7]]","v":"6.602.05.01.04.01.05."}]
[null,"6.","602.","05.","01.","04.","01.","06.","Empresas Filiales, Afiliadas y Relacionadas",{"$f":"+EsNegrita(I187)","v":"SI"},null,{"$f":"+Tabla3[[#This Row],[Nivel 1]]&Tabla3[[#This Row],[Nivel 2]]&Tabla3[[#This Row],[Nivel 3]]&Tabla3[[#This Row],[Nivel 4]]&Tabla3[[#This Row],[Nivel 5]]&Tabla3[[#This Row],[Nivel 6]]&Tabla3[[#This Row],[Nivel 7]]","v":"6.602.05.01.04.01.06."}]
[null,"6.","602.","05.","01.","04.","01.","07.","Otras Sociedades Anónimas",{"$f":"+EsNegrita(I188)","v":"SI"},null,{"$f":"+Tabla3[[#This Row],[Nivel 1]]&Tabla3[[#This Row],[Nivel 2]]&Tabla3[[#This Row],[Nivel 3]]&Tabla3[[#This Row],[Nivel 4]]&Tabla3[[#This Row],[Nivel 5]]&Tabla3[[#This Row],[Nivel 6]]&Tabla3[[#This Row],[Nivel 7]]","v":"6.602.05.01.04.01.07."}]
[null,"6.","602.","05.","01.","04.","02.",null,"Bonos de Sociedades Anónimas",{"$f":"+EsNegrita(I189)","v":"SI"},null,{"$f":"+Tabla3[[#This Row],[Nivel 1]]&Tabla3[[#This Row],[Nivel 2]]&Tabla3[[#This Row],[Nivel 3]]&Tabla3[[#This Row],[Nivel 4]]&Tabla3[[#This Row],[Nivel 5]]&Tabla3[[#This Row],[Nivel 6]]&Tabla3[[#This Row],[Nivel 7]]","v":"6.602.05.01.04.02."}]
[null,"6.","602.","05.","01.","04.","03.",null,"Otras Inversiones emitidas por el Sector Privado.",{"$f":"+EsNegrita(I190)","v":"SI"},null,{"$f":"+Tabla3[[#This Row],[Nivel 1]]&Tabla3[[#This Row],[Nivel 2]]&Tabla3[[#This Row],[Nivel 3]]&Tabla3[[#This Row],[Nivel 4]]&Tabla3[[#This Row],[Nivel 5]]&Tabla3[[#This Row],[Nivel 6]]&Tabla3[[#This Row],[Nivel 7]]","v":"6.602.05.01.04.03."}]
[null,"6.","602.","05.","01.","05.",null,null,"Activos en el Extranjero",{"$f":"+EsNegrita(I191)","v":"NO"},null,{"$f":"+Tabla3[[#This Row],[Nivel 1]]&Tabla3[[#This Row],[Nivel 2]]&Tabla3[[#This Row],[Nivel 3]]&Tabla3[[#This Row],[Nivel 4]]&Tabla3[[#This Row],[Nivel 5]]&Tabla3[[#This Row],[Nivel 6]]&Tabla3[[#This Row],[Nivel 7]]","v":"6.602.05.01.05."}]
[null,"6.","602.","05.","01.","05.","01.",null,"Títulos Valores",{"$f":"+EsNegrita(I192)","v":"SI"},null,{"$f":"+Tabla3[[#This Row],[Nivel 1]]&Tabla3[[#This Row],[Nivel 2]]&Tabla3[[#This Row],[Nivel 3]]&Tabla3[[#This Row],[Nivel 4]]&Tabla3[[#This Row],[Nivel 5]]&Tabla3[[#This Row],[Nivel 6]]&Tabla3[[#This Row],[Nivel 7]]","v":"6.602.05.01.05.01."}]
[null,"6.","602.","05.","02.",null,null,null,"Pérdidas en Negociación de Bienes",{"$f":"+EsNegrita(I193)","v":"NO"},null,{"$f":"+Tabla3[[#This Row],[Nivel 1]]&Tabla3[[#This Row],[Nivel 2]]&Tabla3[[#This Row],[Nivel 3]]&Tabla3[[#This Row],[Nivel 4]]&Tabla3[[#This Row],[Nivel 5]]&Tabla3[[#This Row],[Nivel 6]]&Tabla3[[#This Row],[Nivel 7]]","v":"6.602.05.02."}]
[null,"6.","602.","05.","02.","01.",null,null,"Participación Fondos de Inversión Inmobiliarios",{"$f":"+EsNegrita(I194)","v":"SI"},null,{"$f":"+Tabla3[[#This Row],[Nivel 1]]&Tabla3[[#This Row],[Nivel 2]]&Tabla3[[#This Row],[Nivel 3]]&Tabla3[[#This Row],[Nivel 4]]&Tabla3[[#This Row],[Nivel 5]]&Tabla3[[#This Row],[Nivel 6]]&Tabla3[[#This Row],[Nivel 7]]","v":"6.602.05.02.01."}]
[null,"6.","602.","05.","02.","02.",null,null,"Bienes Inmuebles ",{"$f":"+EsNegrita(I195)","v":"SI"},null,{"$f":"+Tabla3[[#This Row],[Nivel 1]]&Tabla3[[#This Row],[Nivel 2]]&Tabla3[[#This Row],[Nivel 3]]&Tabla3[[#This Row],[Nivel 4]]&Tabla3[[#This Row],[Nivel 5]]&Tabla3[[#This Row],[Nivel 6]]&Tabla3[[#This Row],[Nivel 7]]","v":"6.602.05.02.02."}]
[null,"6.","602.","05.","02.","03.",null,null,"Activos en el Extranjero",{"$f":"+EsNegrita(I196)","v":"NO"},null,{"$f":"+Tabla3[[#This Row],[Nivel 1]]&Tabla3[[#This Row],[Nivel 2]]&Tabla3[[#This Row],[Nivel 3]]&Tabla3[[#This Row],[Nivel 4]]&Tabla3[[#This Row],[Nivel 5]]&Tabla3[[#This Row],[Nivel 6]]&Tabla3[[#This Row],[Nivel 7]]","v":"6.602.05.02.03."}]
[null,"6.","602.","06.",null,null,null,null,"Gastos de Depreciación y Amortización",{"$f":"+EsNegrita(I197)","v":"NO"},null,{"$f":"+Tabla3[[#This Row],[Nivel 1]]&Tabla3[[#This Row],[Nivel 2]]&Tabla3[[#This Row],[Nivel 3]]&Tabla3[[#This Row],[Nivel 4]]&Tabla3[[#This Row],[Nivel 5]]&Tabla3[[#This Row],[Nivel 6]]&Tabla3[[#This Row],[Nivel 7]]","v":"6.602.06."}]
[null,"6.","602.","06.","01.",null,null,null,"Activos Depreciables",{"$f":"+EsNegrita(I198)","v":"NO"},null,{"$f":"+Tabla3[[#This Row],[Nivel 1]]&Tabla3[[#This Row],[Nivel 2]]&Tabla3[[#This Row],[Nivel 3]]&Tabla3[[#This Row],[Nivel 4]]&Tabla3[[#This Row],[Nivel 5]]&Tabla3[[#This Row],[Nivel 6]]&Tabla3[[#This Row],[Nivel 7]]","v":"6.602.06.01."}]
[null,"6.","602.","06.","01.","01.",null,null,"Bienes Inmuebles ",{"$f":"+EsNegrita(I199)","v":"SI"},null,{"$f":"+Tabla3[[#This Row],[Nivel 1]]&Tabla3[[#This Row],[Nivel 2]]&Tabla3[[#This Row],[Nivel 3]]&Tabla3[[#This Row],[Nivel 4]]&Tabla3[[#This Row],[Nivel 5]]&Tabla3[[#This Row],[Nivel 6]]&Tabla3[[#This Row],[Nivel 7]]","v":"6.602.06.01.01."}]
[null,"6.","602.","06.","01.","02.",null,null,"Mobiliario",{"$f":"+EsNegrita(I200)","v":"SI"},null,{"$f":"+Tabla3[[#This Row],[Nivel 1]]&Tabla3[[#This Row],[Nivel 2]]&Tabla3[[#This Row],[Nivel 3]]&Tabla3[[#This Row],[Nivel 4]]&Tabla3[[#This Row],[Nivel 5]]&Tabla3[[#This Row],[Nivel 6]]&Tabla3[[#This Row],[Nivel 7]]","v":"6.602.06.01.02."}]
[null,"6.","602.","06.","01.","03.",null,null,"Equipos de Oficina",{"$f":"+EsNegrita(I201)","v":"SI"},null,{"$f":"+Tabla3[[#This Row],[Nivel 1]]&Tabla3[[#This Row],[Nivel 2]]&Tabla3[[#This Row],[Nivel 3]]&Tabla3[[#This Row],[Nivel 4]]&Tabla3[[#This Row],[Nivel 5]]&Tabla3[[#This Row],[Nivel 6]]&Tabla3[[#This Row],[Nivel 7]]","v":"6.602.06.01.03."}]
[null,"6.","602.","06.","01.","04.",null,null,"Equipos de Computación y Software",{"$f":"+EsNegrita(I202)","v":"SI"},null,{"$f":"+Tabla3[[#This Row],[Nivel 1]]&Tabla3[[#This Row],[Nivel 2]]&Tabla3[[#This Row],[Nivel 3]]&Tabla3[[#This Row],[Nivel 4]]&Tabla3[[#This Row],[Nivel 5]]&Tabla3[[#This Row],[Nivel 6]]&Tabla3[[#This Row],[Nivel 7]]","v":"6.602.06.01.04."}]
[null,"6.","602.","06.","01.","05.",null,null,"Vehículos",{"$f":"+EsNegrita(I203)","v":"SI"},null,{"$f":"+Tabla3[[#This Row],[Nivel 1]]&Tabla3[[#This Row],[Nivel 2]]&Tabla3[[#This Row],[Nivel 3]]&Tabla3[[#This Row],[Nivel 4]]&Tabla3[[#This Row],[Nivel 5]]&Tabla3[[#This Row],[Nivel 6]]&Tabla3[[#This Row],[Nivel 7]]","v":"6.602.06.01.05."}]
[null,"6.","602.","06.","01.","06.",null,null,"Aeronaves",{"$f":"+EsNegrita(I204)","v":"SI"},null,{"$f":"+Tabla3[[#This Row],[Nivel 1]]&Tabla3[[#This Row],[Nivel 2]]&Tabla3[[#This Row],[Nivel 3]]&Tabla3[[#This Row],[Nivel 4]]&Tabla3[[#This Row],[Nivel 5]]&Tabla3[[#This Row],[Nivel 6]]&Tabla3[[#This Row],[Nivel 7]]","v":"6.602.06.01.06."}]
[null,"6.","602.","06.","01.","07.",null,null,"Naves",{"$f":"+EsNegrita(I205)","v":"SI"},null,{"$f":"+Tabla3[[#This Row],[Nivel 1]]&Tabla3[[#This Row],[Nivel 2]]&Tabla3[[#This Row],[Nivel 3]]&Tabla3[[#This Row],[Nivel 4]]&Tabla3[[#This Row],[Nivel 5]]&Tabla3[[#This Row],[Nivel 6]]&Tabla3[[#This Row],[Nivel 7]]","v":"6.602.06.01.07."}]
[null,"6.","602.","06.","02.",null,null,null,"Activos Amortizables",{"$f":"+EsNegrita(I206)","v":"NO"},null,{"$f":"+Tabla3[[#This Row],[Nivel 1]]&Tabla3[[#This Row],[Nivel 2]]&Tabla3[[#This Row],[Nivel 3]]&Tabla3[[#This Row],[Nivel 4]]&Tabla3[[#This Row],[Nivel 5]]&Tabla3[[#This Row],[Nivel 6]]&Tabla3[[#This Row],[Nivel 7]]","v":"6.602.06.02."}]
[null,"6.","602.","06.","02.","01.",null,null,"Gastos de Constitución",{"$f":"+EsNegrita(I207)","v":"SI"},null,{"$f":"+Tabla3[[#This Row],[Nivel 1]]&Tabla3[[#This Row],[Nivel 2]]&Tabla3[[#This Row],[Nivel 3]]&Tabla3[[#This Row],[Nivel 4]]&Tabla3[[#This Row],[Nivel 5]]&Tabla3[[#This Row],[Nivel 6]]&Tabla3[[#This Row],[Nivel 7]]","v":"6.602.06.02.01."}]
[null,"6.","602.","06.","02.","02.",null,null,"Gastos de Instalación",{"$f":"+EsNegrita(I208)","v":"SI"},null,{"$f":"+Tabla3[[#This Row],[Nivel 1]]&Tabla3[[#This Row],[Nivel 2]]&Tabla3[[#This Row],[Nivel 3]]&Tabla3[[#This Row],[Nivel 4]]&Tabla3[[#This Row],[Nivel 5]]&Tabla3[[#This Row],[Nivel 6]]&Tabla3[[#This Row],[Nivel 7]]","v":"6.602.06.02.02."}]
[null,"6.","602.","07.",null,null,null,null,"Reserva de Provisión",{"$f":"+EsNegrita(I209)","v":"NO"},null,{"$f":"+Tabla3[[#This Row],[Nivel 1]]&Tabla3[[#This Row],[Nivel 2]]&Tabla3[[#This Row],[Nivel 3]]&Tabla3[[#This Row],[Nivel 4]]&Tabla3[[#This Row],[Nivel 5]]&Tabla3[[#This Row],[Nivel 6]]&Tabla3[[#This Row],[Nivel 7]]","v":"6.602.07."}]
[null,"6.","602.","07.","01.",null,null,null,"Para Cuentas Dudosas",{"$f":"+EsNegrita(I210)","v":"NO"},null,{"$f":"+Tabla3[[#This Row],[Nivel 1]]&Tabla3[[#This Row],[Nivel 2]]&Tabla3[[#This Row],[Nivel 3]]&Tabla3[[#This Row],[Nivel 4]]&Tabla3[[#This Row],[Nivel 5]]&Tabla3[[#This Row],[Nivel 6]]&Tabla3[[#This Row],[Nivel 7]]","v":"6.602.07.01."}]
[null,"6.","602.","07.","01.","01.",null,null,"Cuentas por Cobrar ",{"$f":"+EsNegrita(I211)","v":"SI"},null,{"$f":"+Tabla3[[#This Row],[Nivel 1]]&Tabla3[[#This Row],[Nivel 2]]&Tabla3[[#This Row],[Nivel 3]]&Tabla3[[#This Row],[Nivel 4]]&Tabla3[[#This Row],[Nivel 5]]&Tabla3[[#This Row],[Nivel 6]]&Tabla3[[#This Row],[Nivel 7]]","v":"6.602.07.01.01."}]
[null,"6.","602.","07.","01.","02.",null,null,"Préstamos por Cobrar ",{"$f":"+EsNegrita(I212)","v":"SI"},null,{"$f":"+Tabla3[[#This Row],[Nivel 1]]&Tabla3[[#This Row],[Nivel 2]]&Tabla3[[#This Row],[Nivel 3]]&Tabla3[[#This Row],[Nivel 4]]&Tabla3[[#This Row],[Nivel 5]]&Tabla3[[#This Row],[Nivel 6]]&Tabla3[[#This Row],[Nivel 7]]","v":"6.602.07.01.02."}]
[null,"6.","602.","07.","01.","03.",null,null,"Otras Cuentas por Cobrar",{"$f":"+EsNegrita(I213)","v":"SI"},null,{"$f":"+Tabla3[[#This Row],[Nivel 1]]&Tabla3[[#This Row],[Nivel 2]]&Tabla3[[#This Row],[Nivel 3]]&Tabla3[[#This Row],[Nivel 4]]&Tabla3[[#This Row],[Nivel 5]]&Tabla3[[#This Row],[Nivel 6]]&Tabla3[[#This Row],[Nivel 7]]","v":"6.602.07.01.03."}]
[null,"6.","602.","07.","02.",null,null,null,"Otros Fines",{"$f":"+EsNegrita(I214)","v":"NO"},null,{"$f":"+Tabla3[[#This Row],[Nivel 1]]&Tabla3[[#This Row],[Nivel 2]]&Tabla3[[#This Row],[Nivel 3]]&Tabla3[[#This Row],[Nivel 4]]&Tabla3[[#This Row],[Nivel 5]]&Tabla3[[#This Row],[Nivel 6]]&Tabla3[[#This Row],[Nivel 7]]","v":"6.602.07.02."}]
[null,"6.","602.","07.","02.","01.",null,null,"Depósitos y Títulos Valores ","NO",null,{"$f":"+Tabla3[[#This Row],[Nivel 1]]&Tabla3[[#This Row],[Nivel 2]]&Tabla3[[#This Row],[Nivel 3]]&Tabla3[[#This Row],[Nivel 4]]&Tabla3[[#This Row],[Nivel 5]]&Tabla3[[#This Row],[Nivel 6]]&Tabla3[[#This Row],[Nivel 7]]","v":"6.602.07.02.01."}]
[null,"6.","602.","07.","02.","01.","01.",null,"Bancos",{"$f":"+EsNegrita(I216)","v":"SI"},null,{"$f":"+Tabla3[[#This Row],[Nivel 1]]&Tabla3[[#This Row],[Nivel 2]]&Tabla3[[#This Row],[Nivel 3]]&Tabla3[[#This Row],[Nivel 4]]&Tabla3[[#This Row],[Nivel 5]]&Tabla3[[#This Row],[Nivel 6]]&Tabla3[[#This Row],[Nivel 7]]","v":"6.602.07.02.01.01."}]
[null,"6.","602.","07.","02.","01.","02.",null,"Títulos Valores","NO",null,{"$f":"+Tabla3[[#This Row],[Nivel 1]]&Tabla3[[#This Row],[Nivel 2]]&Tabla3[[#This Row],[Nivel 3]]&Tabla3[[#This Row],[Nivel 4]]&Tabla3[[#This Row],[Nivel 5]]&Tabla3[[#This Row],[Nivel 6]]&Tabla3[[#This Row],[Nivel 7]]","v":"6.602.07.02.01.02."}]
[null,"6.","602.","07.","02.","01.","02.","01.","Públicos",{"$f":"+EsNegrita(I218)","v":"SI"},null,{"$f":"+Tabla3[[#This Row],[Nivel 1]]&Tabla3[[#This Row],[Nivel 2]]&Tabla3[[#This Row],[Nivel 3]]&Tabla3[[#This Row],[Nivel 4]]&Tabla3[[#This Row],[Nivel 5]]&Tabla3[[#This Row],[Nivel 6]]&Tabla3[[#This Row],[Nivel 7]]","v":"6.602.07.02.01.02.01."}]
[null,"6.","602.","07.","02.","01.","02.","02.","Privados",{"$f":"+EsNegrita(I219)","v":"SI"},null,{"$f":"+Tabla3[[#This Row],[Nivel 1]]&Tabla3[[#This Row],[Nivel 2]]&Tabla3[[#This Row],[Nivel 3]]&Tabla3[[#This Row],[Nivel 4]]&Tabla3[[#This Row],[Nivel 5]]&Tabla3[[#This Row],[Nivel 6]]&Tabla3[[#This Row],[Nivel 7]]","v":"6.602.07.02.01.02.02."}]
[null,"6.","602.","07.","02.","02.",null,null,"Organismos y Entes de la Administración Pública",{"$f":"+EsNegrita(I220)","v":"SI"},null,{"$f":"+Tabla3[[#This Row],[Nivel 1]]&Tabla3[[#This Row],[Nivel 2]]&Tabla3[[#This Row],[Nivel 3]]&Tabla3[[#This Row],[Nivel 4]]&Tabla3[[#This Row],[Nivel 5]]&Tabla3[[#This Row],[Nivel 6]]&Tabla3[[#This Row],[Nivel 7]]","v":"6.602.07.02.02."}]
[null,"6.","602.","07.","02.","03.",null,null,"Valores Privados",{"$f":"+EsNegrita(I221)","v":"NO"},null,{"$f":"+Tabla3[[#This Row],[Nivel 1]]&Tabla3[[#This Row],[Nivel 2]]&Tabla3[[#This Row],[Nivel 3]]&Tabla3[[#This Row],[Nivel 4]]&Tabla3[[#This Row],[Nivel 5]]&Tabla3[[#This Row],[Nivel 6]]&Tabla3[[#This Row],[Nivel 7]]","v":"6.602.07.02.03."}]
[null,"6.","602.","07.","02.","03.","01.",null,"Acciones de Sociedades Anónimas",{"$f":"+EsNegrita(I222)","v":"SI"},null,{"$f":"+Tabla3[[#This Row],[Nivel 1]]&Tabla3[[#This Row],[Nivel 2]]&Tabla3[[#This Row],[Nivel 3]]&Tabla3[[#This Row],[Nivel 4]]&Tabla3[[#This Row],[Nivel 5]]&Tabla3[[#This Row],[Nivel 6]]&Tabla3[[#This Row],[Nivel 7]]","v":"6.602.07.02.03.01."}]
[null,"6.","602.","07.","02.","03.","02.",null,"Bonos de Sociedades Anónimas",{"$f":"+EsNegrita(I223)","v":"SI"},null,{"$f":"+Tabla3[[#This Row],[Nivel 1]]&Tabla3[[#This Row],[Nivel 2]]&Tabla3[[#This Row],[Nivel 3]]&Tabla3[[#This Row],[Nivel 4]]&Tabla3[[#This Row],[Nivel 5]]&Tabla3[[#This Row],[Nivel 6]]&Tabla3[[#This Row],[Nivel 7]]","v":"6.602.07.02.03.02."}]
[null,"6.","602.","07.","02.","03.","03.",null,"Obligaciones Mercantiles",{"$f":"+EsNegrita(I224)","v":"SI"},null,{"$f":"+Tabla3[[#This Row],[Nivel 1]]&Tabla3[[#This Row],[Nivel 2]]&Tabla3[[#This Row],[Nivel 3]]&Tabla3[[#This Row],[Nivel 4]]&Tabla3[[#This Row],[Nivel 5]]&Tabla3[[#This Row],[Nivel 6]]&Tabla3[[#This Row],[Nivel 7]]","v":"6.602.07.02.03.03."}]
[null,"6.","602.","07.","02.","03.","04.",null,"Otras Inversiones ",{"$f":"+EsNegrita(I225)","v":"SI"},null,{"$f":"+Tabla3[[#This Row],[Nivel 1]]&Tabla3[[#This Row],[Nivel 2]]&Tabla3[[#This Row],[Nivel 3]]&Tabla3[[#This Row],[Nivel 4]]&Tabla3[[#This Row],[Nivel 5]]&Tabla3[[#This Row],[Nivel 6]]&Tabla3[[#This Row],[Nivel 7]]","v":"6.602.07.02.03.04."}]
[null,"6.","602.","07.","02.","04.",null,null,"Otras Inversiones emitidas por el Sector Privado.",{"$f":"+EsNegrita(I226)","v":"SI"},null,{"$f":"+Tabla3[[#This Row],[Nivel 1]]&Tabla3[[#This Row],[Nivel 2]]&Tabla3[[#This Row],[Nivel 3]]&Tabla3[[#This Row],[Nivel 4]]&Tabla3[[#This Row],[Nivel 5]]&Tabla3[[#This Row],[Nivel 6]]&Tabla3[[#This Row],[Nivel 7]]","v":"6.602.07.02.04."}]
[null,"6.","602.","07.","02.","05.",null,null,"Activos en el Extranjero",{"$f":"+EsNegrita(I227)","v":"SI"},null,{"$f":"+Tabla3[[#This Row],[Nivel 1]]&Tabla3[[#This Row],[Nivel 2]]&Tabla3[[#This Row],[Nivel 3]]&Tabla3[[#This Row],[Nivel 4]]&Tabla3[[#This Row],[Nivel 5]]&Tabla3[[#This Row],[Nivel 6]]&Tabla3[[#This Row],[Nivel 7]]","v":"6.602.07.02.05."}]
[null,"6.","602.","07.","03.",null,null,null,"Otras Contingencias",{"$f":"+EsNegrita(I228)","v":"NO"},null,{"$f":"+Tabla3[[#This Row],[Nivel 1]]&Tabla3[[#This Row],[Nivel 2]]&Tabla3[[#This Row],[Nivel 3]]&Tabla3[[#This Row],[Nivel 4]]&Tabla3[[#This Row],[Nivel 5]]&Tabla3[[#This Row],[Nivel 6]]&Tabla3[[#This Row],[Nivel 7]]","v":"6.602.07.03."}]
[null,"6.","602.","07.","03.","01.",null,null,"Litigios",{"$f":"+EsNegrita(I229)","v":"SI"},null,{"$f":"+Tabla3[[#This Row],[Nivel 1]]&Tabla3[[#This Row],[Nivel 2]]&Tabla3[[#This Row],[Nivel 3]]&Tabla3[[#This Row],[Nivel 4]]&Tabla3[[#This Row],[Nivel 5]]&Tabla3[[#This Row],[Nivel 6]]&Tabla3[[#This Row],[Nivel 7]]","v":"6.602.07.03.01."}]
[null,"6.","602.","07.","03.","02.",null,null,"Multas ",{"$f":"+EsNegrita(I230)","v":"SI"},null,{"$f":"+Tabla3[[#This Row],[Nivel 1]]&Tabla3[[#This Row],[Nivel 2]]&Tabla3[[#This Row],[Nivel 3]]&Tabla3[[#This Row],[Nivel 4]]&Tabla3[[#This Row],[Nivel 5]]&Tabla3[[#This Row],[Nivel 6]]&Tabla3[[#This Row],[Nivel 7]]","v":"6.602.07.03.02."}]
[null,"6.","602.","07.","03.","03.",null,null,"Reparos",{"$f":"+EsNegrita(I231)","v":"SI"},null,{"$f":"+Tabla3[[#This Row],[Nivel 1]]&Tabla3[[#This Row],[Nivel 2]]&Tabla3[[#This Row],[Nivel 3]]&Tabla3[[#This Row],[Nivel 4]]&Tabla3[[#This Row],[Nivel 5]]&Tabla3[[#This Row],[Nivel 6]]&Tabla3[[#This Row],[Nivel 7]]","v":"6.602.07.03.03."}]
[null,"6.","602.","07.","03.","04.",null,null,"Otras ",{"$f":"+EsNegrita(I232)","v":"SI"},null,{"$f":"+Tabla3[[#This Row],[Nivel 1]]&Tabla3[[#This Row],[Nivel 2]]&Tabla3[[#This Row],[Nivel 3]]&Tabla3[[#This Row],[Nivel 4]]&Tabla3[[#This Row],[Nivel 5]]&Tabla3[[#This Row],[Nivel 6]]&Tabla3[[#This Row],[Nivel 7]]","v":"6.602.07.03.04."}]
[null,"6.","602.","07.","04.",null,null,null,"Participación Estatutaria",{"$f":"+EsNegrita(I233)","v":"SI"},null,{"$f":"+Tabla3[[#This Row],[Nivel 1]]&Tabla3[[#This Row],[Nivel 2]]&Tabla3[[#This Row],[Nivel 3]]&Tabla3[[#This Row],[Nivel 4]]&Tabla3[[#This Row],[Nivel 5]]&Tabla3[[#This Row],[Nivel 6]]&Tabla3[[#This Row],[Nivel 7]]","v":"6.602.07.04."}]
[null,"6.","602.","07.","05.",null,null,null,"Prestaciones Laborales de Ley",{"$f":"+EsNegrita(I234)","v":"NO"},null,{"$f":"+Tabla3[[#This Row],[Nivel 1]]&Tabla3[[#This Row],[Nivel 2]]&Tabla3[[#This Row],[Nivel 3]]&Tabla3[[#This Row],[Nivel 4]]&Tabla3[[#This Row],[Nivel 5]]&Tabla3[[#This Row],[Nivel 6]]&Tabla3[[#This Row],[Nivel 7]]","v":"6.602.07.05."}]
[null,"6.","602.","07.","05.","01.",null,null,"Vacaciones ",{"$f":"+EsNegrita(I235)","v":"SI"},null,{"$f":"+Tabla3[[#This Row],[Nivel 1]]&Tabla3[[#This Row],[Nivel 2]]&Tabla3[[#This Row],[Nivel 3]]&Tabla3[[#This Row],[Nivel 4]]&Tabla3[[#This Row],[Nivel 5]]&Tabla3[[#This Row],[Nivel 6]]&Tabla3[[#This Row],[Nivel 7]]","v":"6.602.07.05.01."}]
[null,"6.","602.","07.","05.","02.",null,null,"Bono Vacacional",{"$f":"+EsNegrita(I236)","v":"SI"},null,{"$f":"+Tabla3[[#This Row],[Nivel 1]]&Tabla3[[#This Row],[Nivel 2]]&Tabla3[[#This Row],[Nivel 3]]&Tabla3[[#This Row],[Nivel 4]]&Tabla3[[#This Row],[Nivel 5]]&Tabla3[[#This Row],[Nivel 6]]&Tabla3[[#This Row],[Nivel 7]]","v":"6.602.07.05.02."}]
[null,"6.","602.","07.","05.","03.",null,null,"Bonificaciones Especiales",{"$f":"+EsNegrita(I237)","v":"SI"},null,{"$f":"+Tabla3[[#This Row],[Nivel 1]]&Tabla3[[#This Row],[Nivel 2]]&Tabla3[[#This Row],[Nivel 3]]&Tabla3[[#This Row],[Nivel 4]]&Tabla3[[#This Row],[Nivel 5]]&Tabla3[[#This Row],[Nivel 6]]&Tabla3[[#This Row],[Nivel 7]]","v":"6.602.07.05.03."}]
[null,"6.","602.","07.","05.","04.",null,null,"Prestaciones Sociales",{"$f":"+EsNegrita(I238)","v":"SI"},null,{"$f":"+Tabla3[[#This Row],[Nivel 1]]&Tabla3[[#This Row],[Nivel 2]]&Tabla3[[#This Row],[Nivel 3]]&Tabla3[[#This Row],[Nivel 4]]&Tabla3[[#This Row],[Nivel 5]]&Tabla3[[#This Row],[Nivel 6]]&Tabla3[[#This Row],[Nivel 7]]","v":"6.602.07.05.04."}]
[null,"6.","602.","07.","05.","05.",null,null,"Caja de Ahorro de los Trabajadores - Aporte Patronal",{"$f":"+EsNegrita(I239)","v":"SI"},null,{"$f":"+Tabla3[[#This Row],[Nivel 1]]&Tabla3[[#This Row],[Nivel 2]]&Tabla3[[#This Row],[Nivel 3]]&Tabla3[[#This Row],[Nivel 4]]&Tabla3[[#This Row],[Nivel 5]]&Tabla3[[#This Row],[Nivel 6]]&Tabla3[[#This Row],[Nivel 7]]","v":"6.602.07.05.05."}]
[null,"6.","602.","07.","05.","06.",null,null,"Otras Cuentas por Pagar al Personal",{"$f":"+EsNegrita(I240)","v":"SI"},null,{"$f":"+Tabla3[[#This Row],[Nivel 1]]&Tabla3[[#This Row],[Nivel 2]]&Tabla3[[#This Row],[Nivel 3]]&Tabla3[[#This Row],[Nivel 4]]&Tabla3[[#This Row],[Nivel 5]]&Tabla3[[#This Row],[Nivel 6]]&Tabla3[[#This Row],[Nivel 7]]","v":"6.602.07.05.06."}]
[null,"6.","602.","07.","06.",null,null,null,"Gravámenes y Contribuciones",{"$f":"+EsNegrita(I241)","v":"NO"},null,{"$f":"+Tabla3[[#This Row],[Nivel 1]]&Tabla3[[#This Row],[Nivel 2]]&Tabla3[[#This Row],[Nivel 3]]&Tabla3[[#This Row],[Nivel 4]]&Tabla3[[#This Row],[Nivel 5]]&Tabla3[[#This Row],[Nivel 6]]&Tabla3[[#This Row],[Nivel 7]]","v":"6.602.07.06."}]
[null,"6.","602.","07.","06.","01.",null,null,"Gravámenes",{"$f":"+EsNegrita(I242)","v":"NO"},null,{"$f":"+Tabla3[[#This Row],[Nivel 1]]&Tabla3[[#This Row],[Nivel 2]]&Tabla3[[#This Row],[Nivel 3]]&Tabla3[[#This Row],[Nivel 4]]&Tabla3[[#This Row],[Nivel 5]]&Tabla3[[#This Row],[Nivel 6]]&Tabla3[[#This Row],[Nivel 7]]","v":"6.602.07.06.01."}]
[null,"6.","602.","07.","06.","01.","01.",null,"Impuesto Sobre la Renta",{"$f":"+EsNegrita(I243)","v":"SI"},null,{"$f":"+Tabla3[[#This Row],[Nivel 1]]&Tabla3[[#This Row],[Nivel 2]]&Tabla3[[#This Row],[Nivel 3]]&Tabla3[[#This Row],[Nivel 4]]&Tabla3[[#This Row],[Nivel 5]]&Tabla3[[#This Row],[Nivel 6]]&Tabla3[[#This Row],[Nivel 7]]","v":"6.602.07.06.01.01."}]
[null,"6.","602.","07.","06.","01.","02.",null,"Impuesto Sobre la Renta - Diferido",{"$f":"+EsNegrita(I244)","v":"SI"},null,{"$f":"+Tabla3[[#This Row],[Nivel 1]]&Tabla3[[#This Row],[Nivel 2]]&Tabla3[[#This Row],[Nivel 3]]&Tabla3[[#This Row],[Nivel 4]]&Tabla3[[#This Row],[Nivel 5]]&Tabla3[[#This Row],[Nivel 6]]&Tabla3[[#This Row],[Nivel 7]]","v":"6.602.07.06.01.02."}]
[null,"6.","602.","07.","06.","01.","03.",null,"Impuesto al Valor Agregado",{"$f":"+EsNegrita(I245)","v":"SI"},null,{"$f":"+Tabla3[[#This Row],[Nivel 1]]&Tabla3[[#This Row],[Nivel 2]]&Tabla3[[#This Row],[Nivel 3]]&Tabla3[[#This Row],[Nivel 4]]&Tabla3[[#This Row],[Nivel 5]]&Tabla3[[#This Row],[Nivel 6]]&Tabla3[[#This Row],[Nivel 7]]","v":"6.602.07.06.01.03."}]
[null,"6.","602.","07.","06.","01.","04.",null,"Impuesto a las Grandes Transacciones Financieras",{"$f":"+EsNegrita(I246)","v":"SI"},null,{"$f":"+Tabla3[[#This Row],[Nivel 1]]&Tabla3[[#This Row],[Nivel 2]]&Tabla3[[#This Row],[Nivel 3]]&Tabla3[[#This Row],[Nivel 4]]&Tabla3[[#This Row],[Nivel 5]]&Tabla3[[#This Row],[Nivel 6]]&Tabla3[[#This Row],[Nivel 7]]","v":"6.602.07.06.01.04."}]
[null,"6.","602.","07.","06.","01.","05.",null,"Impuesto a los Grandes Patrimonios",{"$f":"+EsNegrita(I247)","v":"SI"},null,{"$f":"+Tabla3[[#This Row],[Nivel 1]]&Tabla3[[#This Row],[Nivel 2]]&Tabla3[[#This Row],[Nivel 3]]&Tabla3[[#This Row],[Nivel 4]]&Tabla3[[#This Row],[Nivel 5]]&Tabla3[[#This Row],[Nivel 6]]&Tabla3[[#This Row],[Nivel 7]]","v":"6.602.07.06.01.05."}]
[null,null,"602.","07.","06.","01.","06.",null,"Impuestos Municipales",{"$f":"+EsNegrita(I248)","v":"SI"},null,{"$f":"+Tabla3[[#This Row],[Nivel 1]]&Tabla3[[#This Row],[Nivel 2]]&Tabla3[[#This Row],[Nivel 3]]&Tabla3[[#This Row],[Nivel 4]]&Tabla3[[#This Row],[Nivel 5]]&Tabla3[[#This Row],[Nivel 6]]&Tabla3[[#This Row],[Nivel 7]]","v":"602.07.06.01.06."}]
[null,"6.","602.","07.","06.","01.","07.",null,"Otros Impuestos",{"$f":"+EsNegrita(I249)","v":"SI"},null,{"$f":"+Tabla3[[#This Row],[Nivel 1]]&Tabla3[[#This Row],[Nivel 2]]&Tabla3[[#This Row],[Nivel 3]]&Tabla3[[#This Row],[Nivel 4]]&Tabla3[[#This Row],[Nivel 5]]&Tabla3[[#This Row],[Nivel 6]]&Tabla3[[#This Row],[Nivel 7]]","v":"6.602.07.06.01.07."}]
[null,"6.","602.","07.","06.","02.",null,null,"Contribuciones",{"$f":"+EsNegrita(I250)","v":"NO"},null,{"$f":"+Tabla3[[#This Row],[Nivel 1]]&Tabla3[[#This Row],[Nivel 2]]&Tabla3[[#This Row],[Nivel 3]]&Tabla3[[#This Row],[Nivel 4]]&Tabla3[[#This Row],[Nivel 5]]&Tabla3[[#This Row],[Nivel 6]]&Tabla3[[#This Row],[Nivel 7]]","v":"6.602.07.06.02."}]
[null,"6.","602.","07.","06.","02.","01.",null,"Instituto Nacional de Capacitación y Educación Socialista (INCES) - Aporte Patronal",{"$f":"+EsNegrita(I251)","v":"SI"},null,{"$f":"+Tabla3[[#This Row],[Nivel 1]]&Tabla3[[#This Row],[Nivel 2]]&Tabla3[[#This Row],[Nivel 3]]&Tabla3[[#This Row],[Nivel 4]]&Tabla3[[#This Row],[Nivel 5]]&Tabla3[[#This Row],[Nivel 6]]&Tabla3[[#This Row],[Nivel 7]]","v":"6.602.07.06.02.01."}]
[null,"6.","602.","07.","06.","02.","02.",null,"Instituto Venezolano de los Seguros Sociales (IVSS) - Aporte Patronal",{"$f":"+EsNegrita(I252)","v":"SI"},null,{"$f":"+Tabla3[[#This Row],[Nivel 1]]&Tabla3[[#This Row],[Nivel 2]]&Tabla3[[#This Row],[Nivel 3]]&Tabla3[[#This Row],[Nivel 4]]&Tabla3[[#This Row],[Nivel 5]]&Tabla3[[#This Row],[Nivel 6]]&Tabla3[[#This Row],[Nivel 7]]","v":"6.602.07.06.02.02."}]
[null,"6.","602.","07.","06.","02.","03.",null,"Instituto Venezolano de los Seguros Sociales (IVSS) - Paro Forzoso - Aporte Patronal ",{"$f":"+EsNegrita(I253)","v":"SI"},null,{"$f":"+Tabla3[[#This Row],[Nivel 1]]&Tabla3[[#This Row],[Nivel 2]]&Tabla3[[#This Row],[Nivel 3]]&Tabla3[[#This Row],[Nivel 4]]&Tabla3[[#This Row],[Nivel 5]]&Tabla3[[#This Row],[Nivel 6]]&Tabla3[[#This Row],[Nivel 7]]","v":"6.602.07.06.02.03."}]
[null,"6.","602.","07.","06.","02.","04.",null,"Fondo de Ahorro Obligatorio para la Vivienda (FAOV) -  Aporte Patronal",{"$f":"+EsNegrita(I254)","v":"SI"},null,{"$f":"+Tabla3[[#This Row],[Nivel 1]]&Tabla3[[#This Row],[Nivel 2]]&Tabla3[[#This Row],[Nivel 3]]&Tabla3[[#This Row],[Nivel 4]]&Tabla3[[#This Row],[Nivel 5]]&Tabla3[[#This Row],[Nivel 6]]&Tabla3[[#This Row],[Nivel 7]]","v":"6.602.07.06.02.04."}]
[null,"6.","602.","07.","06.","02.","05.",null,"Aporte Especial a la Superintendencia de la Actividad Aseguradora",{"$f":"+EsNegrita(I255)","v":"SI"},null,{"$f":"+Tabla3[[#This Row],[Nivel 1]]&Tabla3[[#This Row],[Nivel 2]]&Tabla3[[#This Row],[Nivel 3]]&Tabla3[[#This Row],[Nivel 4]]&Tabla3[[#This Row],[Nivel 5]]&Tabla3[[#This Row],[Nivel 6]]&Tabla3[[#This Row],[Nivel 7]]","v":"6.602.07.06.02.05."}]
[null,"6.","602.","07.","06.","02.","06.",null,"Aporte para el Desarrollo Social",{"$f":"+EsNegrita(I256)","v":"SI"},null,{"$f":"+Tabla3[[#This Row],[Nivel 1]]&Tabla3[[#This Row],[Nivel 2]]&Tabla3[[#This Row],[Nivel 3]]&Tabla3[[#This Row],[Nivel 4]]&Tabla3[[#This Row],[Nivel 5]]&Tabla3[[#This Row],[Nivel 6]]&Tabla3[[#This Row],[Nivel 7]]","v":"6.602.07.06.02.06."}]
[null,"6.","602.","07.","06.","02.","07.",null,"Ley Orgánica de Ciencia, Tecnología e Innovación (LOCTI)",{"$f":"+EsNegrita(I257)","v":"SI"},null,{"$f":"+Tabla3[[#This Row],[Nivel 1]]&Tabla3[[#This Row],[Nivel 2]]&Tabla3[[#This Row],[Nivel 3]]&Tabla3[[#This Row],[Nivel 4]]&Tabla3[[#This Row],[Nivel 5]]&Tabla3[[#This Row],[Nivel 6]]&Tabla3[[#This Row],[Nivel 7]]","v":"6.602.07.06.02.07."}]
[null,"6.","602.","07.","06.","02.","08.",null,"Decreto con Fuerza de Ley de los Cuerpos de Bomberos y Bomberas y Administración de Emergencias de Carácter Civil",{"$f":"+EsNegrita(I258)","v":"SI"},null,{"$f":"+Tabla3[[#This Row],[Nivel 1]]&Tabla3[[#This Row],[Nivel 2]]&Tabla3[[#This Row],[Nivel 3]]&Tabla3[[#This Row],[Nivel 4]]&Tabla3[[#This Row],[Nivel 5]]&Tabla3[[#This Row],[Nivel 6]]&Tabla3[[#This Row],[Nivel 7]]","v":"6.602.07.06.02.08."}]
[null,"6.","602.","07.","06.","02.","09.",null,"Ley Orgánica de Drogas",{"$f":"+EsNegrita(I259)","v":"SI"},null,{"$f":"+Tabla3[[#This Row],[Nivel 1]]&Tabla3[[#This Row],[Nivel 2]]&Tabla3[[#This Row],[Nivel 3]]&Tabla3[[#This Row],[Nivel 4]]&Tabla3[[#This Row],[Nivel 5]]&Tabla3[[#This Row],[Nivel 6]]&Tabla3[[#This Row],[Nivel 7]]","v":"6.602.07.06.02.09."}]
[null,"6.","602.","07.","06.","02.","10.",null,"Ley del Deporte",{"$f":"+EsNegrita(I260)","v":"SI"},null,{"$f":"+Tabla3[[#This Row],[Nivel 1]]&Tabla3[[#This Row],[Nivel 2]]&Tabla3[[#This Row],[Nivel 3]]&Tabla3[[#This Row],[Nivel 4]]&Tabla3[[#This Row],[Nivel 5]]&Tabla3[[#This Row],[Nivel 6]]&Tabla3[[#This Row],[Nivel 7]]","v":"6.602.07.06.02.10."}]
[null,"6.","602.","07.","06.","02.","11.",null,"Ley de Gestión Integral de Riesgos Socio-Naturales y Tecnológicos",{"$f":"+EsNegrita(I261)","v":"SI"},null,{"$f":"+Tabla3[[#This Row],[Nivel 1]]&Tabla3[[#This Row],[Nivel 2]]&Tabla3[[#This Row],[Nivel 3]]&Tabla3[[#This Row],[Nivel 4]]&Tabla3[[#This Row],[Nivel 5]]&Tabla3[[#This Row],[Nivel 6]]&Tabla3[[#This Row],[Nivel 7]]","v":"6.602.07.06.02.11."}]
[null,"6.","602.","07.","06.","02.","12.",null,"Otras Contribuciones",{"$f":"+EsNegrita(I262)","v":"SI"},null,{"$f":"+Tabla3[[#This Row],[Nivel 1]]&Tabla3[[#This Row],[Nivel 2]]&Tabla3[[#This Row],[Nivel 3]]&Tabla3[[#This Row],[Nivel 4]]&Tabla3[[#This Row],[Nivel 5]]&Tabla3[[#This Row],[Nivel 6]]&Tabla3[[#This Row],[Nivel 7]]","v":"6.602.07.06.02.12."}]
[null,"6.","602.","08.",null,null,null,null,"Egresos por Servicios",{"$f":"+EsNegrita(I263)","v":"NO"},"A15",{"$f":"+Tabla3[[#This Row],[Nivel 1]]&Tabla3[[#This Row],[Nivel 2]]&Tabla3[[#This Row],[Nivel 3]]&Tabla3[[#This Row],[Nivel 4]]&Tabla3[[#This Row],[Nivel 5]]&Tabla3[[#This Row],[Nivel 6]]&Tabla3[[#This Row],[Nivel 7]]","v":"6.602.08."}]
[null,"6.","602.","08.","01.",null,null,null,"Administración de Siniestros",{"$f":"+EsNegrita(I264)","v":"SI"},"A15",{"$f":"+Tabla3[[#This Row],[Nivel 1]]&Tabla3[[#This Row],[Nivel 2]]&Tabla3[[#This Row],[Nivel 3]]&Tabla3[[#This Row],[Nivel 4]]&Tabla3[[#This Row],[Nivel 5]]&Tabla3[[#This Row],[Nivel 6]]&Tabla3[[#This Row],[Nivel 7]]","v":"6.602.08.01."}]
[null,"6.","602.","08.","02.",null,null,null,"Operaciones de Fondos o Contratos Administrados",{"$f":"+EsNegrita(I265)","v":"SI"},"A15",{"$f":"+Tabla3[[#This Row],[Nivel 1]]&Tabla3[[#This Row],[Nivel 2]]&Tabla3[[#This Row],[Nivel 3]]&Tabla3[[#This Row],[Nivel 4]]&Tabla3[[#This Row],[Nivel 5]]&Tabla3[[#This Row],[Nivel 6]]&Tabla3[[#This Row],[Nivel 7]]","v":"6.602.08.02."}]
[null,"6.","602.","08.","03.",null,null,null,"Otros Servicios ",{"$f":"+EsNegrita(I266)","v":"SI"},"A15",{"$f":"+Tabla3[[#This Row],[Nivel 1]]&Tabla3[[#This Row],[Nivel 2]]&Tabla3[[#This Row],[Nivel 3]]&Tabla3[[#This Row],[Nivel 4]]&Tabla3[[#This Row],[Nivel 5]]&Tabla3[[#This Row],[Nivel 6]]&Tabla3[[#This Row],[Nivel 7]]","v":"6.602.08.03."}]
[null,"6.","602.","09.",null,null,null,null,"Otros Egresos",{"$f":"+EsNegrita(I267)","v":"NO"},null,{"$f":"+Tabla3[[#This Row],[Nivel 1]]&Tabla3[[#This Row],[Nivel 2]]&Tabla3[[#This Row],[Nivel 3]]&Tabla3[[#This Row],[Nivel 4]]&Tabla3[[#This Row],[Nivel 5]]&Tabla3[[#This Row],[Nivel 6]]&Tabla3[[#This Row],[Nivel 7]]","v":"6.602.09."}]
[null,"6.","602.","09.","01.",null,null,null,"Diferencias en Cobranzas",{"$f":"+EsNegrita(I268)","v":"SI"},null,{"$f":"+Tabla3[[#This Row],[Nivel 1]]&Tabla3[[#This Row],[Nivel 2]]&Tabla3[[#This Row],[Nivel 3]]&Tabla3[[#This Row],[Nivel 4]]&Tabla3[[#This Row],[Nivel 5]]&Tabla3[[#This Row],[Nivel 6]]&Tabla3[[#This Row],[Nivel 7]]","v":"6.602.09.01."}]
[null,"6.","602.","09.","02.",null,null,null,"Ajustes de Años Anteriores",{"$f":"+EsNegrita(I269)","v":"SI"},null,{"$f":"+Tabla3[[#This Row],[Nivel 1]]&Tabla3[[#This Row],[Nivel 2]]&Tabla3[[#This Row],[Nivel 3]]&Tabla3[[#This Row],[Nivel 4]]&Tabla3[[#This Row],[Nivel 5]]&Tabla3[[#This Row],[Nivel 6]]&Tabla3[[#This Row],[Nivel 7]]","v":"6.602.09.02."}]
[null,"6.","602.","09.","03.",null,null,null,"Otros",{"$f":"+EsNegrita(I270)","v":"SI"},null,{"$f":"+Tabla3[[#This Row],[Nivel 1]]&Tabla3[[#This Row],[Nivel 2]]&Tabla3[[#This Row],[Nivel 3]]&Tabla3[[#This Row],[Nivel 4]]&Tabla3[[#This Row],[Nivel 5]]&Tabla3[[#This Row],[Nivel 6]]&Tabla3[[#This Row],[Nivel 7]]","v":"6.602.09.03."}]
[null,null,null,null,null,null,null,null,"TOTAL EGRESOS…..",{"$f":"+EsNegrita(I271)","v":"NO"},null,{"$f":"+Tabla3[[#This Row],[Nivel 1]]&Tabla3[[#This Row],[Nivel 2]]&Tabla3[[#This Row],[Nivel 3]]&Tabla3[[#This Row],[Nivel 4]]&Tabla3[[#This Row],[Nivel 5]]&Tabla3[[#This Row],[Nivel 6]]&Tabla3[[#This Row],[Nivel 7]]","v":""}]
[null,"6.","603.",null,null,null,null,null,"RESULTADO DEL EJERCICIO",{"$f":"+EsNegrita(I272)","v":"NO"},null,{"$f":"+Tabla3[[#This Row],[Nivel 1]]&Tabla3[[#This Row],[Nivel 2]]&Tabla3[[#This Row],[Nivel 3]]&Tabla3[[#This Row],[Nivel 4]]&Tabla3[[#This Row],[Nivel 5]]&Tabla3[[#This Row],[Nivel 6]]&Tabla3[[#This Row],[Nivel 7]]","v":"6.603."}]
[null,"6.","603.","01.",null,null,null,null,"Utilidad del Ejercicio ",{"$f":"+EsNegrita(I273)","v":"SI"},null,{"$f":"+Tabla3[[#This Row],[Nivel 1]]&Tabla3[[#This Row],[Nivel 2]]&Tabla3[[#This Row],[Nivel 3]]&Tabla3[[#This Row],[Nivel 4]]&Tabla3[[#This Row],[Nivel 5]]&Tabla3[[#This Row],[Nivel 6]]&Tabla3[[#This Row],[Nivel 7]]","v":"6.603.01."}]
[null,"6.","603.","02.",null,null,null,null,"Saldo de Operaciones - Utilidad",{"$f":"+EsNegrita(I274)","v":"SI"},null,{"$f":"+Tabla3[[#This Row],[Nivel 1]]&Tabla3[[#This Row],[Nivel 2]]&Tabla3[[#This Row],[Nivel 3]]&Tabla3[[#This Row],[Nivel 4]]&Tabla3[[#This Row],[Nivel 5]]&Tabla3[[#This Row],[Nivel 6]]&Tabla3[[#This Row],[Nivel 7]]","v":"6.603.02."}]
[null,null,null,null,null,null,null,null,"TOTAL GENERAL…..",{"$f":"+EsNegrita(I275)","v":"NO"},null,{"$f":"+Tabla3[[#This Row],[Nivel 1]]&Tabla3[[#This Row],[Nivel 2]]&Tabla3[[#This Row],[Nivel 3]]&Tabla3[[#This Row],[Nivel 4]]&Tabla3[[#This Row],[Nivel 5]]&Tabla3[[#This Row],[Nivel 6]]&Tabla3[[#This Row],[Nivel 7]]","v":""}]

{"sheet":"Ingresos Analítico","index":3,"n_rows":205,"n_cols":13,"rows_kept":205,"cut":false,"hidden":false,"merged":[]}
[null,"EMPRESA ADMINISTRADORA DE RIESGOS"]
[null,"INGRESO ANALÍTICO"]
[null,"AL XX/XX/20___"]
[]
[null,"Nivel 1","Nivel 2","Nivel 3","Nivel 4","Nivel 5","Nivel 6","Nivel 7","Nivel 8","Nombre de la Cuenta","Admite Monto","Identificador del Anexo","Cuenta Contable"]
[null,"7.",null,null,null,null,null,null,null,"INGRESO",{"$f":"+EsNegrita(J6)","v":"NO"},null,{"$f":"+Tabla5[[#This Row],[Nivel 1]]&Tabla5[[#This Row],[Nivel 2]]&Tabla5[[#This Row],[Nivel 3]]&Tabla5[[#This Row],[Nivel 4]]&Tabla5[[#This Row],[Nivel 5]]&Tabla5[[#This Row],[Nivel 6]]&Tabla5[[#This Row],[Nivel 7]]&Tabla5[[#This Row],[Nivel 8]]","v":"7."}]
[null,"7.","701.",null,null,null,null,null,null,"COMISIONES GANADAS",{"$f":"+EsNegrita(J7)","v":"NO"},"A16",{"$f":"+Tabla5[[#This Row],[Nivel 1]]&Tabla5[[#This Row],[Nivel 2]]&Tabla5[[#This Row],[Nivel 3]]&Tabla5[[#This Row],[Nivel 4]]&Tabla5[[#This Row],[Nivel 5]]&Tabla5[[#This Row],[Nivel 6]]&Tabla5[[#This Row],[Nivel 7]]&Tabla5[[#This Row],[Nivel 8]]","v":"7.701."}]
[null,"7.","701.","01.",null,null,null,null,null,"Fondos Administrados",{"$f":"+EsNegrita(J8)","v":"NO"},null,{"$f":"+Tabla5[[#This Row],[Nivel 1]]&Tabla5[[#This Row],[Nivel 2]]&Tabla5[[#This Row],[Nivel 3]]&Tabla5[[#This Row],[Nivel 4]]&Tabla5[[#This Row],[Nivel 5]]&Tabla5[[#This Row],[Nivel 6]]&Tabla5[[#This Row],[Nivel 7]]&Tabla5[[#This Row],[Nivel 8]]","v":"7.701.01."}]
[null,"7.","701.","01.","01.",null,null,null,null,"Personas No Vida",{"$f":"+EsNegrita(J9)","v":"NO"},null,{"$f":"+Tabla5[[#This Row],[Nivel 1]]&Tabla5[[#This Row],[Nivel 2]]&Tabla5[[#This Row],[Nivel 3]]&Tabla5[[#This Row],[Nivel 4]]&Tabla5[[#This Row],[Nivel 5]]&Tabla5[[#This Row],[Nivel 6]]&Tabla5[[#This Row],[Nivel 7]]&Tabla5[[#This Row],[Nivel 8]]","v":"7.701.01.01."}]
[null,"7.","701.","01.","01.","01.",null,null,null,"Accidentes Personales",{"$f":"+EsNegrita(J10)","v":"SI"},"A16",{"$f":"+Tabla5[[#This Row],[Nivel 1]]&Tabla5[[#This Row],[Nivel 2]]&Tabla5[[#This Row],[Nivel 3]]&Tabla5[[#This Row],[Nivel 4]]&Tabla5[[#This Row],[Nivel 5]]&Tabla5[[#This Row],[Nivel 6]]&Tabla5[[#This Row],[Nivel 7]]&Tabla5[[#This Row],[Nivel 8]]","v":"7.701.01.01.01."}]
[null,"7.","701.","01.","01.","02.",null,null,null,"Salud",{"$f":"+EsNegrita(J11)","v":"SI"},"A16",{"$f":"+Tabla5[[#This Row],[Nivel 1]]&Tabla5[[#This Row],[Nivel 2]]&Tabla5[[#This Row],[Nivel 3]]&Tabla5[[#This Row],[Nivel 4]]&Tabla5[[#This Row],[Nivel 5]]&Tabla5[[#This Row],[Nivel 6]]&Tabla5[[#This Row],[Nivel 7]]&Tabla5[[#This Row],[Nivel 8]]","v":"7.701.01.01.02."}]
[null,"7.","701.","01.","01.","03.",null,null,null,"Funerarios Servicios",{"$f":"+EsNegrita(J12)","v":"SI"},"A16",{"$f":"+Tabla5[[#This Row],[Nivel 1]]&Tabla5[[#This Row],[Nivel 2]]&Tabla5[[#This Row],[Nivel 3]]&Tabla5[[#This Row],[Nivel 4]]&Tabla5[[#This Row],[Nivel 5]]&Tabla5[[#This Row],[Nivel 6]]&Tabla5[[#This Row],[Nivel 7]]&Tabla5[[#This Row],[Nivel 8]]","v":"7.701.01.01.03."}]
[null,"7.","701.","01.","02.",null,null,null,null,"Patrimoniales",{"$f":"+EsNegrita(J13)","v":"NO"},null,{"$f":"+Tabla5[[#This Row],[Nivel 1]]&Tabla5[[#This Row],[Nivel 2]]&Tabla5[[#This Row],[Nivel 3]]&Tabla5[[#This Row],[Nivel 4]]&Tabla5[[#This Row],[Nivel 5]]&Tabla5[[#This Row],[Nivel 6]]&Tabla5[[#This Row],[Nivel 7]]&Tabla5[[#This Row],[Nivel 8]]","v":"7.701.01.02."}]
[null,"7.","701.","01.","02.","01.",null,null,null,"Automóvil Casco",{"$f":"+EsNegrita(J14)","v":"SI"},"A16",{"$f":"+Tabla5[[#This Row],[Nivel 1]]&Tabla5[[#This Row],[Nivel 2]]&Tabla5[[#This Row],[Nivel 3]]&Tabla5[[#This Row],[Nivel 4]]&Tabla5[[#This Row],[Nivel 5]]&Tabla5[[#This Row],[Nivel 6]]&Tabla5[[#This Row],[Nivel 7]]&Tabla5[[#This Row],[Nivel 8]]","v":"7.701.01.02.01."}]
[null,"7.","701.","01.","03.",null,null,null,null,"Obligacionales o de Responsabilidad",{"$f":"+EsNegrita(J15)","v":"NO"},null,{"$f":"+Tabla5[[#This Row],[Nivel 1]]&Tabla5[[#This Row],[Nivel 2]]&Tabla5[[#This Row],[Nivel 3]]&Tabla5[[#This Row],[Nivel 4]]&Tabla5[[#This Row],[Nivel 5]]&Tabla5[[#This Row],[Nivel 6]]&Tabla5[[#This Row],[Nivel 7]]&Tabla5[[#This Row],[Nivel 8]]","v":"7.701.01.03."}]
[null,"7.","701.","01.","03.","01.",null,null,null,"Responsabilidad Civil Patronal",{"$f":"+EsNegrita(J16)","v":"SI"},"A16",{"$f":"+Tabla5[[#This Row],[Nivel 1]]&Tabla5[[#This Row],[Nivel 2]]&Tabla5[[#This Row],[Nivel 3]]&Tabla5[[#This Row],[Nivel 4]]&Tabla5[[#This Row],[Nivel 5]]&Tabla5[[#This Row],[Nivel 6]]&Tabla5[[#This Row],[Nivel 7]]&Tabla5[[#This Row],[Nivel 8]]","v":"7.701.01.03.01."}]
[null,"7.","701.","01.","03.","02.",null,null,null,"Responsabilidad Civil Empresarial",{"$f":"+EsNegrita(J17)","v":"SI"},"A16",{"$f":"+Tabla5[[#This Row],[Nivel 1]]&Tabla5[[#This Row],[Nivel 2]]&Tabla5[[#This Row],[Nivel 3]]&Tabla5[[#This Row],[Nivel 4]]&Tabla5[[#This Row],[Nivel 5]]&Tabla5[[#This Row],[Nivel 6]]&Tabla5[[#This Row],[Nivel 7]]&Tabla5[[#This Row],[Nivel 8]]","v":"7.701.01.03.02."}]
[null,"7.","701.","01.","04.",null,null,null,null,"Otros Ramos Autorizados",{"$f":"+EsNegrita(J18)","v":"SI"},"A16",{"$f":"+Tabla5[[#This Row],[Nivel 1]]&Tabla5[[#This Row],[Nivel 2]]&Tabla5[[#This Row],[Nivel 3]]&Tabla5[[#This Row],[Nivel 4]]&Tabla5[[#This Row],[Nivel 5]]&Tabla5[[#This Row],[Nivel 6]]&Tabla5[[#This Row],[Nivel 7]]&Tabla5[[#This Row],[Nivel 8]]","v":"7.701.01.04."}]
[null,"7.","701.","02.",null,null,null,null,null,"Administración de Siniestros",{"$f":"+EsNegrita(J19)","v":"NO"},null,{"$f":"+Tabla5[[#This Row],[Nivel 1]]&Tabla5[[#This Row],[Nivel 2]]&Tabla5[[#This Row],[Nivel 3]]&Tabla5[[#This Row],[Nivel 4]]&Tabla5[[#This Row],[Nivel 5]]&Tabla5[[#This Row],[Nivel 6]]&Tabla5[[#This Row],[Nivel 7]]&Tabla5[[#This Row],[Nivel 8]]","v":"7.701.02."}]
[null,"7.","701.","02.","01.",null,null,null,null,"Personas No Vida",{"$f":"+EsNegrita(J20)","v":"NO"},null,{"$f":"+Tabla5[[#This Row],[Nivel 1]]&Tabla5[[#This Row],[Nivel 2]]&Tabla5[[#This Row],[Nivel 3]]&Tabla5[[#This Row],[Nivel 4]]&Tabla5[[#This Row],[Nivel 5]]&Tabla5[[#This Row],[Nivel 6]]&Tabla5[[#This Row],[Nivel 7]]&Tabla5[[#This Row],[Nivel 8]]","v":"7.701.02.01."}]
[null,"7.","701.","02.","01.","01.",null,null,null,"Accidentes Personales",{"$f":"+EsNegrita(J21)","v":"SI"},"A16",{"$f":"+Tabla5[[#This Row],[Nivel 1]]&Tabla5[[#This Row],[Nivel 2]]&Tabla5[[#This Row],[Nivel 3]]&Tabla5[[#This Row],[Nivel 4]]&Tabla5[[#This Row],[Nivel 5]]&Tabla5[[#This Row],[Nivel 6]]&Tabla5[[#This Row],[Nivel 7]]&Tabla5[[#This Row],[Nivel 8]]","v":"7.701.02.01.01."}]
[null,"7.","701.","02.","01.","02.",null,null,null,"Salud",{"$f":"+EsNegrita(J22)","v":"SI"},"A16",{"$f":"+Tabla5[[#This Row],[Nivel 1]]&Tabla5[[#This Row],[Nivel 2]]&Tabla5[[#This Row],[Nivel 3]]&Tabla5[[#This Row],[Nivel 4]]&Tabla5[[#This Row],[Nivel 5]]&Tabla5[[#This Row],[Nivel 6]]&Tabla5[[#This Row],[Nivel 7]]&Tabla5[[#This Row],[Nivel 8]]","v":"7.701.02.01.02."}]
[null,"7.","701.","02.","01.","03.",null,null,null,"Funerarios Servicios",{"$f":"+EsNegrita(J23)","v":"SI"},"A16",{"$f":"+Tabla5[[#This Row],[Nivel 1]]&Tabla5[[#This Row],[Nivel 2]]&Tabla5[[#This Row],[Nivel 3]]&Tabla5[[#This Row],[Nivel 4]]&Tabla5[[#This Row],[Nivel 5]]&Tabla5[[#This Row],[Nivel 6]]&Tabla5[[#This Row],[Nivel 7]]&Tabla5[[#This Row],[Nivel 8]]","v":"7.701.02.01.03."}]
[null,"7.","701.","02.","02.",null,null,null,null,"Patrimoniales",{"$f":"+EsNegrita(J24)","v":"NO"},null,{"$f":"+Tabla5[[#This Row],[Nivel 1]]&Tabla5[[#This Row],[Nivel 2]]&Tabla5[[#This Row],[Nivel 3]]&Tabla5[[#This Row],[Nivel 4]]&Tabla5[[#This Row],[Nivel 5]]&Tabla5[[#This Row],[Nivel 6]]&Tabla5[[#This Row],[Nivel 7]]&Tabla5[[#This Row],[Nivel 8]]","v":"7.701.02.02."}]
[null,"7.","701.","02.","02.","01.",null,null,null,"Automóvil Casco",{"$f":"+EsNegrita(J25)","v":"SI"},"A16",{"$f":"+Tabla5[[#This Row],[Nivel 1]]&Tabla5[[#This Row],[Nivel 2]]&Tabla5[[#This Row],[Nivel 3]]&Tabla5[[#This Row],[Nivel 4]]&Tabla5[[#This Row],[Nivel 5]]&Tabla5[[#This Row],[Nivel 6]]&Tabla5[[#This Row],[Nivel 7]]&Tabla5[[#This Row],[Nivel 8]]","v":"7.701.02.02.01."}]
[null,"7.","701.","02.","03.",null,null,null,null,"Obligacionales o de Responsabilidad",{"$f":"+EsNegrita(J26)","v":"NO"},null,{"$f":"+Tabla5[[#This Row],[Nivel 1]]&Tabla5[[#This Row],[Nivel 2]]&Tabla5[[#This Row],[Nivel 3]]&Tabla5[[#This Row],[Nivel 4]]&Tabla5[[#This Row],[Nivel 5]]&Tabla5[[#This Row],[Nivel 6]]&Tabla5[[#This Row],[Nivel 7]]&Tabla5[[#This Row],[Nivel 8]]","v":"7.701.02.03."}]
[null,"7.","701.","02.","03.","01.",null,null,null,"Responsabilidad Civil Patronal",{"$f":"+EsNegrita(J27)","v":"SI"},"A16",{"$f":"+Tabla5[[#This Row],[Nivel 1]]&Tabla5[[#This Row],[Nivel 2]]&Tabla5[[#This Row],[Nivel 3]]&Tabla5[[#This Row],[Nivel 4]]&Tabla5[[#This Row],[Nivel 5]]&Tabla5[[#This Row],[Nivel 6]]&Tabla5[[#This Row],[Nivel 7]]&Tabla5[[#This Row],[Nivel 8]]","v":"7.701.02.03.01."}]
[null,"7.","701.","02.","03.","02.",null,null,null,"Responsabilidad Civil Empresarial",{"$f":"+EsNegrita(J28)","v":"SI"},"A16",{"$f":"+Tabla5[[#This Row],[Nivel 1]]&Tabla5[[#This Row],[Nivel 2]]&Tabla5[[#This Row],[Nivel 3]]&Tabla5[[#This Row],[Nivel 4]]&Tabla5[[#This Row],[Nivel 5]]&Tabla5[[#This Row],[Nivel 6]]&Tabla5[[#This Row],[Nivel 7]]&Tabla5[[#This Row],[Nivel 8]]","v":"7.701.02.03.02."}]
[null,"7.","701.","02.","04.",null,null,null,null,"Otros Ramos Autorizados",{"$f":"+EsNegrita(J29)","v":"SI"},"A16",{"$f":"+Tabla5[[#This Row],[Nivel 1]]&Tabla5[[#This Row],[Nivel 2]]&Tabla5[[#This Row],[Nivel 3]]&Tabla5[[#This Row],[Nivel 4]]&Tabla5[[#This Row],[Nivel 5]]&Tabla5[[#This Row],[Nivel 6]]&Tabla5[[#This Row],[Nivel 7]]&Tabla5[[#This Row],[Nivel 8]]","v":"7.701.02.04."}]
[null,"7.","702.",null,null,null,null,null,null,"GESTIÓN GENERAL DE LA EMPRESA",{"$f":"+EsNegrita(J30)","v":"NO"},null,{"$f":"+Tabla5[[#This Row],[Nivel 1]]&Tabla5[[#This Row],[Nivel 2]]&Tabla5[[#This Row],[Nivel 3]]&Tabla5[[#This Row],[Nivel 4]]&Tabla5[[#This Row],[Nivel 5]]&Tabla5[[#This Row],[Nivel 6]]&Tabla5[[#This Row],[Nivel 7]]&Tabla5[[#This Row],[Nivel 8]]","v":"7.702."}]
[null,"7.","702.","01.",null,null,null,null,null,"Producto de Inversiones",{"$f":"+EsNegrita(J31)","v":"NO"},null,{"$f":"+Tabla5[[#This Row],[Nivel 1]]&Tabla5[[#This Row],[Nivel 2]]&Tabla5[[#This Row],[Nivel 3]]&Tabla5[[#This Row],[Nivel 4]]&Tabla5[[#This Row],[Nivel 5]]&Tabla5[[#This Row],[Nivel 6]]&Tabla5[[#This Row],[Nivel 7]]&Tabla5[[#This Row],[Nivel 8]]","v":"7.702.01."}]
[null,"7.","702.","01.","01.",null,null,null,null,"Intereses Ganados",{"$f":"+EsNegrita(J32)","v":"NO"},"A17-C17",{"$f":"+Tabla5[[#This Row],[Nivel 1]]&Tabla5[[#This Row],[Nivel 2]]&Tabla5[[#This Row],[Nivel 3]]&Tabla5[[#This Row],[Nivel 4]]&Tabla5[[#This Row],[Nivel 5]]&Tabla5[[#This Row],[Nivel 6]]&Tabla5[[#This Row],[Nivel 7]]&Tabla5[[#This Row],[Nivel 8]]","v":"7.702.01.01."}]
[null,"7.","702.","01.","01.","01.",null,null,null,"Depósitos a la Vista",{"$f":"+EsNegrita(J33)","v":"NO"},null,{"$f":"+Tabla5[[#This Row],[Nivel 1]]&Tabla5[[#This Row],[Nivel 2]]&Tabla5[[#This Row],[Nivel 3]]&Tabla5[[#This Row],[Nivel 4]]&Tabla5[[#This Row],[Nivel 5]]&Tabla5[[#This Row],[Nivel 6]]&Tabla5[[#This Row],[Nivel 7]]&Tabla5[[#This Row],[Nivel 8]]","v":"7.702.01.01.01."}]
[null,"7.","702.","01.","01.","01.","01.",null,null,"Bancos",{"$f":"+EsNegrita(J34)","v":"NO"},null,{"$f":"+Tabla5[[#This Row],[Nivel 1]]&Tabla5[[#This Row],[Nivel 2]]&Tabla5[[#This Row],[Nivel 3]]&Tabla5[[#This Row],[Nivel 4]]&Tabla5[[#This Row],[Nivel 5]]&Tabla5[[#This Row],[Nivel 6]]&Tabla5[[#This Row],[Nivel 7]]&Tabla5[[#This Row],[Nivel 8]]","v":"7.702.01.01.01.01."}]
[null,"7.","702.","01.","01.","01.","01.","01.",null,"Moneda Nacional",{"$f":"+EsNegrita(J35)","v":"SI"},null,{"$f":"+Tabla5[[#This Row],[Nivel 1]]&Tabla5[[#This Row],[Nivel 2]]&Tabla5[[#This Row],[Nivel 3]]&Tabla5[[#This Row],[Nivel 4]]&Tabla5[[#This Row],[Nivel 5]]&Tabla5[[#This Row],[Nivel 6]]&Tabla5[[#This Row],[Nivel 7]]&Tabla5[[#This Row],[Nivel 8]]","v":"7.702.01.01.01.01.01."}]
[null,"7.","702.","01.","01.","01.","01.","02.",null,"Moneda Extranjera",{"$f":"+EsNegrita(J36)","v":"SI"},null,{"$f":"+Tabla5[[#This Row],[Nivel 1]]&Tabla5[[#This Row],[Nivel 2]]&Tabla5[[#This Row],[Nivel 3]]&Tabla5[[#This Row],[Nivel 4]]&Tabla5[[#This Row],[Nivel 5]]&Tabla5[[#This Row],[Nivel 6]]&Tabla5[[#This Row],[Nivel 7]]&Tabla5[[#This Row],[Nivel 8]]","v":"7.702.01.01.01.01.02."}]
[null,"7.","702.","01.","01.","01.","02.",null,null,"Otras Instituciones Financieras",{"$f":"+EsNegrita(J37)","v":"NO"},null,{"$f":"+Tabla5[[#This Row],[Nivel 1]]&Tabla5[[#This Row],[Nivel 2]]&Tabla5[[#This Row],[Nivel 3]]&Tabla5[[#This Row],[Nivel 4]]&Tabla5[[#This Row],[Nivel 5]]&Tabla5[[#This Row],[Nivel 6]]&Tabla5[[#This Row],[Nivel 7]]&Tabla5[[#This Row],[Nivel 8]]","v":"7.702.01.01.01.02."}]
[null,"7.","702.","01.","01.","01.","02.","01.",null,"Moneda Nacional",{"$f":"+EsNegrita(J38)","v":"SI"},null,{"$f":"+Tabla5[[#This Row],[Nivel 1]]&Tabla5[[#This Row],[Nivel 2]]&Tabla5[[#This Row],[Nivel 3]]&Tabla5[[#This Row],[Nivel 4]]&Tabla5[[#This Row],[Nivel 5]]&Tabla5[[#This Row],[Nivel 6]]&Tabla5[[#This Row],[Nivel 7]]&Tabla5[[#This Row],[Nivel 8]]","v":"7.702.01.01.01.02.01."}]
[null,"7.","702.","01.","01.","01.","02.","02.",null,"Moneda Extranjera",{"$f":"+EsNegrita(J39)","v":"SI"},null,{"$f":"+Tabla5[[#This Row],[Nivel 1]]&Tabla5[[#This Row],[Nivel 2]]&Tabla5[[#This Row],[Nivel 3]]&Tabla5[[#This Row],[Nivel 4]]&Tabla5[[#This Row],[Nivel 5]]&Tabla5[[#This Row],[Nivel 6]]&Tabla5[[#This Row],[Nivel 7]]&Tabla5[[#This Row],[Nivel 8]]","v":"7.702.01.01.01.02.02."}]
[null,"7.","702.","01.","01.","02.",null,null,null,"Depósitos a Plazo Fijo",{"$f":"+EsNegrita(J40)","v":"NO"},null,{"$f":"+Tabla5[[#This Row],[Nivel 1]]&Tabla5[[#This Row],[Nivel 2]]&Tabla5[[#This Row],[Nivel 3]]&Tabla5[[#This Row],[Nivel 4]]&Tabla5[[#This Row],[Nivel 5]]&Tabla5[[#This Row],[Nivel 6]]&Tabla5[[#This Row],[Nivel 7]]&Tabla5[[#This Row],[Nivel 8]]","v":"7.702.01.01.02."}]
[null,"7.","702.","01.","01.","02.","01.",null,null,"Bancos",{"$f":"+EsNegrita(J41)","v":"NO"},null,{"$f":"+Tabla5[[#This Row],[Nivel 1]]&Tabla5[[#This Row],[Nivel 2]]&Tabla5[[#This Row],[Nivel 3]]&Tabla5[[#This Row],[Nivel 4]]&Tabla5[[#This Row],[Nivel 5]]&Tabla5[[#This Row],[Nivel 6]]&Tabla5[[#This Row],[Nivel 7]]&Tabla5[[#This Row],[Nivel 8]]","v":"7.702.01.01.02.01."}]
[null,"7.","702.","01.","01.","02.","01.","01.",null,"Moneda Nacional",{"$f":"+EsNegrita(J42)","v":"SI"},null,{"$f":"+Tabla5[[#This Row],[Nivel 1]]&Tabla5[[#This Row],[Nivel 2]]&Tabla5[[#This Row],[Nivel 3]]&Tabla5[[#This Row],[Nivel 4]]&Tabla5[[#This Row],[Nivel 5]]&Tabla5[[#This Row],[Nivel 6]]&Tabla5[[#This Row],[Nivel 7]]&Tabla5[[#This Row],[Nivel 8]]","v":"7.702.01.01.02.01.01."}]
[null,"7.","702.","01.","01.","02.","01.","02.",null,"Moneda Extranjera",{"$f":"+EsNegrita(J43)","v":"SI"},null,{"$f":"+Tabla5[[#This Row],[Nivel 1]]&Tabla5[[#This Row],[Nivel 2]]&Tabla5[[#This Row],[Nivel 3]]&Tabla5[[#This Row],[Nivel 4]]&Tabla5[[#This Row],[Nivel 5]]&Tabla5[[#This Row],[Nivel 6]]&Tabla5[[#This Row],[Nivel 7]]&Tabla5[[#This Row],[Nivel 8]]","v":"7.702.01.01.02.01.02."}]
[null,"7.","702.","01.","01.","02.","02.",null,null,"Otras Instituciones Financieras",{"$f":"+EsNegrita(J44)","v":"NO"},null,{"$f":"+Tabla5[[#This Row],[Nivel 1]]&Tabla5[[#This Row],[Nivel 2]]&Tabla5[[#This Row],[Nivel 3]]&Tabla5[[#This Row],[Nivel 4]]&Tabla5[[#This Row],[Nivel 5]]&Tabla5[[#This Row],[Nivel 6]]&Tabla5[[#This Row],[Nivel 7]]&Tabla5[[#This Row],[Nivel 8]]","v":"7.702.01.01.02.02."}]
[null,"7.","702.","01.","01.","02.","02.","01.",null,"Moneda Nacional",{"$f":"+EsNegrita(J45)","v":"SI"},null,{"$f":"+Tabla5[[#This Row],[Nivel 1]]&Tabla5[[#This Row],[Nivel 2]]&Tabla5[[#This Row],[Nivel 3]]&Tabla5[[#This Row],[Nivel 4]]&Tabla5[[#This Row],[Nivel 5]]&Tabla5[[#This Row],[Nivel 6]]&Tabla5[[#This Row],[Nivel 7]]&Tabla5[[#This Row],[Nivel 8]]","v":"7.702.01.01.02.02.01."}]
[null,"7.","702.","01.","01.","02.","02.","02.",null,"Moneda Extranjera",{"$f":"+EsNegrita(J46)","v":"SI"},null,{"$f":"+Tabla5[[#This Row],[Nivel 1]]&Tabla5[[#This Row],[Nivel 2]]&Tabla5[[#This Row],[Nivel 3]]&Tabla5[[#This Row],[Nivel 4]]&Tabla5[[#This Row],[Nivel 5]]&Tabla5[[#This Row],[Nivel 6]]&Tabla5[[#This Row],[Nivel 7]]&Tabla5[[#This Row],[Nivel 8]]","v":"7.702.01.01.02.02.02."}]
[null,"7.","702.","01.","01.","03.",null,null,null,"Valores Públicos",{"$f":"+EsNegrita(J47)","v":"NO"},null,{"$f":"+Tabla5[[#This Row],[Nivel 1]]&Tabla5[[#This Row],[Nivel 2]]&Tabla5[[#This Row],[Nivel 3]]&Tabla5[[#This Row],[Nivel 4]]&Tabla5[[#This Row],[Nivel 5]]&Tabla5[[#This Row],[Nivel 6]]&Tabla5[[#This Row],[Nivel 7]]&Tabla5[[#This Row],[Nivel 8]]","v":"7.702.01.01.03."}]
[null,"7.","702.","01.","01.","03.","01.",null,null,"Emitidos o Garantizados por la República",{"$f":"+EsNegrita(J48)","v":"SI"},null,{"$f":"+Tabla5[[#This Row],[Nivel 1]]&Tabla5[[#This Row],[Nivel 2]]&Tabla5[[#This Row],[Nivel 3]]&Tabla5[[#This Row],[Nivel 4]]&Tabla5[[#This Row],[Nivel 5]]&Tabla5[[#This Row],[Nivel 6]]&Tabla5[[#This Row],[Nivel 7]]&Tabla5[[#This Row],[Nivel 8]]","v":"7.702.01.01.03.01."}]
[null,"7.","702.","01.","01.","03.","02.",null,null,"Emitidos por Otros Sujetos de Derecho Público Nacional",{"$f":"+EsNegrita(J49)","v":"SI"},null,{"$f":"+Tabla5[[#This Row],[Nivel 1]]&Tabla5[[#This Row],[Nivel 2]]&Tabla5[[#This Row],[Nivel 3]]&Tabla5[[#This Row],[Nivel 4]]&Tabla5[[#This Row],[Nivel 5]]&Tabla5[[#This Row],[Nivel 6]]&Tabla5[[#This Row],[Nivel 7]]&Tabla5[[#This Row],[Nivel 8]]","v":"7.702.01.01.03.02."}]
[null,"7.","702.","01.","01.","03.","03.",null,null,"Emitidos por Empresas con Participación de la República",{"$f":"+EsNegrita(J50)","v":"SI"},null,{"$f":"+Tabla5[[#This Row],[Nivel 1]]&Tabla5[[#This Row],[Nivel 2]]&Tabla5[[#This Row],[Nivel 3]]&Tabla5[[#This Row],[Nivel 4]]&Tabla5[[#This Row],[Nivel 5]]&Tabla5[[#This Row],[Nivel 6]]&Tabla5[[#This Row],[Nivel 7]]&Tabla5[[#This Row],[Nivel 8]]","v":"7.702.01.01.03.03."}]
[null,"7.","702.","01.","01.","03.","04.",null,null,"Emitidos por Instituciones con Participación de la República",{"$f":"+EsNegrita(J51)","v":"SI"},null,{"$f":"+Tabla5[[#This Row],[Nivel 1]]&Tabla5[[#This Row],[Nivel 2]]&Tabla5[[#This Row],[Nivel 3]]&Tabla5[[#This Row],[Nivel 4]]&Tabla5[[#This Row],[Nivel 5]]&Tabla5[[#This Row],[Nivel 6]]&Tabla5[[#This Row],[Nivel 7]]&Tabla5[[#This Row],[Nivel 8]]","v":"7.702.01.01.03.04."}]
[null,"7.","702.","01.","01.","04.",null,null,null,"Participación en Fondos de Inversión",{"$f":"+EsNegrita(J52)","v":"NO"},null,{"$f":"+Tabla5[[#This Row],[Nivel 1]]&Tabla5[[#This Row],[Nivel 2]]&Tabla5[[#This Row],[Nivel 3]]&Tabla5[[#This Row],[Nivel 4]]&Tabla5[[#This Row],[Nivel 5]]&Tabla5[[#This Row],[Nivel 6]]&Tabla5[[#This Row],[Nivel 7]]&Tabla5[[#This Row],[Nivel 8]]","v":"7.702.01.01.04."}]
[null,"7.","702.","01.","01.","04.","01.",null,null,"Renta Fija",{"$f":"+EsNegrita(J53)","v":"SI"},null,{"$f":"+Tabla5[[#This Row],[Nivel 1]]&Tabla5[[#This Row],[Nivel 2]]&Tabla5[[#This Row],[Nivel 3]]&Tabla5[[#This Row],[Nivel 4]]&Tabla5[[#This Row],[Nivel 5]]&Tabla5[[#This Row],[Nivel 6]]&Tabla5[[#This Row],[Nivel 7]]&Tabla5[[#This Row],[Nivel 8]]","v":"7.702.01.01.04.01."}]
[null,"7.","702.","01.","01.","04.","02.",null,null,"Renta Variable",{"$f":"+EsNegrita(J54)","v":"SI"},null,{"$f":"+Tabla5[[#This Row],[Nivel 1]]&Tabla5[[#This Row],[Nivel 2]]&Tabla5[[#This Row],[Nivel 3]]&Tabla5[[#This Row],[Nivel 4]]&Tabla5[[#This Row],[Nivel 5]]&Tabla5[[#This Row],[Nivel 6]]&Tabla5[[#This Row],[Nivel 7]]&Tabla5[[#This Row],[Nivel 8]]","v":"7.702.01.01.04.02."}]
[null,"7.","702.","01.","01.","05.",null,null,null,"Valores Privados",{"$f":"+EsNegrita(J55)","v":"NO"},null,{"$f":"+Tabla5[[#This Row],[Nivel 1]]&Tabla5[[#This Row],[Nivel 2]]&Tabla5[[#This Row],[Nivel 3]]&Tabla5[[#This Row],[Nivel 4]]&Tabla5[[#This Row],[Nivel 5]]&Tabla5[[#This Row],[Nivel 6]]&Tabla5[[#This Row],[Nivel 7]]&Tabla5[[#This Row],[Nivel 8]]","v":"7.702.01.01.05."}]
[null,"7.","702.","01.","01.","05.","01.",null,null,"Bonos de Sociedades Anónimas",{"$f":"+EsNegrita(J56)","v":"SI"},null,{"$f":"+Tabla5[[#This Row],[Nivel 1]]&Tabla5[[#This Row],[Nivel 2]]&Tabla5[[#This Row],[Nivel 3]]&Tabla5[[#This Row],[Nivel 4]]&Tabla5[[#This Row],[Nivel 5]]&Tabla5[[#This Row],[Nivel 6]]&Tabla5[[#This Row],[Nivel 7]]&Tabla5[[#This Row],[Nivel 8]]","v":"7.702.01.01.05.01."}]
[null,"7.","702.","01.","01.","05.","02.",null,null,"Otras Inversiones emitidas por el Sector Privado.",{"$f":"+EsNegrita(J57)","v":"SI"},null,{"$f":"+Tabla5[[#This Row],[Nivel 1]]&Tabla5[[#This Row],[Nivel 2]]&Tabla5[[#This Row],[Nivel 3]]&Tabla5[[#This Row],[Nivel 4]]&Tabla5[[#This Row],[Nivel 5]]&Tabla5[[#This Row],[Nivel 6]]&Tabla5[[#This Row],[Nivel 7]]&Tabla5[[#This Row],[Nivel 8]]","v":"7.702.01.01.05.02."}]
[null,"7.","702.","01.","01.","06.",null,null,null,"Activos en el Extranjero",{"$f":"+EsNegrita(J58)","v":"NO"},null,{"$f":"+Tabla5[[#This Row],[Nivel 1]]&Tabla5[[#This Row],[Nivel 2]]&Tabla5[[#This Row],[Nivel 3]]&Tabla5[[#This Row],[Nivel 4]]&Tabla5[[#This Row],[Nivel 5]]&Tabla5[[#This Row],[Nivel 6]]&Tabla5[[#This Row],[Nivel 7]]&Tabla5[[#This Row],[Nivel 8]]","v":"7.702.01.01.06."}]
[null,"7.","702.","01.","01.","06.","01.",null,null,"Bancos  ",{"$f":"+EsNegrita(J59)","v":"SI"},null,{"$f":"+Tabla5[[#This Row],[Nivel 1]]&Tabla5[[#This Row],[Nivel 2]]&Tabla5[[#This Row],[Nivel 3]]&Tabla5[[#This Row],[Nivel 4]]&Tabla5[[#This Row],[Nivel 5]]&Tabla5[[#This Row],[Nivel 6]]&Tabla5[[#This Row],[Nivel 7]]&Tabla5[[#This Row],[Nivel 8]]","v":"7.702.01.01.06.01."}]
[null,"7.","702.","01.","01.","06.","02.",null,null,"Títulos Valores",{"$f":"+EsNegrita(J60)","v":"SI"},null,{"$f":"+Tabla5[[#This Row],[Nivel 1]]&Tabla5[[#This Row],[Nivel 2]]&Tabla5[[#This Row],[Nivel 3]]&Tabla5[[#This Row],[Nivel 4]]&Tabla5[[#This Row],[Nivel 5]]&Tabla5[[#This Row],[Nivel 6]]&Tabla5[[#This Row],[Nivel 7]]&Tabla5[[#This Row],[Nivel 8]]","v":"7.702.01.01.06.02."}]
[null,"7.","702.","01.","01.","06.","03.",null,null,"Otras Inversiones",{"$f":"+EsNegrita(J61)","v":"SI"},null,{"$f":"+Tabla5[[#This Row],[Nivel 1]]&Tabla5[[#This Row],[Nivel 2]]&Tabla5[[#This Row],[Nivel 3]]&Tabla5[[#This Row],[Nivel 4]]&Tabla5[[#This Row],[Nivel 5]]&Tabla5[[#This Row],[Nivel 6]]&Tabla5[[#This Row],[Nivel 7]]&Tabla5[[#This Row],[Nivel 8]]","v":"7.702.01.01.06.03."}]
[null,"7.","702.","01.","01.","07.",null,null,null,"Sobre Depósitos y Títulos Valores en Instituciones Intervenidas",{"$f":"+EsNegrita(J62)","v":"SI"},null,{"$f":"+Tabla5[[#This Row],[Nivel 1]]&Tabla5[[#This Row],[Nivel 2]]&Tabla5[[#This Row],[Nivel 3]]&Tabla5[[#This Row],[Nivel 4]]&Tabla5[[#This Row],[Nivel 5]]&Tabla5[[#This Row],[Nivel 6]]&Tabla5[[#This Row],[Nivel 7]]&Tabla5[[#This Row],[Nivel 8]]","v":"7.702.01.01.07."}]
[null,"7.","702.","01.","01.","08.",null,null,null,"Cuentas por Cobrar - Empleados",{"$f":"+EsNegrita(J63)","v":"SI"},null,{"$f":"+Tabla5[[#This Row],[Nivel 1]]&Tabla5[[#This Row],[Nivel 2]]&Tabla5[[#This Row],[Nivel 3]]&Tabla5[[#This Row],[Nivel 4]]&Tabla5[[#This Row],[Nivel 5]]&Tabla5[[#This Row],[Nivel 6]]&Tabla5[[#This Row],[Nivel 7]]&Tabla5[[#This Row],[Nivel 8]]","v":"7.702.01.01.08."}]
[null,"7.","702.","01.","01.","09.",null,null,null,"Sobre Cuentas por Cobrar - Intermediarios de la Actividad Aseguradora",{"$f":"+EsNegrita(J64)","v":"NO"},null,{"$f":"+Tabla5[[#This Row],[Nivel 1]]&Tabla5[[#This Row],[Nivel 2]]&Tabla5[[#This Row],[Nivel 3]]&Tabla5[[#This Row],[Nivel 4]]&Tabla5[[#This Row],[Nivel 5]]&Tabla5[[#This Row],[Nivel 6]]&Tabla5[[#This Row],[Nivel 7]]&Tabla5[[#This Row],[Nivel 8]]","v":"7.702.01.01.09."}]
[null,"7.","702.","01.","01.","09.","01.",null,null,"Agentes",{"$f":"+EsNegrita(J65)","v":"SI"},null,{"$f":"+Tabla5[[#This Row],[Nivel 1]]&Tabla5[[#This Row],[Nivel 2]]&Tabla5[[#This Row],[Nivel 3]]&Tabla5[[#This Row],[Nivel 4]]&Tabla5[[#This Row],[Nivel 5]]&Tabla5[[#This Row],[Nivel 6]]&Tabla5[[#This Row],[Nivel 7]]&Tabla5[[#This Row],[Nivel 8]]","v":"7.702.01.01.09.01."}]
[null,"7.","702.","01.","01.","09.","02.",null,null,"Corredores de Seguros",{"$f":"+EsNegrita(J66)","v":"SI"},null,{"$f":"+Tabla5[[#This Row],[Nivel 1]]&Tabla5[[#This Row],[Nivel 2]]&Tabla5[[#This Row],[Nivel 3]]&Tabla5[[#This Row],[Nivel 4]]&Tabla5[[#This Row],[Nivel 5]]&Tabla5[[#This Row],[Nivel 6]]&Tabla5[[#This Row],[Nivel 7]]&Tabla5[[#This Row],[Nivel 8]]","v":"7.702.01.01.09.02."}]
[null,"7.","702.","01.","01.","09.","03.",null,null,"Sociedades de Corretaje de Seguros",{"$f":"+EsNegrita(J67)","v":"SI"},null,{"$f":"+Tabla5[[#This Row],[Nivel 1]]&Tabla5[[#This Row],[Nivel 2]]&Tabla5[[#This Row],[Nivel 3]]&Tabla5[[#This Row],[Nivel 4]]&Tabla5[[#This Row],[Nivel 5]]&Tabla5[[#This Row],[Nivel 6]]&Tabla5[[#This Row],[Nivel 7]]&Tabla5[[#This Row],[Nivel 8]]","v":"7.702.01.01.09.03."}]
[null,"7.","702.","01.","01.","10.",null,null,null,"Sobre Comisiones por Cobrar - Administración de Riesgos",{"$f":"+EsNegrita(J68)","v":"NO"},null,{"$f":"+Tabla5[[#This Row],[Nivel 1]]&Tabla5[[#This Row],[Nivel 2]]&Tabla5[[#This Row],[Nivel 3]]&Tabla5[[#This Row],[Nivel 4]]&Tabla5[[#This Row],[Nivel 5]]&Tabla5[[#This Row],[Nivel 6]]&Tabla5[[#This Row],[Nivel 7]]&Tabla5[[#This Row],[Nivel 8]]","v":"7.702.01.01.10."}]
[null,"7.","702.","01.","01.","10.","01.",null,null,"Fondos Administrados",{"$f":"+EsNegrita(J69)","v":"NO"},null,{"$f":"+Tabla5[[#This Row],[Nivel 1]]&Tabla5[[#This Row],[Nivel 2]]&Tabla5[[#This Row],[Nivel 3]]&Tabla5[[#This Row],[Nivel 4]]&Tabla5[[#This Row],[Nivel 5]]&Tabla5[[#This Row],[Nivel 6]]&Tabla5[[#This Row],[Nivel 7]]&Tabla5[[#This Row],[Nivel 8]]","v":"7.702.01.01.10.01."}]
[null,"7.","702.","01.","01.","10.","01.","01.",null,"Empresas de Seguros",{"$f":"+EsNegrita(J70)","v":"SI"},null,{"$f":"+Tabla5[[#This Row],[Nivel 1]]&Tabla5[[#This Row],[Nivel 2]]&Tabla5[[#This Row],[Nivel 3]]&Tabla5[[#This Row],[Nivel 4]]&Tabla5[[#This Row],[Nivel 5]]&Tabla5[[#This Row],[Nivel 6]]&Tabla5[[#This Row],[Nivel 7]]&Tabla5[[#This Row],[Nivel 8]]","v":"7.702.01.01.10.01.01."}]
[null,"7.","702.","01.","01.","10.","01.","02.",null,"Empresas de Medicina Prepagada",{"$f":"+EsNegrita(J71)","v":"SI"},null,{"$f":"+Tabla5[[#This Row],[Nivel 1]]&Tabla5[[#This Row],[Nivel 2]]&Tabla5[[#This Row],[Nivel 3]]&Tabla5[[#This Row],[Nivel 4]]&Tabla5[[#This Row],[Nivel 5]]&Tabla5[[#This Row],[Nivel 6]]&Tabla5[[#This Row],[Nivel 7]]&Tabla5[[#This Row],[Nivel 8]]","v":"7.702.01.01.10.01.02."}]
[null,"7.","702.","01.","01.","10.","01.","03.",null,"Otros Contratantes",{"$f":"+EsNegrita(J72)","v":"NO"},null,{"$f":"+Tabla5[[#This Row],[Nivel 1]]&Tabla5[[#This Row],[Nivel 2]]&Tabla5[[#This Row],[Nivel 3]]&Tabla5[[#This Row],[Nivel 4]]&Tabla5[[#This Row],[Nivel 5]]&Tabla5[[#This Row],[Nivel 6]]&Tabla5[[#This Row],[Nivel 7]]&Tabla5[[#This Row],[Nivel 8]]","v":"7.702.01.01.10.01.03."}]
[null,"7.","702.","01.","01.","10.","01.","03.","01.","Organismos y Entes de la Administración Pública",{"$f":"+EsNegrita(J73)","v":"SI"},null,{"$f":"+Tabla5[[#This Row],[Nivel 1]]&Tabla5[[#This Row],[Nivel 2]]&Tabla5[[#This Row],[Nivel 3]]&Tabla5[[#This Row],[Nivel 4]]&Tabla5[[#This Row],[Nivel 5]]&Tabla5[[#This Row],[Nivel 6]]&Tabla5[[#This Row],[Nivel 7]]&Tabla5[[#This Row],[Nivel 8]]","v":"7.702.01.01.10.01.03.01."}]
[null,"7.","702.","01.","01.","10.","01.","03.","02.","Contratantes del sector Privado",{"$f":"+EsNegrita(J74)","v":"SI"},null,{"$f":"+Tabla5[[#This Row],[Nivel 1]]&Tabla5[[#This Row],[Nivel 2]]&Tabla5[[#This Row],[Nivel 3]]&Tabla5[[#This Row],[Nivel 4]]&Tabla5[[#This Row],[Nivel 5]]&Tabla5[[#This Row],[Nivel 6]]&Tabla5[[#This Row],[Nivel 7]]&Tabla5[[#This Row],[Nivel 8]]","v":"7.702.01.01.10.01.03.02."}]
[null,"7.","702.","01.","01.","10.","02.",null,null,"Administración de Siniestros",{"$f":"+EsNegrita(J75)","v":"NO"},null,{"$f":"+Tabla5[[#This Row],[Nivel 1]]&Tabla5[[#This Row],[Nivel 2]]&Tabla5[[#This Row],[Nivel 3]]&Tabla5[[#This Row],[Nivel 4]]&Tabla5[[#This Row],[Nivel 5]]&Tabla5[[#This Row],[Nivel 6]]&Tabla5[[#This Row],[Nivel 7]]&Tabla5[[#This Row],[Nivel 8]]","v":"7.702.01.01.10.02."}]
[null,"7.","702.","01.","01.","10.","02.","01.",null,"Empresas de Seguros",{"$f":"+EsNegrita(J76)","v":"SI"},null,{"$f":"+Tabla5[[#This Row],[Nivel 1]]&Tabla5[[#This Row],[Nivel 2]]&Tabla5[[#This Row],[Nivel 3]]&Tabla5[[#This Row],[Nivel 4]]&Tabla5[[#This Row],[Nivel 5]]&Tabla5[[#This Row],[Nivel 6]]&Tabla5[[#This Row],[Nivel 7]]&Tabla5[[#This Row],[Nivel 8]]","v":"7.702.01.01.10.02.01."}]
[null,"7.","702.","01.","01.","10.","02.","02.",null,"Empresas de Medicina Prepagada",{"$f":"+EsNegrita(J77)","v":"SI"},null,{"$f":"+Tabla5[[#This Row],[Nivel 1]]&Tabla5[[#This Row],[Nivel 2]]&Tabla5[[#This Row],[Nivel 3]]&Tabla5[[#This Row],[Nivel 4]]&Tabla5[[#This Row],[Nivel 5]]&Tabla5[[#This Row],[Nivel 6]]&Tabla5[[#This Row],[Nivel 7]]&Tabla5[[#This Row],[Nivel 8]]","v":"7.702.01.01.10.02.02."}]
[null,"7.","702.","01.","01.","10.","02.","03.",null,"Otros Contratantes",{"$f":"+EsNegrita(J78)","v":"NO"},null,{"$f":"+Tabla5[[#This Row],[Nivel 1]]&Tabla5[[#This Row],[Nivel 2]]&Tabla5[[#This Row],[Nivel 3]]&Tabla5[[#This Row],[Nivel 4]]&Tabla5[[#This Row],[Nivel 5]]&Tabla5[[#This Row],[Nivel 6]]&Tabla5[[#This Row],[Nivel 7]]&Tabla5[[#This Row],[Nivel 8]]","v":"7.702.01.01.10.02.03."}]
[null,"7.","702.","01.","01.","10.","02.","03.","01.","Organismos y Entes de la Administración Pública",{"$f":"+EsNegrita(J79)","v":"SI"},null,{"$f":"+Tabla5[[#This Row],[Nivel 1]]&Tabla5[[#This Row],[Nivel 2]]&Tabla5[[#This Row],[Nivel 3]]&Tabla5[[#This Row],[Nivel 4]]&Tabla5[[#This Row],[Nivel 5]]&Tabla5[[#This Row],[Nivel 6]]&Tabla5[[#This Row],[Nivel 7]]&Tabla5[[#This Row],[Nivel 8]]","v":"7.702.01.01.10.02.03.01."}]
[null,"7.","702.","01.","01.","10.","02.","03.","02.","Contratantes del sector Privado",{"$f":"+EsNegrita(J80)","v":"SI"},null,{"$f":"+Tabla5[[#This Row],[Nivel 1]]&Tabla5[[#This Row],[Nivel 2]]&Tabla5[[#This Row],[Nivel 3]]&Tabla5[[#This Row],[Nivel 4]]&Tabla5[[#This Row],[Nivel 5]]&Tabla5[[#This Row],[Nivel 6]]&Tabla5[[#This Row],[Nivel 7]]&Tabla5[[#This Row],[Nivel 8]]","v":"7.702.01.01.10.02.03.02."}]
[null,"7.","702.","01.","01.","11.",null,null,null,"Sobre cuentas por cobrar al Grupo Económico",{"$f":"+EsNegrita(J81)","v":"NO"},null,{"$f":"+Tabla5[[#This Row],[Nivel 1]]&Tabla5[[#This Row],[Nivel 2]]&Tabla5[[#This Row],[Nivel 3]]&Tabla5[[#This Row],[Nivel 4]]&Tabla5[[#This Row],[Nivel 5]]&Tabla5[[#This Row],[Nivel 6]]&Tabla5[[#This Row],[Nivel 7]]&Tabla5[[#This Row],[Nivel 8]]","v":"7.702.01.01.11."}]
[null,"7.","702.","01.","01.","11.","01.",null,null,"Empresas Filiales",{"$f":"+EsNegrita(J82)","v":"SI"},null,{"$f":"+Tabla5[[#This Row],[Nivel 1]]&Tabla5[[#This Row],[Nivel 2]]&Tabla5[[#This Row],[Nivel 3]]&Tabla5[[#This Row],[Nivel 4]]&Tabla5[[#This Row],[Nivel 5]]&Tabla5[[#This Row],[Nivel 6]]&Tabla5[[#This Row],[Nivel 7]]&Tabla5[[#This Row],[Nivel 8]]","v":"7.702.01.01.11.01."}]
[null,"7.","702.","01.","01.","11.","02.",null,null,"Empresas Afiliadas",{"$f":"+EsNegrita(J83)","v":"SI"},null,{"$f":"+Tabla5[[#This Row],[Nivel 1]]&Tabla5[[#This Row],[Nivel 2]]&Tabla5[[#This Row],[Nivel 3]]&Tabla5[[#This Row],[Nivel 4]]&Tabla5[[#This Row],[Nivel 5]]&Tabla5[[#This Row],[Nivel 6]]&Tabla5[[#This Row],[Nivel 7]]&Tabla5[[#This Row],[Nivel 8]]","v":"7.702.01.01.11.02."}]
[null,"7.","702.","01.","01.","11.","03.",null,null,"Empresas Relacionadas",{"$f":"+EsNegrita(J84)","v":"SI"},null,{"$f":"+Tabla5[[#This Row],[Nivel 1]]&Tabla5[[#This Row],[Nivel 2]]&Tabla5[[#This Row],[Nivel 3]]&Tabla5[[#This Row],[Nivel 4]]&Tabla5[[#This Row],[Nivel 5]]&Tabla5[[#This Row],[Nivel 6]]&Tabla5[[#This Row],[Nivel 7]]&Tabla5[[#This Row],[Nivel 8]]","v":"7.702.01.01.11.03."}]
[null,"7.","702.","01.","01.","12.",null,null,null,"Otras Cuentas por Cobrar ",{"$f":"+EsNegrita(J85)","v":"SI"},null,{"$f":"+Tabla5[[#This Row],[Nivel 1]]&Tabla5[[#This Row],[Nivel 2]]&Tabla5[[#This Row],[Nivel 3]]&Tabla5[[#This Row],[Nivel 4]]&Tabla5[[#This Row],[Nivel 5]]&Tabla5[[#This Row],[Nivel 6]]&Tabla5[[#This Row],[Nivel 7]]&Tabla5[[#This Row],[Nivel 8]]","v":"7.702.01.01.12."}]
[null,"7.","702.","01.","02.",null,null,null,null,"Dividendos Ganados ",{"$f":"+EsNegrita(J86)","v":"NO"},"A17-C18",{"$f":"+Tabla5[[#This Row],[Nivel 1]]&Tabla5[[#This Row],[Nivel 2]]&Tabla5[[#This Row],[Nivel 3]]&Tabla5[[#This Row],[Nivel 4]]&Tabla5[[#This Row],[Nivel 5]]&Tabla5[[#This Row],[Nivel 6]]&Tabla5[[#This Row],[Nivel 7]]&Tabla5[[#This Row],[Nivel 8]]","v":"7.702.01.02."}]
[null,"7.","702.","01.","02.","01.",null,null,null,"Participación Fondos de Inversión Inmobiliarios",{"$f":"+EsNegrita(J87)","v":"NO"},null,{"$f":"+Tabla5[[#This Row],[Nivel 1]]&Tabla5[[#This Row],[Nivel 2]]&Tabla5[[#This Row],[Nivel 3]]&Tabla5[[#This Row],[Nivel 4]]&Tabla5[[#This Row],[Nivel 5]]&Tabla5[[#This Row],[Nivel 6]]&Tabla5[[#This Row],[Nivel 7]]&Tabla5[[#This Row],[Nivel 8]]","v":"7.702.01.02.01."}]
[null,"7.","702.","01.","02.","02.",null,null,null,"Valores Privados",{"$f":"+EsNegrita(J88)","v":"NO"},null,{"$f":"+Tabla5[[#This Row],[Nivel 1]]&Tabla5[[#This Row],[Nivel 2]]&Tabla5[[#This Row],[Nivel 3]]&Tabla5[[#This Row],[Nivel 4]]&Tabla5[[#This Row],[Nivel 5]]&Tabla5[[#This Row],[Nivel 6]]&Tabla5[[#This Row],[Nivel 7]]&Tabla5[[#This Row],[Nivel 8]]","v":"7.702.01.02.02."}]
[null,"7.","702.","01.","02.","02.","01.",null,null,"Acciones de Sociedades Anónimas",{"$f":"+EsNegrita(J89)","v":"NO"},null,{"$f":"+Tabla5[[#This Row],[Nivel 1]]&Tabla5[[#This Row],[Nivel 2]]&Tabla5[[#This Row],[Nivel 3]]&Tabla5[[#This Row],[Nivel 4]]&Tabla5[[#This Row],[Nivel 5]]&Tabla5[[#This Row],[Nivel 6]]&Tabla5[[#This Row],[Nivel 7]]&Tabla5[[#This Row],[Nivel 8]]","v":"7.702.01.02.02.01."}]
[null,"7.","702.","01.","02.","02.","01.","01.",null,"Empresas de Seguros o Reaseguros",{"$f":"+EsNegrita(J90)","v":"SI"},null,{"$f":"+Tabla5[[#This Row],[Nivel 1]]&Tabla5[[#This Row],[Nivel 2]]&Tabla5[[#This Row],[Nivel 3]]&Tabla5[[#This Row],[Nivel 4]]&Tabla5[[#This Row],[Nivel 5]]&Tabla5[[#This Row],[Nivel 6]]&Tabla5[[#This Row],[Nivel 7]]&Tabla5[[#This Row],[Nivel 8]]","v":"7.702.01.02.02.01.01."}]
[null,"7.","702.","01.","02.","02.","01.","02.",null,"Sociedades de Corretaje de Seguros, de Reaseguros o de Valores",{"$f":"+EsNegrita(J91)","v":"SI"},null,{"$f":"+Tabla5[[#This Row],[Nivel 1]]&Tabla5[[#This Row],[Nivel 2]]&Tabla5[[#This Row],[Nivel 3]]&Tabla5[[#This Row],[Nivel 4]]&Tabla5[[#This Row],[Nivel 5]]&Tabla5[[#This Row],[Nivel 6]]&Tabla5[[#This Row],[Nivel 7]]&Tabla5[[#This Row],[Nivel 8]]","v":"7.702.01.02.02.01.02."}]
[null,"7.","702.","01.","02.","02.","01.","03.",null,"Bancos y Otras Instituciones Financieras",{"$f":"+EsNegrita(J92)","v":"SI"},null,{"$f":"+Tabla5[[#This Row],[Nivel 1]]&Tabla5[[#This Row],[Nivel 2]]&Tabla5[[#This Row],[Nivel 3]]&Tabla5[[#This Row],[Nivel 4]]&Tabla5[[#This Row],[Nivel 5]]&Tabla5[[#This Row],[Nivel 6]]&Tabla5[[#This Row],[Nivel 7]]&Tabla5[[#This Row],[Nivel 8]]","v":"7.702.01.02.02.01.03."}]
[null,"7.","702.","01.","02.","02.","01.","04.",null,"Sociedades Industriales y Comerciales",{"$f":"+EsNegrita(J93)","v":"SI"},null,{"$f":"+Tabla5[[#This Row],[Nivel 1]]&Tabla5[[#This Row],[Nivel 2]]&Tabla5[[#This Row],[Nivel 3]]&Tabla5[[#This Row],[Nivel 4]]&Tabla5[[#This Row],[Nivel 5]]&Tabla5[[#This Row],[Nivel 6]]&Tabla5[[#This Row],[Nivel 7]]&Tabla5[[#This Row],[Nivel 8]]","v":"7.702.01.02.02.01.04."}]
[null,"7.","702.","01.","02.","02.","01.","05.",null,"Sociedades Civiles",{"$f":"+EsNegrita(J94)","v":"SI"},null,{"$f":"+Tabla5[[#This Row],[Nivel 1]]&Tabla5[[#This Row],[Nivel 2]]&Tabla5[[#This Row],[Nivel 3]]&Tabla5[[#This Row],[Nivel 4]]&Tabla5[[#This Row],[Nivel 5]]&Tabla5[[#This Row],[Nivel 6]]&Tabla5[[#This Row],[Nivel 7]]&Tabla5[[#This Row],[Nivel 8]]","v":"7.702.01.02.02.01.05."}]
[null,"7.","702.","01.","02.","02.","01.","06.",null,"Empresas Filiales, Afiliadas y Relacionadas",{"$f":"+EsNegrita(J95)","v":"SI"},null,{"$f":"+Tabla5[[#This Row],[Nivel 1]]&Tabla5[[#This Row],[Nivel 2]]&Tabla5[[#This Row],[Nivel 3]]&Tabla5[[#This Row],[Nivel 4]]&Tabla5[[#This Row],[Nivel 5]]&Tabla5[[#This Row],[Nivel 6]]&Tabla5[[#This Row],[Nivel 7]]&Tabla5[[#This Row],[Nivel 8]]","v":"7.702.01.02.02.01.06."}]
[null,"7.","702.","01.","02.","02.","01.","07.",null,"Otras Sociedades Anónimas",{"$f":"+EsNegrita(J96)","v":"SI"},null,{"$f":"+Tabla5[[#This Row],[Nivel 1]]&Tabla5[[#This Row],[Nivel 2]]&Tabla5[[#This Row],[Nivel 3]]&Tabla5[[#This Row],[Nivel 4]]&Tabla5[[#This Row],[Nivel 5]]&Tabla5[[#This Row],[Nivel 6]]&Tabla5[[#This Row],[Nivel 7]]&Tabla5[[#This Row],[Nivel 8]]","v":"7.702.01.02.02.01.07."}]
[null,"7.","702.","01.","02.","02.","01.","08.",null,"Otras Inversiones emitidas por el Sector Privado.",{"$f":"+EsNegrita(J97)","v":"SI"},null,{"$f":"+Tabla5[[#This Row],[Nivel 1]]&Tabla5[[#This Row],[Nivel 2]]&Tabla5[[#This Row],[Nivel 3]]&Tabla5[[#This Row],[Nivel 4]]&Tabla5[[#This Row],[Nivel 5]]&Tabla5[[#This Row],[Nivel 6]]&Tabla5[[#This Row],[Nivel 7]]&Tabla5[[#This Row],[Nivel 8]]","v":"7.702.01.02.02.01.08."}]
[null,"7.","702.","02.",null,null,null,null,null,"AJUSTES DE VALORES Y BIENES",{"$f":"+EsNegrita(J98)","v":"NO"},null,{"$f":"+Tabla5[[#This Row],[Nivel 1]]&Tabla5[[#This Row],[Nivel 2]]&Tabla5[[#This Row],[Nivel 3]]&Tabla5[[#This Row],[Nivel 4]]&Tabla5[[#This Row],[Nivel 5]]&Tabla5[[#This Row],[Nivel 6]]&Tabla5[[#This Row],[Nivel 7]]&Tabla5[[#This Row],[Nivel 8]]","v":"7.702.02."}]
[null,"7.","702.","02.","01.",null,null,null,null,"Ajustes de Valores",{"$f":"+EsNegrita(J99)","v":"NO"},null,{"$f":"+Tabla5[[#This Row],[Nivel 1]]&Tabla5[[#This Row],[Nivel 2]]&Tabla5[[#This Row],[Nivel 3]]&Tabla5[[#This Row],[Nivel 4]]&Tabla5[[#This Row],[Nivel 5]]&Tabla5[[#This Row],[Nivel 6]]&Tabla5[[#This Row],[Nivel 7]]&Tabla5[[#This Row],[Nivel 8]]","v":"7.702.02.01."}]
[null,"7.","702.","02.","01.","01.",null,null,null,"Valores Públicos",{"$f":"+EsNegrita(J100)","v":"NO"},null,{"$f":"+Tabla5[[#This Row],[Nivel 1]]&Tabla5[[#This Row],[Nivel 2]]&Tabla5[[#This Row],[Nivel 3]]&Tabla5[[#This Row],[Nivel 4]]&Tabla5[[#This Row],[Nivel 5]]&Tabla5[[#This Row],[Nivel 6]]&Tabla5[[#This Row],[Nivel 7]]&Tabla5[[#This Row],[Nivel 8]]","v":"7.702.02.01.01."}]
[null,"7.","702.","02.","01.","01.","01.",null,null,"Emitidos o Garantizados por la República",{"$f":"+EsNegrita(J101)","v":"SI"},null,{"$f":"+Tabla5[[#This Row],[Nivel 1]]&Tabla5[[#This Row],[Nivel 2]]&Tabla5[[#This Row],[Nivel 3]]&Tabla5[[#This Row],[Nivel 4]]&Tabla5[[#This Row],[Nivel 5]]&Tabla5[[#This Row],[Nivel 6]]&Tabla5[[#This Row],[Nivel 7]]&Tabla5[[#This Row],[Nivel 8]]","v":"7.702.02.01.01.01."}]
[null,"7.","702.","02.","01.","01.","02.",null,null,"Emitidos por Otros Sujetos de Derecho Público Nacional",{"$f":"+EsNegrita(J102)","v":"SI"},null,{"$f":"+Tabla5[[#This Row],[Nivel 1]]&Tabla5[[#This Row],[Nivel 2]]&Tabla5[[#This Row],[Nivel 3]]&Tabla5[[#This Row],[Nivel 4]]&Tabla5[[#This Row],[Nivel 5]]&Tabla5[[#This Row],[Nivel 6]]&Tabla5[[#This Row],[Nivel 7]]&Tabla5[[#This Row],[Nivel 8]]","v":"7.702.02.01.01.02."}]
[null,"7.","702.","02.","01.","01.","03.",null,null,"Emitidos por Empresas con Participación de la República",{"$f":"+EsNegrita(J103)","v":"SI"},null,{"$f":"+Tabla5[[#This Row],[Nivel 1]]&Tabla5[[#This Row],[Nivel 2]]&Tabla5[[#This Row],[Nivel 3]]&Tabla5[[#This Row],[Nivel 4]]&Tabla5[[#This Row],[Nivel 5]]&Tabla5[[#This Row],[Nivel 6]]&Tabla5[[#This Row],[Nivel 7]]&Tabla5[[#This Row],[Nivel 8]]","v":"7.702.02.01.01.03."}]
[null,"7.","702.","02.","01.","01.","04.",null,null,"Emitidos por Instituciones con Participación de la República",{"$f":"+EsNegrita(J104)","v":"SI"},null,{"$f":"+Tabla5[[#This Row],[Nivel 1]]&Tabla5[[#This Row],[Nivel 2]]&Tabla5[[#This Row],[Nivel 3]]&Tabla5[[#This Row],[Nivel 4]]&Tabla5[[#This Row],[Nivel 5]]&Tabla5[[#This Row],[Nivel 6]]&Tabla5[[#This Row],[Nivel 7]]&Tabla5[[#This Row],[Nivel 8]]","v":"7.702.02.01.01.04."}]
[null,"7.","702.","02.","01.","02.",null,null,null,"Participación en Fondos de Inversión",{"$f":"+EsNegrita(J105)","v":"NO"},null,{"$f":"+Tabla5[[#This Row],[Nivel 1]]&Tabla5[[#This Row],[Nivel 2]]&Tabla5[[#This Row],[Nivel 3]]&Tabla5[[#This Row],[Nivel 4]]&Tabla5[[#This Row],[Nivel 5]]&Tabla5[[#This Row],[Nivel 6]]&Tabla5[[#This Row],[Nivel 7]]&Tabla5[[#This Row],[Nivel 8]]","v":"7.702.02.01.02."}]
[null,"7.","702.","02.","01.","02.","01.",null,null,"Renta Fija",{"$f":"+EsNegrita(J106)","v":"SI"},null,{"$f":"+Tabla5[[#This Row],[Nivel 1]]&Tabla5[[#This Row],[Nivel 2]]&Tabla5[[#This Row],[Nivel 3]]&Tabla5[[#This Row],[Nivel 4]]&Tabla5[[#This Row],[Nivel 5]]&Tabla5[[#This Row],[Nivel 6]]&Tabla5[[#This Row],[Nivel 7]]&Tabla5[[#This Row],[Nivel 8]]","v":"7.702.02.01.02.01."}]
[null,"7.","702.","02.","01.","02.","02.",null,null,"Renta Variable",{"$f":"+EsNegrita(J107)","v":"SI"},null,{"$f":"+Tabla5[[#This Row],[Nivel 1]]&Tabla5[[#This Row],[Nivel 2]]&Tabla5[[#This Row],[Nivel 3]]&Tabla5[[#This Row],[Nivel 4]]&Tabla5[[#This Row],[Nivel 5]]&Tabla5[[#This Row],[Nivel 6]]&Tabla5[[#This Row],[Nivel 7]]&Tabla5[[#This Row],[Nivel 8]]","v":"7.702.02.01.02.02."}]
[null,"7.","702.","02.","01.","03.",null,null,null,"Garantía a la Nación",{"$f":"+EsNegrita(J108)","v":"NO"},null,{"$f":"+Tabla5[[#This Row],[Nivel 1]]&Tabla5[[#This Row],[Nivel 2]]&Tabla5[[#This Row],[Nivel 3]]&Tabla5[[#This Row],[Nivel 4]]&Tabla5[[#This Row],[Nivel 5]]&Tabla5[[#This Row],[Nivel 6]]&Tabla5[[#This Row],[Nivel 7]]&Tabla5[[#This Row],[Nivel 8]]","v":"7.702.02.01.03."}]
[null,"7.","702.","02.","01.","03.","01.",null,null,"Valores Públicos",{"$f":"+EsNegrita(J109)","v":"SI"},null,{"$f":"+Tabla5[[#This Row],[Nivel 1]]&Tabla5[[#This Row],[Nivel 2]]&Tabla5[[#This Row],[Nivel 3]]&Tabla5[[#This Row],[Nivel 4]]&Tabla5[[#This Row],[Nivel 5]]&Tabla5[[#This Row],[Nivel 6]]&Tabla5[[#This Row],[Nivel 7]]&Tabla5[[#This Row],[Nivel 8]]","v":"7.702.02.01.03.01."}]
[null,"7.","702.","02.","01.","04.",null,null,null,"Valores Privados",{"$f":"+EsNegrita(J110)","v":"NO"},null,{"$f":"+Tabla5[[#This Row],[Nivel 1]]&Tabla5[[#This Row],[Nivel 2]]&Tabla5[[#This Row],[Nivel 3]]&Tabla5[[#This Row],[Nivel 4]]&Tabla5[[#This Row],[Nivel 5]]&Tabla5[[#This Row],[Nivel 6]]&Tabla5[[#This Row],[Nivel 7]]&Tabla5[[#This Row],[Nivel 8]]","v":"7.702.02.01.04."}]
[null,"7.","702.","02.","01.","04.","01.",null,null,"Acciones de Sociedades Anónimas",{"$f":"+EsNegrita(J111)","v":"NO"},null,{"$f":"+Tabla5[[#This Row],[Nivel 1]]&Tabla5[[#This Row],[Nivel 2]]&Tabla5[[#This Row],[Nivel 3]]&Tabla5[[#This Row],[Nivel 4]]&Tabla5[[#This Row],[Nivel 5]]&Tabla5[[#This Row],[Nivel 6]]&Tabla5[[#This Row],[Nivel 7]]&Tabla5[[#This Row],[Nivel 8]]","v":"7.702.02.01.04.01."}]
[null,"7.","702.","02.","01.","04.","01.","01.",null,"Empresas de Seguros o Reaseguros",{"$f":"+EsNegrita(J112)","v":"SI"},null,{"$f":"+Tabla5[[#This Row],[Nivel 1]]&Tabla5[[#This Row],[Nivel 2]]&Tabla5[[#This Row],[Nivel 3]]&Tabla5[[#This Row],[Nivel 4]]&Tabla5[[#This Row],[Nivel 5]]&Tabla5[[#This Row],[Nivel 6]]&Tabla5[[#This Row],[Nivel 7]]&Tabla5[[#This Row],[Nivel 8]]","v":"7.702.02.01.04.01.01."}]
[null,"7.","702.","02.","01.","04.","01.","02.",null,"Sociedades de Corretaje de Seguros, de Reaseguros o de Valores",{"$f":"+EsNegrita(J113)","v":"SI"},null,{"$f":"+Tabla5[[#This Row],[Nivel 1]]&Tabla5[[#This Row],[Nivel 2]]&Tabla5[[#This Row],[Nivel 3]]&Tabla5[[#This Row],[Nivel 4]]&Tabla5[[#This Row],[Nivel 5]]&Tabla5[[#This Row],[Nivel 6]]&Tabla5[[#This Row],[Nivel 7]]&Tabla5[[#This Row],[Nivel 8]]","v":"7.702.02.01.04.01.02."}]
[null,"7.","702.","02.","01.","04.","01.","03.",null,"Bancos y Otras Instituciones Financieras",{"$f":"+EsNegrita(J114)","v":"SI"},null,{"$f":"+Tabla5[[#This Row],[Nivel 1]]&Tabla5[[#This Row],[Nivel 2]]&Tabla5[[#This Row],[Nivel 3]]&Tabla5[[#This Row],[Nivel 4]]&Tabla5[[#This Row],[Nivel 5]]&Tabla5[[#This Row],[Nivel 6]]&Tabla5[[#This Row],[Nivel 7]]&Tabla5[[#This Row],[Nivel 8]]","v":"7.702.02.01.04.01.03."}]
[null,"7.","702.","02.","01.","04.","01.","04.",null,"Sociedades Industriales y Comerciales",{"$f":"+EsNegrita(J115)","v":"SI"},null,{"$f":"+Tabla5[[#This Row],[Nivel 1]]&Tabla5[[#This Row],[Nivel 2]]&Tabla5[[#This Row],[Nivel 3]]&Tabla5[[#This Row],[Nivel 4]]&Tabla5[[#This Row],[Nivel 5]]&Tabla5[[#This Row],[Nivel 6]]&Tabla5[[#This Row],[Nivel 7]]&Tabla5[[#This Row],[Nivel 8]]","v":"7.702.02.01.04.01.04."}]
[null,"7.","702.","02.","01.","04.","01.","05.",null,"Sociedades Civiles",{"$f":"+EsNegrita(J116)","v":"SI"},null,{"$f":"+Tabla5[[#This Row],[Nivel 1]]&Tabla5[[#This Row],[Nivel 2]]&Tabla5[[#This Row],[Nivel 3]]&Tabla5[[#This Row],[Nivel 4]]&Tabla5[[#This Row],[Nivel 5]]&Tabla5[[#This Row],[Nivel 6]]&Tabla5[[#This Row],[Nivel 7]]&Tabla5[[#This Row],[Nivel 8]]","v":"7.702.02.01.04.01.05."}]
[null,"7.","702.","02.","01.","04.","01.","06.",null,"Empresas Filiales, Afiliadas y Relacionadas",{"$f":"+EsNegrita(J117)","v":"SI"},null,{"$f":"+Tabla5[[#This Row],[Nivel 1]]&Tabla5[[#This Row],[Nivel 2]]&Tabla5[[#This Row],[Nivel 3]]&Tabla5[[#This Row],[Nivel 4]]&Tabla5[[#This Row],[Nivel 5]]&Tabla5[[#This Row],[Nivel 6]]&Tabla5[[#This Row],[Nivel 7]]&Tabla5[[#This Row],[Nivel 8]]","v":"7.702.02.01.04.01.06."}]
[null,"7.","702.","02.","01.","04.","01.","07.",null,"Otras Sociedades Anónimas",{"$f":"+EsNegrita(J118)","v":"SI"},null,{"$f":"+Tabla5[[#This Row],[Nivel 1]]&Tabla5[[#This Row],[Nivel 2]]&Tabla5[[#This Row],[Nivel 3]]&Tabla5[[#This Row],[Nivel 4]]&Tabla5[[#This Row],[Nivel 5]]&Tabla5[[#This Row],[Nivel 6]]&Tabla5[[#This Row],[Nivel 7]]&Tabla5[[#This Row],[Nivel 8]]","v":"7.702.02.01.04.01.07."}]
[null,"7.","702.","02.","01.","05.",null,null,null,"Bonos de Sociedades Anónimas",{"$f":"+EsNegrita(J119)","v":"SI"},null,{"$f":"+Tabla5[[#This Row],[Nivel 1]]&Tabla5[[#This Row],[Nivel 2]]&Tabla5[[#This Row],[Nivel 3]]&Tabla5[[#This Row],[Nivel 4]]&Tabla5[[#This Row],[Nivel 5]]&Tabla5[[#This Row],[Nivel 6]]&Tabla5[[#This Row],[Nivel 7]]&Tabla5[[#This Row],[Nivel 8]]","v":"7.702.02.01.05."}]
[null,"7.","702.","02.","01.","06.",null,null,null,"Activos en el Extranjero",{"$f":"+EsNegrita(J120)","v":"NO"},null,{"$f":"+Tabla5[[#This Row],[Nivel 1]]&Tabla5[[#This Row],[Nivel 2]]&Tabla5[[#This Row],[Nivel 3]]&Tabla5[[#This Row],[Nivel 4]]&Tabla5[[#This Row],[Nivel 5]]&Tabla5[[#This Row],[Nivel 6]]&Tabla5[[#This Row],[Nivel 7]]&Tabla5[[#This Row],[Nivel 8]]","v":"7.702.02.01.06."}]
[null,"7.","702.","02.","01.","06.","01.",null,null,"Títulos Valores",{"$f":"+EsNegrita(J121)","v":"SI"},null,{"$f":"+Tabla5[[#This Row],[Nivel 1]]&Tabla5[[#This Row],[Nivel 2]]&Tabla5[[#This Row],[Nivel 3]]&Tabla5[[#This Row],[Nivel 4]]&Tabla5[[#This Row],[Nivel 5]]&Tabla5[[#This Row],[Nivel 6]]&Tabla5[[#This Row],[Nivel 7]]&Tabla5[[#This Row],[Nivel 8]]","v":"7.702.02.01.06.01."}]
[null,"7.","702.","02.","02.",null,null,null,null,"Bienes ",{"$f":"+EsNegrita(J122)","v":"NO"},null,{"$f":"+Tabla5[[#This Row],[Nivel 1]]&Tabla5[[#This Row],[Nivel 2]]&Tabla5[[#This Row],[Nivel 3]]&Tabla5[[#This Row],[Nivel 4]]&Tabla5[[#This Row],[Nivel 5]]&Tabla5[[#This Row],[Nivel 6]]&Tabla5[[#This Row],[Nivel 7]]&Tabla5[[#This Row],[Nivel 8]]","v":"7.702.02.02."}]
[null,"7.","702.","02.","02.","01.",null,null,null,"Participación Fondos de Inversión Inmobiliarios",{"$f":"+EsNegrita(J123)","v":"SI"},null,{"$f":"+Tabla5[[#This Row],[Nivel 1]]&Tabla5[[#This Row],[Nivel 2]]&Tabla5[[#This Row],[Nivel 3]]&Tabla5[[#This Row],[Nivel 4]]&Tabla5[[#This Row],[Nivel 5]]&Tabla5[[#This Row],[Nivel 6]]&Tabla5[[#This Row],[Nivel 7]]&Tabla5[[#This Row],[Nivel 8]]","v":"7.702.02.02.01."}]
[null,"7.","702.","02.","02.","02.",null,null,null,"Bienes Inmuebles Edificados",{"$f":"+EsNegrita(J124)","v":"NO"},null,{"$f":"+Tabla5[[#This Row],[Nivel 1]]&Tabla5[[#This Row],[Nivel 2]]&Tabla5[[#This Row],[Nivel 3]]&Tabla5[[#This Row],[Nivel 4]]&Tabla5[[#This Row],[Nivel 5]]&Tabla5[[#This Row],[Nivel 6]]&Tabla5[[#This Row],[Nivel 7]]&Tabla5[[#This Row],[Nivel 8]]","v":"7.702.02.02.02."}]
[null,"7.","702.","02.","02.","02.","01.",null,null,"Terrenos",{"$f":"+EsNegrita(J125)","v":"SI"},null,{"$f":"+Tabla5[[#This Row],[Nivel 1]]&Tabla5[[#This Row],[Nivel 2]]&Tabla5[[#This Row],[Nivel 3]]&Tabla5[[#This Row],[Nivel 4]]&Tabla5[[#This Row],[Nivel 5]]&Tabla5[[#This Row],[Nivel 6]]&Tabla5[[#This Row],[Nivel 7]]&Tabla5[[#This Row],[Nivel 8]]","v":"7.702.02.02.02.01."}]
[null,"7.","702.","02.","02.","02.","02.",null,null,"Edificaciones",{"$f":"+EsNegrita(J126)","v":"SI"},null,{"$f":"+Tabla5[[#This Row],[Nivel 1]]&Tabla5[[#This Row],[Nivel 2]]&Tabla5[[#This Row],[Nivel 3]]&Tabla5[[#This Row],[Nivel 4]]&Tabla5[[#This Row],[Nivel 5]]&Tabla5[[#This Row],[Nivel 6]]&Tabla5[[#This Row],[Nivel 7]]&Tabla5[[#This Row],[Nivel 8]]","v":"7.702.02.02.02.02."}]
[null,"7.","702.","02.","02.","03.",null,null,null,"Activos en el Extranjero",{"$f":"+EsNegrita(J127)","v":"NO"},null,{"$f":"+Tabla5[[#This Row],[Nivel 1]]&Tabla5[[#This Row],[Nivel 2]]&Tabla5[[#This Row],[Nivel 3]]&Tabla5[[#This Row],[Nivel 4]]&Tabla5[[#This Row],[Nivel 5]]&Tabla5[[#This Row],[Nivel 6]]&Tabla5[[#This Row],[Nivel 7]]&Tabla5[[#This Row],[Nivel 8]]","v":"7.702.02.02.03."}]
[null,"7.","702.","02.","02.","03.","01.",null,null,"Inmuebles ",{"$f":"+EsNegrita(J128)","v":"SI"},null,{"$f":"+Tabla5[[#This Row],[Nivel 1]]&Tabla5[[#This Row],[Nivel 2]]&Tabla5[[#This Row],[Nivel 3]]&Tabla5[[#This Row],[Nivel 4]]&Tabla5[[#This Row],[Nivel 5]]&Tabla5[[#This Row],[Nivel 6]]&Tabla5[[#This Row],[Nivel 7]]&Tabla5[[#This Row],[Nivel 8]]","v":"7.702.02.02.03.01."}]
[null,"7.","702.","02.","02.","03.","02.",null,null,"Otras Inversiones ",{"$f":"+EsNegrita(J129)","v":"SI"},null,{"$f":"+Tabla5[[#This Row],[Nivel 1]]&Tabla5[[#This Row],[Nivel 2]]&Tabla5[[#This Row],[Nivel 3]]&Tabla5[[#This Row],[Nivel 4]]&Tabla5[[#This Row],[Nivel 5]]&Tabla5[[#This Row],[Nivel 6]]&Tabla5[[#This Row],[Nivel 7]]&Tabla5[[#This Row],[Nivel 8]]","v":"7.702.02.02.03.02."}]
[null,"7.","702.","03.",null,null,null,null,null,"Fluctuación Cambiaria",{"$f":"+EsNegrita(J130)","v":"NO"},null,{"$f":"+Tabla5[[#This Row],[Nivel 1]]&Tabla5[[#This Row],[Nivel 2]]&Tabla5[[#This Row],[Nivel 3]]&Tabla5[[#This Row],[Nivel 4]]&Tabla5[[#This Row],[Nivel 5]]&Tabla5[[#This Row],[Nivel 6]]&Tabla5[[#This Row],[Nivel 7]]&Tabla5[[#This Row],[Nivel 8]]","v":"7.702.03."}]
[null,"7.","702.","03.","01.",null,null,null,null,"Sobre Activos",{"$f":"+EsNegrita(J131)","v":"NO"},null,{"$f":"+Tabla5[[#This Row],[Nivel 1]]&Tabla5[[#This Row],[Nivel 2]]&Tabla5[[#This Row],[Nivel 3]]&Tabla5[[#This Row],[Nivel 4]]&Tabla5[[#This Row],[Nivel 5]]&Tabla5[[#This Row],[Nivel 6]]&Tabla5[[#This Row],[Nivel 7]]&Tabla5[[#This Row],[Nivel 8]]","v":"7.702.03.01."}]
[null,"7.","702.","03.","01.","01.",null,null,null,"Disponible",{"$f":"+EsNegrita(J132)","v":"NO"},null,{"$f":"+Tabla5[[#This Row],[Nivel 1]]&Tabla5[[#This Row],[Nivel 2]]&Tabla5[[#This Row],[Nivel 3]]&Tabla5[[#This Row],[Nivel 4]]&Tabla5[[#This Row],[Nivel 5]]&Tabla5[[#This Row],[Nivel 6]]&Tabla5[[#This Row],[Nivel 7]]&Tabla5[[#This Row],[Nivel 8]]","v":"7.702.03.01.01."}]
[null,"7.","702.","03.","01.","01.","01.",null,null,"Caja",{"$f":"+EsNegrita(J133)","v":"SI"},null,{"$f":"+Tabla5[[#This Row],[Nivel 1]]&Tabla5[[#This Row],[Nivel 2]]&Tabla5[[#This Row],[Nivel 3]]&Tabla5[[#This Row],[Nivel 4]]&Tabla5[[#This Row],[Nivel 5]]&Tabla5[[#This Row],[Nivel 6]]&Tabla5[[#This Row],[Nivel 7]]&Tabla5[[#This Row],[Nivel 8]]","v":"7.702.03.01.01.01."}]
[null,"7.","702.","03.","01.","01.","02.",null,null,"Caja Chica",{"$f":"+EsNegrita(J134)","v":"SI"},null,{"$f":"+Tabla5[[#This Row],[Nivel 1]]&Tabla5[[#This Row],[Nivel 2]]&Tabla5[[#This Row],[Nivel 3]]&Tabla5[[#This Row],[Nivel 4]]&Tabla5[[#This Row],[Nivel 5]]&Tabla5[[#This Row],[Nivel 6]]&Tabla5[[#This Row],[Nivel 7]]&Tabla5[[#This Row],[Nivel 8]]","v":"7.702.03.01.01.02."}]
[null,"7.","702.","03.","01.","01.","03.",null,null,"Depósitos a la Vista",{"$f":"+EsNegrita(J135)","v":"NO"},null,{"$f":"+Tabla5[[#This Row],[Nivel 1]]&Tabla5[[#This Row],[Nivel 2]]&Tabla5[[#This Row],[Nivel 3]]&Tabla5[[#This Row],[Nivel 4]]&Tabla5[[#This Row],[Nivel 5]]&Tabla5[[#This Row],[Nivel 6]]&Tabla5[[#This Row],[Nivel 7]]&Tabla5[[#This Row],[Nivel 8]]","v":"7.702.03.01.01.03."}]
[null,"7.","702.","03.","01.","01.","03.","01.",null,"Bancos",{"$f":"+EsNegrita(J136)","v":"SI"},null,{"$f":"+Tabla5[[#This Row],[Nivel 1]]&Tabla5[[#This Row],[Nivel 2]]&Tabla5[[#This Row],[Nivel 3]]&Tabla5[[#This Row],[Nivel 4]]&Tabla5[[#This Row],[Nivel 5]]&Tabla5[[#This Row],[Nivel 6]]&Tabla5[[#This Row],[Nivel 7]]&Tabla5[[#This Row],[Nivel 8]]","v":"7.702.03.01.01.03.01."}]
[null,"7.","702.","03.","01.","01.","03.","02.",null,"Otras Instituciones Financieras",{"$f":"+EsNegrita(J137)","v":"SI"},null,{"$f":"+Tabla5[[#This Row],[Nivel 1]]&Tabla5[[#This Row],[Nivel 2]]&Tabla5[[#This Row],[Nivel 3]]&Tabla5[[#This Row],[Nivel 4]]&Tabla5[[#This Row],[Nivel 5]]&Tabla5[[#This Row],[Nivel 6]]&Tabla5[[#This Row],[Nivel 7]]&Tabla5[[#This Row],[Nivel 8]]","v":"7.702.03.01.01.03.02."}]
[null,"7.","702.","03.","01.","01.","04.",null,null,"Depósitos a Plazo",{"$f":"+EsNegrita(J138)","v":"NO"},null,{"$f":"+Tabla5[[#This Row],[Nivel 1]]&Tabla5[[#This Row],[Nivel 2]]&Tabla5[[#This Row],[Nivel 3]]&Tabla5[[#This Row],[Nivel 4]]&Tabla5[[#This Row],[Nivel 5]]&Tabla5[[#This Row],[Nivel 6]]&Tabla5[[#This Row],[Nivel 7]]&Tabla5[[#This Row],[Nivel 8]]","v":"7.702.03.01.01.04."}]
[null,"7.","702.","03.","01.","01.","04.","01.",null,"Bancos",{"$f":"+EsNegrita(J139)","v":"SI"},null,{"$f":"+Tabla5[[#This Row],[Nivel 1]]&Tabla5[[#This Row],[Nivel 2]]&Tabla5[[#This Row],[Nivel 3]]&Tabla5[[#This Row],[Nivel 4]]&Tabla5[[#This Row],[Nivel 5]]&Tabla5[[#This Row],[Nivel 6]]&Tabla5[[#This Row],[Nivel 7]]&Tabla5[[#This Row],[Nivel 8]]","v":"7.702.03.01.01.04.01."}]
[null,"7.","702.","03.","01.","01.","04.","02.",null,"Otras Instituciones Financieras",{"$f":"+EsNegrita(J140)","v":"SI"},null,{"$f":"+Tabla5[[#This Row],[Nivel 1]]&Tabla5[[#This Row],[Nivel 2]]&Tabla5[[#This Row],[Nivel 3]]&Tabla5[[#This Row],[Nivel 4]]&Tabla5[[#This Row],[Nivel 5]]&Tabla5[[#This Row],[Nivel 6]]&Tabla5[[#This Row],[Nivel 7]]&Tabla5[[#This Row],[Nivel 8]]","v":"7.702.03.01.01.04.02."}]
[null,"7.","702.","03.","01.","02.",null,null,null,"Valores Públicos",{"$f":"+EsNegrita(J141)","v":"NO"},null,{"$f":"+Tabla5[[#This Row],[Nivel 1]]&Tabla5[[#This Row],[Nivel 2]]&Tabla5[[#This Row],[Nivel 3]]&Tabla5[[#This Row],[Nivel 4]]&Tabla5[[#This Row],[Nivel 5]]&Tabla5[[#This Row],[Nivel 6]]&Tabla5[[#This Row],[Nivel 7]]&Tabla5[[#This Row],[Nivel 8]]","v":"7.702.03.01.02."}]
[null,"7.","702.","03.","01.","02.","01.",null,null,"Emitidos o Garantizados por la República",{"$f":"+EsNegrita(J142)","v":"SI"},null,{"$f":"+Tabla5[[#This Row],[Nivel 1]]&Tabla5[[#This Row],[Nivel 2]]&Tabla5[[#This Row],[Nivel 3]]&Tabla5[[#This Row],[Nivel 4]]&Tabla5[[#This Row],[Nivel 5]]&Tabla5[[#This Row],[Nivel 6]]&Tabla5[[#This Row],[Nivel 7]]&Tabla5[[#This Row],[Nivel 8]]","v":"7.702.03.01.02.01."}]
[null,"7.","702.","03.","01.","02.","02.",null,null,"Emitidos por Otros Sujetos de Derecho Público Nacional",{"$f":"+EsNegrita(J143)","v":"SI"},null,{"$f":"+Tabla5[[#This Row],[Nivel 1]]&Tabla5[[#This Row],[Nivel 2]]&Tabla5[[#This Row],[Nivel 3]]&Tabla5[[#This Row],[Nivel 4]]&Tabla5[[#This Row],[Nivel 5]]&Tabla5[[#This Row],[Nivel 6]]&Tabla5[[#This Row],[Nivel 7]]&Tabla5[[#This Row],[Nivel 8]]","v":"7.702.03.01.02.02."}]
[null,"7.","702.","03.","01.","02.","03.",null,null,"Emitidos por Empresas con Participación de la República",{"$f":"+EsNegrita(J144)","v":"SI"},null,{"$f":"+Tabla5[[#This Row],[Nivel 1]]&Tabla5[[#This Row],[Nivel 2]]&Tabla5[[#This Row],[Nivel 3]]&Tabla5[[#This Row],[Nivel 4]]&Tabla5[[#This Row],[Nivel 5]]&Tabla5[[#This Row],[Nivel 6]]&Tabla5[[#This Row],[Nivel 7]]&Tabla5[[#This Row],[Nivel 8]]","v":"7.702.03.01.02.03."}]
[null,"7.","702.","03.","01.","02.","04.",null,null,"Emitidos por Instituciones con Participación de la República",{"$f":"+EsNegrita(J145)","v":"SI"},null,{"$f":"+Tabla5[[#This Row],[Nivel 1]]&Tabla5[[#This Row],[Nivel 2]]&Tabla5[[#This Row],[Nivel 3]]&Tabla5[[#This Row],[Nivel 4]]&Tabla5[[#This Row],[Nivel 5]]&Tabla5[[#This Row],[Nivel 6]]&Tabla5[[#This Row],[Nivel 7]]&Tabla5[[#This Row],[Nivel 8]]","v":"7.702.03.01.02.04."}]
[null,"7.","702.","03.","01.","03.",null,null,null,"Participación en Fondos de Inversión",{"$f":"+EsNegrita(J146)","v":"NO"},null,{"$f":"+Tabla5[[#This Row],[Nivel 1]]&Tabla5[[#This Row],[Nivel 2]]&Tabla5[[#This Row],[Nivel 3]]&Tabla5[[#This Row],[Nivel 4]]&Tabla5[[#This Row],[Nivel 5]]&Tabla5[[#This Row],[Nivel 6]]&Tabla5[[#This Row],[Nivel 7]]&Tabla5[[#This Row],[Nivel 8]]","v":"7.702.03.01.03."}]
[null,"7.","702.","03.","01.","03.","01.",null,null,"Renta Fija",{"$f":"+EsNegrita(J147)","v":"SI"},null,{"$f":"+Tabla5[[#This Row],[Nivel 1]]&Tabla5[[#This Row],[Nivel 2]]&Tabla5[[#This Row],[Nivel 3]]&Tabla5[[#This Row],[Nivel 4]]&Tabla5[[#This Row],[Nivel 5]]&Tabla5[[#This Row],[Nivel 6]]&Tabla5[[#This Row],[Nivel 7]]&Tabla5[[#This Row],[Nivel 8]]","v":"7.702.03.01.03.01."}]
[null,"7.","702.","03.","01.","03.","02.",null,null,"Renta Variable",{"$f":"+EsNegrita(J148)","v":"SI"},null,{"$f":"+Tabla5[[#This Row],[Nivel 1]]&Tabla5[[#This Row],[Nivel 2]]&Tabla5[[#This Row],[Nivel 3]]&Tabla5[[#This Row],[Nivel 4]]&Tabla5[[#This Row],[Nivel 5]]&Tabla5[[#This Row],[Nivel 6]]&Tabla5[[#This Row],[Nivel 7]]&Tabla5[[#This Row],[Nivel 8]]","v":"7.702.03.01.03.02."}]
[null,"7.","702.","03.","01.","04.",null,null,null,"Participación Fondos de Inversión Inmobiliarios",{"$f":"+EsNegrita(J149)","v":"SI"},null,{"$f":"+Tabla5[[#This Row],[Nivel 1]]&Tabla5[[#This Row],[Nivel 2]]&Tabla5[[#This Row],[Nivel 3]]&Tabla5[[#This Row],[Nivel 4]]&Tabla5[[#This Row],[Nivel 5]]&Tabla5[[#This Row],[Nivel 6]]&Tabla5[[#This Row],[Nivel 7]]&Tabla5[[#This Row],[Nivel 8]]","v":"7.702.03.01.04."}]
[null,"7.","702.","03.","01.","05.",null,null,null,"Valores Privados",{"$f":"+EsNegrita(J150)","v":"NO"},null,{"$f":"+Tabla5[[#This Row],[Nivel 1]]&Tabla5[[#This Row],[Nivel 2]]&Tabla5[[#This Row],[Nivel 3]]&Tabla5[[#This Row],[Nivel 4]]&Tabla5[[#This Row],[Nivel 5]]&Tabla5[[#This Row],[Nivel 6]]&Tabla5[[#This Row],[Nivel 7]]&Tabla5[[#This Row],[Nivel 8]]","v":"7.702.03.01.05."}]
[null,"7.","702.","03.","01.","05.","01.",null,null,"Acciones de Sociedades Anónimas",{"$f":"+EsNegrita(J151)","v":"NO"},null,{"$f":"+Tabla5[[#This Row],[Nivel 1]]&Tabla5[[#This Row],[Nivel 2]]&Tabla5[[#This Row],[Nivel 3]]&Tabla5[[#This Row],[Nivel 4]]&Tabla5[[#This Row],[Nivel 5]]&Tabla5[[#This Row],[Nivel 6]]&Tabla5[[#This Row],[Nivel 7]]&Tabla5[[#This Row],[Nivel 8]]","v":"7.702.03.01.05.01."}]
[null,"7.","702.","03.","01.","05.","01.","01.",null,"Empresas de Seguros o Reaseguros",{"$f":"+EsNegrita(J152)","v":"SI"},null,{"$f":"+Tabla5[[#This Row],[Nivel 1]]&Tabla5[[#This Row],[Nivel 2]]&Tabla5[[#This Row],[Nivel 3]]&Tabla5[[#This Row],[Nivel 4]]&Tabla5[[#This Row],[Nivel 5]]&Tabla5[[#This Row],[Nivel 6]]&Tabla5[[#This Row],[Nivel 7]]&Tabla5[[#This Row],[Nivel 8]]","v":"7.702.03.01.05.01.01."}]
[null,"7.","702.","03.","01.","05.","01.","02.",null,"Sociedades de Corretaje de Seguros, de Reaseguros o de Valores",{"$f":"+EsNegrita(J153)","v":"SI"},null,{"$f":"+Tabla5[[#This Row],[Nivel 1]]&Tabla5[[#This Row],[Nivel 2]]&Tabla5[[#This Row],[Nivel 3]]&Tabla5[[#This Row],[Nivel 4]]&Tabla5[[#This Row],[Nivel 5]]&Tabla5[[#This Row],[Nivel 6]]&Tabla5[[#This Row],[Nivel 7]]&Tabla5[[#This Row],[Nivel 8]]","v":"7.702.03.01.05.01.02."}]
[null,"7.","702.","03.","01.","05.","01.","03.",null,"Bancos y Otras Instituciones Financieras",{"$f":"+EsNegrita(J154)","v":"SI"},null,{"$f":"+Tabla5[[#This Row],[Nivel 1]]&Tabla5[[#This Row],[Nivel 2]]&Tabla5[[#This Row],[Nivel 3]]&Tabla5[[#This Row],[Nivel 4]]&Tabla5[[#This Row],[Nivel 5]]&Tabla5[[#This Row],[Nivel 6]]&Tabla5[[#This Row],[Nivel 7]]&Tabla5[[#This Row],[Nivel 8]]","v":"7.702.03.01.05.01.03."}]
[null,"7.","702.","03.","01.","05.","01.","04.",null,"Sociedades Industriales y Comerciales",{"$f":"+EsNegrita(J155)","v":"SI"},null,{"$f":"+Tabla5[[#This Row],[Nivel 1]]&Tabla5[[#This Row],[Nivel 2]]&Tabla5[[#This Row],[Nivel 3]]&Tabla5[[#This Row],[Nivel 4]]&Tabla5[[#This Row],[Nivel 5]]&Tabla5[[#This Row],[Nivel 6]]&Tabla5[[#This Row],[Nivel 7]]&Tabla5[[#This Row],[Nivel 8]]","v":"7.702.03.01.05.01.04."}]
[null,"7.","702.","03.","01.","05.","01.","05.",null,"Sociedades Civiles",{"$f":"+EsNegrita(J156)","v":"SI"},null,{"$f":"+Tabla5[[#This Row],[Nivel 1]]&Tabla5[[#This Row],[Nivel 2]]&Tabla5[[#This Row],[Nivel 3]]&Tabla5[[#This Row],[Nivel 4]]&Tabla5[[#This Row],[Nivel 5]]&Tabla5[[#This Row],[Nivel 6]]&Tabla5[[#This Row],[Nivel 7]]&Tabla5[[#This Row],[Nivel 8]]","v":"7.702.03.01.05.01.05."}]
[null,"7.","702.","03.","01.","05.","01.","06.",null,"Empresas Filiales, Afiliadas y Relacionadas",{"$f":"+EsNegrita(J157)","v":"SI"},null,{"$f":"+Tabla5[[#This Row],[Nivel 1]]&Tabla5[[#This Row],[Nivel 2]]&Tabla5[[#This Row],[Nivel 3]]&Tabla5[[#This Row],[Nivel 4]]&Tabla5[[#This Row],[Nivel 5]]&Tabla5[[#This Row],[Nivel 6]]&Tabla5[[#This Row],[Nivel 7]]&Tabla5[[#This Row],[Nivel 8]]","v":"7.702.03.01.05.01.06."}]
[null,"7.","702.","03.","01.","05.","01.","07.",null,"Otras Sociedades Anónimas",{"$f":"+EsNegrita(J158)","v":"SI"},null,{"$f":"+Tabla5[[#This Row],[Nivel 1]]&Tabla5[[#This Row],[Nivel 2]]&Tabla5[[#This Row],[Nivel 3]]&Tabla5[[#This Row],[Nivel 4]]&Tabla5[[#This Row],[Nivel 5]]&Tabla5[[#This Row],[Nivel 6]]&Tabla5[[#This Row],[Nivel 7]]&Tabla5[[#This Row],[Nivel 8]]","v":"7.702.03.01.05.01.07."}]
[null,"7.","702.","03.","01.","05.","02.",null,null,"Bonos de Sociedades Anónimas",{"$f":"+EsNegrita(J159)","v":"SI"},null,{"$f":"+Tabla5[[#This Row],[Nivel 1]]&Tabla5[[#This Row],[Nivel 2]]&Tabla5[[#This Row],[Nivel 3]]&Tabla5[[#This Row],[Nivel 4]]&Tabla5[[#This Row],[Nivel 5]]&Tabla5[[#This Row],[Nivel 6]]&Tabla5[[#This Row],[Nivel 7]]&Tabla5[[#This Row],[Nivel 8]]","v":"7.702.03.01.05.02."}]
[null,"7.","702.","03.","01.","05.","03.",null,null,"Otras Inversiones emitidas por el Sector Privado.",{"$f":"+EsNegrita(J160)","v":"SI"},null,{"$f":"+Tabla5[[#This Row],[Nivel 1]]&Tabla5[[#This Row],[Nivel 2]]&Tabla5[[#This Row],[Nivel 3]]&Tabla5[[#This Row],[Nivel 4]]&Tabla5[[#This Row],[Nivel 5]]&Tabla5[[#This Row],[Nivel 6]]&Tabla5[[#This Row],[Nivel 7]]&Tabla5[[#This Row],[Nivel 8]]","v":"7.702.03.01.05.03."}]
[null,"7.","702.","03.","01.","06.",null,null,null,"Activos en el Extranjero",{"$f":"+EsNegrita(J161)","v":"NO"},null,{"$f":"+Tabla5[[#This Row],[Nivel 1]]&Tabla5[[#This Row],[Nivel 2]]&Tabla5[[#This Row],[Nivel 3]]&Tabla5[[#This Row],[Nivel 4]]&Tabla5[[#This Row],[Nivel 5]]&Tabla5[[#This Row],[Nivel 6]]&Tabla5[[#This Row],[Nivel 7]]&Tabla5[[#This Row],[Nivel 8]]","v":"7.702.03.01.06."}]
[null,"7.","702.","03.","01.","06.","01.",null,null,"Bancos  ",{"$f":"+EsNegrita(J162)","v":"SI"},null,{"$f":"+Tabla5[[#This Row],[Nivel 1]]&Tabla5[[#This Row],[Nivel 2]]&Tabla5[[#This Row],[Nivel 3]]&Tabla5[[#This Row],[Nivel 4]]&Tabla5[[#This Row],[Nivel 5]]&Tabla5[[#This Row],[Nivel 6]]&Tabla5[[#This Row],[Nivel 7]]&Tabla5[[#This Row],[Nivel 8]]","v":"7.702.03.01.06.01."}]
[null,"7.","702.","03.","01.","06.","02.",null,null,"Títulos Valores",{"$f":"+EsNegrita(J163)","v":"SI"},null,{"$f":"+Tabla5[[#This Row],[Nivel 1]]&Tabla5[[#This Row],[Nivel 2]]&Tabla5[[#This Row],[Nivel 3]]&Tabla5[[#This Row],[Nivel 4]]&Tabla5[[#This Row],[Nivel 5]]&Tabla5[[#This Row],[Nivel 6]]&Tabla5[[#This Row],[Nivel 7]]&Tabla5[[#This Row],[Nivel 8]]","v":"7.702.03.01.06.02."}]
[null,"7.","702.","03.","01.","06.","03.",null,null,"Inmuebles ",{"$f":"+EsNegrita(J164)","v":"SI"},null,{"$f":"+Tabla5[[#This Row],[Nivel 1]]&Tabla5[[#This Row],[Nivel 2]]&Tabla5[[#This Row],[Nivel 3]]&Tabla5[[#This Row],[Nivel 4]]&Tabla5[[#This Row],[Nivel 5]]&Tabla5[[#This Row],[Nivel 6]]&Tabla5[[#This Row],[Nivel 7]]&Tabla5[[#This Row],[Nivel 8]]","v":"7.702.03.01.06.03."}]
[null,"7.","702.","03.","01.","06.","04.",null,null,"Otras Inversiones ",{"$f":"+EsNegrita(J165)","v":"SI"},null,{"$f":"+Tabla5[[#This Row],[Nivel 1]]&Tabla5[[#This Row],[Nivel 2]]&Tabla5[[#This Row],[Nivel 3]]&Tabla5[[#This Row],[Nivel 4]]&Tabla5[[#This Row],[Nivel 5]]&Tabla5[[#This Row],[Nivel 6]]&Tabla5[[#This Row],[Nivel 7]]&Tabla5[[#This Row],[Nivel 8]]","v":"7.702.03.01.06.04."}]
[null,"7.","702.","04.",null,null,null,null,null,"Utilidad en Negociación de Valores Bienes y Otros Activos",{"$f":"+EsNegrita(J166)","v":"NO"},"A17-C19",{"$f":"+Tabla5[[#This Row],[Nivel 1]]&Tabla5[[#This Row],[Nivel 2]]&Tabla5[[#This Row],[Nivel 3]]&Tabla5[[#This Row],[Nivel 4]]&Tabla5[[#This Row],[Nivel 5]]&Tabla5[[#This Row],[Nivel 6]]&Tabla5[[#This Row],[Nivel 7]]&Tabla5[[#This Row],[Nivel 8]]","v":"7.702.04."}]
[null,"7.","702.","04.","01.",null,null,null,null,"Utilidad en Negociación de Valores  ",{"$f":"+EsNegrita(J167)","v":"NO"},null,{"$f":"+Tabla5[[#This Row],[Nivel 1]]&Tabla5[[#This Row],[Nivel 2]]&Tabla5[[#This Row],[Nivel 3]]&Tabla5[[#This Row],[Nivel 4]]&Tabla5[[#This Row],[Nivel 5]]&Tabla5[[#This Row],[Nivel 6]]&Tabla5[[#This Row],[Nivel 7]]&Tabla5[[#This Row],[Nivel 8]]","v":"7.702.04.01."}]
[null,"7.","702.","04.","01.","01.",null,null,null,"Valores Públicos",{"$f":"+EsNegrita(J168)","v":"NO"},null,{"$f":"+Tabla5[[#This Row],[Nivel 1]]&Tabla5[[#This Row],[Nivel 2]]&Tabla5[[#This Row],[Nivel 3]]&Tabla5[[#This Row],[Nivel 4]]&Tabla5[[#This Row],[Nivel 5]]&Tabla5[[#This Row],[Nivel 6]]&Tabla5[[#This Row],[Nivel 7]]&Tabla5[[#This Row],[Nivel 8]]","v":"7.702.04.01.01."}]
[null,"7.","702.","04.","01.","01.","01.",null,null,"Emitidos o Garantizados por la República",{"$f":"+EsNegrita(J169)","v":"SI"},null,{"$f":"+Tabla5[[#This Row],[Nivel 1]]&Tabla5[[#This Row],[Nivel 2]]&Tabla5[[#This Row],[Nivel 3]]&Tabla5[[#This Row],[Nivel 4]]&Tabla5[[#This Row],[Nivel 5]]&Tabla5[[#This Row],[Nivel 6]]&Tabla5[[#This Row],[Nivel 7]]&Tabla5[[#This Row],[Nivel 8]]","v":"7.702.04.01.01.01."}]
[null,"7.","702.","04.","01.","01.","02.",null,null,"Emitidos por Otros Sujetos de Derecho Público Nacional",{"$f":"+EsNegrita(J170)","v":"SI"},null,{"$f":"+Tabla5[[#This Row],[Nivel 1]]&Tabla5[[#This Row],[Nivel 2]]&Tabla5[[#This Row],[Nivel 3]]&Tabla5[[#This Row],[Nivel 4]]&Tabla5[[#This Row],[Nivel 5]]&Tabla5[[#This Row],[Nivel 6]]&Tabla5[[#This Row],[Nivel 7]]&Tabla5[[#This Row],[Nivel 8]]","v":"7.702.04.01.01.02."}]
[null,"7.","702.","04.","01.","01.","03.",null,null,"Emitidos por Empresas con Participación de la República",{"$f":"+EsNegrita(J171)","v":"SI"},null,{"$f":"+Tabla5[[#This Row],[Nivel 1]]&Tabla5[[#This Row],[Nivel 2]]&Tabla5[[#This Row],[Nivel 3]]&Tabla5[[#This Row],[Nivel 4]]&Tabla5[[#This Row],[Nivel 5]]&Tabla5[[#This Row],[Nivel 6]]&Tabla5[[#This Row],[Nivel 7]]&Tabla5[[#This Row],[Nivel 8]]","v":"7.702.04.01.01.03."}]
[null,"7.","702.","04.","01.","01.","04.",null,null,"Emitidos por Instituciones con Participación de la República",{"$f":"+EsNegrita(J172)","v":"SI"},null,{"$f":"+Tabla5[[#This Row],[Nivel 1]]&Tabla5[[#This Row],[Nivel 2]]&Tabla5[[#This Row],[Nivel 3]]&Tabla5[[#This Row],[Nivel 4]]&Tabla5[[#This Row],[Nivel 5]]&Tabla5[[#This Row],[Nivel 6]]&Tabla5[[#This Row],[Nivel 7]]&Tabla5[[#This Row],[Nivel 8]]","v":"7.702.04.01.01.04."}]
[null,"7.","702.","04.","01.","02.",null,null,null,"Participación en Fondos de Inversión",{"$f":"+EsNegrita(J173)","v":"NO"},null,{"$f":"+Tabla5[[#This Row],[Nivel 1]]&Tabla5[[#This Row],[Nivel 2]]&Tabla5[[#This Row],[Nivel 3]]&Tabla5[[#This Row],[Nivel 4]]&Tabla5[[#This Row],[Nivel 5]]&Tabla5[[#This Row],[Nivel 6]]&Tabla5[[#This Row],[Nivel 7]]&Tabla5[[#This Row],[Nivel 8]]","v":"7.702.04.01.02."}]
[null,"7.","702.","04.","01.","02.","01.",null,null,"Renta Fija",{"$f":"+EsNegrita(J174)","v":"SI"},null,{"$f":"+Tabla5[[#This Row],[Nivel 1]]&Tabla5[[#This Row],[Nivel 2]]&Tabla5[[#This Row],[Nivel 3]]&Tabla5[[#This Row],[Nivel 4]]&Tabla5[[#This Row],[Nivel 5]]&Tabla5[[#This Row],[Nivel 6]]&Tabla5[[#This Row],[Nivel 7]]&Tabla5[[#This Row],[Nivel 8]]","v":"7.702.04.01.02.01."}]
[null,"7.","702.","04.","01.","02.","02.",null,null,"Renta Variable",{"$f":"+EsNegrita(J175)","v":"SI"},null,{"$f":"+Tabla5[[#This Row],[Nivel 1]]&Tabla5[[#This Row],[Nivel 2]]&Tabla5[[#This Row],[Nivel 3]]&Tabla5[[#This Row],[Nivel 4]]&Tabla5[[#This Row],[Nivel 5]]&Tabla5[[#This Row],[Nivel 6]]&Tabla5[[#This Row],[Nivel 7]]&Tabla5[[#This Row],[Nivel 8]]","v":"7.702.04.01.02.02."}]
[null,"7.","702.","04.","01.","03.",null,null,null,"Valores Privados",{"$f":"+EsNegrita(J176)","v":"NO"},null,{"$f":"+Tabla5[[#This Row],[Nivel 1]]&Tabla5[[#This Row],[Nivel 2]]&Tabla5[[#This Row],[Nivel 3]]&Tabla5[[#This Row],[Nivel 4]]&Tabla5[[#This Row],[Nivel 5]]&Tabla5[[#This Row],[Nivel 6]]&Tabla5[[#This Row],[Nivel 7]]&Tabla5[[#This Row],[Nivel 8]]","v":"7.702.04.01.03."}]
[null,"7.","702.","04.","01.","03.","01.",null,null,"Acciones de Sociedades Anónimas",{"$f":"+EsNegrita(J177)","v":"NO"},null,{"$f":"+Tabla5[[#This Row],[Nivel 1]]&Tabla5[[#This Row],[Nivel 2]]&Tabla5[[#This Row],[Nivel 3]]&Tabla5[[#This Row],[Nivel 4]]&Tabla5[[#This Row],[Nivel 5]]&Tabla5[[#This Row],[Nivel 6]]&Tabla5[[#This Row],[Nivel 7]]&Tabla5[[#This Row],[Nivel 8]]","v":"7.702.04.01.03.01."}]
[null,"7.","702.","04.","01.","03.","01.","01.",null,"Empresas de Seguros o Reaseguros",{"$f":"+EsNegrita(J178)","v":"SI"},null,{"$f":"+Tabla5[[#This Row],[Nivel 1]]&Tabla5[[#This Row],[Nivel 2]]&Tabla5[[#This Row],[Nivel 3]]&Tabla5[[#This Row],[Nivel 4]]&Tabla5[[#This Row],[Nivel 5]]&Tabla5[[#This Row],[Nivel 6]]&Tabla5[[#This Row],[Nivel 7]]&Tabla5[[#This Row],[Nivel 8]]","v":"7.702.04.01.03.01.01."}]
[null,"7.","702.","04.","01.","03.","01.","02.",null,"Sociedades de Corretaje de Seguros, de Reaseguros o de Valores",{"$f":"+EsNegrita(J179)","v":"SI"},null,{"$f":"+Tabla5[[#This Row],[Nivel 1]]&Tabla5[[#This Row],[Nivel 2]]&Tabla5[[#This Row],[Nivel 3]]&Tabla5[[#This Row],[Nivel 4]]&Tabla5[[#This Row],[Nivel 5]]&Tabla5[[#This Row],[Nivel 6]]&Tabla5[[#This Row],[Nivel 7]]&Tabla5[[#This Row],[Nivel 8]]","v":"7.702.04.01.03.01.02."}]
[null,"7.","702.","04.","01.","03.","01.","03.",null,"Bancos y Otras Instituciones Financieras",{"$f":"+EsNegrita(J180)","v":"SI"},null,{"$f":"+Tabla5[[#This Row],[Nivel 1]]&Tabla5[[#This Row],[Nivel 2]]&Tabla5[[#This Row],[Nivel 3]]&Tabla5[[#This Row],[Nivel 4]]&Tabla5[[#This Row],[Nivel 5]]&Tabla5[[#This Row],[Nivel 6]]&Tabla5[[#This Row],[Nivel 7]]&Tabla5[[#This Row],[Nivel 8]]","v":"7.702.04.01.03.01.03."}]
[null,"7.","702.","04.","01.","03.","01.","04.",null,"Sociedades Industriales y Comerciales",{"$f":"+EsNegrita(J181)","v":"SI"},null,{"$f":"+Tabla5[[#This Row],[Nivel 1]]&Tabla5[[#This Row],[Nivel 2]]&Tabla5[[#This Row],[Nivel 3]]&Tabla5[[#This Row],[Nivel 4]]&Tabla5[[#This Row],[Nivel 5]]&Tabla5[[#This Row],[Nivel 6]]&Tabla5[[#This Row],[Nivel 7]]&Tabla5[[#This Row],[Nivel 8]]","v":"7.702.04.01.03.01.04."}]
[null,"7.","702.","04.","01.","03.","01.","05.",null,"Sociedades Civiles",{"$f":"+EsNegrita(J182)","v":"SI"},null,{"$f":"+Tabla5[[#This Row],[Nivel 1]]&Tabla5[[#This Row],[Nivel 2]]&Tabla5[[#This Row],[Nivel 3]]&Tabla5[[#This Row],[Nivel 4]]&Tabla5[[#This Row],[Nivel 5]]&Tabla5[[#This Row],[Nivel 6]]&Tabla5[[#This Row],[Nivel 7]]&Tabla5[[#This Row],[Nivel 8]]","v":"7.702.04.01.03.01.05."}]
[null,"7.","702.","04.","01.","03.","01.","06.",null,"Empresas Filiales, Afiliadas y Relacionadas",{"$f":"+EsNegrita(J183)","v":"SI"},null,{"$f":"+Tabla5[[#This Row],[Nivel 1]]&Tabla5[[#This Row],[Nivel 2]]&Tabla5[[#This Row],[Nivel 3]]&Tabla5[[#This Row],[Nivel 4]]&Tabla5[[#This Row],[Nivel 5]]&Tabla5[[#This Row],[Nivel 6]]&Tabla5[[#This Row],[Nivel 7]]&Tabla5[[#This Row],[Nivel 8]]","v":"7.702.04.01.03.01.06."}]
[null,"7.","702.","04.","01.","03.","01.","07.",null,"Otras Sociedades Anónimas",{"$f":"+EsNegrita(J184)","v":"SI"},null,{"$f":"+Tabla5[[#This Row],[Nivel 1]]&Tabla5[[#This Row],[Nivel 2]]&Tabla5[[#This Row],[Nivel 3]]&Tabla5[[#This Row],[Nivel 4]]&Tabla5[[#This Row],[Nivel 5]]&Tabla5[[#This Row],[Nivel 6]]&Tabla5[[#This Row],[Nivel 7]]&Tabla5[[#This Row],[Nivel 8]]","v":"7.702.04.01.03.01.07."}]
[null,"7.","702.","04.","01.","03.","02.",null,null,"Bonos de Sociedades Anónimas",{"$f":"+EsNegrita(J185)","v":"SI"},null,{"$f":"+Tabla5[[#This Row],[Nivel 1]]&Tabla5[[#This Row],[Nivel 2]]&Tabla5[[#This Row],[Nivel 3]]&Tabla5[[#This Row],[Nivel 4]]&Tabla5[[#This Row],[Nivel 5]]&Tabla5[[#This Row],[Nivel 6]]&Tabla5[[#This Row],[Nivel 7]]&Tabla5[[#This Row],[Nivel 8]]","v":"7.702.04.01.03.02."}]
[null,"7.","702.","04.","01.","03.","03.",null,null,"Otras Inversiones emitidas por el Sector Privado.",{"$f":"+EsNegrita(J186)","v":"SI"},null,{"$f":"+Tabla5[[#This Row],[Nivel 1]]&Tabla5[[#This Row],[Nivel 2]]&Tabla5[[#This Row],[Nivel 3]]&Tabla5[[#This Row],[Nivel 4]]&Tabla5[[#This Row],[Nivel 5]]&Tabla5[[#This Row],[Nivel 6]]&Tabla5[[#This Row],[Nivel 7]]&Tabla5[[#This Row],[Nivel 8]]","v":"7.702.04.01.03.03."}]
[null,"7.","702.","04.","01.","04.",null,null,null,"Activos en el Extranjero",{"$f":"+EsNegrita(J187)","v":"NO"},null,{"$f":"+Tabla5[[#This Row],[Nivel 1]]&Tabla5[[#This Row],[Nivel 2]]&Tabla5[[#This Row],[Nivel 3]]&Tabla5[[#This Row],[Nivel 4]]&Tabla5[[#This Row],[Nivel 5]]&Tabla5[[#This Row],[Nivel 6]]&Tabla5[[#This Row],[Nivel 7]]&Tabla5[[#This Row],[Nivel 8]]","v":"7.702.04.01.04."}]
[null,"7.","702.","04.","01.","04.","01.",null,null,"Títulos Valores",{"$f":"+EsNegrita(J188)","v":"SI"},null,{"$f":"+Tabla5[[#This Row],[Nivel 1]]&Tabla5[[#This Row],[Nivel 2]]&Tabla5[[#This Row],[Nivel 3]]&Tabla5[[#This Row],[Nivel 4]]&Tabla5[[#This Row],[Nivel 5]]&Tabla5[[#This Row],[Nivel 6]]&Tabla5[[#This Row],[Nivel 7]]&Tabla5[[#This Row],[Nivel 8]]","v":"7.702.04.01.04.01."}]
[null,"7.","702.","04.","02.",null,null,null,null,"Utilidad en Negociación de Bienes",{"$f":"+EsNegrita(J189)","v":"NO"},null,{"$f":"+Tabla5[[#This Row],[Nivel 1]]&Tabla5[[#This Row],[Nivel 2]]&Tabla5[[#This Row],[Nivel 3]]&Tabla5[[#This Row],[Nivel 4]]&Tabla5[[#This Row],[Nivel 5]]&Tabla5[[#This Row],[Nivel 6]]&Tabla5[[#This Row],[Nivel 7]]&Tabla5[[#This Row],[Nivel 8]]","v":"7.702.04.02."}]
[null,"7.","702.","04.","02.","01.",null,null,null,"Participación Fondos de Inversión Inmobiliarios",{"$f":"+EsNegrita(J190)","v":"SI"},null,{"$f":"+Tabla5[[#This Row],[Nivel 1]]&Tabla5[[#This Row],[Nivel 2]]&Tabla5[[#This Row],[Nivel 3]]&Tabla5[[#This Row],[Nivel 4]]&Tabla5[[#This Row],[Nivel 5]]&Tabla5[[#This Row],[Nivel 6]]&Tabla5[[#This Row],[Nivel 7]]&Tabla5[[#This Row],[Nivel 8]]","v":"7.702.04.02.01."}]
[null,"7.","702.","04.","02.","02.",null,null,null,"Bienes Inmuebles Edificados",{"$f":"+EsNegrita(J191)","v":"SI"},null,{"$f":"+Tabla5[[#This Row],[Nivel 1]]&Tabla5[[#This Row],[Nivel 2]]&Tabla5[[#This Row],[Nivel 3]]&Tabla5[[#This Row],[Nivel 4]]&Tabla5[[#This Row],[Nivel 5]]&Tabla5[[#This Row],[Nivel 6]]&Tabla5[[#This Row],[Nivel 7]]&Tabla5[[#This Row],[Nivel 8]]","v":"7.702.04.02.02."}]
[null,"7.","702.","04.","02.","03.",null,null,null,"Bienes Inmuebles ",{"$f":"+EsNegrita(J192)","v":"SI"},null,{"$f":"+Tabla5[[#This Row],[Nivel 1]]&Tabla5[[#This Row],[Nivel 2]]&Tabla5[[#This Row],[Nivel 3]]&Tabla5[[#This Row],[Nivel 4]]&Tabla5[[#This Row],[Nivel 5]]&Tabla5[[#This Row],[Nivel 6]]&Tabla5[[#This Row],[Nivel 7]]&Tabla5[[#This Row],[Nivel 8]]","v":"7.702.04.02.03."}]
[null,"7.","702.","04.","02.","04.",null,null,null,"Activos en el Extranjero",{"$f":"+EsNegrita(J193)","v":"SI"},null,{"$f":"+Tabla5[[#This Row],[Nivel 1]]&Tabla5[[#This Row],[Nivel 2]]&Tabla5[[#This Row],[Nivel 3]]&Tabla5[[#This Row],[Nivel 4]]&Tabla5[[#This Row],[Nivel 5]]&Tabla5[[#This Row],[Nivel 6]]&Tabla5[[#This Row],[Nivel 7]]&Tabla5[[#This Row],[Nivel 8]]","v":"7.702.04.02.04."}]
[null,"7.","702.","05.",null,null,null,null,null,"Ingresos por Servicios",{"$f":"+EsNegrita(J194)","v":"NO"},null,{"$f":"+Tabla5[[#This Row],[Nivel 1]]&Tabla5[[#This Row],[Nivel 2]]&Tabla5[[#This Row],[Nivel 3]]&Tabla5[[#This Row],[Nivel 4]]&Tabla5[[#This Row],[Nivel 5]]&Tabla5[[#This Row],[Nivel 6]]&Tabla5[[#This Row],[Nivel 7]]&Tabla5[[#This Row],[Nivel 8]]","v":"7.702.05."}]
[null,"7.","702.","06.",null,null,null,null,null,"Beneficios Diversos",{"$f":"+EsNegrita(J195)","v":"NO"},null,{"$f":"+Tabla5[[#This Row],[Nivel 1]]&Tabla5[[#This Row],[Nivel 2]]&Tabla5[[#This Row],[Nivel 3]]&Tabla5[[#This Row],[Nivel 4]]&Tabla5[[#This Row],[Nivel 5]]&Tabla5[[#This Row],[Nivel 6]]&Tabla5[[#This Row],[Nivel 7]]&Tabla5[[#This Row],[Nivel 8]]","v":"7.702.06."}]
[null,"7.","702.","06.","01.",null,null,null,null,"Diferencias en Cobranzas",{"$f":"+EsNegrita(J196)","v":"SI"},null,{"$f":"+Tabla5[[#This Row],[Nivel 1]]&Tabla5[[#This Row],[Nivel 2]]&Tabla5[[#This Row],[Nivel 3]]&Tabla5[[#This Row],[Nivel 4]]&Tabla5[[#This Row],[Nivel 5]]&Tabla5[[#This Row],[Nivel 6]]&Tabla5[[#This Row],[Nivel 7]]&Tabla5[[#This Row],[Nivel 8]]","v":"7.702.06.01."}]
[null,"7.","702.","06.","02.",null,null,null,null,"Recuperación de Cuentas Incobrables",{"$f":"+EsNegrita(J197)","v":"SI"},null,{"$f":"+Tabla5[[#This Row],[Nivel 1]]&Tabla5[[#This Row],[Nivel 2]]&Tabla5[[#This Row],[Nivel 3]]&Tabla5[[#This Row],[Nivel 4]]&Tabla5[[#This Row],[Nivel 5]]&Tabla5[[#This Row],[Nivel 6]]&Tabla5[[#This Row],[Nivel 7]]&Tabla5[[#This Row],[Nivel 8]]","v":"7.702.06.02."}]
[null,"7.","702.","06.","03.",null,null,null,null,"Liberación de Provisiones o Fondos para Contingencias",{"$f":"+EsNegrita(J198)","v":"SI"},null,{"$f":"+Tabla5[[#This Row],[Nivel 1]]&Tabla5[[#This Row],[Nivel 2]]&Tabla5[[#This Row],[Nivel 3]]&Tabla5[[#This Row],[Nivel 4]]&Tabla5[[#This Row],[Nivel 5]]&Tabla5[[#This Row],[Nivel 6]]&Tabla5[[#This Row],[Nivel 7]]&Tabla5[[#This Row],[Nivel 8]]","v":"7.702.06.03."}]
[null,"7.","702.","06.","04.",null,null,null,null,"Ajustes de Años Anteriores",{"$f":"+EsNegrita(J199)","v":"SI"},null,{"$f":"+Tabla5[[#This Row],[Nivel 1]]&Tabla5[[#This Row],[Nivel 2]]&Tabla5[[#This Row],[Nivel 3]]&Tabla5[[#This Row],[Nivel 4]]&Tabla5[[#This Row],[Nivel 5]]&Tabla5[[#This Row],[Nivel 6]]&Tabla5[[#This Row],[Nivel 7]]&Tabla5[[#This Row],[Nivel 8]]","v":"7.702.06.04."}]
[null,"7.","702.","06.","05.",null,null,null,null,"Otros Beneficios",{"$f":"+EsNegrita(J200)","v":"SI"},null,{"$f":"+Tabla5[[#This Row],[Nivel 1]]&Tabla5[[#This Row],[Nivel 2]]&Tabla5[[#This Row],[Nivel 3]]&Tabla5[[#This Row],[Nivel 4]]&Tabla5[[#This Row],[Nivel 5]]&Tabla5[[#This Row],[Nivel 6]]&Tabla5[[#This Row],[Nivel 7]]&Tabla5[[#This Row],[Nivel 8]]","v":"7.702.06.05."}]
[null,null,null,null,null,null,null,null,null,"TOTAL INGRESOS…..",{"$f":"+EsNegrita(J201)","v":"NO"},null,{"$f":"+Tabla5[[#This Row],[Nivel 1]]&Tabla5[[#This Row],[Nivel 2]]&Tabla5[[#This Row],[Nivel 3]]&Tabla5[[#This Row],[Nivel 4]]&Tabla5[[#This Row],[Nivel 5]]&Tabla5[[#This Row],[Nivel 6]]&Tabla5[[#This Row],[Nivel 7]]&Tabla5[[#This Row],[Nivel 8]]","v":""}]
[null,"7.","703.",null,null,null,null,null,null,"RESULTADO DEL EJERCICIO",{"$f":"+EsNegrita(J202)","v":"NO"},null,{"$f":"+Tabla5[[#This Row],[Nivel 1]]&Tabla5[[#This Row],[Nivel 2]]&Tabla5[[#This Row],[Nivel 3]]&Tabla5[[#This Row],[Nivel 4]]&Tabla5[[#This Row],[Nivel 5]]&Tabla5[[#This Row],[Nivel 6]]&Tabla5[[#This Row],[Nivel 7]]&Tabla5[[#This Row],[Nivel 8]]","v":"7.703."}]
[null,"7.","703.","01.",null,null,null,null,null,"Pérdida del Ejercicio",{"$f":"+EsNegrita(J203)","v":"SI"},null,{"$f":"+Tabla5[[#This Row],[Nivel 1]]&Tabla5[[#This Row],[Nivel 2]]&Tabla5[[#This Row],[Nivel 3]]&Tabla5[[#This Row],[Nivel 4]]&Tabla5[[#This Row],[Nivel 5]]&Tabla5[[#This Row],[Nivel 6]]&Tabla5[[#This Row],[Nivel 7]]&Tabla5[[#This Row],[Nivel 8]]","v":"7.703.01."}]
[null,"7.","703.","02.",null,null,null,null,null,"Saldo de Operaciones - Pérdida",{"$f":"+EsNegrita(J204)","v":"SI"},null,{"$f":"+Tabla5[[#This Row],[Nivel 1]]&Tabla5[[#This Row],[Nivel 2]]&Tabla5[[#This Row],[Nivel 3]]&Tabla5[[#This Row],[Nivel 4]]&Tabla5[[#This Row],[Nivel 5]]&Tabla5[[#This Row],[Nivel 6]]&Tabla5[[#This Row],[Nivel 7]]&Tabla5[[#This Row],[Nivel 8]]","v":"7.703.02."}]
[null,null,null,null,null,null,null,null,null,"TOTAL GENERAL…..",{"$f":"+EsNegrita(J205)","v":"NO"},null,{"$f":"+Tabla5[[#This Row],[Nivel 1]]&Tabla5[[#This Row],[Nivel 2]]&Tabla5[[#This Row],[Nivel 3]]&Tabla5[[#This Row],[Nivel 4]]&Tabla5[[#This Row],[Nivel 5]]&Tabla5[[#This Row],[Nivel 6]]&Tabla5[[#This Row],[Nivel 7]]&Tabla5[[#This Row],[Nivel 8]]","v":""}]

{"sheet":"Resumen de Anexos Contables","index":4,"n_rows":22,"n_cols":3,"rows_kept":22,"cut":false,"hidden":false,"merged":[]}
[]
["Identificación de anexos requeridos en la circular vigente."]
[]
["Identificador","Código","Descripción de cuenta contable"]
["A1","1.101.","Disponible."]
["A2","1.103.01.01.","Activos depreciables y activos amortizables. Activos Depreciables. Terrenos - Inmuebles, indicando en la columna de Observaciones, el Registro Público en la cual se encuentra protocolizado el documento de propiedad."]
[null,"1.103.01.02."]
["A3","1.102.06.","Inversiones. Activos en el Extranjero."]
["A4","1.104.02","Cuentas Diversas. Comisiones por Cobrar - Administración de Riesgos"]
["A5","1.104.04.","Cuentas Diversas. Cuentas por Cobrar Diversas"]
["A6","3.301.02.","Obligaciones a Pagar. A Corto Plazo"]
["A7","3.301.03.","Obligaciones a Pagar. A Largo Plazo"]
["A8","3.301.05.02.","Obligaciones a Pagar. Cuentas por Pagar Accionista. Otras Cuentas por Pagar"]
["A9","3.302.01.","Cuentas Diversas. Cuenta por Pagar"]
["A10","3.302.02. ","Cuentas por Pagar. Comisiones por Pagar-Intermediarios "]
["A11","3.302.04.","Cuentas por Pagar. Proveedores de Servicios de Seguros. "]
["A12","3.304.01.","Reservas de Provisión. Para Cuentas Dudosas"]
["A13","4.401.","Patrimonio. Capital Pagado."]
["A14",6601,"Comisiones Pagadas. Fondos Administrados."]
["A15","6.602.08.","Egresos por Servicios."]
["A16","7,701.","Relación detallada de los fondos administrados."]
["A17",null,"Información detallada de la Cartera de Inversiones: Inversiones en los valores públicos, Garantía a la Nación, Valores Privados, Valores de Renta Fija, Participación en Fondos de Inversión y Fondos de Inversión Inmobiliaria en moneda extranjera o bolívares emitidos dentro o fuera del país por bancos nacionales y/o extranjeros, casas de bolsas, instituciones financieras y empresas no financieras extranjeras."]

{"sheet":"RELACIONES ENTRE EEFF Y ANEXOS","index":5,"n_rows":134,"n_cols":5,"rows_kept":134,"cut":false,"hidden":false,"merged":[[3,1,3,4],[4,1,4,4],[5,1,5,4]]}
[null,"Relaciones entre Estados Financieros y Anexos Contables"]
[]
[null,"Administradora de Riesgos"]
[null,"Para la adecuada integración de los anexos contables con los estados financieros analíticos, se debe considerar que:"]
[null,"1. En el campo código contable de los anexos requeridos se debe indicar cuentas contables que admitan monto. "]
[null,"2. la sumatoria de los campos cuya Relación / Uso Común represente el saldo de la cuenta contable, debe coincidir con el saldo de la cuenta contable afecta."]
[]
[]
[null,"Cuenta Contable","Identificador de anexo","Descripción de la cuenta","Campo del anexo que debe considir los Estados Financieros"]
[null,"1.101.01.01.","A1","Moneda Nacional","Campo 6"]
[null,"1.101.01.02.","A1","Moneda Extranjera","Campo 6"]
[null,"1.101.02.01.","A1","Moneda Nacional","Campo 6"]
[null,"1.101.02.02.","A1","Moneda Extranjera","Campo 6"]
[null,"1.101.03.01.01.","A1","Moneda Nacional","Campo 6"]
[null,"1.101.03.01.02.","A1","Moneda Extranjera","Campo 6"]
[null,"1.101.03.02.01.","A1","Moneda Nacional","Campo 6"]
[null,"1.101.03.02.02.","A1","Moneda Extranjera","Campo 6"]
[null,"1.101.04.01.01.","A1","Moneda Nacional","Campo 6"]
[null,"1.101.04.01.02.","A1","Moneda Extranjera","Campo 6"]
[null,"1.101.04.02.01.","A1","Moneda Nacional","Campo 6"]
[null,"1.101.04.02.02.","A1","Moneda Extranjera","Campo 6"]
[null,"1.102.01.","A17","Valores Públicos","Campo 15"]
[null,"1.102.01.01.","A17","Emitidos o Garantizados por la República","Campo 15"]
[null,"1.102.01.02.","A17","Emitidos por Otros Sujetos de Derecho Público Nacional","Campo 15"]
[null,"1.102.01.04.","A17","Emitidos por Instituciones con Participación de la República","Campo 15"]
[null,"1.102.02.","A17","Participación en Fondos de Inversión","Campo 15"]
[null,"1.102.02.02.","A17","Renta Variable","Campo 15"]
[null,"1.102.03.","A17","Participación en Fondos de Inversión inmobiliarios","Campo 15"]
[null,"1.102.03.02.","A17","Moneda Extranjera","Campo 15"]
[null,"1.102.04.","A17","GARANTÍA A LA NACIÓN","Campo 15"]
[null,"1.102.04.02.","A17","Valores Públicos","Campo 15"]
[null,"1.102.05.01.","A17","Acciones de Sociedades Anónimas","Campo 15"]
[null,"1.102.05.01.01.","A17","Empresas de Seguros o Reaseguros","Campo 15"]
[null,"1.102.05.01.02.","A17","Sociedades de Corretaje de Seguros o de Reaseguros o de Valores","Campo 15"]
[null,"1.102.05.01.03.","A17","Bancos y Otras Instituciones Financieras","Campo 15"]
[null,"1.102.05.01.04.","A17","Sociedades Industriales y Comerciales","Campo 15"]
[null,"1.102.05.01.05.","A17","Sociedades Civiles","Campo 15"]
[null,"1.102.05.01.06.","A17","Empresas Filiales, Afiliadas y Relacionadas","Campo 15"]
[null,"1.102.05.01.07.","A17","Otras Sociedades Anónimas","Campo 15"]
[null,"1.102.05.02.","A17","Bonos de Sociedades Anónimas","Campo 15"]
[null,"1.102.05.03.","A17","Otras Inversiones emitidas por el Sector Privado","Campo 15"]
[null,"1.102.06.","A3","ACTIVOS EN EL EXTRANJERO"]
[null,"1.102.06.01.","A3","Bancos  ","Campo 8"]
[null,"1.102.06.02.","A3","Títulos Valores","Campo 8"]
[null,"1.102.06.03.","A3","Inmuebles ","Campo 8"]
[null,"1.102.06.04.","A3","Otras Inversiones","Campo 8"]
[null,"1.103.01.01.","A3","Terrenos","Campo 8"]
[null,"1.103.01.02.","A3","Inmuebles","Campo 8"]
[null,"1.104.02.","A4","Comisiones por Cobrar - Administración de Riesgos"]
[null,"1.104.02.01.01.","A4","Empresas de Seguros","Campo 7"]
[null,"1.104.02.01.02.","A4","Empresas de Medicina Prepagada","Campo 7"]
[null,"1.104.02.01.03.01.","A4","Organismos y Entes de la Administración Pública","Campo 7"]
[null,"1.104.02.01.03.02.","A4","Contratantes del sector Privado","Campo 7"]
[null,"1.104.02.02.01.","A4","Empresas de Seguros","Campo 7"]
[null,"1.104.02.02.02.","A4","Empresas de Medicina Prepagada","Campo 7"]
[null,"1.104.02.02.03.01.","A4","Organismos y Entes de la Administración Pública","Campo 7"]
[null,"1.104.02.02.03.02.","A4","Contratantes del sector Privado","Campo 7"]
[null,"1.104.04.","A5","Cuentas por Cobrar Diversas"]
[null,"1.104.04.01.01.","A5","Filiales","Campo 7"]
[null,"1.104.04.01.02.","A5","Afiliadas","Campo 7"]
[null,"1.104.04.01.03.","A5","Relacionadas","Campo 7"]
[null,"1.104.04.02.","A5","Proveedores de Bienes y Servicios","Campo 7"]
[null,"1.104.04.03.","A5","Otras Cuentas por Pagar","Campo 7"]
[null,"3.301.02.","A6","A Corto Plazo"]
[null,"3.301.02.01.","A6","Préstamos Bancarios","Campo 7"]
[null,"3.301.02.02.","A6","Sobregiros","Campo 7"]
[null,"3.301.02.03.","A6","Pagarés","Campo 7"]
[null,"3.301.02.04.","A6","Línea de Crédito","Campo 7"]
[null,"3.301.02.05.","A6","Cartas de Crédito","Campo 7"]
[null,"3.301.02.06.","A6","Otras Obligaciones a Corto Plazo","Campo 7"]
[null,"3.301.03.","A7","A Largo Plazo"]
[null,"3.301.03.01.","A7","Hipotecas","Campo 7"]
[null,"3.301.03.02.","A7","Bonos y Obligaciones","Campo 7"]
[null,"3.301.03.03.","A7","Otras Obligaciones a Largo Plazo ","Campo 7"]
[null,"3.301.05.02.","A8","Otras cuentas por Pagar","Campo 6"]
[null,"3.302.01.","A9","Cuentas por Pagar  "]
[null,"3.302.01.01.01.","A9","Empresas Filiales","Campo 6"]
[null,"3.302.01.01.02.","A9","Empresas Afiliadas","Campo 6"]
[null,"3.302.01.01.03.","A9","Empresas Relacionadas","Campo 6"]
[null,"3.302.01.03.","A9","Arrendamientos por Pagar","Campo 6"]
[null,"3.302.01.04.","A9","Otras Cuentas por Pagar","Campo 6"]
[null,"3.302.02.","A10","Comisiones por Pagar - Intermediarios"]
[null,"3.302.02.01.","A10","Agentes","Campo 7"]
[null,"3.302.02.02.","A10","Corredores de Seguros","Campo 7"]
[null,"3.302.02.03.","A10","Sociedades de Corretaje de Seguros","Campo 7"]
[null,"3.302.04.","A11","Cuentas por Pagar - Proveedores de Servicios de Seguros","Campo 7"]
[null,"3.304.01.","A12","Para Cuentas Dudosas","Campo 8"]
[null,"3.304.01.01.","A12","Cuentas por Cobrar ","Campo 8"]
[null,"3.304.01.02.","A12","Préstamos por Cobrar ","Campo 8"]
[null,"3.304.01.03.","A12","Otras Cuentas por Cobrar","Campo 8"]
[null,"3.305.01.01.","A2","Inmuebles "]
[null,"3.305.03.02.02.","A2","Activos Depreciables  "]
[null,"3.305.03.02.02.01.","A2","Terrenos","Campo 9 - Campo 11"]
[null,"3.305.03.02.02.02.","A2","Inmuebles","Campo 10 - ( Campo 11 + Campo 13)"]
[null,"4.401.","A13","Capital Pagado","Campo 7"]
[null,"6.601.","A14","COMISIONES PAGADAS"]
[null,"6.601.01.","A14","Fondos Administrados","Campo 7"]
[null,"6.601.01.01.01.","A14","Accidentes Personales","Campo 7"]
[null,"6.601.01.01.02.","A14","Salud","Campo 7"]
[null,"6.601.01.01.03.","A14","Funerarios Servicios","Campo 7"]
[null,"6.601.01.02.01.","A14","Automóvil Casco","Campo 7"]
[null,"6.601.01.03.01.","A14","Responsabilidad Civil Patronal","Campo 7"]
[null,"6.601.01.03.02.","A14","Responsabilidad Civil Empresarial","Campo 7"]
[null,"6.601.01.04.","A14","Otros Ramos Autorizados","Campo 7"]
[null,"6.601.02.01.01.","A14","Accidentes Personales","Campo 7"]
[null,"6.601.02.01.02.","A14","Salud","Campo 7"]
[null,"6.601.02.01.03.","A14","Funerarios Servicios","Campo 7"]
[null,"6.601.02.02.01.","A14","Automóvil Casco","Campo 7"]
[null,"6.601.02.03.01.","A14","Responsabilidad Civil Patronal","Campo 7"]
[null,"6.601.02.03.02.","A14","Responsabilidad Civil Empresarial","Campo 7"]
[null,"6.601.02.04.","A14","Otros Ramos Autorizados","Campo 7"]
[null,"6.601.03.","A14","Intereses sobre Comisiones pagadas","Campo 7"]
[null,"6.602.08.","A15","Egresos por Servicios"]
[null,"6.602.08.01.","A15","Administración de Siniestros","Campo 7"]
[null,"6.602.08.02.","A15","Operaciones de Fondos o Contratos Administrados","Campo 7"]
[null,"6.602.08.03.","A15","Otros Servicios ","Campo 7"]
[null,"7.701.","A16","COMISIONES GANADAS"]
[null,"7.701.01.01.01.","A16","Accidentes Personales","Campo 14"]
[null,"7.701.01.01.02.","A16","Salud","Campo 14"]
[null,"7.701.01.01.03.","A16","Funerarios Servicios","Campo 14"]
[null,"7.701.01.02.01.","A16","Automóvil Casco","Campo 14"]
[null,"7.701.01.03.01.","A16","Responsabilidad Civil Patronal","Campo 14"]
[null,"7.701.01.03.02.","A16","Responsabilidad Civil Empresarial","Campo 14"]
[null,"7.701.01.04.","A16","Otros Ramos Autorizados","Campo 14"]
[null,"7.701.02.01.01.","A16","Accidentes Personales","Campo 14"]
[null,"7.701.02.01.02.","A16","Salud","Campo 14"]
[null,"7.701.02.01.03.","A16","Funerarios Servicios","Campo 14"]
[null,"7.701.02.02.01.","A16","Automóvil Casco","Campo 14"]
[null,"7.701.02.03.01.","A16","Responsabilidad Civil Patronal","Campo 14"]
[null,"7.701.02.03.02.","A16","Responsabilidad Civil Empresarial","Campo 14"]
[null,"7.701.02.04.","A16","Otros Ramos Autorizados","Campo 14"]
[null,"7.702.01.01.","A17","Intereses Ganados","Campo 17"]
[null,"7.702.01.02.","A17","Dividendos Ganados ","Campo 18"]
[null,"7.702.04.","A17","Utilidad en Negociación de Valores Bienes y Otros Activos","Campo 19"]